Workbook

Sheet Dev
H8: To start RIM, allow macros
H9: to run in your security settings.
D13: RIM is a software from the University of Western Australia and
D14: the Department of Agriculture and Food of Western Australia.
D15: © 1998-2013 Ms Excel 2007® or higher is recommended.
D57: Before to screen-copy, zoom to 100% and make sure computer resolution settings are normal
N61: The first step is to personalise your paddock. | V61: For the second step, build your strategy. | AD61: The last step allows you to compare your results | AL61: Ryegrass population and seed bank dynamics | AT61: Crop yields and competition | BB61: Exporting your results
F63: Welcome to RIM ! | N63: Assume an average year. | S63: For each of the 10 years shown, | AB63: once you clicked on or | BJ63: Unlocking RIM…
S64: choose a crop or pasture from the top row: | AL64: This page allows further comparison of your two sets of results,
N65: You can start with updating your yields and grain prices… | AL65: focusing on the evolution over time of: | AT65: This page focuses on the impacts of your management choices | BB65: If you experience problems with printing or saving,
AD66: You can compare two different strategies (same paddock): | AJ66: - the ryegrass plant numbers (plain line); and | AT66: and of the ryegrass burden on your crops. | BB66: try running RIM with a more recent version of Excel.
F67: RIM will allow you to test how ryegrass and gross margins | AC67: Mr.West, Sandy Paddock - Cropping | AJ67: - the seed bank (background area).
F68: evolve with time, depending on your management choices. | AC68: Mr.West, Sandy Paddock - Pasture & Hay | BB68: You can also go back to the Title
AL69: In the previous graphs (Summary & Economics tab) | AT69: RIM uses the 'weed-free long-term average' yields that | BB69: and unlock RIM from the Info page. | BJ69: … might compromise it
F70: RIM is like a forecast game: what trends will result from | K70: Find more information by | N70: Any legume (lupin, field peas etc.) | AL70: only the end of the season numbers are represented. | AT70: you chose in your Profile as a starting point. | BB70: This will allow you to access the unprotected version. | BJ70: and is not recommended!
F71: the choices you make? | K71: hovering over the red corners | N71: appropriate to your farming system | AD71: Or two different paddock profiles (same strategy, or not) | AL71: Here, plants and seeds are counted at several times of the year. | BB71: You can then print selections.
AC72: Mr.West, Sandy Paddock - Cropping | AT72: This 'yield potential' ( ) is affected by practices
K73: …and continue with the other main parameters. You can specify | S73: Then choose your control options… | AC73: Ms.South, Best Paddock - Cropping | AL73: Typically, ryegrass numbers go up with the start of | AT73: and rotations ( ). For instance, a cereal will benefit from | BB73: The assumptions used in RIM can be deduced from
K74: the details of the control options you require (herbicides etc.) in | AL74: the cropping season, with cut-backs when control occurs. | AT74: following a legume crop or pasture, while late sowing can result | BB74: the comments and from the background calculations. | BH74: You may want to unlock RIM if:
K75: this table: | M75: ...and further customise your information here: | AL75: Germination and seed mortality progressively | AT75: in losses. Sometimes, one effect compensates another. | BB75: They are also detailed in a User guide available on the website
AB76: Click on this button to change the graphs axis: | AL76: deplete the seed bank. | BB76: (see Info). | BH76: - you experience issues running it or exporting results
AB77: Auto | AC77: - to adjust graphs to the values
AB78: Fixed | AC78: - to compare results more easily | AL78: In summer no ryegrass plant survives however the seed bank | AT78: The final yield ( ) takes into account competition. | BH78: - you wish to customise RIM's parameters further
F79: Will you keep your ryegrass under control? | L79: Once complete, name your paddock profile. | AL79: is highest, having just been replenished in spring | AT79: If you kept your ryegrass numbers down, this penalty (%)
F80: Will you lose or earn money? | L80: You can save it and recall it later here: | AL80: by mature ryegrass survivors. | AT80: will be close to zero. | BB80: For enquiries, comments and general feedback, | BH80: - you wish to investigate the equations underlying
F81: What if you cannot rely on some herbicides? | S81: …and see the effect on your weed numbers, and on your return. | AD81: To see more outputs, click on the tab buttons: | AT81: (in the case of crop sacrifice, the final yield is | BB81: please contact AHRI. | BH81: the model and its assumptions
F82: Should you invest in alternative techniques? | AI82: Notes on the graphs: | AT82: as if the crop has been harvested normally)
F83: What about rotations, green manuring, hay, harvest options? | K83: Go to the next step using the navigation buttons: | T83: Once complete, name your strategy. | AJ83: - each tick on the horizontal axis corresponds to summer | BH83: - you wish to modify RIM, and/or peruse RIM for research
T84: You can save it and recall it later here: | AG84: This tab shows the data on which | AJ84: - the summer period is represented shorter to allow for better | BH84: purposes. In both cases, by unlocking the program
AG85: all the graphs are based | AJ85: discrimination of the dynamics during the cropping season | AS85: This graph is shown as a reference. | BH85: you acknowledge the copyright terms and conditions.
AS86: It illustrates the importance of crop competition
L87: Click on the RIM logo to go back to the title page anytime. | S87: To see more results, click twice on | W87: and try | AA87: To print and export your results, click on | AI87: To see the results from a different perspective, try | AS87: and how it varies depending on crop type | AZ87: Click on the RIM logo to go back to the title page anytime.
L88: Any changes you make will be saved automatically. | AS88: and on planting density. | AZ88: Any changes you make will be saved automatically.
H90: Continue!
M91: Zoom to 80% only
F93: With the support of

Sheet Title
M13: Ryegrass Integrated Management
C20: A tool to evaluate the profitability of ryegrass control methods
C21: in the no-till broadacre cropping systems of the Southern Australian grainbelt,
C22: on the short, long-term and at paddock scale, in 3 simple steps:
C26: 1. Define your paddock 2. Build your strategy 3. Compare your results
AM33: 2
U35: Version 2013.1 | AM35: FALSE
B107: Log since official release on February 2013:
B108: 2013 | C108: March | D108: Added missing link in mouldboarding yield benefit

Sheet 1.Profile
A3: 1. DEFINE Paddock
B5: Main parameters | D5: Wheat | E5: Barley | F5: Canola | G5: Legume | K5: Hay | L5: Silage | M5: Bales | P5: Sheep
C7: Weed-free yields | D7: 1.8 | E7: 1.6 | F7: 1 | G7: 1 | H7: t/ha | I7: Production costs | K7: 250 | L7: 250 | M7: 25 | N7: $/ha | P7: Animal Gross Margin
C8: Grain prices | D8: 380 | E8: 280 | F8: 780 | G8: 450 | H8: $/t | I8: Fodder prices | K8: 180 | L8: 180 | M8: 110 | N8: $/t | P8: 55 | Q8: $/DSE
B10: Yield benefit from dry seeding | D10: 0.05 | E10: 0.02 | F10: 0.1 | G10: 0.05 | I10: Operation cost of sprayer | M10: 8 | N10: $/ha | P10: Mature ryegrass last
B11: Yield loss if delayed seeding | D11: 0.1 | E11: 0.05 | F11: 0.2 | G11: 0.1 | I11: Average area cropped | M11: 2000 | N11: ha | O11: spring: | P11: 5 | Q11: plant/m2
B14: Control options | E14: Wheat & Barley | F14: Canola & Legumes | G14: Pastures | H14: Wheat & Barley | I14: Canola & Legumes | J14: Pastures
B15: Enter herbicide names, cost and % ryegrass controlled: | F15: Cost ($/ha) | I15: % of ryegrass controlled
B16: Knock-down | C16: Glyphosate | E16: 18 | F16: 18 | G16: 14 | H16: 0.95 | I16: 0.95 | J16: 0.95
B17: herbicides | C17: Paraquat | E17: 8 | F17: 8 | G17: 8 | H17: 0.95 | I17: 0.95 | J17: 0.95
B18: Double-knock | C18: Glyphosate/Paraquat | E18: 26 | F18: 26 | G18: 22 | H18: 1 | I18: 1 | J18: 1
C20: Triflur+Triallate | E20: 22 | F20: 22 | H20: 0.8 | I20: 0.85 | M20: =IF($AC$50<26,$AD$50,IF($AC$51<36,$AD$51,IF($AC$52<50,$AD$52,IF($AC$53<>"OK",$AD$53,"")))) -> 
B21: Pre- | C21: Propyzamide | F21: 26 | I21: 0.85
B22: emergence | C22: Sakura | E22: 40 | F22: 40 | H22: 0.9 | I22: 0.9 | L22: Save Profile
B23: herbicides | C23: Boxer Gold | E23: 27 | F23: 27 | H23: 0.85 | I23: 0.85
C24: Triazine | F24: 10 | G24: 5 | I24: 0.7 | J24: 0.5
C26: Topik | E26: 5 | H26: 0.9 | M26: Paddock name: | O26: 2022-LoRF
B27: Post- | C27: Hussar | E27: 30 | H27: 0.95 | M27: Your name: | O27: Susceptible
B28: emergence | C28: Clethodim | F28: 40 | I28: 0.9
B29: herbicides | C29: Glyphosate | F29: 18 | I29: 0.9
C30: Paraquat | G30: 8 | J30: 0.65 | O30: Susceptible, 2022-LoRF
B31: Enter additional control options: | O31: Susceptible, 2022-HiRF
B32: Spring | C32: Define 1st spring option | E32: 10 | F32: 10 | G32: 10 | H32: 0.7 | I32: 0.7 | J32: 0.7 | O32: Resistant1, 2022-LoRF
B33: options | C33: Define 2nd spring option | E33: 10 | F33: 10 | G33: 10 | H33: 0.7 | I33: 0.7 | J33: 0.7 | O33: HighResist, 2022-LoRF
B35: Harvest | C35: Define 1st harvest option | E35: 10 | F35: 10 | G35: 10 | H35: 0.7 | I35: 0.7 | J35: 0.7 | O35: Susceptible, Default
B36: options | C36: Define 2nd harvest option | E36: 10 | F36: 10 | G36: 10 | H36: 0.7 | I36: 0.7 | J36: 0.7
AR39: =P_1P -> TRUE | AT39: indicator for printing
AR46: FALSE | AT46: indicator for tutorials
R48: Note: careful with deleting/inserting lines, could stuff up the saving/loading macros
B49: Profile_0 | C49: =O35 -> Susceptible, Default | E49: Additional references for the default Profile, Options and Prices (2012): Stephen Powles (AHRI, UWA), Vanessa Stewart (DAFWA), Abul Ashem (DAFWA), David Pfeiffer (Synergy Consulting), Alistair Drapper, Bevan Addison.
AC50: =COUNT(D7:G8,'1.Profile'!M10:M11,K7:M8,D10:G11,SheepGM,SeedNos_SH,O26:Q27) -> 26 | AD50: Some information is missing on this page
B51: Main parameters | D51: Wheat | E51: Barley | F51: Canola | G51: Legume | K51: Hay | L51: Silage | M51: Bales | P51: Sheep | AC51: ='+Prices'!AC46 -> 36 | AD51: Some information is missing in 'More Prices'
AC52: ='+Options'!AC48 -> 50 | AD52: Some information is missing in 'More Options'
C53: Weed-free yields | D53: 2 | E53: 2.2 | F53: 1.3 | G53: 1 | H53: t/ha | I53: Production costs | K53: 40 | L53: 40 | M53: 5 | N53: $/ha | P53: Animal Gross Margin | AC53: =IF(OR(SUM('1.Profile'!I16:I17)<0.6,SUM('1.Profile'!J16:J17)<0.6,SUM('1.Profile'!H16:H17)<0.6),"Adjust","OK") -> OK | AD53: Please adjust the spring options ↑
C54: Grain prices | D54: 220 | E54: 200 | F54: 550 | G54: 240 | H54: $/t | I54: Fodder prices | K54: 90 | L54: 80 | M54: 50 | N54: $/t | P54: 30 | Q54: $/DSE
B56: Yield benefit from dry seeding | D56: 0.05 | E56: 0.02 | F56: 0.1 | G56: 0.05 | I56: Operation cost of sprayer | M56: 4.5 | N56: $/ha | P56: Mature ryegrass last | AD56: Resistant, Non-selectives
B57: Yield loss if delayed seeding | D57: 0.1 | E57: 0.05 | F57: 0.2 | G57: 0.1 | I57: Average area cropped | M57: 2000 | N57: ha | O57: spring: | P57: 5 | Q57: plant/m2 | AD57: Resistant, Gr. A B D
AD59: Susceptible, Default
B60: Control options | E60: Wheat & Barley | F60: Canola & Legumes | G60: Pastures | H60: Wheat & Barley | I60: Canola & Legumes | J60: Pastures
B61: Enter herbicide names, cost and % ryegrass controlled: | F61: Cost ($/ha) | I61: % of ryegrass controlled
B62: Knock-down | C62: Glyphosate | E62: 6 | F62: 6 | G62: 4 | H62: 0.95 | I62: 0.95 | J62: 0.95
B63: herbicides | C63: Paraquat | E63: 8 | F63: 8 | G63: 6 | H63: 0.95 | I63: 0.95 | J63: 0.95
B64: Double-knock | C64: Glyphosate/Paraquat | E64: 12 | F64: 12 | G64: 10 | H64: 1 | I64: 1 | J64: 1
C66: Trifluralin | E66: 12 | F66: 12 | H66: 0.7 | I66: 0.7 | M66: =IF($AC$50<26,$AD$50,IF($AC$51<36,$AD$51,IF($AC$52<50,$AD$52,IF($AC$53<>"OK",$AD$53,"")))) -> 
B67: Pre- | C67: Group B | E67: 5 | H67: 0.85
B68: emergence | C68: Sakura | E68: 35 | H68: 0.9 | L68: Save Profile
B69: herbicides | C69: Boxer Gold | E69: 30 | H69: 0.85
C70: Triazine | F70: 10 | G70: 5 | I70: 0.7 | J70: 0.5
C72: Group A | E72: 18 | F72: 10 | G72: 10 | H72: 0.7 | I72: 0.6 | J72: 0.4 | M72: Paddock name: | O72: Default
B73: Post- | C73: Triazine | F73: 8 | I73: 0.7 | M73: Your name: | O73: Susceptible
B74: emergence | C74: Triaz + Gp A | F74: 14 | I74: 0.8
B75: herbicides | C75: Glyphosate | F75: 8 | I75: 0.85
C76: Group B | G76: 12 | J76: 0.65
B77: Enter additional control options:
B78: Spring | C78: Define 1st spring option | E78: 10 | F78: 10 | G78: 10 | H78: 0.7 | I78: 0.7 | J78: 0.7 | O78: Resistant, Non-selectives
B79: options | C79: Define 2nd spring option | E79: 10 | F79: 10 | G79: 10 | H79: 0.7 | I79: 0.7 | J79: 0.7 | O79: Resistant, Gp. A B C
B81: Harvest | C81: Define 1st harvest option | E81: 10 | F81: 10 | G81: 10 | H81: 0.7 | I81: 0.7 | J81: 0.7 | O81: Susceptible, Default
B82: options | C82: Define 2nd harvest option | E82: 10 | F82: 10 | G82: 10 | H82: 0.7 | I82: 0.7 | J82: 0.7
B88: Profile_1 | C88: =O30 -> Susceptible, 2022-LoRF
B90: Main parameters | D90: Wheat | E90: Barley | F90: Canola | G90: Legume | K90: Hay | L90: Silage | M90: Bales | P90: Sheep
C92: Weed-free yields | D92: 1.8 | E92: 1.6 | F92: 1 | G92: 1 | H92: t/ha | I92: Production costs | K92: 250 | L92: 250 | M92: 25 | N92: $/ha | P92: Animal Gross Margin
C93: Grain prices | D93: 380 | E93: 280 | F93: 780 | G93: 450 | H93: $/t | I93: Fodder prices | K93: 180 | L93: 180 | M93: 110 | N93: $/t | P93: 55 | Q93: $/DSE
B95: Yield benefit from dry seeding | D95: 0.05 | E95: 0.02 | F95: 0.1 | G95: 0.05 | I95: Operation cost of sprayer | M95: 8 | N95: $/ha | P95: Mature ryegrass last
B96: Yield loss if delayed seeding | D96: 0.1 | E96: 0.05 | F96: 0.2 | G96: 0.1 | I96: Average area cropped | M96: 2000 | N96: ha | O96: spring: | P96: 5 | Q96: plant/m2
B99: Control options | E99: Wheat & Barley | F99: Canola & Legumes | G99: Pastures | H99: Wheat & Barley | I99: Canola & Legumes | J99: Pastures
B100: Enter herbicide names, cost and % ryegrass controlled: | F100: Cost ($/ha) | I100: % of ryegrass controlled
B101: Knock-down | C101: Glyphosate | E101: 18 | F101: 18 | G101: 14 | H101: 0.95 | I101: 0.95 | J101: 0.95
B102: herbicides | C102: Paraquat | E102: 8 | F102: 8 | G102: 8 | H102: 0.95 | I102: 0.95 | J102: 0.95
B103: Double-knock | C103: Glyphosate/Paraquat | E103: 26 | F103: 26 | G103: 22 | H103: 1 | I103: 1 | J103: 1
C105: Triflur+Triallate | E105: 22 | F105: 22 | H105: 0.8 | I105: 0.85 | M105: =IF($AC$50<26,$AD$50,IF($AC$51<36,$AD$51,IF($AC$52<50,$AD$52,IF($AC$53<>"OK",$AD$53,"")))) -> 
B106: Pre- | C106: Propyzamide | F106: 26 | I106: 0.85
B107: emergence | C107: Sakura | E107: 40 | F107: 40 | H107: 0.9 | I107: 0.9 | L107: Save Profile
B108: herbicides | C108: Boxer Gold | E108: 27 | F108: 27 | H108: 0.85 | I108: 0.85
C109: Triazine | F109: 10 | G109: 5 | I109: 0.7 | J109: 0.5
C111: Topik | E111: 5 | H111: 0.9 | M111: Paddock name: | O111: 2022-LoRF
B112: Post- | C112: Hussar | E112: 30 | H112: 0.95 | M112: Your name: | O112: Susceptible
B113: emergence | C113: Clethodim | F113: 40 | I113: 0.9
B114: herbicides | C114: Glyphosate | F114: 18 | I114: 0.9
C115: Paraquat | G115: 8 | J115: 0.65
B116: Enter additional control options:
B117: Spring | C117: Define 1st spring option | E117: 10 | F117: 10 | G117: 10 | H117: 0.7 | I117: 0.7 | J117: 0.7 | O117: Resistant, Non-selectives
B118: options | C118: Define 2nd spring option | E118: 10 | F118: 10 | G118: 10 | H118: 0.7 | I118: 0.7 | J118: 0.7 | O118: Resistant, Gp. A B C
B120: Harvest | C120: Define 1st harvest option | E120: 10 | F120: 10 | G120: 10 | H120: 0.7 | I120: 0.7 | J120: 0.7 | O120: Susceptible, Default
B121: options | C121: Define 2nd harvest option | E121: 10 | F121: 10 | G121: 10 | H121: 0.7 | I121: 0.7 | J121: 0.7
B126: Profile_2 | C126: =O31 -> Susceptible, 2022-HiRF
B128: Main parameters | D128: Wheat | E128: Barley | F128: Canola | G128: Legume | K128: Hay | L128: Silage | M128: Bales | P128: Sheep
C130: Weed-free yields | D130: 6 | E130: 6 | F130: 2.8 | G130: 3.5 | H130: t/ha | I130: Production costs | K130: 250 | L130: 250 | M130: 25 | N130: $/ha | P130: Animal Gross Margin
C131: Grain prices | D131: 390 | E131: 290 | F131: 780 | G131: 450 | H131: $/t | I131: Fodder prices | K131: 180 | L131: 180 | M131: 110 | N131: $/t | P131: 70 | Q131: $/DSE
B133: Yield benefit from dry seeding | D133: 0.05 | E133: 0.02 | F133: 0.1 | G133: 0.05 | I133: Operation cost of sprayer | M133: 8 | N133: $/ha | P133: Mature ryegrass last
B134: Yield loss if delayed seeding | D134: 0.1 | E134: 0.05 | F134: 0.2 | G134: 0.1 | I134: Average area cropped | M134: 2000 | N134: ha | O134: spring: | P134: 5 | Q134: plant/m2
B137: Control options | E137: Wheat & Barley | F137: Canola & Legumes | G137: Pastures | H137: Wheat & Barley | I137: Canola & Legumes | J137: Pastures
B138: Enter herbicide names, cost and % ryegrass controlled: | F138: Cost ($/ha) | I138: % of ryegrass controlled
B139: Knock-down | C139: Glyphosate | E139: 18 | F139: 18 | G139: 14 | H139: 0.95 | I139: 0.95 | J139: 0.95
B140: herbicides | C140: Paraquat | E140: 8 | F140: 8 | G140: 8 | H140: 0.95 | I140: 0.95 | J140: 0.95
B141: Double-knock | C141: Glyphosate/Paraquat | E141: 26 | F141: 26 | G141: 22 | H141: 1 | I141: 1 | J141: 1
C143: Triflur+Triallate | E143: 22 | F143: 22 | H143: 0.8 | I143: 0.85 | M143: =IF($AC$50<26,$AD$50,IF($AC$51<36,$AD$51,IF($AC$52<50,$AD$52,IF($AC$53<>"OK",$AD$53,"")))) -> 
B144: Pre- | C144: Propyzamide | F144: 26 | I144: 0.85
B145: emergence | C145: Sakura | E145: 40 | F145: 40 | H145: 0.9 | I145: 0.9 | L145: Save Profile
B146: herbicides | C146: Boxer Gold | E146: 27 | F146: 27 | H146: 0.85 | I146: 0.85
C147: Triazine | F147: 10 | G147: 5 | I147: 0.7 | J147: 0.5
C149: Topik | E149: 5 | H149: 0.9 | M149: Paddock name: | O149: 2022-HiRF
B150: Post- | C150: Hussar | E150: 30 | H150: 0.95 | M150: Your name: | O150: Susceptible
B151: emergence | C151: Clethodim | F151: 40 | I151: 0.9
B152: herbicides | C152: Glyphosate | F152: 18 | I152: 0.9
C153: Paraquat | G153: 8 | J153: 0.65
B154: Enter additional control options:
B155: Spring | C155: Define 1st spring option | E155: 10 | F155: 10 | G155: 10 | H155: 0.7 | I155: 0.7 | J155: 0.7 | O155: Resistant, Non-selectives
B156: options | C156: Define 2nd spring option | E156: 10 | F156: 10 | G156: 10 | H156: 0.7 | I156: 0.7 | J156: 0.7 | O156: Resistant, Gp. A B C
B158: Harvest | C158: Define 1st harvest option | E158: 10 | F158: 10 | G158: 10 | H158: 0.7 | I158: 0.7 | J158: 0.7 | O158: Susceptible, Default
B159: options | C159: Define 2nd harvest option | E159: 10 | F159: 10 | G159: 10 | H159: 0.7 | I159: 0.7 | J159: 0.7
B165: Profile_3 | C165: =O32 -> Resistant1, 2022-LoRF
B167: Main parameters | D167: Wheat | E167: Barley | F167: Canola | G167: Legume | K167: Hay | L167: Silage | M167: Bales | P167: Sheep
C169: Weed-free yields | D169: 1.8 | E169: 1.6 | F169: 1 | G169: 1 | H169: t/ha | I169: Production costs | K169: 250 | L169: 250 | M169: 25 | N169: $/ha | P169: Animal Gross Margin
C170: Grain prices | D170: 380 | E170: 280 | F170: 780 | G170: 450 | H170: $/t | I170: Fodder prices | K170: 180 | L170: 180 | M170: 110 | N170: $/t | P170: 55 | Q170: $/DSE
B172: Yield benefit from dry seeding | D172: 0.05 | E172: 0.02 | F172: 0.1 | G172: 0.05 | I172: Operation cost of sprayer | M172: 8 | N172: $/ha | P172: Mature ryegrass last
B173: Yield loss if delayed seeding | D173: 0.1 | E173: 0.05 | F173: 0.2 | G173: 0.1 | I173: Average area cropped | M173: 2000 | N173: ha | O173: spring: | P173: 5 | Q173: plant/m2
B176: Control options | E176: Wheat & Barley | F176: Canola & Legumes | G176: Pastures | H176: Wheat & Barley | I176: Canola & Legumes | J176: Pastures
B177: Enter herbicide names, cost and % ryegrass controlled: | F177: Cost ($/ha) | I177: % of ryegrass controlled
B178: Knock-down | C178: Glyphosate | E178: 18 | F178: 18 | G178: 14 | H178: 0.1 | I178: 0.1 | J178: 0.1
B179: herbicides | C179: Paraquat | E179: 8 | F179: 8 | G179: 8 | H179: 0.95 | I179: 0.95 | J179: 0.95
B180: Double-knock | C180: Glyphosate/Paraquat | E180: 26 | F180: 26 | G180: 22 | H180: 0.7 | I180: 0.7 | J180: 0.7
C182: Triflur+Triallate | E182: 22 | F182: 22 | H182: 0.8 | I182: 0.85 | M182: =IF($AC$50<26,$AD$50,IF($AC$51<36,$AD$51,IF($AC$52<50,$AD$52,IF($AC$53<>"OK",$AD$53,"")))) -> 
B183: Pre- | C183: Propyzamide | F183: 26 | I183: 0.85
B184: emergence | C184: Sakura | E184: 40 | F184: 40 | H184: 0.9 | I184: 0.9 | L184: Save Profile
B185: herbicides | C185: Boxer Gold | E185: 27 | F185: 27 | H185: 0.85 | I185: 0.85
C186: Triazine | F186: 10 | G186: 5 | I186: 0.7 | J186: 0.5
C188: Topik | E188: 5 | H188: 0.4 | M188: Paddock name: | O188: 2022-LoRF
B189: Post- | C189: Hussar | E189: 30 | H189: 0.95 | M189: Your name: | O189: Resistant1
B190: emergence | C190: Clethodim | F190: 40 | I190: 0.05
B191: herbicides | C191: Glyphosate | F191: 18 | I191: 0.1
C192: Paraquat | G192: 8 | J192: 0.65
B193: Enter additional control options:
B194: Spring | C194: Define 1st spring option | E194: 10 | F194: 10 | G194: 10 | H194: 0.7 | I194: 0.7 | J194: 0.7 | O194: Resistant, Non-selectives
B195: options | C195: Define 2nd spring option | E195: 10 | F195: 10 | G195: 10 | H195: 0.7 | I195: 0.7 | J195: 0.7 | O195: Resistant, Gp. A B C
B197: Harvest | C197: Define 1st harvest option | E197: 10 | F197: 10 | G197: 10 | H197: 0.7 | I197: 0.7 | J197: 0.7 | O197: Susceptible, Default
B198: options | C198: Define 2nd harvest option | E198: 10 | F198: 10 | G198: 10 | H198: 0.7 | I198: 0.7 | J198: 0.7
B204: Profile_4 | C204: =O33 -> HighResist, 2022-LoRF
B206: Main parameters | D206: Wheat | E206: Barley | F206: Canola | G206: Legume | K206: Hay | L206: Silage | M206: Bales | P206: Sheep
C208: Weed-free yields | D208: 1.8 | E208: 1.6 | F208: 1 | G208: 1 | H208: t/ha | I208: Production costs | K208: 250 | L208: 250 | M208: 25 | N208: $/ha | P208: Animal Gross Margin
C209: Grain prices | D209: 380 | E209: 280 | F209: 780 | G209: 450 | H209: $/t | I209: Fodder prices | K209: 180 | L209: 180 | M209: 110 | N209: $/t | P209: 55 | Q209: $/DSE
B211: Yield benefit from dry seeding | D211: 0.05 | E211: 0.02 | F211: 0.1 | G211: 0.05 | I211: Operation cost of sprayer | M211: 8 | N211: $/ha | P211: Mature ryegrass last
B212: Yield loss if delayed seeding | D212: 0.1 | E212: 0.05 | F212: 0.2 | G212: 0.1 | I212: Average area cropped | M212: 2000 | N212: ha | O212: spring: | P212: 5 | Q212: plant/m2
B215: Control options | E215: Wheat & Barley | F215: Canola & Legumes | G215: Pastures | H215: Wheat & Barley | I215: Canola & Legumes | J215: Pastures
B216: Enter herbicide names, cost and % ryegrass controlled: | F216: Cost ($/ha) | I216: % of ryegrass controlled
B217: Knock-down | C217: Glyphosate | E217: 18 | F217: 18 | G217: 14 | H217: 0.1 | I217: 0.1 | J217: 0.1
B218: herbicides | C218: Paraquat | E218: 8 | F218: 8 | G218: 8 | H218: 0.1 | I218: 0.1 | J218: 0.1
B219: Double-knock | C219: Glyphosate/Paraquat | E219: 26 | F219: 26 | G219: 22 | H219: 0.4 | I219: 0.4 | J219: 0.4
C221: Triflur+Triallate | E221: 22 | F221: 22 | H221: 0.8 | I221: 0.85 | M221: =IF($AC$50<26,$AD$50,IF($AC$51<36,$AD$51,IF($AC$52<50,$AD$52,IF($AC$53<>"OK",$AD$53,"")))) -> 
B222: Pre- | C222: Propyzamide | F222: 26 | I222: 0.85
B223: emergence | C223: Sakura | E223: 40 | F223: 40 | H223: 0.9 | I223: 0.9 | L223: Save Profile
B224: herbicides | C224: Boxer Gold | E224: 27 | F224: 27 | H224: 0.85 | I224: 0.85
C225: Triazine | F225: 10 | G225: 5 | I225: 0.7 | J225: 0.5
C227: Topik | E227: 5 | H227: 0.4 | M227: Paddock name: | O227: 2022-LoRF
B228: Post- | C228: Hussar | E228: 30 | H228: 0.95 | M228: Your name: | O228: HighResist
B229: emergence | C229: Clethodim | F229: 40 | I229: 0.05
B230: herbicides | C230: Glyphosate | F230: 18 | I230: 0.1
C231: Paraquat | G231: 8 | J231: 0.15
B232: Enter additional control options:
B233: Spring | C233: Define 1st spring option | E233: 10 | F233: 10 | G233: 10 | H233: 0.7 | I233: 0.7 | J233: 0.7 | O233: Resistant, Non-selectives
B234: options | C234: Define 2nd spring option | E234: 10 | F234: 10 | G234: 10 | H234: 0.7 | I234: 0.7 | J234: 0.7 | O234: Resistant, Gp. A B C
B236: Harvest | C236: Define 1st harvest option | E236: 10 | F236: 10 | G236: 10 | H236: 0.7 | I236: 0.7 | J236: 0.7 | O236: Susceptible, Default
B237: options | C237: Define 2nd harvest option | E237: 10 | F237: 10 | G237: 10 | H237: 0.7 | I237: 0.7 | J237: 0.7

Sheet +Prices
B7: More Prices… | I7: ='1.Profile'!O27&", "&'1.Profile'!O26 -> Susceptible, 2022-LoRF
B10: Establishment costs | F10: Cereals | G10: Canola | H10: Legume | I10: Volunt | J10: Clover | K10: Cadiz
J11: 1st year of pasture
C12: Seed (standard rate) | E12: $/ha | F12: 57 | G12: 40 | H12: 48 | I12: n.a. | J12: 80 | K12: 75
C13: incl. dressing / cleaning / inoculum / etc.
C14: Fertilisers - standard, average practice | E14: $/ha | F14: 300 | G14: 250 | H14: 75 | I14: 0 | J14: 70 | K14: 75
C15: Fertilisers - following a legume | E15: $/ha | F15: 150 | G15: 110
C17: Additional costs (incl. application costs) | E17: $/ha | F17: 125 | G17: 115 | H17: 110 | I17: 0 | J17: 45 | K17: 45
C18: insecticides, fungicides, broadleaf weed control, 1st year pasture establishment costs, technical package, insurance, etc.
C19: Cost reduction if green manure is planned | E19: $/ha | F19: 0 | G19: 0 | H19: 50
C20: (none if only opportunistic)
C21: Input compensation for residue removal | E21: $/ha | F21: 5
C22: (from haying or from exporting baled residues)
B23: Other costs | I23: Machinery
J25: Harvester:
C26: Contractor costs: | J26: ● Maintenance costs | N26: $/ha /year | O26: 16
C27: ● Mouldboard plough | E27: $/ha | F27: 150 | J27: ● Fuel consumption | N27: l/ha | O27: 6.6
C28: ● Mowing pasture | E28: $/ha | F28: 100 | J28: ● Diesel price | N28: $/l | O28: 0.88
C29: ● Swathing | E29: $/ha | F29: 35
J30: Purchase cost of:
J31: ● Narrow windrow chute | N31: $ | O31: 500
C32: Environmental cost of soil disturbance | E32: $/ha | F32: 5 | J32: ● Chaff cart | N32: $ | O32: 60000
J33: ● Harrington seed destructor (HSD) | N33: $ | O33: 90000
J34: ● Bale direct system (BDS) | N34: $ | O34: 340000
J36: Machinery repayments:
J37: ● Loan duration | N37: years | O37: 8
J38: ● Interest rate | O38: 0.04
AR39: =P_1P -> TRUE
AC46: =COUNT(F12:H12,H14:K14,J12:K12,F14:G15,F17:K17,F19:H19,F27:F29,F32,O26:O28,O31:O34,O37:O38,F21) -> 36
B48: Prices_0 | C48: ='1.Profile'!O35 -> Susceptible, Default
AP49: Walsh, M. and Powles, S. (2007) Management Strategies for Herbicide-Resistant Weed Populations in Australian Dryland Crop Production Systems. Weed Technology 21:332–338
B50: Establishment costs | F50: Cereals | G50: Canola | H50: Legume | I50: Volunt | J50: Clover | K50: Cadiz | AI50: Establishment costs - machinery | AP50: Walsh, M. and P. Newman (2007) Burning narrow windrows for weed seed destruction. Field Crops Research 104:24–30.
J51: 1st year of pasture | AP51: Walsh, M., Harrington, R. and Powles, S (2012) Harrington Seed Destructor: a new non-chemical weed control tool for global grain crops. Crop Science (2012) 52:1343-1347
C52: Seed (standard rate) | E52: $/ha | F52: 20 | G52: 7.73 | H52: 35 | I52: n.a. | J52: 40 | K52: 30 | AI52: References used for ratios | AJ52: R&M | AK52: Fuel | AL52: Operating | AM52: Residue | AN52: R&M | AO52: Fuel | AP52: Operating | AQ52: N removal | AR52: Capital cost
C53: incl. dressing / cleaning / inoculum / etc. | AI53: Tickle (shallow cultivation ) | AJ53: 3 | AK53: 3 | AL53: extra | AM53: removal
C54: Fertilisers - standard, average practice | E54: $/ha | F54: 70 | G54: 95 | H54: 40 | I54: 0 | J54: 35 | K54: 35 | AI54: No-till seeding | AJ54: 5 | AK54: 5.5 | AN54: Alistair Drapper, 2012
C55: Fertilisers - following a legume | E55: $/ha | F55: 50 | G55: 65 | AI55: Full cut seeding | AJ55: 6 | AK55: 6
AI56: Harvest | AJ56: 10 | AK56: 6
C57: Additional costs (incl. application costs) | E57: $/ha | F57: 40 | G57: 30 | H57: 30 | I57: 0 | J57: 20 | K57: 25 | AI57: Cart+B. = Chaff cart system (burning dumps) | AJ57: 0.25 | AK57: 0.5 | AL57: 2 | AM57: 2 | AR57: 60 000 | AU57: Legend: | AV57: 22 | AW57: linked to interface (current page or otherwise specified)
C58: insecticides, fungicides, broadleaf weed control, 1st year pasture establishment costs, technical package, insurance, etc. | AI58: Narr+B. = Narrow windrows burning system | AL58: 2 | AM58: 3 | AR58: 500 | AV58: 22 | AW58: calculation
C59: Cost reduction if green manure is planned | E59: $/ha | F59: 0 | G59: 0 | H59: 50 | AI59: HSD = Harrington seed destructor | AJ59: 2 | AK59: 3.5 | AO59: Peter Newman, DAFWA, 2012 | AQ59: nominal | AR59: 160 000 | AW59: n.a.
C60: (none if only opportunistic) | AI60: Tram = Chaff-tramlining (no extra requirement since already in) | AL60: see Calc | AM60: 2 | AQ60: proportions | AR60: 1 000 | AV60: 0.22 | AW60: not linked (direct input)
C61: Input compensation for residue removal | E61: $/ha | F61: 5 | AI61: add harvest option here | AQ61: only | AV61: 0.22 | AW61: not linked, do not change without good advice
C62: (from haying or from exporting baled residues) | AI62: BDS = Bale direct system | AJ62: 2.5 | AK62: 4 | AL62: 5 | AM62: 4 | AO62: Rob Grima, DAFWA, 2012 | AR62: 190 000 | AV62: 0.22 | AW62: reference data, in cases used for ratios
B63: Other costs | I63: Machinery | AI63: B.all = Burn whole paddock | AL63: 2 | AM63: 6 | AR63: -
AS64: Note: RIM uses a standard farm as a baseline and hence accounts for the extra capital cost of specific machinery only
J65: Harvester: | AS65: (not for the harvester or sprayer that are part of the part anyway) | AU65: Financial values
C66: Contractor costs: | J66: ● Maintenance costs | N66: $/ha /year | O66: 10 | AJ66: R&M | AK66: Fuel | AL66: Extra operating | AU66: These rates apply for the whole 10 year period
C67: ● Mouldboard plough | E67: $/ha | F67: 100 | J67: ● Fuel consumption | N67: l/ha | O67: 6 | AJ67: ($/ha) | AK67: (L/ha) | AL67: costs ($/ha) | AN67: TOTAL | AQ67: Repayments | AU67: Rates of Price and Yield Increase | AX67: Reviewed 2012
C68: ● Mowing pasture | E68: $/ha | F68: 35 | J68: ● Diesel price | N68: $/l | O68: 1.1 | AI68: Tickle (shallow cultivation ) | AJ68: =$AJ$71*AJ53/$AJ$56 -> 4.8 | AK68: =$AK$71*AK53/$AK$56 -> 3.3 | AL68: (conducting | AN68: =AJ68+AK68*$O$28 -> 7.704 | AU68: Rate of increase of potential crop yield (%/year) | AV68: 0.01 | AX68: 0.01
C69: ● Swathing | E69: $/ha | F69: 25 | AI69: No-till seeding | AJ69: =$AJ$71*AJ54/$AJ$56 -> 8 | AK69: =$AK$71*AK54/$AK$56 -> 6.05 | AL69: or burning) | AN69: =AJ69+AK69*$O$28 -> 13.324 | AO69: see | AU69: Rate of increase of sheep/pasture productivity (%/year) | AV69: 0.005 | AX69: 0.005
J70: Purchase cost of: | AI70: Full cut seeding | AJ70: =$AJ$71*AJ55/$AJ$56 -> 9.6 | AK70: =$AK$71*AK55/$AK$56 -> 6.6 | AM70: Residue | AN70: 15.408 | AO70: below | AU70: Inflation rate for crop sale prices (%/year) | AV70: 0.01 | AX70: 0.01
J71: ● Narrow windrow chute | N71: $ | O71: 500 | AI71: Harvest | AJ71: =O26 -> 16 | AK71: =O27 -> 6.6 | AM71: removal | AN71: 21.808 | AU71: Inflation rate for sheep product prices (%/year) | AV71: 0.005 | AX71: 0.005
C72: Environmental cost of soil disturbance | E72: $/ha | F72: 3 | J72: ● Chaff cart | N72: $ | O72: 70000 | AI72: =AI57 -> Cart+B. = Chaff cart system (burning dumps) | AJ72: =$AJ$71*AJ57/$AJ$56 -> 0.4 | AK72: =$AK$71*AK57/$AK$56 -> 0.55 | AL72: =$AL$77*AL57/$AL$62 -> 10 | AM72: =$AM$77*AM57/$AM$62 -> 2.5 | AN72: =AJ72+AK72*$O$28+AL72+AM72 -> 13.384 | AP72: =AI57 -> Cart+B. = Chaff cart system (burning dumps) | AR72: =-PMT('+Prices'!$O$38,'+Prices'!$O$37,'+Prices'!O32,0,0)/'+Prices'!$AR$80 -> 4.455834961 | AU72: Inflation rate for input costs (%/year) | AV72: 0.03 | AX72: 0.03
J73: ● Harrington seed destructor (HSD) | N73: $ | O73: 160000 | AI73: =AI58 -> Narr+B. = Narrow windrows burning system | AL73: =$AL$77*AL58/$AL$62 -> 10 | AM73: =$AM$77*AM58/$AM$62 -> 3.75 | AN73: =AJ73+AK73*$O$28+AL73+AM73 -> 13.75 | AO73: to Calc | AP73: =AI58 -> Narr+B. = Narrow windrows burning system | AR73: =-PMT('+Prices'!$O$38,'+Prices'!$O$37,'+Prices'!O31,0,0)/'+Prices'!$AR$80 -> 0.03713195801 | AU73: Long-term interest rate (%) * | AV73: 0.08 | AX73: 0.08
J74: ● Bale direct system (BDS) | N74: $ | O74: 140000 | AI74: HSD = Harrington seed destructor | AJ74: =$AJ$71*AJ59/$AJ$56 -> 3.2 | AK74: =$AK$71*AK59/$AK$56 -> 3.85 | AN74: 6.588 | AP74: HSD = Harrington seed destructor | AR74: =-PMT('+Prices'!$O$38,'+Prices'!$O$37,'+Prices'!O33,0,0)/'+Prices'!$AR$80 -> 6.683752442 | AU74: Marginal tax rate (%) | AV74: 0.21 | AX74: 0.21
AI75: Tram = Chaff-tramlining (no extra requirement since already in) | AM75: 2.5 | AN75: 2.5 | AP75: Tram = Chaff-tramlining (no extra requirement since already in) | AR75: =-PMT('+Prices'!$O$38,'+Prices'!$O$37,('+Prices'!O31*2),0,0)/'+Prices'!$AR$80 -> 0.07426391602 | AU75: * Note: Use the raw interest rate (do not deduct the inflation rate to express
J76: Machinery repayments: | AI76: add harvest option here | AJ76: =$AJ$71*AJ61/$AJ$56 -> 0 | AK76: =$AK$71*AK61/$AK$56 -> 0 | AL76: =$AL$77*AL61/$AL$62 -> 0 | AM76: 0 | AN76: 0 | AP76: add harvest option here | AR76: =-PMT('+Prices'!$O$38,'+Prices'!$O$37,'+Prices'!AR61,0,0)/'+Prices'!$AR$80 -> 0 | AU76: it in "real" terms) as all calculations are done in "nominal" terms.
J77: ● Loan duration | N77: years | O77: 8 | AI77: BDS = Bale direct system | AJ77: =$AJ$71*AJ62/$AJ$56 -> 4 | AK77: =$AK$71*AK62/$AK$56 -> 4.4 | AL77: ='1.Profile'!M7 -> 25 | AM77: =F21 -> 5 | AN77: 37.872 | AP77: BDS = Bale direct system | AR77: =-PMT('+Prices'!$O$38,'+Prices'!$O$37,'+Prices'!O34,0,0)/'+Prices'!$AR$80 -> 25.24973145
J78: ● Interest rate | O78: 0.06 | AI78: B.all = Burn whole paddock | AL78: =$AL$77*AL63/$AL$62 -> 10 | AM78: =$AM$77*AM63/$AM$62 -> 7.5 | AN78: 17.5 | AP78: B.all = Burn whole paddock | AU78: Note also that the model's main calculations are done on the basis that prices
AU79: and potential yields don't change over time. In the "Economic results" sheet
AO80: Average area (ha) on which machinery is used | AR80: ='1.Profile'!M11 -> 2000 | AU80: the above rates of increase are applied to the results.
B81: Prices_1 | C81: ='1.Profile'!O30 -> Susceptible, 2022-LoRF | AR81: from Profile
B83: Establishment costs | F83: Cereals | G83: Canola | H83: Legume | I83: Volunt | J83: Clover | K83: Cadiz | AI83: Establishment costs - crops
J84: 1st year of pasture | AP84: References used for ratios
C85: Seed (standard rate) | E85: $/ha | F85: 57 | G85: 40 | H85: 48 | I85: n.a. | J85: 80 | K85: 75 | AI85: Fertilisers | AJ85: Wheat | AK85: Barley | AL85: Canola | AM85: Legumes | AO85: Savings in kg/ha of N after a legume:
C86: incl. dressing / cleaning / inoculum / etc. | AI86: Total cost of all fertilisers ($/ha) | AJ86: =F14 -> 300 | AK86: =F14 -> 300 | AL86: =G14 -> 250 | AM86: =H14 -> 75 | AP86: Wheat | AQ86: Barley | AR86: Canola | AT86: Planfarm and Bankwest (2012) Planfarm Bankwest Benchmarks 2011/2012. Planfarm Pty. Ltd. and BankWest Agribusiness Centre, West Perth and Wembley, Western Australia, 81pp.
C87: Fertilisers - standard, average practice | E87: $/ha | F87: 300 | G87: 250 | H87: 75 | I87: 0 | J87: 70 | K87: 75 | AI87: Saving in N fertiliser application 1 year after legumes (kg/ha) | AJ87: =F14-F15 -> 150 | AK87: =F14-F15 -> 150 | AL87: =G14-G15 -> 140 | AO87: 1st year | AP87: 30 | AQ87: 30 | AR87: 40
C88: Fertilisers - following a legume | E88: $/ha | F88: 150 | G88: 110 | AI88: Saving in N fertiliser application 2 years after legumes (kg/ha) | AJ88: =$AJ$87*(AP88/$AP$87) -> 50 | AK88: =$AK$87*(AQ88/$AQ$87) -> 50 | AL88: =$AL$87*(AR88/$AR$87) -> 42 | AN88: based on 1 year | AO88: 2nd year | AP88: 10 | AQ88: 10 | AR88: 12
AJ89: Note: this data also used for crop following pasture
C90: Additional costs (incl. application costs) | E90: $/ha | F90: 125 | G90: 115 | H90: 110 | I90: 0 | J90: 45 | K90: 45 | AI90: Seed and other inputs
C91: insecticides, fungicides, broadleaf weed control, 1st year pasture establishment costs, technical package, insurance, etc. | AI91: Cost of seed (including dressing/cleaning/inoculum/etc.) ($/ha) | AJ91: =F12 -> 57 | AK91: =F12 -> 57 | AL91: =G12 -> 40 | AM91: =H12 -> 48 | AO91: 19.97 | AP91: 21.17 | AQ91: 7.73 | AR91: 35
C92: Cost reduction if green manure is planned | E92: $/ha | F92: 0 | G92: 0 | H92: 50 | AI92: Cost of additional input ($/ha) | AJ92: =F17 -> 125 | AK92: =F17 -> 125 | AL92: =G17 -> 115 | AM92: =H17 -> 110 | AO92: 40 | AP92: 40 | AQ92: 30 | AR92: 30
C93: (none if only opportunistic)
C94: Input compensation for residue removal | E94: $/ha | F94: 5
C95: (from haying or from exporting baled residues)
B96: Other costs | I96: Machinery | AI96: Total cost no-till (machinery + inputs), no tickle ($/ha) | AJ96: =$AN$69+$AN$71+AJ86+AJ91+AJ92 -> 517.132 | AK96: =$AN$69+$AN$71+AK86+AK91+AK92 -> 517.132 | AL96: =$AN$69+$AN$71+AL86+AL91+AL92 -> 440.132 | AM96: =$AN$69+$AN$71+AM86+AM91+AM92 -> 268.132 | AO96: Non-selective for brown manuring and for after swathing, haying, silage etc ($/ha)
AI97: Extra cost of "tickle" (shallow cultivation) ($/ha) | AJ97: =AN68 -> 7.704 | AK97: =AN68 -> 7.704 | AL97: =AN68 -> 7.704 | AM97: =AN68 -> 7.704 | AO97: Crop/pasture topping
J98: Harvester: | AI98: Extra cost of mouldboard ploughing ($/ha) | AJ98: =$F$27 -> 150 | AK98: =$F$27 -> 150 | AL98: 150 | AM98: 150 | AO98: Sprayer cost counted every time herbicide sprayed | AT98: 4.5 Alistair Drapper, 2012
C99: Contractor costs: | J99: ● Maintenance costs | N99: $/ha /year | O99: 16 | AI99: Extra cost of seeding with full cut cultivation ($/ha) | AJ99: =AN70-AN69 -> 2.084 | AK99: =AN70-AN69 -> 2.084 | AL99: =AN70-AN69 -> 2.084 | AM99: =AN70-AN69 -> 2.084 | AO99: Environmental costs of burning and of cultivation
C100: ● Mouldboard plough | E100: $/ha | F100: 150 | J100: ● Fuel consumption | N100: l/ha | O100: 6.6 | AI100: Extra cost of high seeding rate | AJ100: =('+Options'!AG58-'+Options'!AG57)/'+Options'!AG57*AJ91 -> 28.5 | AK100: =('+Options'!AH58-'+Options'!AH57)/'+Options'!AH57*AK91 -> 24.42857143 | AL100: =('+Options'!AI58-'+Options'!AI57)/'+Options'!AI57*AL91 -> 26.66666667 | AM100: =('+Options'!AJ58-'+Options'!AJ57)/'+Options'!AJ57*AM91 -> 12 | AO100: Cost of green manuring
C101: ● Mowing pasture | E101: $/ha | F101: 100 | J101: ● Diesel price | N101: $/l | O101: 0.88
C102: ● Swathing | E102: $/ha | F102: 35
J103: Purchase cost of:
J104: ● Narrow windrow chute | N104: $ | O104: 500 | AI104: Establishment costs - pastures
C105: Environmental cost of soil disturbance | E105: $/ha | F105: 5 | J105: ● Chaff cart | N105: $ | O105: 60000
J106: ● Harrington seed destructor (HSD) | N106: $ | O106: 90000
J107: ● Bale direct system (BDS) | N107: $ | O107: 340000 | AI107: Volunteer pasture inputs | AJ107: Year 1 | AK107: Year 2 | AL107: Year 3
AI108: NO SOWING (otherwise, compatibility issues)
J109: Machinery repayments: | AI109: Cost of fertilisers ($/ha/year) | AJ109: =I14 -> 0 | AK109: =AJ109 -> 0 | AL109: =AJ109 -> 0
J110: ● Loan duration | N110: years | O110: 8 | AI110: Additional costs, incl. insecticide application ($/ha) | AJ110: =I17 -> 0 | AK110: =AJ110 -> 0 | AL110: =AJ110*0.2 -> 0
J111: ● Interest rate | O111: 0.04 | AI111: Total, inputs, no tickle ($/ha) | AJ111: =SUM(AJ109:AJ110) -> 0 | AK111: =SUM(AK109:AK110) -> 0 | AL111: =SUM(AL109:AL110) -> 0
AI112: Extra cost of "tickle" (shallow cultivation) ($/ha) | AJ112: =AJ97 -> 7.704 | AK112: =AJ112 -> 7.704 | AL112: =AJ112 -> 7.704
AI113: Extra cost of mouldboard ploughing ($/ha) | AJ113: =AJ98 -> 150 | AK113: =AJ113 -> 150 | AL113: =AJ113 -> 150
B115: Prices_2 | C115: ='1.Profile'!O31 -> Susceptible, 2022-HiRF | AI115: Sub-clover inputs
AI116: Cost of sowing (seed + machinery) ($/ha) | AJ116: =IF(J12=0,0,(J12+AN69)) -> 93.324
B117: Establishment costs | F117: Cereals | G117: Canola | H117: Legume | I117: Volunt | J117: Clover | K117: Cadiz | AI117: Cost of fertilisers ($/ha/year) | AJ117: =$J$14 -> 70 | AK117: =AJ117 -> 70 | AL117: =AJ117 -> 70
J118: 1st year of pasture | AI118: Additional costs, incl. insecticide application ($/ha) | AJ118: =J17 -> 45 | AK118: =AJ118*0.2 -> 9 | AL118: =AJ118*0.2 -> 9
C119: Seed (standard rate) | E119: $/ha | F119: 57 | G119: 40 | H119: 48 | I119: n.a. | J119: 80 | K119: 75 | AI119: Total, inputs, no tickle ($/ha) | AJ119: =SUM(AJ116:AJ118) -> 208.324 | AK119: =SUM(AK116:AK118) -> 79 | AL119: 79
C120: incl. dressing / cleaning / inoculum / etc. | AI120: Extra cost of "tickle" (shallow cultivation) ($/ha) | AJ120: =AJ97 -> 7.704 | AK120: =AJ120 -> 7.704 | AL120: =AJ120 -> 7.704
C121: Fertilisers - standard, average practice | E121: $/ha | F121: 400 | G121: 300 | H121: 75 | I121: 0 | J121: 70 | K121: 75 | AI121: Extra cost of mouldboard ploughing ($/ha) | AJ121: =AJ98 -> 150 | AK121: =AJ121 -> 150 | AL121: =AJ121 -> 150
C122: Fertilisers - following a legume | E122: $/ha | F122: 180 | G122: 150 | AI122: Extra cost of seeding with full cut cultivation ($/ha) | AJ122: =AJ99 -> 2.084
AI123: Costs for 1st year of clover if not sown | AJ123: =AJ119-AJ116 -> 115
C124: Additional costs (incl. application costs) | E124: $/ha | F124: 185 | G124: 200 | H124: 160 | I124: 0 | J124: 70 | K124: 70
C125: insecticides, fungicides, broadleaf weed control, 1st year pasture establishment costs, technical package, insurance, etc. | AI125: Cadiz serradella inputs
C126: Cost reduction if green manure is planned | E126: $/ha | F126: 0 | G126: 0 | H126: 50 | AI126: Cost of sowing (seed + machinery) ($/ha) | AJ126: =IF(K12=0,0,(K12+$AN$69)) -> 88.324
C127: (none if only opportunistic) | AI127: Cost of fertilisers ($/ha/year) | AJ127: =$K$14 -> 75 | AK127: =AJ127 -> 75 | AL127: =AJ127 -> 75
C128: Input compensation for residue removal | E128: $/ha | F128: 5 | AI128: Additional costs, incl. insecticide application ($/ha) | AJ128: =K17 -> 45 | AK128: =AJ128*0.2 -> 9 | AL128: =AJ128*0.2 -> 9
C129: (from haying or from exporting baled residues) | AI129: Total, inputs, no tickle ($/ha) | AJ129: =SUM(AJ126:AJ128) -> 208.324 | AK129: =SUM(AK126:AK128) -> 84 | AL129: =SUM(AL126:AL128) -> 84
B130: Other costs | I130: Machinery | AI130: Extra cost of "tickle" (shallow cultivation) ($/ha) | AJ130: =AJ120 -> 7.704 | AK130: =AJ130 -> 7.704 | AL130: =AJ130 -> 7.704
AI131: Extra cost of mouldboard ploughing ($/ha) | AJ131: =AJ121 -> 150 | AK131: =AJ131 -> 150 | AL131: =AJ131 -> 150
J132: Harvester: | AI132: Extra cost of seeding with full cut cultivation ($/ha) | AJ132: =AJ99 -> 2.084
C133: Contractor costs: | J133: ● Maintenance costs | N133: $/ha /year | O133: 20
C134: ● Mouldboard plough | E134: $/ha | F134: 150 | J134: ● Fuel consumption | N134: l/ha | O134: 7.5
C135: ● Mowing pasture | E135: $/ha | F135: 100 | J135: ● Diesel price | N135: $/l | O135: 0.88
C136: ● Swathing | E136: $/ha | F136: 35
J137: Purchase cost of:
J138: ● Narrow windrow chute | N138: $ | O138: 500
C139: Environmental cost of soil disturbance | E139: $/ha | F139: 5 | J139: ● Chaff cart | N139: $ | O139: 60000
J140: ● Harrington seed destructor (HSD) | N140: $ | O140: 90000
J141: ● Bale direct system (BDS) | N141: $ | O141: 340000
J143: Machinery repayments:
J144: ● Loan duration | N144: years | O144: 8
J145: ● Interest rate | O145: 0.04
B149: Prices_3 | C149: ='1.Profile'!O32 -> Resistant1, 2022-LoRF
B151: Establishment costs | F151: Cereals | G151: Canola | H151: Legume | I151: Volunt | J151: Clover | K151: Cadiz
J152: 1st year of pasture
C153: Seed (standard rate) | E153: $/ha | F153: 57 | G153: 40 | H153: 48 | I153: n.a. | J153: 80 | K153: 75
C154: incl. dressing / cleaning / inoculum / etc.
C155: Fertilisers - standard, average practice | E155: $/ha | F155: 300 | G155: 250 | H155: 75 | I155: 0 | J155: 70 | K155: 75
C156: Fertilisers - following a legume | E156: $/ha | F156: 150 | G156: 110
C158: Additional costs (incl. application costs) | E158: $/ha | F158: 125 | G158: 115 | H158: 110 | I158: 0 | J158: 45 | K158: 45
C159: insecticides, fungicides, broadleaf weed control, 1st year pasture establishment costs, technical package, insurance, etc.
C160: Cost reduction if green manure is planned | E160: $/ha | F160: 0 | G160: 0 | H160: 50
C161: (none if only opportunistic)
C162: Input compensation for residue removal | E162: $/ha | F162: 5
C163: (from haying or from exporting baled residues)
B164: Other costs | I164: Machinery
J166: Harvester:
C167: Contractor costs: | J167: ● Maintenance costs | N167: $/ha /year | O167: 16
C168: ● Mouldboard plough | E168: $/ha | F168: 150 | J168: ● Fuel consumption | N168: l/ha | O168: 6.6
C169: ● Mowing pasture | E169: $/ha | F169: 100 | J169: ● Diesel price | N169: $/l | O169: 0.88
C170: ● Swathing | E170: $/ha | F170: 35
J171: Purchase cost of:
J172: ● Narrow windrow chute | N172: $ | O172: 500
C173: Environmental cost of soil disturbance | E173: $/ha | F173: 5 | J173: ● Chaff cart | N173: $ | O173: 60000
J174: ● Harrington seed destructor (HSD) | N174: $ | O174: 90000
J175: ● Bale direct system (BDS) | N175: $ | O175: 340000
J177: Machinery repayments:
J178: ● Loan duration | N178: years | O178: 8
J179: ● Interest rate | O179: 0.04
B182: Prices_4 | C182: ='1.Profile'!O33 -> HighResist, 2022-LoRF
B184: Establishment costs | F184: Cereals | G184: Canola | H184: Legume | I184: Volunt | J184: Clover | K184: Cadiz
J185: 1st year of pasture
C186: Seed (standard rate) | E186: $/ha | F186: 57 | G186: 40 | H186: 48 | I186: n.a. | J186: 80 | K186: 75
C187: incl. dressing / cleaning / inoculum / etc.
C188: Fertilisers - standard, average practice | E188: $/ha | F188: 300 | G188: 250 | H188: 75 | I188: 0 | J188: 70 | K188: 75
C189: Fertilisers - following a legume | E189: $/ha | F189: 150 | G189: 110
C191: Additional costs (incl. application costs) | E191: $/ha | F191: 125 | G191: 115 | H191: 110 | I191: 0 | J191: 45 | K191: 45
C192: insecticides, fungicides, broadleaf weed control, 1st year pasture establishment costs, technical package, insurance, etc.
C193: Cost reduction if green manure is planned | E193: $/ha | F193: 0 | G193: 0 | H193: 50
C194: (none if only opportunistic)
C195: Input compensation for residue removal | E195: $/ha | F195: 5
C196: (from haying or from exporting baled residues)
B197: Other costs | I197: Machinery
J199: Harvester:
C200: Contractor costs: | J200: ● Maintenance costs | N200: $/ha /year | O200: 16
C201: ● Mouldboard plough | E201: $/ha | F201: 150 | J201: ● Fuel consumption | N201: l/ha | O201: 6.6
C202: ● Mowing pasture | E202: $/ha | F202: 100 | J202: ● Diesel price | N202: $/l | O202: 0.88
C203: ● Swathing | E203: $/ha | F203: 35
J204: Purchase cost of:
J205: ● Narrow windrow chute | N205: $ | O205: 500
C206: Environmental cost of soil disturbance | E206: $/ha | F206: 5 | J206: ● Chaff cart | N206: $ | O206: 60000
J207: ● Harrington seed destructor (HSD) | N207: $ | O207: 90000
J208: ● Bale direct system (BDS) | N208: $ | O208: 340000
J210: Machinery repayments:
J211: ● Loan duration | N211: years | O211: 8
J212: ● Interest rate | O212: 0.04

Sheet +Options
B7: More Options… | J7: ='1.Profile'!O27&", "&'1.Profile'!O26 -> Susceptible, 2022-LoRF
B10: Crops | E10: Wheat | F10: Barley | G10: Canola | H10: Legume | L10: Pastures - 3rdconsecutive year of sub-clover
O11: Stocking | P11: Rye- | Q11: Hay
C12: Seeding rate - Standard | D12: kg/ha | E12: 60 | F12: 70 | G12: 3 | H12: 100 | O12: rates | P12: grass | Q12: production
C13: Seeding rate - High | D13: kg/ha | E13: 90 | F13: 100 | G13: 5 | H13: 125 | L13: Grazing intensity: | O13: DSE/ha | P13: control | Q13: t/ha
L14: ● when standard | O14: 4.5 | P14: 0.8
C15: Harvest index | E15: 0.4 | F15: 0.4 | G15: 0.4 | H15: 0.3 | L15: ● when high in spring | O15: 6.5 | P15: 0.95
C16: % of fodder yield relative to the above harvest index | H16: 0.8 | L16: ● when hay is planned | O16: 4 | P16: 1 | Q16: 1
L17: ● when hay only is planned (no grazing) | Q17: 2
C18: Pre-emergents loss of efficiency when dry seeding | H18: 0.1
B20: Yield benefits | L20: Ryegrass control
L21: Plants (in crop/pasture):
C22: - for canola, following a legume | H22: 0 | M22: No-till (knife-point) | Q22: 0.4
C23: - for cereals, following a legume | H23: 0.2 | M23: Full cut (direct drill) | Q23: 0.8
C24: - for cereals, following a green manured legume | H24: 0.3 | M24: Topping - Cereals | Q24: 0.75
C25: - for all crops, after mouldboarding (permanent benefit) | H25: 0.15 | M25: Topping - Canola/Legumes | Q25: 0.75
M26: Topping - Pastures | Q26: 0.9
B27: Yield penalties | E27: Wheat | F27: Barley | G27: Canola | H27: Legume | M27: Swathing | Q27: 0.4
M28: Swathing + spray | Q28: 0.9
C29: - for not swathing | E29: 0.02 | F29: 0.03 | G29: 0.1 | H29: 0 | L29: Plants (crop/pasture sacrifice):
C30: - for crop-topping | E30: 0.05 | F30: 0.05 | G30: 0.05 | H30: 0.05 | M30: Green / brown manuring, mowing | Q30: 1
L31: Seeds (harvest weed seed control):
C32: - on crops, from pre- and post-emergents phytotoxic effects | H32: 0.02 | M32: Catch & chaff tramlining | Q32: 0.85
M33: Catch & HSD or BDS | Q33: 0.85
C34: - on Canola if break between canola crops is only 1 year | H34: 0.1 | M34: Catch & burn: chaff cart dumps | Q34: 0.85
C35: - on Legumes if break between legumes is only 1 year | H35: 0.05 | M35: Catch & burn: narrow windrows | Q35: 0.85
M36: Whole-paddock burning (residues) | Q36: 0.6
AR39: =P_1P -> TRUE
AC48: =COUNT(E12:H13,H16,O14:P16,E15:H15,Q16:Q17,H22:H25,E29:H30,H32,H34:H35,Q22:Q28,Q30,Q32:Q36,H18) -> 50
AQ50: Legend: | AR50: 22 | AS50: linked to interface (current page or otherwise specified)
B51: Options_0 | C51: ='1.Profile'!O35 -> Susceptible, Default | E51: 0 | AR51: 22 | AS51: calculation
AS52: n.a.
B53: Crops | E53: Wheat | F53: Barley | G53: Canola | H53: Legume | L53: Pastures - 3rdconsecutive year of sub-clover | AF53: Crops | AR53: 0.22 | AS53: not linked (direct input)
O54: Stocking | P54: Rye- | Q54: Hay | AF54: Boost and penalties | AR54: 0.22 | AS54: not linked, and do not change without good advice
C55: Seeding rate - Standard | D55: kg/ha | E55: 60 | F55: 70 | G55: 3 | H55: 100 | O55: rates | P55: grass | Q55: production | AF55: Crop Variables | AG55: Wheat | AH55: Barley | AI55: Canola | AJ55: Legumes | AM55: Wheat | AN55: Barley | AO55: Canola | AP55: Legumes | AR55: 0.22 | AS55: reference data
C56: Seeding rate - High | D56: kg/ha | E56: 90 | F56: 100 | G56: 5 | H56: 125 | L56: Grazing intensity: | O56: DSE/ha | P56: control | Q56: t/ha | AF56: Weed-free yield (after long break with no legume) (t/ha) | AG56: ='1.Profile'!D7 -> 1.8 | AH56: ='1.Profile'!E7 -> 1.6 | AI56: ='1.Profile'!F7 -> 1 | AJ56: ='1.Profile'!G7 -> 1 | AK56: From Profile | AM56: 2 | AN56: 2.2 | AO56: 1 | AP56: 1 | AR56: 0.22 | AS56: reference data used for ratios
L57: ● when standard | O57: 4.5 | P57: 0.8 | AF57: Standard seeding rate (kg/ha) | AG57: =E12 -> 60 | AH57: 70 | AI57: 3 | AJ57: 100 | AM57: 60 | AN57: 70 | AO57: 3 | AP57: 100 | AR57: blabla | AS57: information / tracking data (not involved in calculations)
C58: Harvest index | E58: 0.4 | F58: 0.4 | G58: 0.4 | H58: 0.3 | L58: ● when high in spring | O58: 6.5 | P58: 0.95 | AF58: High seeding rate (kg/ha) | AG58: 90 | AH58: 100 | AI58: 5 | AJ58: 125 | AM58: 90 | AN58: 100 | AO58: 5-6 | AP58: 125
C59: % of fodder yield relative to the above harvest index | H59: 0.8 | L59: ● when hay is planned | O59: 4 | P59: 1 | Q59: 1 | AF59: Standard density (plants/m2) | AG59: =AG57*100/AG$83*AG$84 -> 121.6216216 | AH59: =AH57*100/AH$83*AH$84 -> 150 | AI59: =AI57*100/AI$83*AI$84 -> 60 | AJ59: =AJ57*100/AJ$83*AJ$84 -> 53.33333333 | AM59: 120 | AN59: 145-150 | AO59: 60 | AP59: 50
L60: ● when hay only is planned (no grazing) | Q60: 2 | AF60: High density (plants/m2) | AG60: =AG58*100/AG$83*AG$85 -> 170.2702703 | AH60: =AH58*100/AH$83*AH$85 -> 200 | AI60: =AI58*100/AI$83*AI$85 -> 91.66666667 | AJ60: =AJ58*100/AJ$83*AJ$85 -> 62.5 | AM60: 165 | AN60: 195 | AO60: 90-100 | AP60: 60-65
C61: Pre-emergents loss of efficiency when dry seeding | H61: 0.1 | AF61: Harvest index (proportion) | AG61: =E15 -> 0.4 | AH61: =F15 -> 0.4 | AI61: =G15 -> 0.4 | AJ61: =H15 -> 0.3 | AM61: 0.4 | AN61: 0.4 | AO61: 0.4 | AP61: 0.3
AF62: % of fodder yield relative to (grain yield/harvest index) | AG62: =H16 -> 0.8 | AH62: =$AG$62*AN62/$AM$62 -> 0.8 | AI62: =$AG$62*AO62/$AM$62 -> 0.8 | AJ62: =$AG$62*AP62/$AM$62 -> 0.8 | AK62: all based on wheat | AM62: 0.8 | AN62: 0.8 | AO62: 0.8 | AP62: 0.8
B63: Yield benefits | L63: Ryegrass control | AF63: Yield benefits
L64: Plants (in crop/pasture): | AF64: Yield benefit 1st year after legumes | AG64: =H23 -> 0.2 | AH64: =AG64*AN64/AM64 -> 0.2 | AI64: =H22 -> 0 | AK64: all based on wheat | AM64: 0.2 | AN64: 0.2 | AO64: 0
C65: - for canola, following a legume | H65: 0 | M65: No-till (knife-point) | Q65: 0.4 | AF65: Yield benefit 2nd year after legumes | AG65: =AG64*AM65/AM64 -> 0.1 | AH65: =AH64*AN65/AN64 -> 0.06666666667 | AI65: =AI64/3 -> 0 | AK65: based on 1st year after legumes | AM65: 0.1 | AN65: 0.06666666667 | AO65: 0
C66: - for cereals, following a legume | H66: 0.2 | M66: Full cut (direct drill) | Q66: 0.8 | AF66: Yield benefit 1st year after canola | AG66: =AG64*AM66/AM64 -> 0.05 | AH66: =AH64*AN66/AN64 -> 0.05 | AK66: based on 1st year after legumes | AM66: 0.05 | AN66: 0.05
C67: - for cereals, following a green manured legume | H67: 0.3 | M67: Topping - Cereals | Q67: 0.75 | AF67: Yield benefit for early sowing (if any) (%) | AG67: ='1.Profile'!D10 -> 0.05 | AH67: ='1.Profile'!E10 -> 0.02 | AI67: ='1.Profile'!F10 -> 0.1 | AJ67: ='1.Profile'!G10 -> 0.05 | AK67: From Profile | AM67: 0.05 | AN67: 0.02 | AO67: 10-20% | AP67: 0.05
C68: - for all crops, after mouldboarding (permanent benefit) | H68: 0.15 | M68: Topping - Canola/Legumes | Q68: 0.75 | AF68: Yield benefit after green manuring (on top of any other benefit) | AG68: =$AJ$68*AM68/$AP$68 -> 0.1 | AH68: 0.1 | AI68: =$AJ$68*AO68/$AP$68 -> 0.1 | AJ68: =$H24-$H23 -> 0.1 | AK68: all same | AM68: 0.1 | AN68: 0.1 | AO68: 0.1 | AP68: 0.1
M69: Topping - Pastures | Q69: 0.9 | AF69: Yield benefit after brown manuring (on top of any other benefit) | AG69: =$AJ$68*AM69/$AP$68 -> 0.05 | AH69: =$AJ$68*AN69/$AP$68 -> 0.05 | AI69: =$AJ$68*AO69/$AP$68 -> 0.05 | AJ69: 0.05 | AK69: all same | AM69: 0.05 | AN69: 0.05 | AO69: 0.05 | AP69: 0.05
B70: Yield penalties | E70: Wheat | F70: Barley | G70: Canola | H70: Legume | M70: Swathing | Q70: 0.4 | AF70: Yield benefit after mowing (on top of any other benefit) | AG70: 0.05 | AH70: 0.05 | AI70: 0.05 | AJ70: 0.05 | AK70: all same | AM70: 0.05 | AN70: 0.05 | AO70: 0.05 | AP70: 0.05
M71: Swathing + spray | Q71: 0.9 | AF71: Yield benefit for all crops, after mouldboarding (permanent benefit) | AJ71: =H25 -> 0.15 | AP71: 0.15
C72: - for not swathing | E72: 0.02 | F72: 0.03 | G72: 0.1 | H72: 0 | L72: Plants (crop/pasture sacrifice): | AF72: Yield penalties | AR72: Walsh, M. and Powles, S. (2007) Management Strategies for Herbicide-Resistant Weed Populations in Australian Dryland Crop Production Systems. Weed Technology 21:332–338
C73: - for crop-topping | E73: 0.05 | F73: 0.05 | G73: 0.05 | H73: 0.05 | M73: Green / brown manuring, mowing | Q73: 1 | AF73: Yield penalty for not swathing | AG73: =E29 -> 0.02 | AH73: 0.03 | AI73: 0.1 | AJ73: 0 | AM73: 0.02 | AN73: 0.02 | AO73: 0.05 | AP73: 0 | AR73: Seymour, M., Kirkegaard, J.A., Peoples, M.B., White, P.F. and French, R.J. (2012) Break-crop benefits to wheat in Western Australia – insights from over three decades of research. Crop and Pasture Science 63:1-16.
L74: Seeds (harvest weed seed control): | AF74: Yield penalty for crop-topping | AG74: 0.05 | AH74: 0.05 | AI74: 0.05 | AJ74: 0.05 | AM74: 0.05 | AN74: 0.05 | AO74: 0.05 | AP74: 0.05 | AR74: Planfarm and Bankwest (2012) Planfarm Bankwest Benchmarks 2011/2012. Planfarm Pty. Ltd. and BankWest Agribusiness Centre, West Perth and Wembley, Western Australia, 81pp.
C75: - on crops, from pre- and post-emergents phytotoxic effects | H75: 0.02 | M75: Catch & chaff tramlining | Q75: 0.85 | AF75: Canola yield penalty if break between canolas is one year | AI75: =H34 -> 0.1 | AO75: 0.1
M76: Catch & HSD or BDS | Q76: 0.85 | AF76: Canola yield penalty if break between canolas is two years | AI76: =AI75*AO76/AO75 -> 0.03 | AK76: based on 1st year | AO76: 0.03
C77: - on Canola if break between canola crops is only 1 year | H77: 0.1 | M77: Catch & burn: chaff cart dumps | Q77: 0.85 | AF77: Legumes yield penalty if break between legumes is one year | AJ77: =H35 -> 0.05 | AP77: 0.05
C78: - on Legumes if break between legumes is only 1 year | H78: 0.05 | M78: Catch & burn: narrow windrows | Q78: 0.85 | AF78: Legumes yield penalty if legumes sown into a burnt crop stubble | AJ78: 0 | AP78: 0-10%
M79: Whole-paddock burning (residues) | Q79: 0.6 | AF79: Yield penalty for late sowing 1-2 weeks (if any) (%) | AG79: =AG80*AM79/AM80 -> 0.05 | AH79: =AH80*AN79/AN80 -> 0.05 | AI79: 0.1 | AJ79: 0.05 | AK79: based on 3 weeks | AM79: 0.05 | AN79: 0.05 | AO79: 0.1 | AP79: 0.05
AF80: Yield penalty for late sowing 3 weeks (if any) (%) | AG80: ='1.Profile'!D11 -> 0.1 | AH80: ='1.Profile'!E11 -> 0.05 | AI80: ='1.Profile'!F11 -> 0.2 | AJ80: ='1.Profile'!G11 -> 0.1 | AK80: From Profile | AM80: 0.1 | AN80: 0.05 | AO80: 0.2 | AP80: 0.1
AF81: Average yield penalty from phytotoxic effect herbicides (of pre- and post-emergents) | AJ81: =H32 -> 0.02 | AP81: 0.02
AF82: Critical factors
AF83: Average kernel weight (mg) | AG83: 37 | AH83: 35 | AI83: 3 | AJ83: 150 | AM83: 37 | AN83: 35 | AO83: 3 | AP83: 150
AF84: Expected standard rates seedling establishment (% of seeds) | AG84: 0.75 | AH84: 0.75 | AI84: 0.6 | AJ84: 0.8 | AM84: 0.75 | AN84: 0.75 | AO84: 0.6 | AP84: 0.8
B85: Options_1 | C85: ='1.Profile'!O30 -> Susceptible, 2022-LoRF | AF85: Expected high rates seedling establishment (% of seeds) | AG85: 0.7 | AH85: 0.7 | AI85: 0.55 | AJ85: 0.75 | AM85: 0.7 | AN85: 0.7 | AO85: 0.55 | AP85: 0.75
AF86: Maximum proportion of yield lost at high weed density | AG86: 0.6 | AH86: 0.45 | AI86: 0.6 | AJ86: 0.6 | AM86: 0.6 | AN86: 0.45 | AO86: 0.6 | AP86: 0.6 | AR86: Goggin, D.E., Powles, S.B. and Steadman, K,J. (2012) Understanding Lolium rigidum Seeds: The Key to Managing a Problem Weed? Agronomy 2:222-239
B87: Crops | E87: Wheat | F87: Barley | G87: Canola | H87: Legume | L87: Pastures - 3rdconsecutive year of sub-clover | AF87: Competition factor on ryegrass | AG87: 3 | AH87: 3.3 | AI87: 2.6 | AJ87: 3.9 | AM87: 3 | AN87: 3.3 | AO87: 2.6 | AP87: 3.9 | AQ87: * | AR87: Doole, G.J. (2009) Increased cropping activity and herbicide resistance: the case of rigid ryegrass in Western Australian dryland agriculture. In: Berklian, Y.U. (Ed.), Crop Rotation: Economics, Impact, and Management. Nova Science Publishers, Hauppauge, pp. 1–40.
O88: Stocking | P88: Rye- | Q88: Hay | AF88: Density standard (not the actual density - a standard level for comparison) (plants/m2) | AG88: 110 | AH88: 145 | AI88: 60 | AJ88: 50 | AM88: 110 | AN88: 145 | AO88: 60 | AP88: 50
C89: Seeding rate - Standard | D89: kg/ha | E89: 60 | F89: 70 | G89: 3 | H89: 100 | O89: rates | P89: grass | Q89: production | AF89: Background competition factor | AG89: 5 | AH89: 3 | AI89: 5 | AJ89: 9 | AM89: 5 | AN89: 3 | AO89: 5 | AP89: 9 | AQ89: *
C90: Seeding rate - High | D90: kg/ha | E90: 90 | F90: 100 | G90: 5 | H90: 125 | L90: Grazing intensity: | O90: DSE/ha | P90: control | Q90: t/ha | AG90: Do not change without good advice | AM90: * A. Diggle, D.Pannell, John Moore, 1999.
L91: ● when standard | O91: 4.5 | P91: 0.8
C92: Harvest index | E92: 0.4 | F92: 0.4 | G92: 0.4 | H92: 0.3 | L92: ● when high in spring | O92: 6.5 | P92: 0.95
C93: % of fodder yield relative to the above harvest index | H93: 0.8 | L93: ● when hay is planned | O93: 4 | P93: 1 | Q93: 1
L94: ● when hay only is planned (no grazing) | Q94: 2 | AF94: Ryegrass
C95: Pre-emergents loss of efficiency when dry seeding | H95: 0.1
AF96: Viable ryegrass seed in April year 1 (seeds/m2) | AG96: =SeedNos_SH -> 5 | AH96: From Profile
B97: Yield benefits | L97: Ryegrass control | AI97: 0.05
L98: Plants (in crop/pasture): | AF98: Note: Germination is: | AI98: 0.4 | AJ98: Standard
C99: - for canola, following a legume | H99: 0 | M99: No-till (knife-point) | Q99: 0.4 | AF99: - the least in regenerating pasture without tickle (minimal disturbance) | AI99: 0.4
C100: - for cereals, following a legume | H100: 0.2 | M100: Full cut (direct drill) | Q100: 0.8 | AF100: - skewed earlier if tickle (and slight change in amount ) | AI100: 0.4
C101: - for cereals, following a green manured legume | H101: 0.3 | M101: Topping - Cereals | Q101: 0.75 | AF101: - a bit greater with full-cut compared to no-till | AI101: 0.1 | AJ101: 0.82 | AL101: Germination, | AM101: Seeds that | AO101: Germination, | AP101: Seeds that
C102: - for all crops, after mouldboarding (permanent benefit) | H102: 0.15 | M102: Topping - Canola/Legumes | Q102: 0.75 | AL102: % of original | AM102: remain in | AO102: % of original | AP102: remain in
M103: Topping - Pastures | Q103: 0.9 | AF103: Germination percentage of seeds remaining in the seed bank at that time, not % of original seed bank. | AL103: seed bank | AM103: seed bank | AO103: seed bank | AP103: seed bank
B104: Yield penalties | E104: Wheat | F104: Barley | G104: Canola | H104: Legume | M104: Swathing | Q104: 0.4 | AF104: Germination - No sowing (regenerating pasture) and: | AG104: no tickle | AI104: + tickle | AL104: no tickle | AO104: + tickle
M105: Swathing + spray | Q105: 0.9 | AF105: Germination prior to break | AG105: 0.05 | AI105: 0.05 | AL105: =AG105 -> 0.05 | AM105: =1*(1-AG105) -> 0.95 | AO105: =AI105 -> 0.05 | AP105: =1*(1-AI105) -> 0.95
C106: - for not swathing | E106: 0.02 | F106: 0.03 | G106: 0.1 | H106: 0 | L106: Plants (crop/pasture sacrifice): | AF106: Germination 1-10 days after break** | AG106: 0.3 | AI106: 0.45 | AL106: =AM105-AM106 -> 0.285 | AM106: =AM105*(1-AG106) -> 0.665 | AO106: =AP105-AP106 -> 0.4275 | AP106: =AP105*(1-AI106) -> 0.5225
C107: - for crop-topping | E107: 0.05 | F107: 0.05 | G107: 0.05 | H107: 0.05 | M107: Green / brown manuring, mowing | Q107: 1 | AF107: Germination 11-20 days after break** | AG107: 0.35 | AI107: 0.35 | AL107: =AM106-AM107 -> 0.23275 | AM107: =AM106*(1-AG107) -> 0.43225 | AO107: =AP106-AP107 -> 0.182875 | AP107: =AP106*(1-AI107) -> 0.339625
L108: Seeds (harvest weed seed control): | AF108: Additional germination before in-crop sprays** | AG108: 0.25 | AI108: 0.25 | AL108: =AM107-AM108 -> 0.1080625 | AM108: =AM107*(1-AG108) -> 0.3241875 | AO108: =AP107-AP108 -> 0.08490625 | AP108: =AP107*(1-AI108) -> 0.25471875
C109: - on crops, from pre- and post-emergents phytotoxic effects | H109: 0.02 | M109: Catch & chaff tramlining | Q109: 0.85 | AF109: Germination after in-crop sprays** | AG109: 0.07 | AI109: 0.03 | AL109: =AM108-AM109 -> 0.022693125 | AM109: =AM108*(1-AG109) -> 0.301494375 | AO109: =AP108-AP109 -> 0.0076415625 | AP109: =AP108*(1-AI109) -> 0.2470771875
M110: Catch & HSD or BDS | Q110: 0.85 | AL110: total: | AM110: =1-AM109 -> 0.698505625 | AN110: =SUM(AL105:AL109)+AM109 -> 1 | AO110: total: | AP110: =1-AP109 -> 0.7529228125 | AQ110: =SUM(AO105:AO109)+AP109 -> 1
C111: - on Canola if break between canola crops is only 1 year | H111: 0.1 | M111: Catch & burn: chaff cart dumps | Q111: 0.85 | AG111: =1-AM109 -> 0.698505625 | AI111: =1-AP109 -> 0.7529228125
C112: - on Legumes if break between legumes is only 1 year | H112: 0.05 | M112: Catch & burn: narrow windrows | Q112: 0.85
M113: Whole-paddock burning (residues) | Q113: 0.6 | AF113: Germination - Sowing (crop or pasture) and: | AG113: no tickle | AI113: + tickle | AL113: no tickle | AO113: no tickle
AG114: no-till | AH114: full cut | AI114: no-till | AJ114: full cut | AL114: no-till | AO114: full cut
AF115: Germination prior to break | AG115: 0.05 | AH115: 0.07 | AI115: 0.05 | AJ115: 0.07 | AL115: =AG115 -> 0.05 | AM115: =1*(1-AG115) -> 0.95 | AO115: =AH115 -> 0.07 | AP115: =1*(1-AH115) -> 0.93
AF116: Germination 1-10 days after break** | AG116: 0.35 | AH116: 0.4 | AI116: 0.55 | AJ116: 0.6 | AL116: =AM115-AM116 -> 0.3325 | AM116: =AM115*(1-AG116) -> 0.6175 | AO116: =AP115-AP116 -> 0.372 | AP116: =AP115*(1-AH116) -> 0.558
AF117: Germination 11-20 days after break** | AG117: 0.4 | AH117: 0.45 | AI117: 0.45 | AJ117: 0.5 | AL117: =AM116-AM117 -> 0.247 | AM117: =AM116*(1-AG117) -> 0.3705 | AO117: =AP116-AP117 -> 0.2511 | AP117: =AP116*(1-AH117) -> 0.3069
AF118: Additional germination before in-crop sprays** | AG118: 0.35 | AH118: 0.4 | AI118: 0.3 | AJ118: 0.35 | AL118: =AM117-AM118 -> 0.129675 | AM118: =AM117*(1-AG118) -> 0.240825 | AO118: =AP117-AP118 -> 0.12276 | AP118: =AP117*(1-AH118) -> 0.18414
B119: Options_2 | C119: ='1.Profile'!O31 -> Susceptible, 2022-HiRF | AF119: Germination after in-crop sprays** | AG119: 0.15 | AH119: 0.17 | AI119: 0.1 | AJ119: 0.15 | AL119: =AM118-AM119 -> 0.03612375 | AM119: =AM118*(1-AG119) -> 0.20470125 | AO119: =AP118-AP119 -> 0.0313038 | AP119: =AP118*(1-AH119) -> 0.1528362
AL120: total: | AM120: =1-AM119 -> 0.79529875 | AN120: =SUM(AL115:AL119)+AM119 -> 1 | AO120: total: | AP120: =1-AP119 -> 0.8471638 | AQ120: =SUM(AO115:AO119)+AP119 -> 1
B121: Crops | E121: Wheat | F121: Barley | G121: Canola | H121: Legume | L121: Pastures - 3rdconsecutive year of sub-clover | AG121: =1-AM119 -> 0.79529875 | AH121: =1-AP119 -> 0.8471638 | AI121: =1-AM127 -> 0.85187125 | AJ121: =1-AP127 -> 0.897235 | AL121: + tickle | AO121: + tickle
O122: Stocking | P122: Rye- | Q122: Hay | AL122: no-till | AO122: full cut
C123: Seeding rate - Standard | D123: kg/ha | E123: 60 | F123: 70 | G123: 3 | H123: 100 | O123: rates | P123: grass | Q123: production | AF123: Ryegrass Variables | AL123: =AI115 -> 0.05 | AM123: =1*(1-AI115) -> 0.95 | AO123: =AJ115 -> 0.07 | AP123: =1*(1-AJ115) -> 0.93
C124: Seeding rate - High | D124: kg/ha | E124: 90 | F124: 100 | G124: 5 | H124: 125 | L124: Grazing intensity: | O124: DSE/ha | P124: control | Q124: t/ha | AF124: Nb of viable seeds at start (Yr1) per mature plant last year (from profile) | AG124: 50 | AI124: 50 | AJ124: Steve Powles, 2012 | AL124: =AM123-AM124 -> 0.5225 | AM124: =AM123*(1-AI116) -> 0.4275 | AO124: =AP123-AP124 -> 0.558 | AP124: =AP123*(1-AJ116) -> 0.372
L125: ● when standard | O125: 4.5 | P125: 0.8 | AF125: Mouldboard plough: % emerged plants controlled | AG125: 1 | AI125: 1 | AJ125: GRDC, 2012 | AL125: =AM124-AM125 -> 0.192375 | AM125: =AM124*(1-AI117) -> 0.235125 | AO125: =AP124-AP125 -> 0.186 | AP125: =AP124*(1-AJ117) -> 0.186
C126: Harvest index | E126: 0.4 | F126: 0.4 | G126: 0.4 | H126: 0.3 | L126: ● when high in spring | O126: 6.5 | P126: 0.95 | AF126: Mouldboard plough: % seeds controlled first time | AG126: 0.95 | AI126: 0.95 | AJ126: GRDC, 2012 | AL126: =AM125-AM126 -> 0.0705375 | AM126: =AM125*(1-AI118) -> 0.1645875 | AO126: =AP125-AP126 -> 0.0651 | AP126: =AP125*(1-AJ118) -> 0.1209
C127: % of fodder yield relative to the above harvest index | H127: 0.8 | L127: ● when hay is planned | O127: 4 | P127: 1 | Q127: 1 | AF127: Mouldboard plough: % seeds controlled if less than 4 years | AG127: 0.3 | AI127: 0.3 | AJ127: adapted from Goggin et al. 2012 | AL127: =AM126-AM127 -> 0.01645875 | AM127: =AM126*(1-AI119) -> 0.14812875 | AO127: =AP126-AP127 -> 0.018135 | AP127: =AP126*(1-AJ119) -> 0.102765
L128: ● when hay only is planned (no grazing) | Q128: 2 | AF128: Natural mortality of seedlings (% of total seedlings) | AG128: 0.05 | AI128: 0.05 | AJ128: Cheam, AgWA 1999 | AL128: total: | AM128: =1-AM127 -> 0.85187125 | AN128: =SUM(AL123:AL127)+AM127 -> 1 | AO128: total: | AP128: =1-AP127 -> 0.897235 | AQ128: =SUM(AO123:AO127)+AP127 -> 1
C129: Pre-emergents loss of efficiency when dry seeding | H129: 0.1 | AF129: Natural mortality of dormant seeds during season | AG129: 0.2 | AI129: 0.2 | AJ129: J. Holmes, RTC & M. Monjardino, UWA 1999
AF130: Natural mortality of seeds over summer | AG130: 0.3 | AI130: 0.3 | AJ130: M. Monjardino, UWA 1999
B131: Yield benefits | L131: Ryegrass control | AF131: Sub-lethal effect of selective herbicides - lower seed production of surviving weeds. | AG131: 0.33 | AI131: 0.33 | AJ131: D. Pannell & V. Stewart, 1999
L132: Plants (in crop/pasture): | AF132: Effect of late-season application of non-selective herbicideherbicides - lower viability of newly produced seeds | AG132: 0.5 | AI132: 0.5 | AJ132: Steadman et al., 2006 | AM132: A number of those ryegrass parameters are reviewed in:
C133: - for canola, following a legume | H133: 0 | M133: No-till (knife-point) | Q133: 0.4 | AF133: Maximum ryegrass seed production (seeds/m2/year) | AG133: 35000 | AI133: 35000 | AJ133: M. Monjardino, UWA 1999 | AM133: Goggin, D.E., Powles, S.B. and Steadman, K,J. (2012) Understanding Lolium rigidum Seeds: The Key to Managing a Problem Weed? Agronomy 2:222-239
C134: - for cereals, following a legume | H134: 0.2 | M134: Full cut (direct drill) | Q134: 0.8 | AF134: Removal of weed seed in grain with normal harvesting | AG134: 0.05 | AI134: 0.05 | AJ134: Michael Walsh, 2012 | AM134: Doole, G.J. (2009) Increased cropping activity and herbicide resistance: the case of rigid ryegrass in Western Australian dryland agriculture. In: Berklian, Y.U. (Ed.), Crop Rotation: Economics, Impact, and Management. Nova Science Publishers, Hauppauge, pp. 1–40.
C135: - for cereals, following a green manured legume | H135: 0.3 | M135: Topping - Cereals | Q135: 0.75 | AF135: Ryegrass background comp. factor | AG135: 33 | AI135: 25 | AJ135: A. Diggle, AgWA
C136: - for all crops, after mouldboarding (permanent benefit) | H136: 0.15 | M136: Topping - Canola/Legumes | Q136: 0.75 | AF136: Ryegrass competition factor in wheat | AG136: 0.33 | AI136: 0.33 | AJ136: D. Pannell, UWA 1999
M137: Topping - Pastures | Q137: 0.9 | AF137: Ryegrass competition factor in barley | AG137: 0.3 | AI137: 0.3 | AJ137: D. Pannell, UWA 1999
B138: Yield penalties | E138: Wheat | F138: Barley | G138: Canola | H138: Legume | M138: Swathing | Q138: 0.4 | AF138: Ryegrass competition factor in canola | AG138: 0.38 | AI138: 0.35 | AJ138: D. Pannell, UWA 1999
M139: Swathing + spray | Q139: 0.9 | AF139: Ryegrass competition factor in legumes | AG139: 0.25 | AI139: 0.24 | AJ139: D. Pannell, UWA 1999
C140: - for not swathing | E140: 0.02 | F140: 0.03 | G140: 0.1 | H140: 0 | L140: Plants (crop/pasture sacrifice): | AG140: Don't change without good advice | AK140: John Moore, DAWA, Dec 2000
C141: - for crop-topping | E141: 0.05 | F141: 0.05 | G141: 0.05 | H141: 0.05 | M141: Green / brown manuring, mowing | Q141: 1 | AF141: Progeny index for ryegrass | AG141: Seed day 0 | AH141: Seed day 10 | AI141: Seed day 20 | AK141: Seed day 0 | AL141: Seed day 10 | AM141: Seed day 20
L142: Seeds (harvest weed seed control): | AF142: Weeds emerging 1-10 days after break | AG142: 1 | AH142: 1 | AI142: 1 | AK142: 1 | AL142: 1 | AM142: 1
C143: - on crops, from pre- and post-emergents phytotoxic effects | H143: 0.02 | M143: Catch & chaff tramlining | Q143: 0.85 | AF143: Weeds emerging 11-20 days after break | AG143: 0.3 | AH143: 1 | AI143: 1 | AK143: 0.3 | AL143: 1 | AM143: 1
M144: Catch & HSD or BDS | Q144: 0.85 | AF144: Additional weeds emerging before post-em herbicides | AG144: 0.1 | AH144: 0.3 | AI144: 0.45 | AK144: 0.1 | AL144: 0.3 | AM144: 0.45
C145: - on Canola if break between canola crops is only 1 year | H145: 0.1 | M145: Catch & burn: chaff cart dumps | Q145: 0.85 | AF145: Weeds emerging after post-em herbicides | AG145: 0.02 | AH145: 0.1 | AI145: 0.1 | AK145: 0.02 | AL145: 0.1 | AM145: 0.1
C146: - on Legumes if break between legumes is only 1 year | H146: 0.05 | M146: Catch & burn: narrow windrows | Q146: 0.85
M147: Whole-paddock burning (residues) | Q147: 0.6 | AG147: =AVERAGE(AG142:AG145) -> 0.355 | AH147: =AVERAGE(AH142:AH145) -> 0.6 | AI147: 0.6375
AF151: Pastures | AG151: All Data Source from AgWA Pastures Group - Mike Ewing, Brad Nutt, Clinton Revell, Keith Devenish, 2001 ; reviewed 2012 by Mike Ewing (UWA), Clinton Revell, Mark Seymour (DAFWA)
AF152: Stocking rates - Standard Intensity Grazing = | AG152: Average annual pasture stocking rate (DSE/ha) for year round grazing at standard intensity | AP152: Planfarm and Bankwest (2012) Planfarm Bankwest Benchmarks 2011/2012. Planfarm Pty. Ltd. and BankWest Agribusiness Centre, West Perth and Wembley, Western Australia, 81pp.
B153: Options_3 | C153: ='1.Profile'!O32 -> Resistant1, 2022-LoRF | AF153: Stocking rates - High Intensity Grazing = | AG153: Average pasture stocking rate (DSE/ha) given high intensity grazing during winter/spring. | AP153: Seymour, M., Kirkegaard, J.A., Peoples, M.B., White, P.F. and French, R.J. (2012) Break-crop benefits to wheat in Western Australia – insights from over three decades of research. Crop and Pasture Science 63:1-16.
AF154: Hay Cut, Silage Cut, Green Manuring = | AG154: Pasture stocking rate (DSE/ha) if cutting hay, cutting silage or green manuring when the
B155: Crops | E155: Wheat | F155: Barley | G155: Canola | H155: Legume | L155: Pastures - 3rdconsecutive year of sub-clover | AG155: stocking rate is averaged over the same period as year round grazing.
O156: Stocking | P156: Rye- | Q156: Hay | AL156: Reference used for ratios | AP156: Crops after pasture: | AS156: First cereal | AT156: 2nd | AU156: Canola 1st | AX156: Reference used for ratios
C157: Seeding rate - Standard | D157: kg/ha | E157: 60 | F157: 70 | G157: 3 | H157: 100 | O157: rates | P157: grass | Q157: production | AF157: Grazing only | AG157: Sub-clover | AH157: Cadiz | AI157: Volunteer | AK157: Sub-clover | AL157: Cadiz | AM157: Volunteer | AP157: Saving in Nitrogen Fertiliser ($/ha) | AS157: after past. | AT157: consecutiv. Cereal | AU157: year after pasture | AW157: 1st cereal | AX157: 2nd cereal | AY157: 1st canola
C158: Seeding rate - High | D158: kg/ha | E158: 90 | F158: 100 | G158: 5 | H158: 125 | L158: Grazing intensity: | O158: DSE/ha | P158: control | Q158: t/ha | AF158: Stocking rates - Standard | AQ158: 1 year of pasture | AS158: =$AS$163*AW158/$AW$163 -> 25 | AT158: 0 | AU158: 25 | AW158: 5 | AX158: 0 | AY158: 5 | AZ158: This table in
L159: ● when standard | O159: 4.5 | P159: 0.8 | AF159: 1st yr of pasture | AG159: =$AG$161*(AK159/$AK$161) -> 2 | AH159: 2.5 | AI159: 1.5 | AK159: 2 | AL159: 2.5 | AM159: 1.5 | AP159: after Volunteer Pasture | AQ159: 2 consecutive years of pasture | AS159: 50 | AT159: 25 | AU159: 50 | AW159: 10 | AX159: 5 | AY159: 10 | AZ159: !! kg/ha
C160: Harvest index | E160: 0.4 | F160: 0.4 | G160: 0.4 | H160: 0.3 | L160: ● when high in spring | O160: 6.5 | P160: 0.95 | AF160: 2nd consecutive yr of pasture | AG160: 3.5 | AH160: 4 | AI160: 2 | AK160: 3.5 | AL160: 4 | AM160: 2 | AQ160: 3 consecutive years of pasture | AS160: 60 | AT160: 27.5 | AU160: 60 | AW160: 12 | AX160: 5.5 | AY160: 12
C161: % of fodder yield relative to the above harvest index | H161: 0.8 | L161: ● when hay is planned | O161: 4 | P161: 1 | Q161: 1 | AF161: 3rd consecutive yr of pasture | AG161: =O14 -> 4.5 | AH161: =$AG$161*(AL161/$AK$161) -> 4.5 | AI161: =$AG$161*(AM161/$AK$161) -> 2 | AK161: 4.5 | AL161: 4.5 | AM161: 2 | AQ161: 1 year of pasture | AS161: 75 | AT161: 25 | AU161: 75 | AW161: 15 | AX161: 5 | AY161: 15
L162: ● when hay only is planned (no grazing) | Q162: 2 | AF162: Stocking rates - High | AP162: after Sub-Clover Pasture | AQ162: 2 consecutive years of pasture | AS162: 125 | AT162: 35 | AU162: 125 | AW162: 25 | AX162: 7 | AY162: 25
C163: Pre-emergents loss of efficiency when dry seeding | H163: 0.1 | AF163: 1st yr of pasture | AG163: =$AG$165*(AK163/$AK$165) -> 3 | AH163: 3 | AI163: 2.5 | AK163: 3 | AL163: 3 | AM163: 2.5 | AQ163: 3 consecutive years of pasture | AS163: ='+Prices'!AJ87 -> 150 | AT163: =$AS$163*AX163/$AW$163 -> 50 | AU163: 150 | AW163: 30 | AX163: 10 | AY163: 30
AF164: 2nd consecutive yr of pasture | AG164: 5 | AH164: 5.5 | AI164: 3 | AK164: 5 | AL164: 5.5 | AM164: 3 | AQ164: 1 year of pasture | AS164: =$AS$163*AW164/$AW$163 -> 80 | AT164: 25 | AU164: 80 | AW164: 16 | AX164: 5 | AY164: 16
B165: Yield benefits | L165: Ryegrass control | AF165: 3rd consecutive yr of pasture | AG165: =O15 -> 6.5 | AH165: =$AG$165*(AL165/$AK$165) -> 6.5 | AI165: =$AG$165*(AM165/$AK$165) -> 3 | AK165: 6.5 | AL165: 6.5 | AM165: 3 | AP165: after Cadiz Pasture | AQ165: 2 consecutive years of pasture | AS165: =$AS$163*AW165/$AW$163 -> 135 | AT165: 35 | AU165: 135 | AW165: 27 | AX165: 7 | AY165: 27
L166: Plants (in crop/pasture): | AQ166: 3 consecutive years of pasture | AS166: =$AS$163*AW166/$AW$163 -> 160 | AT166: 55 | AU166: 160 | AW166: 32 | AX166: 11 | AY166: 32
C167: - for canola, following a legume | H167: 0 | M167: No-till (knife-point) | Q167: 0.4 | AF167: Grazing only - Ryegrass Control | AP167: Yiled benefits in Crop (%) for: | AS167: From +Prices: cf 30 kg/ha: same as the 'saving if planted after legume crop' value | BA167: old canola
C168: - for cereals, following a legume | H168: 0.2 | M168: Full cut (direct drill) | Q168: 0.8 | AF168: Stocking rates - Standard | AQ168: 1 year of pasture | AS168: =$AS$173*AW168/$AW$173 -> 0.08 | AT168: 0.04 | AU168: 0.08 | AW168: 0.08 | AX168: 0.04 | AY168: 0.08 | BA168: 0.08
C169: - for cereals, following a green manured legume | H169: 0.3 | M169: Topping - Cereals | Q169: 0.75 | AF169: 1st yr of pasture | AG169: =$AG$171*(AK169/$AK$171) -> 0.5 | AH169: 0.3 | AI169: 0.4 | AK169: 0.5 | AL169: 0.3 | AM169: 0.4 | AP169: after Volunteer Pasture | AQ169: 2 consecutive years of pasture | AS169: 0.1 | AT169: 0.05 | AU169: 0.1 | AW169: 0.1 | AX169: 0.05 | AY169: 0.1 | BA169: 0.1
C170: - for all crops, after mouldboarding (permanent benefit) | H170: 0.15 | M170: Topping - Canola/Legumes | Q170: 0.75 | AF170: 2nd consecutive yr of pasture | AG170: 0.7 | AH170: 0.5 | AI170: 0.6 | AK170: 0.7 | AL170: 0.5 | AM170: 0.6 | AQ170: 3 consecutive years of pasture | AS170: 0.1 | AT170: 0.05 | AU170: 0.1 | AW170: 0.1 | AX170: 0.05 | AY170: 0.1 | BA170: 0.1
M171: Topping - Pastures | Q171: 0.9 | AF171: 3rd consecutive yr of pasture | AG171: =P14 -> 0.8 | AH171: =$AG$171*(AL171/$AK$171) -> 0.7 | AI171: =$AG$171*(AM171/$AK$171) -> 0.75 | AK171: 0.8 | AL171: 0.7 | AM171: 0.75 | AQ171: 1 year of pasture | AS171: 0.17 | AT171: 0.08 | AU171: 0 | AW171: 0.17 | AX171: 0.08 | AY171: 0 | BA171: 0.17
B172: Yield penalties | E172: Wheat | F172: Barley | G172: Canola | H172: Legume | M172: Swathing | Q172: 0.4 | AF172: Stocking rates - High | AP172: after Sub-Clover Pasture | AQ172: 2 consecutive years of pasture | AS172: 0.2 | AT172: 0.1 | AU172: -0.15 | AW172: 0.2 | AX172: 0.1 | AY172: -0.15 | BA172: 0.2
M173: Swathing + spray | Q173: 0.9 | AF173: 1st yr of pasture | AG173: =$AG$175*(AK173/$AK$175) -> 0.85 | AH173: 0.7 | AI173: 0.85 | AK173: 0.85 | AL173: 0.7 | AM173: 0.85 | AQ173: 3 consecutive years of pasture | AS173: =H23 -> 0.2 | AT173: =$AS$173*AX173/$AW$173 -> 0.1 | AU173: -0.3 | AW173: 0.2 | AX173: 0.1 | AY173: -0.3 | BA173: 0.2
C174: - for not swathing | E174: 0.02 | F174: 0.03 | G174: 0.1 | H174: 0 | L174: Plants (crop/pasture sacrifice): | AF174: 2nd consecutive yr of pasture | AG174: 0.9 | AH174: 0.8 | AI174: 0.9 | AK174: 0.9 | AL174: 0.8 | AM174: 0.9 | AQ174: 1 year of pasture | AS174: =$AS$173*AW174/$AW$173 -> 0.17 | AT174: 0.08 | AU174: 0 | AW174: 0.17 | AX174: 0.08 | AY174: 0 | BA174: 0.17
C175: - for crop-topping | E175: 0.05 | F175: 0.05 | G175: 0.05 | H175: 0.05 | M175: Green / brown manuring, mowing | Q175: 1 | AF175: 3rd consecutive yr of pasture | AG175: =P15 -> 0.95 | AH175: =$AG$175*(AL175/$AK$175) -> 0.9 | AI175: =$AG$175*(AM175/$AK$175) -> 0.95 | AK175: 0.95 | AL175: 0.9 | AM175: 0.95 | AP175: after Cadiz Pasture | AQ175: 2 consecutive years of pasture | AS175: =$AS$173*AW175/$AW$173 -> 0.2 | AT175: 0.1 | AU175: -0.15 | AW175: 0.2 | AX175: 0.1 | AY175: -0.15 | BA175: 0.2
L176: Seeds (harvest weed seed control): | AQ176: 3 consecutive years of pasture | AS176: =$AS$173*AW176/$AW$173 -> 0.2 | AT176: 0.1 | AU176: -0.3 | AW176: 0.2 | AX176: 0.1 | AY176: -0.3 | BA176: 0.2
C177: - on crops, from pre- and post-emergents phytotoxic effects | H177: 0.02 | M177: Catch & chaff tramlining | Q177: 0.85 | AF177: If Hay Cut, Silage Cut, Green Manuring planned
M178: Catch & HSD or BDS | Q178: 0.85 | AF178: Stocking rates - Standard | AP178: Seymour, M., Kirkegaard, J.A., Peoples, M.B., White, P.F. and French, R.J. (2012) Break-crop benefits to wheat in Western Australia – insights from over three decades of research. Crop and Pasture Science 63:1-16.
C179: - on Canola if break between canola crops is only 1 year | H179: 0.1 | M179: Catch & burn: chaff cart dumps | Q179: 0.85 | AF179: 1st yr of pasture | AG179: =$AG$181*(AK179/$AK$181) -> 1.5 | AH179: 1.5 | AI179: 0.5 | AK179: 1.5 | AL179: 1.5 | AM179: 0.5
C180: - on Legumes if break between legumes is only 1 year | H180: 0.05 | M180: Catch & burn: narrow windrows | Q180: 0.85 | AF180: 2nd consecutive yr of pasture | AG180: 3 | AH180: 2 | AI180: 1 | AK180: 3 | AL180: 2 | AM180: 1
M181: Whole-paddock burning (residues) | Q181: 0.6 | AF181: 3rd consecutive yr of pasture | AG181: =O16 -> 4 | AH181: =$AG$181*(AL181/$AK$181) -> 2 | AI181: =$AG$181*(AM181/$AK$181) -> 1 | AK181: 4 | AL181: 2 | AM181: 1 | AT181: A. Diggle
AF182: Hay/Silage Production (t/ha) with Standard Grazing | AP182: Competition factor of pasture on ryegrass | AS182: 300 | AT182: 300
AF183: 1st yr of pasture | AG183: =$AG$185*(AK183/$AK$185) -> 0.5 | AH183: 3 | AI183: 0.5 | AK183: 0.5 | AL183: 3 | AM183: 0.5 | AP183: Do not change without good advice
AF184: 2nd consecutive yr of pasture | AG184: 0.7 | AH184: 2.5 | AI184: 0.3 | AK184: 0.7 | AL184: 2.5 | AM184: 0.3 | AP184: This figure equals the wheat competition factor on ryegrass * standard wheat density.
AF185: 3rd consecutive yr of pasture | AG185: =Q16 -> 1 | AH185: =$AG$185*(AL185/$AK$185) -> 1.5 | AI185: =$AG$185*(AM185/$AK$185) -> 0.1 | AK185: 1 | AL185: 1.5 | AM185: 0.1 | AP185: We assume that all three pastures are equally competitive and have a similar competitive
AF186: Stocking rates - High | AP186: effect on ryegrass as a wheat crop.
AF187: 1st yr of pasture | AG187: =AG179*((AG163/AG159)+1)/2 -> 1.875 | AH187: 1.65 | AI187: 0.6666666667
B188: Options_4 | C188: ='1.Profile'!O33 -> HighResist, 2022-LoRF | AF188: 2nd consecutive yr of pasture | AG188: 3.642857143 | AH188: 2.375 | AI188: 1.25
AF189: 3rd consecutive yr of pasture | AG189: 4.888888889 | AH189: 2.444444444 | AI189: 1.25
B190: Crops | E190: Wheat | F190: Barley | G190: Canola | H190: Legume | L190: Pastures - 3rdconsecutive year of sub-clover | AF190: Hay/Silage Production (t/ha) with High intensity grazing
O191: Stocking | P191: Rye- | Q191: Hay | AF191: 1st yr of pasture | AG191: =AG183/2 -> 0.25 | AH191: =AH183/2 -> 1.5 | AI191: 0.25
C192: Seeding rate - Standard | D192: kg/ha | E192: 60 | F192: 70 | G192: 3 | H192: 100 | O192: rates | P192: grass | Q192: production | AF192: 2nd consecutive yr of pasture | AG192: =AG184/2 -> 0.35 | AH192: 1.25 | AI192: 0.15
C193: Seeding rate - High | D193: kg/ha | E193: 90 | F193: 100 | G193: 5 | H193: 125 | L193: Grazing intensity: | O193: DSE/ha | P193: control | Q193: t/ha | AF193: 3rd consecutive yr of pasture | AG193: 0.5 | AH193: 0.75 | AI193: 0.05
L194: ● when standard | O194: 4.5 | P194: 0.8
C195: Harvest index | E195: 0.4 | F195: 0.4 | G195: 0.4 | H195: 0.3 | L195: ● when high in spring | O195: 6.5 | P195: 0.95 | AF195: If Hay Cut /Silage Cut only
C196: % of fodder yield relative to the above harvest index | H196: 0.8 | L196: ● when hay is planned | O196: 4 | P196: 1 | Q196: 1 | AF196: Hay/Silage Production (t/ha) WITHOUT grazing
L197: ● when hay only is planned (no grazing) | Q197: 2 | AF197: 1st yr of pasture | AG197: =$AG$199*(AK197/$AK$199) -> 0.8 | AH197: =$AG$199*(AL197/$AK$199) -> 4.8 | AI197: 1 | AK197: 0.8 | AL197: 4.8 | AM197: 1
C198: Pre-emergents loss of efficiency when dry seeding | H198: 0.1 | AF198: 2nd consecutive yr of pasture | AG198: =$AG$199*(AK198/$AK$199) -> 1.5 | AH198: 4 | AI198: 0.8 | AK198: 1.5 | AL198: 4 | AM198: 0.8
AF199: 3rd consecutive yr of pasture | AG199: =Q17 -> 2 | AH199: =$AG$199*(AL199/$AK$199) -> 2.4 | AI199: =$AG$199*(AM199/$AK$199) -> 0.5 | AK199: 2 | AL199: 2.4 | AM199: 0.5
B200: Yield benefits | L200: Ryegrass control | AO200: Note: By default (see 'Calc'), sowing of a pasture occurs:
L201: Plants (in crop/pasture): | AF201: Production benefit if nothing done the previous year | AG201: 0.2 | AP201: Cadiz = only in 1st year of a run of cadiz
C202: - for canola, following a legume | H202: 0 | M202: No-till (knife-point) | Q202: 0.4 | AP202: Clover = only if no clover in past 3 years
C203: - for cereals, following a legume | H203: 0.2 | M203: Full cut (direct drill) | Q203: 0.8 | AP203: Volunteer = never.
C204: - for cereals, following a green manured legume | H204: 0.3 | M204: Topping - Cereals | Q204: 0.75
C205: - for all crops, after mouldboarding (permanent benefit) | H205: 0.15 | M205: Topping - Canola/Legumes | Q205: 0.75
M206: Topping - Pastures | Q206: 0.9 | AK206: Frozen, original references
B207: Yield penalties | E207: Wheat | F207: Barley | G207: Canola | H207: Legume | M207: Swathing | Q207: 0.4 | AL207: Reference used for ratios
M208: Swathing + spray | Q208: 0.9 | AK208: Sub-clover | AL208: Cadiz | AM208: Volunteer
C209: - for not swathing | E209: 0.02 | F209: 0.03 | G209: 0.1 | H209: 0 | L209: Plants (crop/pasture sacrifice):
C210: - for crop-topping | E210: 0.05 | F210: 0.05 | G210: 0.05 | H210: 0.05 | M210: Green / brown manuring, mowing | Q210: 1 | AK210: 2.5 | AL210: 3 | AM210: 1.5
L211: Seeds (harvest weed seed control): | AK211: 4 | AL211: 5 | AM211: 2.4
C212: - on crops, from pre- and post-emergents phytotoxic effects | H212: 0.02 | M212: Catch & chaff tramlining | Q212: 0.85 | AK212: 5 | AL212: 6 | AM212: 2.4
M213: Catch & HSD or BDS | Q213: 0.85
C214: - on Canola if break between canola crops is only 1 year | H214: 0.1 | M214: Catch & burn: chaff cart dumps | Q214: 0.85 | AK214: 4 | AL214: 4 | AM214: 3
C215: - on Legumes if break between legumes is only 1 year | H215: 0.05 | M215: Catch & burn: narrow windrows | Q215: 0.85 | AK215: 5 | AL215: 6 | AM215: 3
M216: Whole-paddock burning (residues) | Q216: 0.6 | AK216: 6 | AL216: 7 | AM216: 3
AK220: 0.5 | AL220: 0.3 | AM220: 0.4
AK221: 0.7 | AL221: 0.5 | AM221: 0.4
AK222: 0.8 | AL222: 0.7 | AM222: 0.4
AK224: 0.87 | AL224: 0.82 | AM224: 0.87
AK225: 0.92 | AL225: 0.85 | AM225: 0.92
AK226: 0.95 | AL226: 0.9 | AM226: 0.95
AK230: 1.5 | AL230: 1.5 | AM230: 0.5
... 5 more rows

Sheet 2.Strategy
B1: 2. BUILD Strategy | J1: ='1.Profile'!O27&", "&'1.Profile'!O26 -> Susceptible, 2022-LoRF
C3: Choose enterprise | D3: Yr 1 | E3: Yr 2 | F3: Yr 3 | G3: Yr 4 | H3: Yr 5 | I3: Yr 6 | J3: Yr 7 | K3: Yr 8 | L3: Yr 9 | M3: Yr 10
C4: and control options: | D4: Wheat | E4: Wheat | F4: Canola | G4: Clover | H4: Clover | I4: Clover | J4: Clover | K4: Wheat | L4: Wheat | M4: Canola | O4: Save & Load | AV4: Excluded
A5: 13 | C5: Time of sowing | D5: Wet | E5: Wet | F5: Wet | G5: Delayed | H5: Wet | I5: Wet | J5: Wet | K5: Wet | L5: Wet | M5: Wet | O5: Strategy name: | AV5: =H63 -> Volunt.
A6: 10 | C6: Soil preparation | O6: WWC-graze Lo
A7: 1 | C7: Knock-down / Double-knock | D7: Glyphosate | G7: DoubleK | H7: Paraquat | I7: DoubleK | J7: DoubleK | L7: Glyphosate
A8: 4 | C8: Pre-emergent herbicide | D8: Triflur+Tria | E8: Sakura | F8: Propyzamide | H8: Triflur+Tria | I8: Propyzamide | J8: Sakura | K8: Boxer Gold | L8: Sakura | M8: Propyzamide | O8: WWC - high
A9: 11 | C9: Establishment system | D9: No-till | E9: No-till | F9: No-till | G9: Full-cut | H9: No-till | I9: No-till | K9: No-till | L9: No-till | M9: No-till | O9: WWC - low | AV9: =H63 -> Volunt.
A10: 9 | C10: Crop seeding rate | D10: Standard | E10: Standard | F10: Standard | G10: Standard | H10: Standard | I10: Standard | K10: Standard | L10: Standard | M10: Standard | O10: WWC-graze Lo | AV10: =H63&I63&J63 -> Volunt.CloverCadiz
A11: 15 | C11: Post-emergent herbicide 1 | D11: Topik | E11: Hussar | O11: Mid West standard
A12: 16 | C12: Post-emergent herbicide 2 | O12: Sth Coast standard
A13: 17 | C13: Post-emergent herbicide 3 | O13: HWSC
A14: 23 | C14: Grazing intensity | G14: Standard | H14: Standard | I14: Standard | J14: Standard | O14: Default | AV14: =D63&E63&F63&G63 -> WheatBarleyCanolaLegume
A15: 35 | C15: Spring options | J15: Topping
A16: 25 | C16: - Swathe | F16: With Spray | I16: With Spray | M16: With Spray | P16: =IF(C48="Err 1",E54,IF(COUNTIF(D48:M48,"Err 4")>0,E49,IF(COUNTIF(D48:M48,"Err NS")>0,E50,IF(COUNTIF(D48:M48,"Err E")>0,E51,IF(COUNTIF(D48:M48,"Err H")>0,E52,IF(COUNTIF(D48:M48,"Err 3")>0,E53,"")))))) ->  | AV16: =H63&I63&J63 -> Volunt.CloverCadiz
A17: 31 | C17: - Others | P17: =IF(C48="Err 1",H54,IF(COUNTIF(D48:M48,"Err 4")>0,H49,IF(COUNTIF(D48:M48,"Err NS")>0,H50,IF(COUNTIF(D48:M48,"Err E")>0,H51,IF(COUNTIF(D48:M48,"Err H")>0,H52,IF(COUNTIF(D48:M48,"Err 3")>0,H53,"")))))) -> 
A18: 35 | C18: Harvest options - Crops | D18: Narr+B. | E18: Narr+B. | G18: Narr+B. | H18: Narr+B. | J18: Narr+B. | K18: Narr+B. | M18: Narr+B. | P18: =IF(C48="Err 1",J54,IF(COUNTIF(D48:M48,"Err 4")>0,J49,IF(COUNTIF(D48:M48,"Err NS")>0,J50,IF(COUNTIF(D48:M48,"Err E")>0,J51,IF(COUNTIF(D48:M48,"Err H")>0,J52,IF(COUNTIF(D48:M48,"Err 3")>0,J53,"")))))) ->  | AV18: =H63&I63&J63 -> Volunt.CloverCadiz
C19: Harvest options - Others
C20: Mature ryegrass setting seed: | D20: =IF('Bio results'!D$8>$O$67,">"&$O$67,'Bio results'!D$8) -> 13.14951875 | E20: =IF('Bio results'!E$8>$O$67,">"&$O$67,'Bio results'!E$8) -> 1.911027171 | F20: =IF('Bio results'!F$8>$O$67,">"&$O$67,'Bio results'!F$8) -> 0.1096653105 | G20: =IF('Bio results'!G$8>$O$67,">"&$O$67,'Bio results'!G$8) -> 0.6171274981 | H20: =IF('Bio results'!H$8>$O$67,">"&$O$67,'Bio results'!H$8) -> 3.555146969 | I20: =IF('Bio results'!I$8>$O$67,">"&$O$67,'Bio results'!I$8) -> 14.27336732 | J20: =IF('Bio results'!J$8>$O$67,">"&$O$67,'Bio results'!J$8) -> 2.667340279 | K20: =IF('Bio results'!K$8>$O$67,">"&$O$67,'Bio results'!K$8) -> 20.59672995 | L20: =IF('Bio results'!L$8>$O$67,">"&$O$67,'Bio results'!L$8) -> 10.84659636 | M20: =IF('Bio results'!M$8>$O$67,">"&$O$67,'Bio results'!M$8) -> 3.860118266
C21: Seeds in soil next autumn (/m2): | D21: =IF('Bio results'!D$20>$O$68,">"&$O$68,'Bio results'!D$20) -> 46.61913858 | E21: =IF('Bio results'!E$20>$O$68,">"&$O$68,'Bio results'!E$20) -> 6.559668117 | F21: =IF('Bio results'!F$20>$O$68,">"&$O$68,'Bio results'!F$20) -> 3.193656535 | G21: =IF('Bio results'!G$20>$O$68,">"&$O$68,'Bio results'!G$20) -> 32.69078116 | H21: =IF('Bio results'!H$20>$O$68,">"&$O$68,'Bio results'!H$20) -> 205.9857031 | I21: =IF('Bio results'!I$20>$O$68,">"&$O$68,'Bio results'!I$20) -> 384.9364696 | J21: =IF('Bio results'!J$20>$O$68,">"&$O$68,'Bio results'!J$20) -> 123.2000458 | K21: =IF('Bio results'!K$20>$O$68,">"&$O$68,'Bio results'!K$20) -> 81.25072771 | L21: =IF('Bio results'!L$20>$O$68,">"&$O$68,'Bio results'!L$20) -> 230.8942964 | M21: =IF('Bio results'!M$20>$O$68,">"&$O$68,'Bio results'!M$20) -> 38.72567382
C22: Gross margin ($/ha) | D22: ='Eco results'!E63 -> 56.31442812 | E22: ='Eco results'!F63 -> 24.23048398 | F22: ='Eco results'!G63 -> 237.8091656 | G22: ='Eco results'!H63 -> -138.445132 | H22: ='Eco results'!I63 -> 97.46286804 | I22: ='Eco results'!J63 -> 130.462868 | J22: ='Eco results'!K63 -> 119.712868 | K22: ='Eco results'!L63 -> 348.3352794 | L22: ='Eco results'!M63 -> 197.0161465 | M22: ='Eco results'!N63 -> 141.0738105
D24: ='Eco results'!E73 -> 101.7013445
D25: /ha /year "on average" | AU25: FALSE
AU26: 1
O28: =IF(AND('Eco results'!Q5='Eco results'!Q23,'Eco results'!P5='Eco results'!P23),"Current","") ->  | P28: =IF('3. Out Eco'!C10=0,"",'3. Out Eco'!C10) -> 
O29: ='3. Out Eco'!F10 -> 
O35: =IF(AND('Eco results'!Q5='Eco results'!Q41,'Eco results'!P5='Eco results'!P41),"Current","") ->  | P35: =IF('3. Out Eco'!C25=0,"",'3. Out Eco'!C25) -> 
O36: ='3. Out Eco'!F25 -> 
AR37: 0
P38: Fixed
AR39: =P_2S -> TRUE
C46: ERROR
C47: Error handling | D47: Yr 1 | E47: Yr 2 | F47: Yr 3 | G47: Yr 4 | H47: Yr 5 | I47: Yr 6 | J47: Yr 7 | K47: Yr 8 | L47: Yr 9 | M47: Yr 10
C48: =IF(OR(COUNTIF(D4:M4,E63)>7,COUNTIF(D4:M4,F63)>7,COUNTIF(D4:M4,G63)>7,COUNTIF(D4:M4,D63)>7),"Err 1","OK") -> OK | D48: =IF(Calcs!P44>1,"Err 3",IF(Calcs!P45>0,"Err 4",IF((ISERROR(FIND(D7,$D$55,1))=TRUE),"Err NS",IF((ISERROR(FIND(D8,$D$57,1))=TRUE),"Err E",IF(OR(ISERROR(FIND(D11,$D$59,1))=TRUE,ISERROR(FIND(D12,$D$59,1))=TRUE,ISERROR(FIND(D13,$D$59,1))=TRUE),"Err H","OK"))))) -> OK | E48: =IF(Calcs!Q44>1,"Err 3",IF(Calcs!Q45>0,"Err 4",IF((ISERROR(FIND(E7,$D$55,1))=TRUE),"Err NS",IF((ISERROR(FIND(E8,$D$57,1))=TRUE),"Err E",IF(OR(ISERROR(FIND(E11,$D$59,1))=TRUE,ISERROR(FIND(E12,$D$59,1))=TRUE,ISERROR(FIND(E13,$D$59,1))=TRUE),"Err H","OK"))))) -> OK | F48: =IF(Calcs!R44>1,"Err 3",IF(Calcs!R45>0,"Err 4",IF((ISERROR(FIND(F7,$D$55,1))=TRUE),"Err NS",IF((ISERROR(FIND(F8,$D$57,1))=TRUE),"Err E",IF(OR(ISERROR(FIND(F11,$D$59,1))=TRUE,ISERROR(FIND(F12,$D$59,1))=TRUE,ISERROR(FIND(F13,$D$59,1))=TRUE),"Err H","OK"))))) -> OK | G48: =IF(Calcs!S44>1,"Err 3",IF(Calcs!S45>0,"Err 4",IF((ISERROR(FIND(G7,$D$55,1))=TRUE),"Err NS",IF((ISERROR(FIND(G8,$D$57,1))=TRUE),"Err E",IF(OR(ISERROR(FIND(G11,$D$59,1))=TRUE,ISERROR(FIND(G12,$D$59,1))=TRUE,ISERROR(FIND(G13,$D$59,1))=TRUE),"Err H","OK"))))) -> OK | H48: =IF(Calcs!T44>1,"Err 3",IF(Calcs!T45>0,"Err 4",IF((ISERROR(FIND(H7,$D$55,1))=TRUE),"Err NS",IF((ISERROR(FIND(H8,$D$57,1))=TRUE),"Err E",IF(OR(ISERROR(FIND(H11,$D$59,1))=TRUE,ISERROR(FIND(H12,$D$59,1))=TRUE,ISERROR(FIND(H13,$D$59,1))=TRUE),"Err H","OK"))))) -> OK | I48: =IF(Calcs!U44>1,"Err 3",IF(Calcs!U45>0,"Err 4",IF((ISERROR(FIND(I7,$D$55,1))=TRUE),"Err NS",IF((ISERROR(FIND(I8,$D$57,1))=TRUE),"Err E",IF(OR(ISERROR(FIND(I11,$D$59,1))=TRUE,ISERROR(FIND(I12,$D$59,1))=TRUE,ISERROR(FIND(I13,$D$59,1))=TRUE),"Err H","OK"))))) -> OK | J48: =IF(Calcs!V44>1,"Err 3",IF(Calcs!V45>0,"Err 4",IF((ISERROR(FIND(J7,$D$55,1))=TRUE),"Err NS",IF((ISERROR(FIND(J8,$D$57,1))=TRUE),"Err E",IF(OR(ISERROR(FIND(J11,$D$59,1))=TRUE,ISERROR(FIND(J12,$D$59,1))=TRUE,ISERROR(FIND(J13,$D$59,1))=TRUE),"Err H","OK"))))) -> OK | K48: =IF(Calcs!W44>1,"Err 3",IF(Calcs!W45>0,"Err 4",IF((ISERROR(FIND(K7,$D$55,1))=TRUE),"Err NS",IF((ISERROR(FIND(K8,$D$57,1))=TRUE),"Err E",IF(OR(ISERROR(FIND(K11,$D$59,1))=TRUE,ISERROR(FIND(K12,$D$59,1))=TRUE,ISERROR(FIND(K13,$D$59,1))=TRUE),"Err H","OK"))))) -> OK | L48: =IF(Calcs!X44>1,"Err 3",IF(Calcs!X45>0,"Err 4",IF((ISERROR(FIND(L7,$D$55,1))=TRUE),"Err NS",IF((ISERROR(FIND(L8,$D$57,1))=TRUE),"Err E",IF(OR(ISERROR(FIND(L11,$D$59,1))=TRUE,ISERROR(FIND(L12,$D$59,1))=TRUE,ISERROR(FIND(L13,$D$59,1))=TRUE),"Err H","OK"))))) -> OK | M48: =IF(Calcs!Y44>1,"Err 3",IF(Calcs!Y45>0,"Err 4",IF((ISERROR(FIND(M7,$D$55,1))=TRUE),"Err NS",IF((ISERROR(FIND(M8,$D$57,1))=TRUE),"Err E",IF(OR(ISERROR(FIND(M11,$D$59,1))=TRUE,ISERROR(FIND(M12,$D$59,1))=TRUE,ISERROR(FIND(M13,$D$59,1))=TRUE),"Err H","OK"))))) -> OK
D49: 4 | E49: Error! Two consecutive years | H49: of canola or legumes | J49: (high disease risk) | L49: Error! Two consecutive years of canola or legumes (high disease risk)
D50: NS | E50: Error! A non-selective | H50: herbicide has not been | J50: updated | L50: Error! A pre-emergent herbicide has not been updated
D51: E | E51: Error! A pre-emergent | H51: herbicide has not been | J51: updated | L51: Error! A pre-emergent herbicide has not been updated
C52: Error messages | D52: H | E52: Error! A post-emergent | H52: herbicide has not been | J52: updated | L52: Error! A post-emergent herbicide has not been updated
D53: 3 | E53: Error! Too many Spring | H53: and/or Harvest options | L53: Error! Too many Spring and/or Harvest options
D54: 1 | E54: Error! Please set a rotation | H54: which reflects your | J54: long-term yield averages | L54: Error! Please set a rotation which reflects your
D55: =CONCATENATE(P75,P76,P77) -> GlyphosateParaquatDoubleK
D56: =IF((ISERROR(FIND(D7,$D$55,1))=TRUE),"Err NS","Found it") -> Found it | E56: =IF((ISERROR(FIND(E7,$D$55,1))=TRUE),"Err NS","Found it") -> Found it | F56: Found it | G56: Found it | H56: Found it | I56: Found it | J56: Found it | K56: Found it | L56: Found it | M56: Found it
C57: Formulas for Err NS, E and H | D57: =CONCATENATE('2.Strategy'!P81,'2.Strategy'!P82,'2.Strategy'!P83,'2.Strategy'!P84,'2.Strategy'!P85) -> Triflur+TriaPropyzamideSakuraBoxer GoldTriazine
D58: =IF((ISERROR(FIND(D8,$D$57,1))=TRUE),"Err E","Found it") -> Found it | E58: =IF((ISERROR(FIND(E8,$D$57,1))=TRUE),"Err E","Found it") -> Found it | F58: Found it | G58: Found it | H58: Found it | I58: Found it | J58: Found it | K58: Found it | L58: Found it | M58: Found it
D59: =CONCATENATE('2.Strategy'!P89,'2.Strategy'!P90,'2.Strategy'!P91,'2.Strategy'!P92,'2.Strategy'!P93) -> TopikHussarClethodimGlyphosateParaquat
D60: =IF(OR(ISERROR(FIND(D11,$D$59,1))=TRUE,ISERROR(FIND(D12,$D$59,1))=TRUE,ISERROR(FIND(D13,$D$59,1))=TRUE),"Err H","Found it") -> Found it | E60: =IF(OR(ISERROR(FIND(E11,$D$59,1))=TRUE,ISERROR(FIND(E12,$D$59,1))=TRUE,ISERROR(FIND(E13,$D$59,1))=TRUE),"Nope","Found it") -> Found it | F60: Found it | G60: Found it | H60: Found it | I60: Found it | J60: Found it | K60: Found it | L60: Found it | M60: Found it
C62: VARIOUS
C63: Choice of enterprises | D63: Wheat | E63: Barley | F63: Canola | G63: Legume | H63: Volunt. | I63: Clover | J63: Cadiz
C64: Enterprise+year for graphs | D64: =VLOOKUP(Calcs!E189,Calcs!$C194:$K292,2)&" 1" -> Wheat 1 | E64: =VLOOKUP(Calcs!F189,Calcs!$C194:$K292,2)&" 2" -> Wheat 2 | F64: =VLOOKUP(Calcs!G189,Calcs!$C194:$K292,2)&" 3" -> Canola 3 | G64: =VLOOKUP(Calcs!H189,Calcs!$C194:$K292,2)&" 4" -> Clover 4 | H64: =VLOOKUP(Calcs!I189,Calcs!$C194:$K292,2)&" 5" -> Clover 5 | I64: =VLOOKUP(Calcs!J189,Calcs!$C194:$K292,2)&" 6" -> Clover 6 | J64: =VLOOKUP(Calcs!K189,Calcs!$C194:$K292,2)&" 7" -> Clover 7 | K64: =VLOOKUP(Calcs!L189,Calcs!$C194:$K292,2)&" 8" -> Wheat 8 | L64: =VLOOKUP(Calcs!M189,Calcs!$C194:$K292,2)&" 9" -> Wheat 9 | M64: =VLOOKUP(Calcs!N189,Calcs!$C194:$K292,2)&" 10" -> Canola 10
C65: Can KD and tickle? (for conditional formatting) | D65: =IF(D66="no","yes",IF(OR(D5="",D5=$D$78,D5=$D$79),"no","yes")) -> no | E65: =IF(E66="no","yes",IF(OR(E5="",E5=$D$78,E5=$D$79),"no","yes")) -> no | F65: no | G65: yes | H65: yes | I65: yes | J65: yes | K65: no | L65: no | M65: no | O65: Critical densities
C66: Need to plant? (for conditional formatting) | D66: =IF(OR(Calcs!E184<4,(Calcs!P46+Calcs!P47)>0),"yes","no") -> yes | E66: =IF(OR(Calcs!F184<4,(Calcs!Q46+Calcs!Q47)>0),"yes","no") -> yes | F66: =IF(OR(Calcs!G184<4,(Calcs!R46+Calcs!R47)>0),"yes","no") -> yes | G66: =IF(OR(Calcs!H184<4,(Calcs!S46+Calcs!S47)>0),"yes","no") -> yes | H66: =IF(OR(Calcs!I184<4,(Calcs!T46+Calcs!T47)>0),"yes","no") -> no | I66: =IF(OR(Calcs!J184<4,(Calcs!U46+Calcs!U47)>0),"yes","no") -> no | J66: =IF(OR(Calcs!K184<4,(Calcs!V46+Calcs!V47)>0),"yes","no") -> no | K66: =IF(OR(Calcs!L184<4,(Calcs!W46+Calcs!W47)>0),"yes","no") -> yes | L66: =IF(OR(Calcs!M184<4,(Calcs!X46+Calcs!X47)>0),"yes","no") -> yes | M66: =IF(OR(Calcs!N184<4,(Calcs!Y46+Calcs!Y47)>0),"yes","no") -> yes | O66: for warnings
C67: Ryegrass setting seed, Nov. (per m2) | D67: ='Bio results'!D8 -> 13.14951875 | E67: ='Bio results'!E8 -> 1.911027171 | F67: ='Bio results'!F8 -> 0.1096653105 | G67: ='Bio results'!G8 -> 0.6171274981 | H67: ='Bio results'!H8 -> 3.555146969 | I67: ='Bio results'!I8 -> 14.27336732 | J67: ='Bio results'!J8 -> 2.667340279 | K67: ='Bio results'!K8 -> 20.59672995 | L67: ='Bio results'!L8 -> 10.84659636 | M67: ='Bio results'!M8 -> 3.860118266 | O67: 300
C68: Ryegrass seeds in soil next March. (per m2) | D68: ='Bio results'!D$20 -> 46.61913858 | E68: ='Bio results'!E$20 -> 6.559668117 | F68: ='Bio results'!F$20 -> 3.193656535 | G68: ='Bio results'!G$20 -> 32.69078116 | H68: ='Bio results'!H$20 -> 205.9857031 | I68: ='Bio results'!I$20 -> 384.9364696 | J68: ='Bio results'!J$20 -> 123.2000458 | K68: ='Bio results'!K$20 -> 81.25072771 | L68: ='Bio results'!L$20 -> 230.8942964 | M68: ='Bio results'!M$20 -> 38.72567382 | O68: 1000
C70: CATEGORIES
C71: Soil preparation | F71: None
D72: Tickle | F72: Tickle - shallow cultivation
D73: Plough | F73: Mouldboard plough - kills all weeds and 99% seedbank | P73: KD / DK
C75: Crop establishment system | D75: No-till | F75: No till = knife-point. Default | P75: =LEFT('1.Profile'!C16,12) -> Glyphosate
D76: Full-cut | F76: Full-cut cultivation = direct drill system, one pass seeding operation | P76: =LEFT('1.Profile'!C17,12) -> Paraquat
P77: =IF('1.Profile'!C18<>"","DoubleK","") -> DoubleK
C78: Time of sowing | D78: Dry | F78: Dry seeding. Can't KD/tickle. Efficiency Pre-E -10%. Highest env. cost. Competition boost.
D79: Wet | F79: Right after break. Default. Can't KD/tickle | P79: Pre-E
D80: Delayed | F80: formerly: 'Wait 10 days'. Default.
D81: +Delayed | F81: formerly: 'Wait 20 days'. Yield penalty from possibly not finishing. | P81: =LEFT('1.Profile'!C20,12) -> Triflur+Tria
P82: =LEFT('1.Profile'!C21,12) -> Propyzamide
C83: Crop seeding rate | D83: Standard | F83: Default | P83: =LEFT('1.Profile'!C22,12) -> Sakura
D84: High | F84: Use high crop seeding rate | P84: =LEFT('1.Profile'!C23,12) -> Boxer Gold
P85: =LEFT('1.Profile'!C24,12) -> Triazine
C86: Grazing intensity | D86: None | F86: No grazing. Default
D87: Standard | F87: Grazing (standard intensity) | P87: Post-E
D88: High | F88: Grazing (high intensity winter/spring)
P89: =LEFT('1.Profile'!C26,12) -> Topik
C90: Spring options | F90: none | P90: =LEFT('1.Profile'!C27,12) -> Hussar
C91: in chrono order | D91: Green M. | F91: Green manure | P91: =LEFT('1.Profile'!C28,12) -> Clethodim
D92: Brown M | F92: Brown manuring (Gly. in spring, high rate) | P92: =LEFT('1.Profile'!C29,12) -> Glyphosate
D93: Mow+Spray | F93: Mow pasture, then glyphosate/paraquat | P93: =LEFT('1.Profile'!C30,12) -> Paraquat
D94: Sil.+Spray | F94: Cut for silage, then glyphosate/paraquat
D95: Hay+Spray | F95: Cut for hay, then glyphosate/paraquat
D96: Topping | F96: Crop/pasture topping (using an average of paraquat and glyphosate for price)
F97: add spring option here
C99: Spring options - Swathe | F99: No swathe
D100: W/o Spray | F100: Swathe | K100: can be combined with topping
D101: With Spray | F101: Swathe and apply glyphosate / paraquat
C103: Spring options - others | F103: none
D104: =LEFT('1.Profile'!C32,10) -> Define 1st | F104: A1 (Spring) | K104: can be combined with anything
D105: =LEFT('1.Profile'!C33,10) -> Define 2nd | F105: A2 (Spring)
C107: Harvest options - crops | F107: No harvest weed seed management, no burning
C108: applies to crops only | D108: Cart+B. | F108: Chaff cart system, burning dumps
D109: Narr+B. | F109: Narrow windrows burning system
D110: HSD | F110: HSD - Harrington seed destructor
D111: Tram. | F111: Chaff-tramlining
D112: BDS+E. | F112: BDS - Bale direct system, exporting bales
F113: add harvest option here
C115: Harvest options - others
C116: applies to all | D116: B.all | F116: Burn whole paddock (crop stubble or pasture residues)
D117: =LEFT('1.Profile'!C35,10) -> Define 1st | F117: B1 (Harvest)
D118: =LEFT('1.Profile'!C36,10) -> Define 2nd | F118: B2 (Harvest)
R121: Note: careful with deleting/inserting lines, could stuff up the saving/loading macros
C123: Strategy_0 | D123: Wheat | E123: Barley | F123: Canola | G123: Wheat | H123: Barley | I123: Canola | J123: Volunt. | K123: Wheat | L123: Barley | M123: Canola | P123: no volunteer over east
D124: Delayed | E124: Dry | F124: Dry | G124: Wet | H124: Delayed | I124: Dry | J124: Wet | K124: Dry | L124: Delayed | M124: Dry
C125: Wheatbelt standard
C126: /current practice | D126: Glyphosate | H126: Paraquat | J126: Glyphosate | L126: Glyphosate
D127: Trifluralin | E127: Sakura | F127: Trifluralin | G127: Trifluralin | H127: Boxer Gold | I127: Trifluralin | K127: Sakura | L127: Boxer Gold | M127: Trifluralin
D128: No-till | E128: No-till | F128: No-till | G128: No-till | H128: No-till | I128: No-till | K128: No-till | L128: No-till | M128: No-till
D129: Standard | E129: Standard | F129: Standard | G129: Standard | H129: Standard | I129: Standard | K129: Standard | L129: Standard | M129: Standard
D130: Group A | F130: Triaz + Gp A | H130: Group A | I130: Triaz + Gp A | K130: Group A | M130: Triaz + Gp A
J133: Standard
J134: Topping
F135: With Spray | I135: With Spray | M135: With Spray
D137: Narr+B. | F137: Narr+B. | G137: Narr+B. | I137: Narr+B. | K137: Narr+B. | M137: Narr+B.
C140: Strategy_1 | D140: Wheat | E140: Wheat | F140: Canola | G140: Wheat | H140: Wheat | I140: Canola | J140: Wheat | K140: Wheat | L140: Canola | M140: Wheat
D141: Wet | E141: Wet | F141: Wet | G141: Wet | H141: Wet | I141: Wet | J141: Wet | K141: Wet | L141: Wet | M141: Wet
C142: WWC - high
D143: Glyphosate | H143: Paraquat | J143: Glyphosate | L143: Glyphosate
D144: Triflur+Tria | E144: Sakura | F144: Propyzamide | G144: Boxer Gold | H144: Triflur+Tria | I144: Propyzamide | J144: Sakura | K144: Boxer Gold | L144: Propyzamide | M144: Triflur+Tria
D145: No-till | E145: No-till | F145: No-till | G145: No-till | H145: No-till | I145: No-till | K145: No-till | L145: No-till | M145: No-till
D146: Standard | E146: Standard | F146: Standard | G146: Standard | H146: Standard | I146: Standard | K146: Standard | L146: Standard | M146: Standard
D147: Topik | E147: Hussar | G147: Topik
J150: Standard
J151: Topping
F152: With Spray | I152: With Spray | L152: W/o Spray
D154: Narr+B. | E154: Narr+B. | G154: Narr+B. | H154: Narr+B. | J154: Narr+B. | K154: Narr+B. | M154: Narr+B.
C157: Strategy_2 | D157: Wheat | E157: Wheat | F157: Canola | G157: Wheat | H157: Wheat | I157: Canola | J157: Wheat | K157: Wheat | L157: Canola | M157: Wheat
D158: Wet | E158: Wet | F158: Wet | G158: Wet | H158: Wet | I158: Wet | J158: Wet | K158: Wet | L158: Wet | M158: Wet
C159: WWC - low
D160: Glyphosate | H160: Paraquat | J160: Glyphosate | L160: Glyphosate
D161: Triflur+Tria | E161: Sakura | F161: Propyzamide | G161: Boxer Gold | H161: Triflur+Tria | I161: Propyzamide | J161: Sakura | K161: Boxer Gold | L161: Propyzamide | M161: Triflur+Tria
D162: No-till | E162: No-till | F162: No-till | G162: No-till | H162: No-till | I162: No-till | K162: No-till | L162: No-till | M162: No-till
D163: Standard | E163: Standard | F163: Standard | G163: Standard | H163: Standard | I163: Standard | K163: Standard | L163: Standard | M163: Standard
D164: Topik | E164: Hussar | G164: Topik
J167: Standard
J168: Topping
F169: With Spray | I169: With Spray | L169: W/o Spray
D171: Narr+B. | E171: Narr+B. | G171: Narr+B. | H171: Narr+B. | J171: Narr+B. | K171: Narr+B. | M171: Narr+B.
C174: Strategy_3 | D174: Wheat | E174: Wheat | F174: Canola | G174: Clover | H174: Clover | I174: Clover | J174: Clover | K174: Wheat | L174: Wheat | M174: Canola
D175: Wet | E175: Wet | F175: Wet | G175: Delayed | H175: Wet | I175: Wet | J175: Wet | K175: Wet | L175: Wet | M175: Wet
C176: WWC-graze Lo
D177: Glyphosate | G177: DoubleK | H177: Paraquat | I177: DoubleK | J177: DoubleK | L177: Glyphosate
D178: Triflur+Tria | E178: Sakura | F178: Propyzamide | H178: Triflur+Tria | I178: Propyzamide | J178: Sakura | K178: Boxer Gold | L178: Sakura | M178: Propyzamide
D179: No-till | E179: No-till | F179: No-till | G179: Full-cut | H179: No-till | I179: No-till | K179: No-till | L179: No-till | M179: No-till
D180: Standard | E180: Standard | F180: Standard | G180: Standard | H180: Standard | I180: Standard | K180: Standard | L180: Standard | M180: Standard
D181: Topik | E181: Hussar
G184: Standard | H184: Standard | I184: Standard | J184: Standard
J185: Topping
F186: With Spray | I186: With Spray | M186: With Spray
D188: Narr+B. | E188: Narr+B. | G188: Narr+B. | H188: Narr+B. | J188: Narr+B. | K188: Narr+B. | M188: Narr+B.
C191: Strategy_4 | D191: Clover | E191: Clover | F191: Wheat | G191: Legume | H191: Wheat | I191: Clover | J191: Clover | K191: Clover | L191: Wheat | M191: Legume
D192: Delayed | E192: Dry | F192: Delayed | G192: Dry | H192: Delayed | I192: Delayed | J192: Dry | K192: Wet | L192: Delayed | M192: Dry
C193: Mid West standard
F194: Paraquat | G194: Paraquat | H194: Glyphosate | I194: Paraquat | L194: Glyphosate | M194: Glyphosate
F195: Group B | G195: Triazine | H195: Trifluralin | I195: Triazine | L195: Group B | M195: Triazine
D196: Full-cut | E196: No-till | F196: No-till | G196: No-till | H196: No-till | I196: No-till | J196: No-till | K196: No-till | L196: No-till | M196: No-till
D197: High | E197: Standard | F197: High | G197: Standard | H197: High | I197: Standard | J197: Standard | K197: High | L197: High | M197: Standard
E198: Group A | F198: Group A | G198: Group A | H198: Group A | I198: Group A | J198: Group A | L198: Group A | M198: Group A
D201: Standard | E201: Standard | F201: Standard | G201: Standard | H201: Standard | I201: Standard | J201: High | K201: High | L201: Standard | M201: Standard
E202: Topping | K202: Topping
E203: With Spray
C208: Strategy_5 | D208: Barley | E208: Canola | F208: Barley | G208: Canola | H208: Barley | I208: Canola | J208: Wheat | K208: Barley | L208: Canola | M208: Barley
D209: Delayed | E209: Dry | F209: Delayed | G209: Dry | H209: Delayed | I209: Dry | J209: Delayed | K209: Dry | L209: Delayed | M209: Dry
C210: Sth Coast standard
D211: Glyphosate | F211: Paraquat | H211: DoubleK | J211: Glyphosate | L211: Paraquat
D212: Trifluralin | E212: Triazine | F212: Sakura | G212: Trifluralin | H212: Boxer Gold | I212: Triazine | J212: Sakura | K212: Trifluralin | L212: Triazine | M212: Boxer Gold
D213: No-till | E213: No-till | F213: No-till | G213: No-till | H213: No-till | I213: No-till | J213: No-till | K213: No-till | L213: No-till | M213: No-till
D214: High | E214: Standard | F214: High | G214: Standard | H214: High | I214: Standard | J214: Standard | K214: High | L214: Standard | M214: High
G215: Glyphosate | J215: Group A | L215: Glyphosate
E216: Triaz + Gp A | G216: Glyphosate | I216: Triaz + Gp A | L216: Glyphosate
D218: Standard | E218: Standard | F218: Standard | G218: Standard | H218: Standard | I218: Standard | J218: Standard | K218: Standard | L218: Standard | M218: Standard
E220: With Spray | G220: With Spray | I220: With Spray | L220: With Spray
C225: Strategy_6 | D225: Wheat | E225: Barley | F225: Canola | G225: Wheat | H225: Barley | I225: Canola | J225: Wheat | K225: Canola | L225: Wheat | M225: Barley
D226: Delayed | E226: +Delayed | F226: Dry | G226: +Delayed | H226: Delayed | I226: Dry | J226: Delayed | K226: Dry | L226: Delayed | M226: Dry
C227: HWSC
D228: DoubleK | H228: DoubleK | J228: DoubleK | L228: DoubleK
D229: Trifluralin | E229: Sakura | F229: Trifluralin | G229: Trifluralin | H229: Boxer Gold | I229: Triazine | J229: Sakura | K229: Trifluralin | L229: Sakura | M229: Boxer Gold
D230: No-till | E230: No-till | F230: No-till | G230: No-till | H230: No-till | I230: No-till | J230: No-till | K230: No-till | L230: No-till | M230: No-till
D231: High | E231: High | F231: Standard | G231: High | H231: High | I231: Standard | J231: Standard | K231: Standard | L231: High | M231: Standard
D235: Standard | E235: Standard | F235: Standard | G235: Standard | H235: Standard | I235: Standard | J235: Standard | K235: Standard | L235: Standard | M235: Standard
H236: Hay+Spray
D239: HSD | E239: HSD | F239: HSD | G239: HSD | I239: HSD | J239: HSD | K239: HSD | L239: BDS+E. | M239: BDS+E.

Sheet Calcs
B1: Year | C1: ='2.Strategy'!D64 -> Wheat 1 | D1: ='2.Strategy'!E64 -> Wheat 2 | E1: ='2.Strategy'!F64 -> Canola 3 | F1: ='2.Strategy'!G64 -> Clover 4 | G1: ='2.Strategy'!H64 -> Clover 5 | H1: ='2.Strategy'!I64 -> Clover 6 | I1: ='2.Strategy'!J64 -> Clover 7 | J1: ='2.Strategy'!K64 -> Wheat 8 | K1: ='2.Strategy'!L64 -> Wheat 9 | L1: ='2.Strategy'!M64 -> Canola 10
N3: SUMMARY - 'CALC' PAGE | U3: SUMMARY - OTHER PAGES
B4: Table 1. Selected options & enterprises | C4: First table behind the chosen strategy: displays the enterprise code for each option. Their labels are | O4: =B4 -> Table 1. Selected options & enterprises
C5: sourced from under the strategy table, feeding into the drop-down lists and into the labels of this table. | O5: =N32 -> Table 1a. Non-selective herbicides counts | U5: DEV | W5: Tutorial templates
C6: 0=wheat, 1=barley, 2=canola, 3=legumes, 4=volunteer past, 5=clover, 6=cadiz | O6: =N42 -> Table 1b. Error and sowing handling, herbicides type counts
A7: 1 | B7: ="KD/DK: "&'1.Profile'!C16 -> KD/DK: Glyphosate | C7: =IF(AND('2.Strategy'!D65="yes",'2.Strategy'!D7='2.Strategy'!$P$75,'2.Strategy'!$P$75<>""),E$184,"") ->  | D7: =IF(AND('2.Strategy'!E65="yes",'2.Strategy'!E7='2.Strategy'!$P$75,'2.Strategy'!$P$75<>""),F$184,"") ->  | E7: =IF(AND('2.Strategy'!F65="yes",'2.Strategy'!F7='2.Strategy'!$P$75,'2.Strategy'!$P$75<>""),G$184,"") ->  | F7: =IF(AND('2.Strategy'!G65="yes",'2.Strategy'!G7='2.Strategy'!$P$75,'2.Strategy'!$P$75<>""),H$184,"") ->  | G7: =IF(AND('2.Strategy'!H65="yes",'2.Strategy'!H7='2.Strategy'!$P$75,'2.Strategy'!$P$75<>""),I$184,"") ->  | H7: =IF(AND('2.Strategy'!I65="yes",'2.Strategy'!I7='2.Strategy'!$P$75,'2.Strategy'!$P$75<>""),J$184,"") ->  | I7: =IF(AND('2.Strategy'!J65="yes",'2.Strategy'!J7='2.Strategy'!$P$75,'2.Strategy'!$P$75<>""),K$184,"") ->  | J7: =IF(AND('2.Strategy'!K65="yes",'2.Strategy'!K7='2.Strategy'!$P$75,'2.Strategy'!$P$75<>""),L$184,"") ->  | K7: =IF(AND('2.Strategy'!L65="yes",'2.Strategy'!L7='2.Strategy'!$P$75,'2.Strategy'!$P$75<>""),M$184,"") ->  | L7: =IF(AND('2.Strategy'!M65="yes",'2.Strategy'!M7='2.Strategy'!$P$75,'2.Strategy'!$P$75<>""),N$184,"") -> 
A8: 2 | B8: ="KD/DK: "&'1.Profile'!C17 -> KD/DK: Paraquat | C8: =IF(AND('2.Strategy'!D65="yes",'2.Strategy'!D7='2.Strategy'!$P$76,'2.Strategy'!$P$76<>""),E$184,"") ->  | D8: =IF(AND('2.Strategy'!E65="yes",'2.Strategy'!E7='2.Strategy'!$P$76,'2.Strategy'!$P$76<>""),F$184,"") ->  | E8: =IF(AND('2.Strategy'!F65="yes",'2.Strategy'!F7='2.Strategy'!$P$76,'2.Strategy'!$P$76<>""),G$184,"") ->  | F8: =IF(AND('2.Strategy'!G65="yes",'2.Strategy'!G7='2.Strategy'!$P$76,'2.Strategy'!$P$76<>""),H$184,"") ->  | G8: =IF(AND('2.Strategy'!H65="yes",'2.Strategy'!H7='2.Strategy'!$P$76,'2.Strategy'!$P$76<>""),I$184,"") -> 5 | H8: =IF(AND('2.Strategy'!I65="yes",'2.Strategy'!I7='2.Strategy'!$P$76,'2.Strategy'!$P$76<>""),J$184,"") ->  | I8: =IF(AND('2.Strategy'!J65="yes",'2.Strategy'!J7='2.Strategy'!$P$76,'2.Strategy'!$P$76<>""),K$184,"") ->  | J8: =IF(AND('2.Strategy'!K65="yes",'2.Strategy'!K7='2.Strategy'!$P$76,'2.Strategy'!$P$76<>""),L$184,"") ->  | K8: =IF(AND('2.Strategy'!L65="yes",'2.Strategy'!L7='2.Strategy'!$P$76,'2.Strategy'!$P$76<>""),M$184,"") ->  | L8: =IF(AND('2.Strategy'!M65="yes",'2.Strategy'!M7='2.Strategy'!$P$76,'2.Strategy'!$P$76<>""),N$184,"") ->  | N8: Go to | O8: =B53 -> Table 2. Selected RG control (%) | U8: PRICES
A9: 3 | B9: ="KD/DK: "&'1.Profile'!C18 -> KD/DK: Glyphosate/Paraquat | C9: =IF(AND('2.Strategy'!D65="yes",'2.Strategy'!D7='2.Strategy'!$P$77,'2.Strategy'!$P$77<>""),E$184,"") ->  | D9: =IF(AND('2.Strategy'!E65="yes",'2.Strategy'!E7='2.Strategy'!$P$77,'2.Strategy'!$P$77<>""),F$184,"") ->  | E9: =IF(AND('2.Strategy'!F65="yes",'2.Strategy'!F7='2.Strategy'!$P$77,'2.Strategy'!$P$77<>""),G$184,"") ->  | F9: =IF(AND('2.Strategy'!G65="yes",'2.Strategy'!G7='2.Strategy'!$P$77,'2.Strategy'!$P$77<>""),H$184,"") -> 5 | G9: =IF(AND('2.Strategy'!H65="yes",'2.Strategy'!H7='2.Strategy'!$P$77,'2.Strategy'!$P$77<>""),I$184,"") ->  | H9: =IF(AND('2.Strategy'!I65="yes",'2.Strategy'!I7='2.Strategy'!$P$77,'2.Strategy'!$P$77<>""),J$184,"") -> 5 | I9: =IF(AND('2.Strategy'!J65="yes",'2.Strategy'!J7='2.Strategy'!$P$77,'2.Strategy'!$P$77<>""),K$184,"") -> 5 | J9: =IF(AND('2.Strategy'!K65="yes",'2.Strategy'!K7='2.Strategy'!$P$77,'2.Strategy'!$P$77<>""),L$184,"") ->  | K9: =IF(AND('2.Strategy'!L65="yes",'2.Strategy'!L7='2.Strategy'!$P$77,'2.Strategy'!$P$77<>""),M$184,"") ->  | L9: =IF(AND('2.Strategy'!M65="yes",'2.Strategy'!M7='2.Strategy'!$P$77,'2.Strategy'!$P$77<>""),N$184,"") ->  | O9: =N52 -> Table 2a. Ryegrass control (%) | V9: Establishment costs - Machinery
A10: 4 | B10: ="Pre-E: "&'1.Profile'!C20 -> Pre-E: Triflur+Triallate | C10: =IF(AND('2.Strategy'!D8='2.Strategy'!$P$81,'1.Profile'!$C$20<>"",'2.Strategy'!D$66="yes"),E$184,"") -> 0 | D10: =IF(AND('2.Strategy'!E8='2.Strategy'!$P$81,'1.Profile'!$C$20<>"",'2.Strategy'!E$66="yes"),F$184,"") ->  | E10: =IF(AND('2.Strategy'!F8='2.Strategy'!$P$81,'1.Profile'!$C$20<>"",'2.Strategy'!F$66="yes"),G$184,"") ->  | F10: =IF(AND('2.Strategy'!G8='2.Strategy'!$P$81,'1.Profile'!$C$20<>"",'2.Strategy'!G$66="yes"),H$184,"") ->  | G10: =IF(AND('2.Strategy'!H8='2.Strategy'!$P$81,'1.Profile'!$C$20<>"",'2.Strategy'!H$66="yes"),I$184,"") ->  | H10: =IF(AND('2.Strategy'!I8='2.Strategy'!$P$81,'1.Profile'!$C$20<>"",'2.Strategy'!I$66="yes"),J$184,"") ->  | I10: =IF(AND('2.Strategy'!J8='2.Strategy'!$P$81,'1.Profile'!$C$20<>"",'2.Strategy'!J$66="yes"),K$184,"") ->  | J10: =IF(AND('2.Strategy'!K8='2.Strategy'!$P$81,'1.Profile'!$C$20<>"",'2.Strategy'!K$66="yes"),L$184,"") ->  | K10: =IF(AND('2.Strategy'!L8='2.Strategy'!$P$81,'1.Profile'!$C$20<>"",'2.Strategy'!L$66="yes"),M$184,"") ->  | L10: =IF(AND('2.Strategy'!M8='2.Strategy'!$P$81,'1.Profile'!$C$20<>"",'2.Strategy'!M$66="yes"),N$184,"") ->  | V10: Establishment costs - Crops
A11: 5 | B11: ="Pre-E: "&'1.Profile'!C21 -> Pre-E: Propyzamide | C11: =IF(AND('2.Strategy'!D8='2.Strategy'!$P$82,'1.Profile'!$C$22<>"",'2.Strategy'!D$66="yes"),E$184,"") ->  | D11: =IF(AND('2.Strategy'!E8='2.Strategy'!$P$82,'1.Profile'!$C$22<>"",'2.Strategy'!E$66="yes"),F$184,"") ->  | E11: =IF(AND('2.Strategy'!F8='2.Strategy'!$P$82,'1.Profile'!$C$22<>"",'2.Strategy'!F$66="yes"),G$184,"") -> 2 | F11: =IF(AND('2.Strategy'!G8='2.Strategy'!$P$82,'1.Profile'!$C$22<>"",'2.Strategy'!G$66="yes"),H$184,"") ->  | G11: =IF(AND('2.Strategy'!H8='2.Strategy'!$P$82,'1.Profile'!$C$22<>"",'2.Strategy'!H$66="yes"),I$184,"") ->  | H11: =IF(AND('2.Strategy'!I8='2.Strategy'!$P$82,'1.Profile'!$C$22<>"",'2.Strategy'!I$66="yes"),J$184,"") ->  | I11: =IF(AND('2.Strategy'!J8='2.Strategy'!$P$82,'1.Profile'!$C$22<>"",'2.Strategy'!J$66="yes"),K$184,"") ->  | J11: =IF(AND('2.Strategy'!K8='2.Strategy'!$P$82,'1.Profile'!$C$22<>"",'2.Strategy'!K$66="yes"),L$184,"") ->  | K11: =IF(AND('2.Strategy'!L8='2.Strategy'!$P$82,'1.Profile'!$C$22<>"",'2.Strategy'!L$66="yes"),M$184,"") ->  | L11: =IF(AND('2.Strategy'!M8='2.Strategy'!$P$82,'1.Profile'!$C$22<>"",'2.Strategy'!M$66="yes"),N$184,"") -> 2 | N11: Go to | O11: =B103 -> Table 3. Selected costs ($/ha) | V11: Establishment costs - Pastures
A12: 6 | B12: ="Pre-E: "&'1.Profile'!C22 -> Pre-E: Sakura | C12: =IF(AND('2.Strategy'!D8='2.Strategy'!$P$83,'1.Profile'!$C$22<>"",'2.Strategy'!D$66="yes"),E$184,"") ->  | D12: =IF(AND('2.Strategy'!E8='2.Strategy'!$P$83,'1.Profile'!$C$22<>"",'2.Strategy'!E$66="yes"),F$184,"") -> 0 | E12: =IF(AND('2.Strategy'!F8='2.Strategy'!$P$83,'1.Profile'!$C$22<>"",'2.Strategy'!F$66="yes"),G$184,"") ->  | F12: =IF(AND('2.Strategy'!G8='2.Strategy'!$P$83,'1.Profile'!$C$22<>"",'2.Strategy'!G$66="yes"),H$184,"") ->  | G12: =IF(AND('2.Strategy'!H8='2.Strategy'!$P$83,'1.Profile'!$C$22<>"",'2.Strategy'!H$66="yes"),I$184,"") ->  | H12: =IF(AND('2.Strategy'!I8='2.Strategy'!$P$83,'1.Profile'!$C$22<>"",'2.Strategy'!I$66="yes"),J$184,"") ->  | I12: =IF(AND('2.Strategy'!J8='2.Strategy'!$P$83,'1.Profile'!$C$22<>"",'2.Strategy'!J$66="yes"),K$184,"") ->  | J12: =IF(AND('2.Strategy'!K8='2.Strategy'!$P$83,'1.Profile'!$C$22<>"",'2.Strategy'!K$66="yes"),L$184,"") ->  | K12: =IF(AND('2.Strategy'!L8='2.Strategy'!$P$83,'1.Profile'!$C$22<>"",'2.Strategy'!L$66="yes"),M$184,"") -> 0 | L12: =IF(AND('2.Strategy'!M8='2.Strategy'!$P$83,'1.Profile'!$C$22<>"",'2.Strategy'!M$66="yes"),N$184,"") ->  | V12: Financial values: quality, inflation, tax, etc.
A13: 7 | B13: ="Pre-E: "&'1.Profile'!C23 -> Pre-E: Boxer Gold | C13: =IF(AND('2.Strategy'!D8='2.Strategy'!$P$84,'1.Profile'!$C$23<>"",'2.Strategy'!D$66="yes"),E$184,"") ->  | D13: =IF(AND('2.Strategy'!E8='2.Strategy'!$P$84,'1.Profile'!$C$23<>"",'2.Strategy'!E$66="yes"),F$184,"") ->  | E13: =IF(AND('2.Strategy'!F8='2.Strategy'!$P$84,'1.Profile'!$C$23<>"",'2.Strategy'!F$66="yes"),G$184,"") ->  | F13: =IF(AND('2.Strategy'!G8='2.Strategy'!$P$84,'1.Profile'!$C$23<>"",'2.Strategy'!G$66="yes"),H$184,"") ->  | G13: =IF(AND('2.Strategy'!H8='2.Strategy'!$P$84,'1.Profile'!$C$23<>"",'2.Strategy'!H$66="yes"),I$184,"") ->  | H13: =IF(AND('2.Strategy'!I8='2.Strategy'!$P$84,'1.Profile'!$C$23<>"",'2.Strategy'!I$66="yes"),J$184,"") ->  | I13: =IF(AND('2.Strategy'!J8='2.Strategy'!$P$84,'1.Profile'!$C$23<>"",'2.Strategy'!J$66="yes"),K$184,"") ->  | J13: =IF(AND('2.Strategy'!K8='2.Strategy'!$P$84,'1.Profile'!$C$23<>"",'2.Strategy'!K$66="yes"),L$184,"") -> 0 | K13: =IF(AND('2.Strategy'!L8='2.Strategy'!$P$84,'1.Profile'!$C$23<>"",'2.Strategy'!L$66="yes"),M$184,"") ->  | L13: =IF(AND('2.Strategy'!M8='2.Strategy'!$P$84,'1.Profile'!$C$23<>"",'2.Strategy'!M$66="yes"),N$184,"") ->  | N13: Go to | O13: =B150 -> Table 4. RG germination
A14: 8 | B14: ="Pre-E: "&'1.Profile'!C24 -> Pre-E: Triazine | C14: =IF(AND('2.Strategy'!D8='2.Strategy'!$P$85,'1.Profile'!$C$24<>"",'2.Strategy'!D$66="yes"),E$184,"") ->  | D14: =IF(AND('2.Strategy'!E8='2.Strategy'!$P$85,'1.Profile'!$C$24<>"",'2.Strategy'!E$66="yes"),F$184,"") ->  | E14: =IF(AND('2.Strategy'!F8='2.Strategy'!$P$85,'1.Profile'!$C$24<>"",'2.Strategy'!F$66="yes"),G$184,"") ->  | F14: =IF(AND('2.Strategy'!G8='2.Strategy'!$P$85,'1.Profile'!$C$24<>"",'2.Strategy'!G$66="yes"),H$184,"") ->  | G14: =IF(AND('2.Strategy'!H8='2.Strategy'!$P$85,'1.Profile'!$C$24<>"",'2.Strategy'!H$66="yes"),I$184,"") ->  | H14: =IF(AND('2.Strategy'!I8='2.Strategy'!$P$85,'1.Profile'!$C$24<>"",'2.Strategy'!I$66="yes"),J$184,"") ->  | I14: =IF(AND('2.Strategy'!J8='2.Strategy'!$P$85,'1.Profile'!$C$24<>"",'2.Strategy'!J$66="yes"),K$184,"") ->  | J14: =IF(AND('2.Strategy'!K8='2.Strategy'!$P$85,'1.Profile'!$C$24<>"",'2.Strategy'!K$66="yes"),L$184,"") ->  | K14: =IF(AND('2.Strategy'!L8='2.Strategy'!$P$85,'1.Profile'!$C$24<>"",'2.Strategy'!L$66="yes"),M$184,"") ->  | L14: =IF(AND('2.Strategy'!M8='2.Strategy'!$P$85,'1.Profile'!$C$24<>"",'2.Strategy'!M$66="yes"),N$184,"") ->  | O14: =B158 -> Table 5a. RG seed control | U14: OPTIONS
A15: 9 | B15: High crop seeding rate selected | C15: =IF('2.Strategy'!D10='2.Strategy'!$D$84,E$184,"") ->  | D15: =IF('2.Strategy'!E10='2.Strategy'!$D$84,F$184,"") ->  | E15: =IF('2.Strategy'!F10='2.Strategy'!$D$84,G$184,"") ->  | F15: =IF('2.Strategy'!G10='2.Strategy'!$D$84,H$184,"") ->  | G15: =IF('2.Strategy'!H10='2.Strategy'!$D$84,I$184,"") ->  | H15: =IF('2.Strategy'!I10='2.Strategy'!$D$84,J$184,"") ->  | I15: =IF('2.Strategy'!J10='2.Strategy'!$D$84,K$184,"") ->  | J15: =IF('2.Strategy'!K10='2.Strategy'!$D$84,L$184,"") ->  | K15: =IF('2.Strategy'!L10='2.Strategy'!$D$84,M$184,"") ->  | L15: =IF('2.Strategy'!M10='2.Strategy'!$D$84,N$184,"") ->  | O15: =B163 -> Table 5b. RG control per period | V15: Crops: variables, yield benefits, penalties
A16: 10 | B16: Tickle selected | C16: =IF('2.Strategy'!D65="yes",IF('2.Strategy'!D6='2.Strategy'!$D$72,E$184,""),"") ->  | D16: =IF('2.Strategy'!E65="yes",IF('2.Strategy'!E6='2.Strategy'!$D$72,F$184,""),"") ->  | E16: =IF('2.Strategy'!F65="yes",IF('2.Strategy'!F6='2.Strategy'!$D$72,G$184,""),"") ->  | F16: =IF('2.Strategy'!G65="yes",IF('2.Strategy'!G6='2.Strategy'!$D$72,H$184,""),"") ->  | G16: =IF('2.Strategy'!H65="yes",IF('2.Strategy'!H6='2.Strategy'!$D$72,I$184,""),"") ->  | H16: =IF('2.Strategy'!I65="yes",IF('2.Strategy'!I6='2.Strategy'!$D$72,J$184,""),"") ->  | I16: =IF('2.Strategy'!J65="yes",IF('2.Strategy'!J6='2.Strategy'!$D$72,K$184,""),"") ->  | J16: =IF('2.Strategy'!K65="yes",IF('2.Strategy'!K6='2.Strategy'!$D$72,L$184,""),"") ->  | K16: =IF('2.Strategy'!L65="yes",IF('2.Strategy'!L6='2.Strategy'!$D$72,M$184,""),"") ->  | L16: =IF('2.Strategy'!M65="yes",IF('2.Strategy'!M6='2.Strategy'!$D$72,N$184,""),"") ->  | O16: =B173 -> Table 6. Healthy equivalent weeds/m2 | V16: Ryegrass: germination, variables
A17: 11 | B17: Mouldboard plough selected | C17: =IF('2.Strategy'!D65="yes",IF('2.Strategy'!D6='2.Strategy'!$D$73,E$184,""),"") ->  | D17: =IF('2.Strategy'!E65="yes",IF('2.Strategy'!E6='2.Strategy'!$D$73,F$184,""),"") ->  | E17: =IF('2.Strategy'!F65="yes",IF('2.Strategy'!F6='2.Strategy'!$D$73,G$184,""),"") ->  | F17: =IF('2.Strategy'!G65="yes",IF('2.Strategy'!G6='2.Strategy'!$D$73,H$184,""),"") ->  | G17: =IF('2.Strategy'!H65="yes",IF('2.Strategy'!H6='2.Strategy'!$D$73,I$184,""),"") ->  | H17: =IF('2.Strategy'!I65="yes",IF('2.Strategy'!I6='2.Strategy'!$D$73,J$184,""),"") ->  | I17: =IF('2.Strategy'!J65="yes",IF('2.Strategy'!J6='2.Strategy'!$D$73,K$184,""),"") ->  | J17: =IF('2.Strategy'!K65="yes",IF('2.Strategy'!K6='2.Strategy'!$D$73,L$184,""),"") ->  | K17: =IF('2.Strategy'!L65="yes",IF('2.Strategy'!L6='2.Strategy'!$D$73,M$185,""),"") ->  | L17: =IF('2.Strategy'!M65="yes",IF('2.Strategy'!M6='2.Strategy'!$D$73,N$185,""),"") ->  | V17: Pastures: stocking rates, N savings
A18: 12 | B18: Full-cut selected | C18: =IF(AND('2.Strategy'!D66="yes",'2.Strategy'!D9='2.Strategy'!$D$76),E$184,"") ->  | D18: =IF(AND('2.Strategy'!E66="yes",'2.Strategy'!E9='2.Strategy'!$D$76),F$184,"") ->  | E18: =IF(AND('2.Strategy'!F66="yes",'2.Strategy'!F9='2.Strategy'!$D$76),G$184,"") ->  | F18: =IF(AND('2.Strategy'!G66="yes",'2.Strategy'!G9='2.Strategy'!$D$76),H$184,"") -> 5 | G18: =IF(AND('2.Strategy'!H66="yes",'2.Strategy'!H9='2.Strategy'!$D$76),I$184,"") ->  | H18: =IF(AND('2.Strategy'!I66="yes",'2.Strategy'!I9='2.Strategy'!$D$76),J$184,"") ->  | I18: =IF(AND('2.Strategy'!J66="yes",'2.Strategy'!J9='2.Strategy'!$D$76),K$184,"") ->  | J18: =IF(AND('2.Strategy'!K66="yes",'2.Strategy'!K9='2.Strategy'!$D$76),L$184,"") ->  | K18: =IF(AND('2.Strategy'!L66="yes",'2.Strategy'!L9='2.Strategy'!$D$76),M$184,"") ->  | L18: =IF(AND('2.Strategy'!M66="yes",'2.Strategy'!M9='2.Strategy'!$D$76),N$184,"") ->  | N18: Go to | O18: =B181 -> Table 7. Rotation codes
A19: 13 | B19: Seed dry | C19: =IF('2.Strategy'!D66="yes",IF('2.Strategy'!D5='2.Strategy'!$D$78,E$184,""),"") ->  | D19: =IF('2.Strategy'!E66="yes",IF('2.Strategy'!E5='2.Strategy'!$D$78,F$184,""),"") ->  | E19: =IF('2.Strategy'!F66="yes",IF('2.Strategy'!F5='2.Strategy'!$D$78,G$184,""),"") ->  | F19: =IF('2.Strategy'!G66="yes",IF('2.Strategy'!G5='2.Strategy'!$D$78,H$184,""),"") ->  | G19: =IF('2.Strategy'!H66="yes",IF('2.Strategy'!H5='2.Strategy'!$D$78,I$184,""),"") ->  | H19: =IF('2.Strategy'!I66="yes",IF('2.Strategy'!I5='2.Strategy'!$D$78,J$184,""),"") ->  | I19: =IF('2.Strategy'!J66="yes",IF('2.Strategy'!J5='2.Strategy'!$D$78,K$184,""),"") ->  | J19: =IF('2.Strategy'!K66="yes",IF('2.Strategy'!K5='2.Strategy'!$D$78,L$184,""),"") ->  | K19: =IF('2.Strategy'!L66="yes",IF('2.Strategy'!L5='2.Strategy'!$D$78,M$184,""),"") ->  | L19: =IF('2.Strategy'!M66="yes",IF('2.Strategy'!M5='2.Strategy'!$D$78,N$184,""),"") ->  | O19: =B192 -> Table 8. Rotation values
A20: 14 | B20: Seed wet (Default) (0+) | C20: =IF(AND(C19="",C21="",C22="",'2.Strategy'!D66="yes"),E$184,"") -> 0 | D20: =IF(AND(D19="",D21="",D22="",'2.Strategy'!E66="yes"),F$184,"") -> 0 | E20: =IF(AND(E19="",E21="",E22="",'2.Strategy'!F66="yes"),G$184,"") -> 2 | F20: =IF(AND(F19="",F21="",F22="",'2.Strategy'!G66="yes"),H$184,"") ->  | G20: =IF(AND(G19="",G21="",G22="",'2.Strategy'!H66="yes"),I$184,"") ->  | H20: =IF(AND(H19="",H21="",H22="",'2.Strategy'!I66="yes"),J$184,"") ->  | I20: =IF(AND(I19="",I21="",I22="",'2.Strategy'!J66="yes"),K$184,"") ->  | J20: =IF(AND(J19="",J21="",J22="",'2.Strategy'!K66="yes"),L$184,"") -> 0 | K20: =IF(AND(K19="",K21="",K22="",'2.Strategy'!L66="yes"),M$184,"") -> 0 | L20: =IF(AND(L19="",L21="",L22="",'2.Strategy'!M66="yes"),N$184,"") -> 2 | U20: BIO RESULTS
A21: 15 | B21: Seed delayed 1-2 weeks (10) | C21: =IF('2.Strategy'!D66="yes",IF('2.Strategy'!D5='2.Strategy'!$D$80,E$184,""),"") ->  | D21: =IF('2.Strategy'!E66="yes",IF('2.Strategy'!E5='2.Strategy'!$D$80,F$184,""),"") ->  | E21: =IF('2.Strategy'!F66="yes",IF('2.Strategy'!F5='2.Strategy'!$D$80,G$184,""),"") ->  | F21: =IF('2.Strategy'!G66="yes",IF('2.Strategy'!G5='2.Strategy'!$D$80,H$184,""),"") -> 5 | G21: =IF('2.Strategy'!H66="yes",IF('2.Strategy'!H5='2.Strategy'!$D$80,I$184,""),"") ->  | H21: =IF('2.Strategy'!I66="yes",IF('2.Strategy'!I5='2.Strategy'!$D$80,J$184,""),"") ->  | I21: =IF('2.Strategy'!J66="yes",IF('2.Strategy'!J5='2.Strategy'!$D$80,K$184,""),"") ->  | J21: =IF('2.Strategy'!K66="yes",IF('2.Strategy'!K5='2.Strategy'!$D$80,L$184,""),"") ->  | K21: =IF('2.Strategy'!L66="yes",IF('2.Strategy'!L5='2.Strategy'!$D$80,M$184,""),"") ->  | L21: =IF('2.Strategy'!M66="yes",IF('2.Strategy'!M5='2.Strategy'!$D$80,N$184,""),"") ->  | N21: Go to | O21: =B296 -> Table 9. Production costs ($/ha) | V21: Ryegrass: plants/m2, seeds/m2
A22: 16 | B22: Seed +delayed 2-3 weeks (20) | C22: =IF('2.Strategy'!D66="yes",IF('2.Strategy'!D5='2.Strategy'!$D$81,E$184,""),"") ->  | D22: =IF('2.Strategy'!E66="yes",IF('2.Strategy'!E5='2.Strategy'!$D$81,F$184,""),"") ->  | E22: =IF('2.Strategy'!F66="yes",IF('2.Strategy'!F5='2.Strategy'!$D$81,G$184,""),"") ->  | F22: =IF('2.Strategy'!G66="yes",IF('2.Strategy'!G5='2.Strategy'!$D$81,H$184,""),"") ->  | G22: =IF('2.Strategy'!H66="yes",IF('2.Strategy'!H5='2.Strategy'!$D$81,I$184,""),"") ->  | H22: =IF('2.Strategy'!I66="yes",IF('2.Strategy'!I5='2.Strategy'!$D$81,J$184,""),"") ->  | I22: =IF('2.Strategy'!J66="yes",IF('2.Strategy'!J5='2.Strategy'!$D$81,K$184,""),"") ->  | J22: =IF('2.Strategy'!K66="yes",IF('2.Strategy'!K5='2.Strategy'!$D$81,L$184,""),"") ->  | K22: =IF('2.Strategy'!L66="yes",IF('2.Strategy'!L5='2.Strategy'!$D$81,M$184,""),"") ->  | L22: =IF('2.Strategy'!M66="yes",IF('2.Strategy'!M5='2.Strategy'!$D$81,N$184,""),"") ->  | O22: =B309 -> Table 10. RG control after grazing | V22: Impacts on yields
A23: 17 | B23: ="Post-E: "&'1.Profile'!C26 -> Post-E: Topik | C23: =IF(AND(OR('2.Strategy'!D$11='2.Strategy'!$P89,'2.Strategy'!D$12='2.Strategy'!$P89,'2.Strategy'!D$13='2.Strategy'!$P89),'1.Profile'!$C26<>""),E$184,"") -> 0 | D23: =IF(AND(OR('2.Strategy'!E$11='2.Strategy'!$P89,'2.Strategy'!E$12='2.Strategy'!$P89,'2.Strategy'!E$13='2.Strategy'!$P89),'1.Profile'!$C26<>""),F$184,"") ->  | E23: =IF(AND(OR('2.Strategy'!F$11='2.Strategy'!$P89,'2.Strategy'!F$12='2.Strategy'!$P89,'2.Strategy'!F$13='2.Strategy'!$P89),'1.Profile'!$C26<>""),G$184,"") ->  | F23: =IF(AND(OR('2.Strategy'!G$11='2.Strategy'!$P89,'2.Strategy'!G$12='2.Strategy'!$P89,'2.Strategy'!G$13='2.Strategy'!$P89),'1.Profile'!$C26<>""),H$184,"") ->  | G23: =IF(AND(OR('2.Strategy'!H$11='2.Strategy'!$P89,'2.Strategy'!H$12='2.Strategy'!$P89,'2.Strategy'!H$13='2.Strategy'!$P89),'1.Profile'!$C26<>""),I$184,"") ->  | H23: =IF(AND(OR('2.Strategy'!I$11='2.Strategy'!$P89,'2.Strategy'!I$12='2.Strategy'!$P89,'2.Strategy'!I$13='2.Strategy'!$P89),'1.Profile'!$C26<>""),J$184,"") ->  | I23: =IF(AND(OR('2.Strategy'!J$11='2.Strategy'!$P89,'2.Strategy'!J$12='2.Strategy'!$P89,'2.Strategy'!J$13='2.Strategy'!$P89),'1.Profile'!$C26<>""),K$184,"") ->  | J23: =IF(AND(OR('2.Strategy'!K$11='2.Strategy'!$P89,'2.Strategy'!K$12='2.Strategy'!$P89,'2.Strategy'!K$13='2.Strategy'!$P89),'1.Profile'!$C26<>""),L$184,"") ->  | K23: =IF(AND(OR('2.Strategy'!L$11='2.Strategy'!$P89,'2.Strategy'!L$12='2.Strategy'!$P89,'2.Strategy'!L$13='2.Strategy'!$P89),'1.Profile'!$C26<>""),M$184,"") ->  | L23: =IF(AND(OR('2.Strategy'!M$11='2.Strategy'!$P89,'2.Strategy'!M$12='2.Strategy'!$P89,'2.Strategy'!M$13='2.Strategy'!$P89),'1.Profile'!$C26<>""),N$184,"") ->  | O23: =B317 -> Table 11. Returns from pastures ($/ha) | V23: Ryegrass and yields for outputs
A24: 18 | B24: ="Post-E: "&'1.Profile'!C27 -> Post-E: Hussar | C24: =IF(AND(OR('2.Strategy'!D$11='2.Strategy'!$P90,'2.Strategy'!D$12='2.Strategy'!$P90,'2.Strategy'!D$13='2.Strategy'!$P90),'1.Profile'!$C27<>""),E$184,"") ->  | D24: =IF(AND(OR('2.Strategy'!E$11='2.Strategy'!$P90,'2.Strategy'!E$12='2.Strategy'!$P90,'2.Strategy'!E$13='2.Strategy'!$P90),'1.Profile'!$C27<>""),F$184,"") -> 0 | E24: =IF(AND(OR('2.Strategy'!F$11='2.Strategy'!$P90,'2.Strategy'!F$12='2.Strategy'!$P90,'2.Strategy'!F$13='2.Strategy'!$P90),'1.Profile'!$C27<>""),G$184,"") ->  | F24: =IF(AND(OR('2.Strategy'!G$11='2.Strategy'!$P90,'2.Strategy'!G$12='2.Strategy'!$P90,'2.Strategy'!G$13='2.Strategy'!$P90),'1.Profile'!$C27<>""),H$184,"") ->  | G24: =IF(AND(OR('2.Strategy'!H$11='2.Strategy'!$P90,'2.Strategy'!H$12='2.Strategy'!$P90,'2.Strategy'!H$13='2.Strategy'!$P90),'1.Profile'!$C27<>""),I$184,"") ->  | H24: =IF(AND(OR('2.Strategy'!I$11='2.Strategy'!$P90,'2.Strategy'!I$12='2.Strategy'!$P90,'2.Strategy'!I$13='2.Strategy'!$P90),'1.Profile'!$C27<>""),J$184,"") ->  | I24: =IF(AND(OR('2.Strategy'!J$11='2.Strategy'!$P90,'2.Strategy'!J$12='2.Strategy'!$P90,'2.Strategy'!J$13='2.Strategy'!$P90),'1.Profile'!$C27<>""),K$184,"") ->  | J24: =IF(AND(OR('2.Strategy'!K$11='2.Strategy'!$P90,'2.Strategy'!K$12='2.Strategy'!$P90,'2.Strategy'!K$13='2.Strategy'!$P90),'1.Profile'!$C27<>""),L$184,"") ->  | K24: =IF(AND(OR('2.Strategy'!L$11='2.Strategy'!$P90,'2.Strategy'!L$12='2.Strategy'!$P90,'2.Strategy'!L$13='2.Strategy'!$P90),'1.Profile'!$C27<>""),M$184,"") ->  | L24: =IF(AND(OR('2.Strategy'!M$11='2.Strategy'!$P90,'2.Strategy'!M$12='2.Strategy'!$P90,'2.Strategy'!M$13='2.Strategy'!$P90),'1.Profile'!$C27<>""),N$184,"") ->  | O24: =B331 -> Table 12. Pasture fodder produced (t/ha)
A25: 19 | B25: ="Post-E: "&'1.Profile'!C28 -> Post-E: Clethodim | C25: =IF(AND(OR('2.Strategy'!D$11='2.Strategy'!$P91,'2.Strategy'!D$12='2.Strategy'!$P91,'2.Strategy'!D$13='2.Strategy'!$P91),'1.Profile'!$C28<>""),E$184,"") ->  | D25: =IF(AND(OR('2.Strategy'!E$11='2.Strategy'!$P91,'2.Strategy'!E$12='2.Strategy'!$P91,'2.Strategy'!E$13='2.Strategy'!$P91),'1.Profile'!$C28<>""),F$184,"") ->  | E25: =IF(AND(OR('2.Strategy'!F$11='2.Strategy'!$P91,'2.Strategy'!F$12='2.Strategy'!$P91,'2.Strategy'!F$13='2.Strategy'!$P91),'1.Profile'!$C28<>""),G$184,"") ->  | F25: =IF(AND(OR('2.Strategy'!G$11='2.Strategy'!$P91,'2.Strategy'!G$12='2.Strategy'!$P91,'2.Strategy'!G$13='2.Strategy'!$P91),'1.Profile'!$C28<>""),H$184,"") ->  | G25: =IF(AND(OR('2.Strategy'!H$11='2.Strategy'!$P91,'2.Strategy'!H$12='2.Strategy'!$P91,'2.Strategy'!H$13='2.Strategy'!$P91),'1.Profile'!$C28<>""),I$184,"") ->  | H25: =IF(AND(OR('2.Strategy'!I$11='2.Strategy'!$P91,'2.Strategy'!I$12='2.Strategy'!$P91,'2.Strategy'!I$13='2.Strategy'!$P91),'1.Profile'!$C28<>""),J$184,"") ->  | I25: =IF(AND(OR('2.Strategy'!J$11='2.Strategy'!$P91,'2.Strategy'!J$12='2.Strategy'!$P91,'2.Strategy'!J$13='2.Strategy'!$P91),'1.Profile'!$C28<>""),K$184,"") ->  | J25: =IF(AND(OR('2.Strategy'!K$11='2.Strategy'!$P91,'2.Strategy'!K$12='2.Strategy'!$P91,'2.Strategy'!K$13='2.Strategy'!$P91),'1.Profile'!$C28<>""),L$184,"") ->  | K25: =IF(AND(OR('2.Strategy'!L$11='2.Strategy'!$P91,'2.Strategy'!L$12='2.Strategy'!$P91,'2.Strategy'!L$13='2.Strategy'!$P91),'1.Profile'!$C28<>""),M$184,"") ->  | L25: =IF(AND(OR('2.Strategy'!M$11='2.Strategy'!$P91,'2.Strategy'!M$12='2.Strategy'!$P91,'2.Strategy'!M$13='2.Strategy'!$P91),'1.Profile'!$C28<>""),N$184,"") ->  | U25: ECO RESULTS
A26: 20 | B26: ="Post-E: "&'1.Profile'!C29 -> Post-E: Glyphosate | C26: =IF(AND(OR('2.Strategy'!D$11='2.Strategy'!$P92,'2.Strategy'!D$12='2.Strategy'!$P92,'2.Strategy'!D$13='2.Strategy'!$P92),'1.Profile'!$C29<>""),E$184,"") ->  | D26: =IF(AND(OR('2.Strategy'!E$11='2.Strategy'!$P92,'2.Strategy'!E$12='2.Strategy'!$P92,'2.Strategy'!E$13='2.Strategy'!$P92),'1.Profile'!$C29<>""),F$184,"") ->  | E26: =IF(AND(OR('2.Strategy'!F$11='2.Strategy'!$P92,'2.Strategy'!F$12='2.Strategy'!$P92,'2.Strategy'!F$13='2.Strategy'!$P92),'1.Profile'!$C29<>""),G$184,"") ->  | F26: =IF(AND(OR('2.Strategy'!G$11='2.Strategy'!$P92,'2.Strategy'!G$12='2.Strategy'!$P92,'2.Strategy'!G$13='2.Strategy'!$P92),'1.Profile'!$C29<>""),H$184,"") ->  | G26: =IF(AND(OR('2.Strategy'!H$11='2.Strategy'!$P92,'2.Strategy'!H$12='2.Strategy'!$P92,'2.Strategy'!H$13='2.Strategy'!$P92),'1.Profile'!$C29<>""),I$184,"") ->  | H26: =IF(AND(OR('2.Strategy'!I$11='2.Strategy'!$P92,'2.Strategy'!I$12='2.Strategy'!$P92,'2.Strategy'!I$13='2.Strategy'!$P92),'1.Profile'!$C29<>""),J$184,"") ->  | I26: =IF(AND(OR('2.Strategy'!J$11='2.Strategy'!$P92,'2.Strategy'!J$12='2.Strategy'!$P92,'2.Strategy'!J$13='2.Strategy'!$P92),'1.Profile'!$C29<>""),K$184,"") ->  | J26: =IF(AND(OR('2.Strategy'!K$11='2.Strategy'!$P92,'2.Strategy'!K$12='2.Strategy'!$P92,'2.Strategy'!K$13='2.Strategy'!$P92),'1.Profile'!$C29<>""),L$184,"") ->  | K26: =IF(AND(OR('2.Strategy'!L$11='2.Strategy'!$P92,'2.Strategy'!L$12='2.Strategy'!$P92,'2.Strategy'!L$13='2.Strategy'!$P92),'1.Profile'!$C29<>""),M$184,"") ->  | L26: =IF(AND(OR('2.Strategy'!M$11='2.Strategy'!$P92,'2.Strategy'!M$12='2.Strategy'!$P92,'2.Strategy'!M$13='2.Strategy'!$P92),'1.Profile'!$C29<>""),N$184,"") ->  | N26: Go to | O26: =B345 -> Table 13. HWSM Machinery repayments | V26: Receipts & expenses
A27: 21 | B27: ="Post-E: "&'1.Profile'!C30 -> Post-E: Paraquat | C27: =IF(AND(OR('2.Strategy'!D$11='2.Strategy'!$P93,'2.Strategy'!D$12='2.Strategy'!$P93,'2.Strategy'!D$13='2.Strategy'!$P93),'1.Profile'!$C30<>""),E$184,"") ->  | D27: =IF(AND(OR('2.Strategy'!E$11='2.Strategy'!$P93,'2.Strategy'!E$12='2.Strategy'!$P93,'2.Strategy'!E$13='2.Strategy'!$P93),'1.Profile'!$C30<>""),F$184,"") ->  | E27: =IF(AND(OR('2.Strategy'!F$11='2.Strategy'!$P93,'2.Strategy'!F$12='2.Strategy'!$P93,'2.Strategy'!F$13='2.Strategy'!$P93),'1.Profile'!$C30<>""),G$184,"") ->  | F27: =IF(AND(OR('2.Strategy'!G$11='2.Strategy'!$P93,'2.Strategy'!G$12='2.Strategy'!$P93,'2.Strategy'!G$13='2.Strategy'!$P93),'1.Profile'!$C30<>""),H$184,"") ->  | G27: =IF(AND(OR('2.Strategy'!H$11='2.Strategy'!$P93,'2.Strategy'!H$12='2.Strategy'!$P93,'2.Strategy'!H$13='2.Strategy'!$P93),'1.Profile'!$C30<>""),I$184,"") ->  | H27: =IF(AND(OR('2.Strategy'!I$11='2.Strategy'!$P93,'2.Strategy'!I$12='2.Strategy'!$P93,'2.Strategy'!I$13='2.Strategy'!$P93),'1.Profile'!$C30<>""),J$184,"") ->  | I27: =IF(AND(OR('2.Strategy'!J$11='2.Strategy'!$P93,'2.Strategy'!J$12='2.Strategy'!$P93,'2.Strategy'!J$13='2.Strategy'!$P93),'1.Profile'!$C30<>""),K$184,"") ->  | J27: =IF(AND(OR('2.Strategy'!K$11='2.Strategy'!$P93,'2.Strategy'!K$12='2.Strategy'!$P93,'2.Strategy'!K$13='2.Strategy'!$P93),'1.Profile'!$C30<>""),L$184,"") ->  | K27: =IF(AND(OR('2.Strategy'!L$11='2.Strategy'!$P93,'2.Strategy'!L$12='2.Strategy'!$P93,'2.Strategy'!L$13='2.Strategy'!$P93),'1.Profile'!$C30<>""),M$184,"") ->  | L27: =IF(AND(OR('2.Strategy'!M$11='2.Strategy'!$P93,'2.Strategy'!M$12='2.Strategy'!$P93,'2.Strategy'!M$13='2.Strategy'!$P93),'1.Profile'!$C30<>""),N$184,"") ->  | O27: =B361 -> Table 14. Inflation factors | V27: Gross margins
A28: 22 | B28: Grazing intensity, standard | C28: =IF('2.Strategy'!D14='2.Strategy'!$D$87,E$184,"") ->  | D28: =IF('2.Strategy'!E14='2.Strategy'!$D$87,F$184,"") ->  | E28: =IF('2.Strategy'!F14='2.Strategy'!$D$87,G$184,"") ->  | F28: =IF('2.Strategy'!G14='2.Strategy'!$D$87,H$184,"") -> 5 | G28: =IF('2.Strategy'!H14='2.Strategy'!$D$87,I$184,"") -> 5 | H28: =IF('2.Strategy'!I14='2.Strategy'!$D$87,J$184,"") -> 5 | I28: =IF('2.Strategy'!J14='2.Strategy'!$D$87,K$184,"") -> 5 | J28: =IF('2.Strategy'!K14='2.Strategy'!$D$87,L$184,"") ->  | K28: =IF('2.Strategy'!L14='2.Strategy'!$D$87,M$184,"") ->  | L28: =IF('2.Strategy'!M14='2.Strategy'!$D$87,N$184,"") ->  | V28: Results for outputs
A29: 23 | B29: Grazing intensity, high | C29: =IF('2.Strategy'!D14='2.Strategy'!$D$88,E$184,"") ->  | D29: =IF('2.Strategy'!E14='2.Strategy'!$D$88,F$184,"") ->  | E29: =IF('2.Strategy'!F14='2.Strategy'!$D$88,G$184,"") ->  | F29: =IF('2.Strategy'!G14='2.Strategy'!$D$88,H$184,"") ->  | G29: =IF('2.Strategy'!H14='2.Strategy'!$D$88,I$184,"") ->  | H29: =IF('2.Strategy'!I14='2.Strategy'!$D$88,J$184,"") ->  | I29: =IF('2.Strategy'!J14='2.Strategy'!$D$88,K$184,"") ->  | J29: =IF('2.Strategy'!K14='2.Strategy'!$D$88,L$184,"") ->  | K29: =IF('2.Strategy'!L14='2.Strategy'!$D$88,M$184,"") ->  | L29: =IF('2.Strategy'!M14='2.Strategy'!$D$88,N$184,"") ->  | N29: Go to | O29: =B369 -> Table 15. Competition functions
A30: 24 | B30: ="Spring: "&'2.Strategy'!$D96 -> Spring: Topping | C30: =IF('2.Strategy'!D$15='2.Strategy'!$D$96,E$184,"") ->  | D30: =IF('2.Strategy'!E$15='2.Strategy'!$D$96,F$184,"") ->  | E30: =IF('2.Strategy'!F$15='2.Strategy'!$D$96,G$184,"") ->  | F30: =IF('2.Strategy'!G$15='2.Strategy'!$D$96,H$184,"") ->  | G30: =IF('2.Strategy'!H$15='2.Strategy'!$D$96,I$184,"") ->  | H30: =IF('2.Strategy'!I$15='2.Strategy'!$D$96,J$184,"") ->  | I30: =IF('2.Strategy'!J$15='2.Strategy'!$D$96,K$184,"") -> 5 | J30: =IF('2.Strategy'!K$15='2.Strategy'!$D$96,L$184,"") ->  | K30: =IF('2.Strategy'!L$15='2.Strategy'!$D$96,M$184,"") ->  | L30: =IF('2.Strategy'!M$15='2.Strategy'!$D$96,N$184,"") -> 
A31: 25 | B31: ="Spring: "&'2.Strategy'!$D92 -> Spring: Brown M | C31: =IF('2.Strategy'!D$15='2.Strategy'!$D$92,E$184,"") ->  | D31: =IF('2.Strategy'!E$15='2.Strategy'!$D$92,F$184,"") ->  | E31: =IF('2.Strategy'!F$15='2.Strategy'!$D$92,G$184,"") ->  | F31: =IF('2.Strategy'!G$15='2.Strategy'!$D$92,H$184,"") ->  | G31: =IF('2.Strategy'!H$15='2.Strategy'!$D$92,I$184,"") ->  | H31: =IF('2.Strategy'!I$15='2.Strategy'!$D$92,J$184,"") ->  | I31: =IF('2.Strategy'!J$15='2.Strategy'!$D$92,K$184,"") ->  | J31: =IF('2.Strategy'!K$15='2.Strategy'!$D$92,L$184,"") ->  | K31: =IF('2.Strategy'!L$15='2.Strategy'!$D$92,M$184,"") ->  | L31: =IF('2.Strategy'!M$15='2.Strategy'!$D$92,N$184,"") -> 
A32: 26 | B32: empty slot for adding a spring option | N32: Table 1a. Non-selective herbicides counts
A33: 27 | B33: ="Spring: "&'2.Strategy'!$D93 -> Spring: Mow+Spray | C33: =IF('2.Strategy'!D$15='2.Strategy'!$D$93,E$184,"") ->  | D33: =IF('2.Strategy'!E$15='2.Strategy'!$D$93,F$184,"") ->  | E33: =IF('2.Strategy'!F$15='2.Strategy'!$D$93,G$184,"") ->  | F33: =IF('2.Strategy'!G$15='2.Strategy'!$D$93,H$184,"") ->  | G33: =IF('2.Strategy'!H$15='2.Strategy'!$D$93,I$184,"") ->  | H33: =IF('2.Strategy'!I$15='2.Strategy'!$D$93,J$184,"") ->  | I33: =IF('2.Strategy'!J$15='2.Strategy'!$D$93,K$184,"") ->  | J33: =IF('2.Strategy'!K$15='2.Strategy'!$D$93,L$184,"") ->  | K33: =IF('2.Strategy'!L$15='2.Strategy'!$D$93,M$184,"") ->  | L33: =IF('2.Strategy'!M$15='2.Strategy'!$D$93,N$184,"") ->  | N33: Feeds into the weed control table below, and for phytotoxicity effects in Bio results.
A34: 28 | B34: ="Spring: "&'2.Strategy'!$D91 -> Spring: Green M. | C34: =IF('2.Strategy'!D15='2.Strategy'!$D$91,E$184,"") ->  | D34: =IF('2.Strategy'!E15='2.Strategy'!$D$91,F$184,"") ->  | E34: =IF('2.Strategy'!F15='2.Strategy'!$D$91,G$184,"") ->  | F34: =IF('2.Strategy'!G15='2.Strategy'!$D$91,H$184,"") ->  | G34: =IF('2.Strategy'!H15='2.Strategy'!$D$91,I$184,"") ->  | H34: =IF('2.Strategy'!I15='2.Strategy'!$D$91,J$184,"") ->  | I34: =IF('2.Strategy'!J15='2.Strategy'!$D$91,K$184,"") ->  | J34: =IF('2.Strategy'!K15='2.Strategy'!$D$91,L$184,"") ->  | K34: =IF('2.Strategy'!L15='2.Strategy'!$D$91,M$184,"") ->  | L34: =IF('2.Strategy'!M15='2.Strategy'!$D$91,N$184,"") ->  | N34: Nb of times used | P34: =C1 -> Wheat 1 | Q34: Wheat 2 | R34: Canola 3 | S34: Clover 4 | T34: Clover 5 | U34: Clover 6 | V34: Clover 7 | W34: Wheat 8 | X34: Wheat 9 | Y34: Canola 10
A35: 29 | B35: ="Spring: "&'2.Strategy'!$D95 -> Spring: Hay+Spray | C35: =IF('2.Strategy'!D15='2.Strategy'!$D$95,E$184,"") ->  | D35: =IF('2.Strategy'!E15='2.Strategy'!$D$95,F$184,"") ->  | E35: =IF('2.Strategy'!F15='2.Strategy'!$D$95,G$184,"") ->  | F35: =IF('2.Strategy'!G15='2.Strategy'!$D$95,H$184,"") ->  | G35: =IF('2.Strategy'!H15='2.Strategy'!$D$95,I$184,"") ->  | H35: =IF('2.Strategy'!I15='2.Strategy'!$D$95,J$184,"") ->  | I35: =IF('2.Strategy'!J15='2.Strategy'!$D$95,K$184,"") ->  | J35: =IF('2.Strategy'!K15='2.Strategy'!$D$95,L$184,"") ->  | K35: =IF('2.Strategy'!L15='2.Strategy'!$D$95,M$184,"") ->  | L35: =IF('2.Strategy'!M15='2.Strategy'!$D$95,N$184,"") ->  | N35: =B23 -> Post-E: Topik | P35: =IF(C23<>"",IF('2.Strategy'!D$11='2.Strategy'!$P89,1,0)+IF('2.Strategy'!D$12='2.Strategy'!$P89,1,0)+IF('2.Strategy'!D$13='2.Strategy'!$P89,1,0),0) -> 1 | Q35: =IF(D23<>"",IF('2.Strategy'!E$11='2.Strategy'!$P89,1,0)+IF('2.Strategy'!E$12='2.Strategy'!$P89,1,0)+IF('2.Strategy'!E$13='2.Strategy'!$P89,1,0),0) -> 0 | R35: =IF(E23<>"",IF('2.Strategy'!F$11='2.Strategy'!$P89,1,0)+IF('2.Strategy'!F$12='2.Strategy'!$P89,1,0)+IF('2.Strategy'!F$13='2.Strategy'!$P89,1,0),0) -> 0 | S35: =IF(F23<>"",IF('2.Strategy'!G$11='2.Strategy'!$P89,1,0)+IF('2.Strategy'!G$12='2.Strategy'!$P89,1,0)+IF('2.Strategy'!G$13='2.Strategy'!$P89,1,0),0) -> 0 | T35: =IF(G23<>"",IF('2.Strategy'!H$11='2.Strategy'!$P89,1,0)+IF('2.Strategy'!H$12='2.Strategy'!$P89,1,0)+IF('2.Strategy'!H$13='2.Strategy'!$P89,1,0),0) -> 0 | U35: =IF(H23<>"",IF('2.Strategy'!I$11='2.Strategy'!$P89,1,0)+IF('2.Strategy'!I$12='2.Strategy'!$P89,1,0)+IF('2.Strategy'!I$13='2.Strategy'!$P89,1,0),0) -> 0 | V35: =IF(I23<>"",IF('2.Strategy'!J$11='2.Strategy'!$P89,1,0)+IF('2.Strategy'!J$12='2.Strategy'!$P89,1,0)+IF('2.Strategy'!J$13='2.Strategy'!$P89,1,0),0) -> 0 | W35: =IF(J23<>"",IF('2.Strategy'!K$11='2.Strategy'!$P89,1,0)+IF('2.Strategy'!K$12='2.Strategy'!$P89,1,0)+IF('2.Strategy'!K$13='2.Strategy'!$P89,1,0),0) -> 0 | X35: =IF(K23<>"",IF('2.Strategy'!L$11='2.Strategy'!$P89,1,0)+IF('2.Strategy'!L$12='2.Strategy'!$P89,1,0)+IF('2.Strategy'!L$13='2.Strategy'!$P89,1,0),0) -> 0 | Y35: =IF(L23<>"",IF('2.Strategy'!M$11='2.Strategy'!$P89,1,0)+IF('2.Strategy'!M$12='2.Strategy'!$P89,1,0)+IF('2.Strategy'!M$13='2.Strategy'!$P89,1,0),0) -> 0
A36: 30 | B36: ="Spring: "&'2.Strategy'!$D94 -> Spring: Sil.+Spray | C36: =IF('2.Strategy'!D15='2.Strategy'!$D$94,E$184,"") ->  | D36: =IF('2.Strategy'!E15='2.Strategy'!$D$94,F$184,"") ->  | E36: =IF('2.Strategy'!F15='2.Strategy'!$D$94,G$184,"") ->  | F36: =IF('2.Strategy'!G15='2.Strategy'!$D$94,H$184,"") ->  | G36: =IF('2.Strategy'!H15='2.Strategy'!$D$94,I$184,"") ->  | H36: =IF('2.Strategy'!I15='2.Strategy'!$D$94,J$184,"") ->  | I36: =IF('2.Strategy'!J15='2.Strategy'!$D$94,K$184,"") ->  | J36: =IF('2.Strategy'!K15='2.Strategy'!$D$94,L$184,"") ->  | K36: =IF('2.Strategy'!L15='2.Strategy'!$D$94,M$184,"") ->  | L36: =IF('2.Strategy'!M15='2.Strategy'!$D$94,N$184,"") ->  | N36: =B24 -> Post-E: Hussar | P36: =IF(C24<>"",IF('2.Strategy'!D$11='2.Strategy'!$P90,1,0)+IF('2.Strategy'!D$12='2.Strategy'!$P90,1,0)+IF('2.Strategy'!D$13='2.Strategy'!$P90,1,0),0) -> 0 | Q36: =IF(D24<>"",IF('2.Strategy'!E$11='2.Strategy'!$P90,1,0)+IF('2.Strategy'!E$12='2.Strategy'!$P90,1,0)+IF('2.Strategy'!E$13='2.Strategy'!$P90,1,0),0) -> 1 | R36: =IF(E24<>"",IF('2.Strategy'!F$11='2.Strategy'!$P90,1,0)+IF('2.Strategy'!F$12='2.Strategy'!$P90,1,0)+IF('2.Strategy'!F$13='2.Strategy'!$P90,1,0),0) -> 0 | S36: =IF(F24<>"",IF('2.Strategy'!G$11='2.Strategy'!$P90,1,0)+IF('2.Strategy'!G$12='2.Strategy'!$P90,1,0)+IF('2.Strategy'!G$13='2.Strategy'!$P90,1,0),0) -> 0 | T36: =IF(G24<>"",IF('2.Strategy'!H$11='2.Strategy'!$P90,1,0)+IF('2.Strategy'!H$12='2.Strategy'!$P90,1,0)+IF('2.Strategy'!H$13='2.Strategy'!$P90,1,0),0) -> 0 | U36: =IF(H24<>"",IF('2.Strategy'!I$11='2.Strategy'!$P90,1,0)+IF('2.Strategy'!I$12='2.Strategy'!$P90,1,0)+IF('2.Strategy'!I$13='2.Strategy'!$P90,1,0),0) -> 0 | V36: =IF(I24<>"",IF('2.Strategy'!J$11='2.Strategy'!$P90,1,0)+IF('2.Strategy'!J$12='2.Strategy'!$P90,1,0)+IF('2.Strategy'!J$13='2.Strategy'!$P90,1,0),0) -> 0 | W36: =IF(J24<>"",IF('2.Strategy'!K$11='2.Strategy'!$P90,1,0)+IF('2.Strategy'!K$12='2.Strategy'!$P90,1,0)+IF('2.Strategy'!K$13='2.Strategy'!$P90,1,0),0) -> 0 | X36: =IF(K24<>"",IF('2.Strategy'!L$11='2.Strategy'!$P90,1,0)+IF('2.Strategy'!L$12='2.Strategy'!$P90,1,0)+IF('2.Strategy'!L$13='2.Strategy'!$P90,1,0),0) -> 0 | Y36: =IF(L24<>"",IF('2.Strategy'!M$11='2.Strategy'!$P90,1,0)+IF('2.Strategy'!M$12='2.Strategy'!$P90,1,0)+IF('2.Strategy'!M$13='2.Strategy'!$P90,1,0),0) -> 0
A37: 31 | B37: ="Spring A1: "&'2.Strategy'!D104 -> Spring A1: Define 1st | C37: =IF('2.Strategy'!D17='2.Strategy'!$D$104,E$184,"") ->  | D37: =IF('2.Strategy'!E17='2.Strategy'!$D$104,F$184,"") ->  | E37: =IF('2.Strategy'!F17='2.Strategy'!$D$104,G$184,"") ->  | F37: =IF('2.Strategy'!G17='2.Strategy'!$D$104,H$184,"") ->  | G37: =IF('2.Strategy'!H17='2.Strategy'!$D$104,I$184,"") ->  | H37: =IF('2.Strategy'!I17='2.Strategy'!$D$104,J$184,"") ->  | I37: =IF('2.Strategy'!J17='2.Strategy'!$D$104,K$184,"") ->  | J37: =IF('2.Strategy'!K17='2.Strategy'!$D$104,L$184,"") ->  | K37: =IF('2.Strategy'!L17='2.Strategy'!$D$104,M$184,"") ->  | L37: =IF('2.Strategy'!M17='2.Strategy'!$D$104,N$184,"") ->  | N37: =B25 -> Post-E: Clethodim | P37: =IF(C25<>"",IF('2.Strategy'!D$11='2.Strategy'!$P91,1,0)+IF('2.Strategy'!D$12='2.Strategy'!$P91,1,0)+IF('2.Strategy'!D$13='2.Strategy'!$P91,1,0),0) -> 0 | Q37: =IF(D25<>"",IF('2.Strategy'!E$11='2.Strategy'!$P91,1,0)+IF('2.Strategy'!E$12='2.Strategy'!$P91,1,0)+IF('2.Strategy'!E$13='2.Strategy'!$P91,1,0),0) -> 0 | R37: =IF(E25<>"",IF('2.Strategy'!F$11='2.Strategy'!$P91,1,0)+IF('2.Strategy'!F$12='2.Strategy'!$P91,1,0)+IF('2.Strategy'!F$13='2.Strategy'!$P91,1,0),0) -> 0 | S37: =IF(F25<>"",IF('2.Strategy'!G$11='2.Strategy'!$P91,1,0)+IF('2.Strategy'!G$12='2.Strategy'!$P91,1,0)+IF('2.Strategy'!G$13='2.Strategy'!$P91,1,0),0) -> 0 | T37: =IF(G25<>"",IF('2.Strategy'!H$11='2.Strategy'!$P91,1,0)+IF('2.Strategy'!H$12='2.Strategy'!$P91,1,0)+IF('2.Strategy'!H$13='2.Strategy'!$P91,1,0),0) -> 0 | U37: =IF(H25<>"",IF('2.Strategy'!I$11='2.Strategy'!$P91,1,0)+IF('2.Strategy'!I$12='2.Strategy'!$P91,1,0)+IF('2.Strategy'!I$13='2.Strategy'!$P91,1,0),0) -> 0 | V37: =IF(I25<>"",IF('2.Strategy'!J$11='2.Strategy'!$P91,1,0)+IF('2.Strategy'!J$12='2.Strategy'!$P91,1,0)+IF('2.Strategy'!J$13='2.Strategy'!$P91,1,0),0) -> 0 | W37: =IF(J25<>"",IF('2.Strategy'!K$11='2.Strategy'!$P91,1,0)+IF('2.Strategy'!K$12='2.Strategy'!$P91,1,0)+IF('2.Strategy'!K$13='2.Strategy'!$P91,1,0),0) -> 0 | X37: =IF(K25<>"",IF('2.Strategy'!L$11='2.Strategy'!$P91,1,0)+IF('2.Strategy'!L$12='2.Strategy'!$P91,1,0)+IF('2.Strategy'!L$13='2.Strategy'!$P91,1,0),0) -> 0 | Y37: =IF(L25<>"",IF('2.Strategy'!M$11='2.Strategy'!$P91,1,0)+IF('2.Strategy'!M$12='2.Strategy'!$P91,1,0)+IF('2.Strategy'!M$13='2.Strategy'!$P91,1,0),0) -> 0
A38: 32 | B38: ="Spring A2: "&'2.Strategy'!D105 -> Spring A2: Define 2nd | C38: =IF('2.Strategy'!D17='2.Strategy'!$D$105,E$184,"") ->  | D38: =IF('2.Strategy'!E17='2.Strategy'!$D$105,F$184,"") ->  | E38: =IF('2.Strategy'!F17='2.Strategy'!$D$105,G$184,"") ->  | F38: =IF('2.Strategy'!G17='2.Strategy'!$D$105,H$184,"") ->  | G38: =IF('2.Strategy'!H17='2.Strategy'!$D$105,I$184,"") ->  | H38: =IF('2.Strategy'!I17='2.Strategy'!$D$105,J$184,"") ->  | I38: =IF('2.Strategy'!J17='2.Strategy'!$D$105,K$184,"") ->  | J38: =IF('2.Strategy'!K17='2.Strategy'!$D$105,L$184,"") ->  | K38: =IF('2.Strategy'!L17='2.Strategy'!$D$105,M$184,"") ->  | L38: =IF('2.Strategy'!M17='2.Strategy'!$D$105,N$184,"") ->  | N38: =B26 -> Post-E: Glyphosate | P38: =IF(C26<>"",IF('2.Strategy'!D$11='2.Strategy'!$P92,1,0)+IF('2.Strategy'!D$12='2.Strategy'!$P92,1,0)+IF('2.Strategy'!D$13='2.Strategy'!$P92,1,0),0) -> 0 | Q38: =IF(D26<>"",IF('2.Strategy'!E$11='2.Strategy'!$P92,1,0)+IF('2.Strategy'!E$12='2.Strategy'!$P92,1,0)+IF('2.Strategy'!E$13='2.Strategy'!$P92,1,0),0) -> 0 | R38: =IF(E26<>"",IF('2.Strategy'!F$11='2.Strategy'!$P92,1,0)+IF('2.Strategy'!F$12='2.Strategy'!$P92,1,0)+IF('2.Strategy'!F$13='2.Strategy'!$P92,1,0),0) -> 0 | S38: =IF(F26<>"",IF('2.Strategy'!G$11='2.Strategy'!$P92,1,0)+IF('2.Strategy'!G$12='2.Strategy'!$P92,1,0)+IF('2.Strategy'!G$13='2.Strategy'!$P92,1,0),0) -> 0 | T38: =IF(G26<>"",IF('2.Strategy'!H$11='2.Strategy'!$P92,1,0)+IF('2.Strategy'!H$12='2.Strategy'!$P92,1,0)+IF('2.Strategy'!H$13='2.Strategy'!$P92,1,0),0) -> 0 | U38: =IF(H26<>"",IF('2.Strategy'!I$11='2.Strategy'!$P92,1,0)+IF('2.Strategy'!I$12='2.Strategy'!$P92,1,0)+IF('2.Strategy'!I$13='2.Strategy'!$P92,1,0),0) -> 0 | V38: =IF(I26<>"",IF('2.Strategy'!J$11='2.Strategy'!$P92,1,0)+IF('2.Strategy'!J$12='2.Strategy'!$P92,1,0)+IF('2.Strategy'!J$13='2.Strategy'!$P92,1,0),0) -> 0 | W38: =IF(J26<>"",IF('2.Strategy'!K$11='2.Strategy'!$P92,1,0)+IF('2.Strategy'!K$12='2.Strategy'!$P92,1,0)+IF('2.Strategy'!K$13='2.Strategy'!$P92,1,0),0) -> 0 | X38: =IF(K26<>"",IF('2.Strategy'!L$11='2.Strategy'!$P92,1,0)+IF('2.Strategy'!L$12='2.Strategy'!$P92,1,0)+IF('2.Strategy'!L$13='2.Strategy'!$P92,1,0),0) -> 0 | Y38: =IF(L26<>"",IF('2.Strategy'!M$11='2.Strategy'!$P92,1,0)+IF('2.Strategy'!M$12='2.Strategy'!$P92,1,0)+IF('2.Strategy'!M$13='2.Strategy'!$P92,1,0),0) -> 0
A39: 33 | B39: ="Spring - swathe: "&'2.Strategy'!$D$100 -> Spring - swathe: W/o Spray | C39: =IF('2.Strategy'!D16='2.Strategy'!$D$100,E$184,"") ->  | D39: =IF('2.Strategy'!E16='2.Strategy'!$D$100,F$184,"") ->  | E39: =IF('2.Strategy'!F16='2.Strategy'!$D$100,G$184,"") ->  | F39: =IF('2.Strategy'!G16='2.Strategy'!$D$100,H$184,"") ->  | G39: =IF('2.Strategy'!H16='2.Strategy'!$D$100,I$184,"") ->  | H39: =IF('2.Strategy'!I16='2.Strategy'!$D$100,J$184,"") ->  | I39: =IF('2.Strategy'!J16='2.Strategy'!$D$100,K$184,"") ->  | J39: =IF('2.Strategy'!K16='2.Strategy'!$D$100,L$184,"") ->  | K39: =IF('2.Strategy'!L16='2.Strategy'!$D$100,M$184,"") ->  | L39: =IF('2.Strategy'!M16='2.Strategy'!$D$100,N$184,"") ->  | N39: =B27 -> Post-E: Paraquat | P39: =IF(C27<>"",IF('2.Strategy'!D$11='2.Strategy'!$P93,1,0)+IF('2.Strategy'!D$12='2.Strategy'!$P93,1,0)+IF('2.Strategy'!D$13='2.Strategy'!$P93,1,0),0) -> 0 | Q39: =IF(D27<>"",IF('2.Strategy'!E$11='2.Strategy'!$P93,1,0)+IF('2.Strategy'!E$12='2.Strategy'!$P93,1,0)+IF('2.Strategy'!E$13='2.Strategy'!$P93,1,0),0) -> 0 | R39: =IF(E27<>"",IF('2.Strategy'!F$11='2.Strategy'!$P93,1,0)+IF('2.Strategy'!F$12='2.Strategy'!$P93,1,0)+IF('2.Strategy'!F$13='2.Strategy'!$P93,1,0),0) -> 0 | S39: =IF(F27<>"",IF('2.Strategy'!G$11='2.Strategy'!$P93,1,0)+IF('2.Strategy'!G$12='2.Strategy'!$P93,1,0)+IF('2.Strategy'!G$13='2.Strategy'!$P93,1,0),0) -> 0 | T39: =IF(G27<>"",IF('2.Strategy'!H$11='2.Strategy'!$P93,1,0)+IF('2.Strategy'!H$12='2.Strategy'!$P93,1,0)+IF('2.Strategy'!H$13='2.Strategy'!$P93,1,0),0) -> 0 | U39: =IF(H27<>"",IF('2.Strategy'!I$11='2.Strategy'!$P93,1,0)+IF('2.Strategy'!I$12='2.Strategy'!$P93,1,0)+IF('2.Strategy'!I$13='2.Strategy'!$P93,1,0),0) -> 0 | V39: =IF(I27<>"",IF('2.Strategy'!J$11='2.Strategy'!$P93,1,0)+IF('2.Strategy'!J$12='2.Strategy'!$P93,1,0)+IF('2.Strategy'!J$13='2.Strategy'!$P93,1,0),0) -> 0 | W39: =IF(J27<>"",IF('2.Strategy'!K$11='2.Strategy'!$P93,1,0)+IF('2.Strategy'!K$12='2.Strategy'!$P93,1,0)+IF('2.Strategy'!K$13='2.Strategy'!$P93,1,0),0) -> 0 | X39: =IF(K27<>"",IF('2.Strategy'!L$11='2.Strategy'!$P93,1,0)+IF('2.Strategy'!L$12='2.Strategy'!$P93,1,0)+IF('2.Strategy'!L$13='2.Strategy'!$P93,1,0),0) -> 0 | Y39: =IF(L27<>"",IF('2.Strategy'!M$11='2.Strategy'!$P93,1,0)+IF('2.Strategy'!M$12='2.Strategy'!$P93,1,0)+IF('2.Strategy'!M$13='2.Strategy'!$P93,1,0),0) -> 0
A40: 34 | B40: ="Spring - swathe: "&'2.Strategy'!$D$101 -> Spring - swathe: With Spray | C40: =IF('2.Strategy'!D16='2.Strategy'!$D$101,E$184,"") ->  | D40: =IF('2.Strategy'!E16='2.Strategy'!$D$101,F$184,"") ->  | E40: =IF('2.Strategy'!F16='2.Strategy'!$D$101,G$184,"") -> 2 | F40: =IF('2.Strategy'!G16='2.Strategy'!$D$101,H$184,"") ->  | G40: =IF('2.Strategy'!H16='2.Strategy'!$D$101,I$184,"") ->  | H40: =IF('2.Strategy'!I16='2.Strategy'!$D$101,J$184,"") -> 5 | I40: =IF('2.Strategy'!J16='2.Strategy'!$D$101,K$184,"") ->  | J40: =IF('2.Strategy'!K16='2.Strategy'!$D$101,L$184,"") ->  | K40: =IF('2.Strategy'!L16='2.Strategy'!$D$101,M$184,"") ->  | L40: =IF('2.Strategy'!M16='2.Strategy'!$D$101,N$184,"") -> 2 | N40: Total, post Em + pre-E (for phytotoxicity counts) | P40: =SUM(P35:P39)+COUNT(C10:C14) -> 2 | Q40: 2 | R40: 1 | S40: 0 | T40: 0 | U40: 0 | V40: 0 | W40: 1 | X40: 1 | Y40: 1
A41: 35 | B41: ="Harvest: "&'2.Strategy'!D108 -> Harvest: Cart+B. | C41: =IF('2.Strategy'!D$18='2.Strategy'!$D108,E$184,"") ->  | D41: =IF('2.Strategy'!E$18='2.Strategy'!$D108,F$184,"") ->  | E41: =IF('2.Strategy'!F$18='2.Strategy'!$D108,G$184,"") ->  | F41: =IF('2.Strategy'!G$18='2.Strategy'!$D108,H$184,"") ->  | G41: =IF('2.Strategy'!H$18='2.Strategy'!$D108,I$184,"") ->  | H41: =IF('2.Strategy'!I$18='2.Strategy'!$D108,J$184,"") ->  | I41: =IF('2.Strategy'!J$18='2.Strategy'!$D108,K$184,"") ->  | J41: =IF('2.Strategy'!K$18='2.Strategy'!$D108,L$184,"") ->  | K41: =IF('2.Strategy'!L$18='2.Strategy'!$D108,M$184,"") ->  | L41: =IF('2.Strategy'!M$18='2.Strategy'!$D108,N$184,"") -> 
A42: 36 | B42: ="Harvest: "&'2.Strategy'!D109 -> Harvest: Narr+B. | C42: =IF('2.Strategy'!D$18='2.Strategy'!$D109,E$184,"") -> 0 | D42: =IF('2.Strategy'!E$18='2.Strategy'!$D109,F$184,"") -> 0 | E42: =IF('2.Strategy'!F$18='2.Strategy'!$D109,G$184,"") ->  | F42: =IF('2.Strategy'!G$18='2.Strategy'!$D109,H$184,"") -> 5 | G42: =IF('2.Strategy'!H$18='2.Strategy'!$D109,I$184,"") -> 5 | H42: =IF('2.Strategy'!I$18='2.Strategy'!$D109,J$184,"") ->  | I42: =IF('2.Strategy'!J$18='2.Strategy'!$D109,K$184,"") -> 5 | J42: =IF('2.Strategy'!K$18='2.Strategy'!$D109,L$184,"") -> 0 | K42: =IF('2.Strategy'!L$18='2.Strategy'!$D109,M$184,"") ->  | L42: =IF('2.Strategy'!M$18='2.Strategy'!$D109,N$184,"") -> 2 | N42: Table 1b. Error and sowing handling, herbicides type counts
A43: 37 | B43: ="Harvest: "&'2.Strategy'!D110 -> Harvest: HSD | C43: =IF('2.Strategy'!D$18='2.Strategy'!$D110,E$184,"") ->  | D43: =IF('2.Strategy'!E$18='2.Strategy'!$D110,F$184,"") ->  | E43: =IF('2.Strategy'!F$18='2.Strategy'!$D110,G$184,"") ->  | F43: =IF('2.Strategy'!G$18='2.Strategy'!$D110,H$184,"") ->  | G43: =IF('2.Strategy'!H$18='2.Strategy'!$D110,I$184,"") ->  | H43: =IF('2.Strategy'!I$18='2.Strategy'!$D110,J$184,"") ->  | I43: =IF('2.Strategy'!J$18='2.Strategy'!$D110,K$184,"") ->  | J43: =IF('2.Strategy'!K$18='2.Strategy'!$D110,L$184,"") ->  | K43: =IF('2.Strategy'!L$18='2.Strategy'!$D110,M$184,"") ->  | L43: =IF('2.Strategy'!M$18='2.Strategy'!$D110,N$184,"") ->  | N43: Adjust the tables in the middle of the strategy page, that controls the error messages and the white cells within the strategy table
A44: 38 | B44: ="Harvest: "&'2.Strategy'!D111 -> Harvest: Tram. | C44: =IF('2.Strategy'!D$18='2.Strategy'!$D111,E$184,"") ->  | D44: =IF('2.Strategy'!E$18='2.Strategy'!$D111,F$184,"") ->  | E44: =IF('2.Strategy'!F$18='2.Strategy'!$D111,G$184,"") ->  | F44: =IF('2.Strategy'!G$18='2.Strategy'!$D111,H$184,"") ->  | G44: =IF('2.Strategy'!H$18='2.Strategy'!$D111,I$184,"") ->  | H44: =IF('2.Strategy'!I$18='2.Strategy'!$D111,J$184,"") ->  | I44: =IF('2.Strategy'!J$18='2.Strategy'!$D111,K$184,"") ->  | J44: =IF('2.Strategy'!K$18='2.Strategy'!$D111,L$184,"") ->  | K44: =IF('2.Strategy'!L$18='2.Strategy'!$D111,M$184,"") ->  | L44: =IF('2.Strategy'!M$18='2.Strategy'!$D111,N$184,"") ->  | N44: Nb of spring/harvest options | P44: =COUNTIF(C31:C36,">=0")+(IF((ISERROR(FIND('2.Strategy'!D4,'2.Strategy'!$AV$18,1))=TRUE),COUNTIF(C41:C46,">=0"),0)) -> 1 | Q44: =COUNTIF(D31:D36,">=0")+(IF((ISERROR(FIND('2.Strategy'!E4,'2.Strategy'!$AV$18,1))=TRUE),COUNTIF(D41:D46,">=0"),0)) -> 1 | R44: =COUNTIF(E31:E36,">=0")+(IF((ISERROR(FIND('2.Strategy'!F4,'2.Strategy'!$AV$18,1))=TRUE),COUNTIF(E41:E46,">=0"),0)) -> 0 | S44: =COUNTIF(F31:F36,">=0")+(IF((ISERROR(FIND('2.Strategy'!G4,'2.Strategy'!$AV$18,1))=TRUE),COUNTIF(F41:F46,">=0"),0)) -> 0 | T44: =COUNTIF(G31:G36,">=0")+(IF((ISERROR(FIND('2.Strategy'!H4,'2.Strategy'!$AV$18,1))=TRUE),COUNTIF(G41:G46,">=0"),0)) -> 0 | U44: =COUNTIF(H31:H36,">=0")+(IF((ISERROR(FIND('2.Strategy'!I4,'2.Strategy'!$AV$18,1))=TRUE),COUNTIF(H41:H46,">=0"),0)) -> 0 | V44: =COUNTIF(I31:I36,">=0")+(IF((ISERROR(FIND('2.Strategy'!J4,'2.Strategy'!$AV$18,1))=TRUE),COUNTIF(I41:I46,">=0"),0)) -> 0 | W44: =COUNTIF(J31:J36,">=0")+(IF((ISERROR(FIND('2.Strategy'!K4,'2.Strategy'!$AV$18,1))=TRUE),COUNTIF(J41:J46,">=0"),0)) -> 1 | X44: =COUNTIF(K31:K36,">=0")+(IF((ISERROR(FIND('2.Strategy'!L4,'2.Strategy'!$AV$18,1))=TRUE),COUNTIF(K41:K46,">=0"),0)) -> 0 | Y44: =COUNTIF(L31:L36,">=0")+(IF((ISERROR(FIND('2.Strategy'!M4,'2.Strategy'!$AV$18,1))=TRUE),COUNTIF(L41:L46,">=0"),0)) -> 1
A45: 39 | B45: empty slot for adding a harvest option, configured for bales | N45: Canola or legumes consecutively (Err 4) | P45: =IF(OR(AND(D184=2, E184=2),AND(D184=3,E184=3)),1,0) -> 0 | Q45: 0 | R45: 0 | S45: 0 | T45: 0 | U45: 0 | V45: 0 | W45: 0 | X45: 0 | Y45: 0
A46: 40 | B46: ="Harvest: "&'2.Strategy'!D112 -> Harvest: BDS+E. | C46: =IF('2.Strategy'!D$18='2.Strategy'!$D112,E$184,"") ->  | D46: =IF('2.Strategy'!E$18='2.Strategy'!$D112,F$184,"") ->  | E46: =IF('2.Strategy'!F$18='2.Strategy'!$D112,G$184,"") ->  | F46: =IF('2.Strategy'!G$18='2.Strategy'!$D112,H$184,"") ->  | G46: =IF('2.Strategy'!H$18='2.Strategy'!$D112,I$184,"") ->  | H46: =IF('2.Strategy'!I$18='2.Strategy'!$D112,J$184,"") ->  | I46: =IF('2.Strategy'!J$18='2.Strategy'!$D112,K$184,"") ->  | J46: =IF('2.Strategy'!K$18='2.Strategy'!$D112,L$184,"") ->  | K46: =IF('2.Strategy'!L$18='2.Strategy'!$D112,M$184,"") ->  | L46: =IF('2.Strategy'!M$18='2.Strategy'!$D112,N$184,"") ->  | N46: Need to seed Serradella | P46: =IF(AND(OR(D184<>6,B34=6,B29=6,B31=6),E184=6),1,0) -> 0 | Q46: =IF(AND(OR(E184<>6,C34=6,C29=6,C31=6),F184=6),1,0) -> 0 | R46: =IF(AND(OR(F184<>6,D34=6,D29=6,D31=6,AND(OR(C36<>"",C35<>""),OR(D36<>"",D35<>""))),G184=6),1,0) -> 0 | S46: 0 | T46: 0 | U46: 0 | V46: 0 | W46: 0 | X46: 0 | Y46: 0 | Z46: only in first year of a run of Cadiz, but also is previous year=GM, BM, high intensity grazing, and if Hay/Sil in the past two years
A47: 41 | B47: ="Harvest: "&'2.Strategy'!D116 -> Harvest: B.all | C47: =IF('2.Strategy'!D$19='2.Strategy'!$D116,E$184,"") ->  | D47: =IF('2.Strategy'!E$19='2.Strategy'!$D116,F$184,"") ->  | E47: =IF('2.Strategy'!F$19='2.Strategy'!$D116,G$184,"") ->  | F47: =IF('2.Strategy'!G$19='2.Strategy'!$D116,H$184,"") ->  | G47: =IF('2.Strategy'!H$19='2.Strategy'!$D116,I$184,"") ->  | H47: =IF('2.Strategy'!I$19='2.Strategy'!$D116,J$184,"") ->  | I47: =IF('2.Strategy'!J$19='2.Strategy'!$D116,K$184,"") ->  | J47: =IF('2.Strategy'!K$19='2.Strategy'!$D116,L$184,"") ->  | K47: =IF('2.Strategy'!L$19='2.Strategy'!$D116,M$184,"") ->  | L47: =IF('2.Strategy'!M$19='2.Strategy'!$D116,N$184,"") ->  | N47: Need to seed Clover | P47: =IF(E184=5,IF(OR(C184=5,D184=5),0,1),0) -> 0 | Q47: =IF(F184=5,IF(OR(OR(C184=5,D184=5),E184=5),0,1),0) -> 0 | R47: 0 | S47: 1 | T47: 0 | U47: 0 | V47: 0 | W47: 0 | X47: 0 | Y47: 0 | Z47: only if no clover in the past 3 years
A48: 42 | B48: ="Harvest B1: "&'2.Strategy'!D117 -> Harvest B1: Define 1st | C48: =IF('2.Strategy'!D$19='2.Strategy'!$D117,E$184,"") ->  | D48: =IF('2.Strategy'!E$19='2.Strategy'!$D117,F$184,"") ->  | E48: =IF('2.Strategy'!F$19='2.Strategy'!$D117,G$184,"") ->  | F48: =IF('2.Strategy'!G$19='2.Strategy'!$D117,H$184,"") ->  | G48: =IF('2.Strategy'!H$19='2.Strategy'!$D117,I$184,"") ->  | H48: =IF('2.Strategy'!I$19='2.Strategy'!$D117,J$184,"") ->  | I48: =IF('2.Strategy'!J$19='2.Strategy'!$D117,K$184,"") ->  | J48: =IF('2.Strategy'!K$19='2.Strategy'!$D117,L$184,"") ->  | K48: =IF('2.Strategy'!L$19='2.Strategy'!$D117,M$184,"") ->  | L48: =IF('2.Strategy'!M$19='2.Strategy'!$D117,N$184,"") ->  | N48: Number of selectives used | P48: =COUNTIF(C10:C14,">=0")+SUM(P35:P39) -> 2 | Q48: 2 | R48: 1 | S48: 0 | T48: 0 | U48: 0 | V48: 0 | W48: 1 | X48: 1 | Y48: 1 | Z48: only important if 0 or 1+ (then sub-lethal effect of selective on RG seed, spring)
A49: 43 | B49: ="Harvest B2: "&'2.Strategy'!D118 -> Harvest B2: Define 2nd | C49: =IF('2.Strategy'!D$19='2.Strategy'!$D118,E$184,"") ->  | D49: =IF('2.Strategy'!E$19='2.Strategy'!$D118,F$184,"") ->  | E49: =IF('2.Strategy'!F$19='2.Strategy'!$D118,G$184,"") ->  | F49: =IF('2.Strategy'!G$19='2.Strategy'!$D118,H$184,"") ->  | G49: =IF('2.Strategy'!H$19='2.Strategy'!$D118,I$184,"") ->  | H49: =IF('2.Strategy'!I$19='2.Strategy'!$D118,J$184,"") ->  | I49: =IF('2.Strategy'!J$19='2.Strategy'!$D118,K$184,"") ->  | J49: =IF('2.Strategy'!K$19='2.Strategy'!$D118,L$184,"") ->  | K49: =IF('2.Strategy'!L$19='2.Strategy'!$D118,M$184,"") ->  | L49: =IF('2.Strategy'!M$19='2.Strategy'!$D118,N$184,"") ->  | N49: Number of late non-selective application | P49: =COUNTIF(C40,">=0")+COUNTIF(C35:C36,">=0")+COUNTIF(C30:C33,">=0") -> 0 | Q49: =COUNTIF(D40,">=0")+COUNTIF(D35:D36,">=0")+COUNTIF(D30:D33,">=0") -> 0 | R49: 1 | S49: 0 | T49: 0 | U49: 1 | V49: 1 | W49: 0 | X49: 0 | Y49: 1 | Z49: only important if 0 or 1+ (then sub-lethal effect of selective on RG seed, spring)
N52: Table 2a. Ryegrass control (%) | W52: Legend to the Control and Costs tables:
B53: Table 2. Selected RG control (%) | C53: Proportions of weeds or seeds surviving each selected option. | N53: Wheat | O53: Barley | P53: Canola | Q53: Legumes | R53: V. Past | S53: L. past | T53: C. past
C54: =1-Control % as specified in Table 2.a on the right. | N54: 0 | O54: 1 | P54: 2 | Q54: 3 | R54: 4 | S54: 5 | T54: 6 | U54: from | W54: 22 | X54: results from calculations
A55: 1 | B55: =B7 -> KD/DK: Glyphosate | C55: =IF(C7<>"",1-(HLOOKUP(C7,$N$54:$T$97,$A55+1)),1) -> 1 | D55: 1 | E55: 1 | F55: 1 | G55: 1 | H55: 1 | I55: 1 | J55: 1 | K55: 1 | L55: 1 | N55: ='1.Profile'!H16 -> 0.95 | O55: ='1.Profile'!H16 -> 0.95 | P55: ='1.Profile'!I16 -> 0.95 | Q55: ='1.Profile'!I16 -> 0.95 | R55: ='1.Profile'!J16 -> 0.95 | S55: ='1.Profile'!J16 -> 0.95 | T55: ='1.Profile'!J16 -> 0.95 | U55: Profile | W55: 22 | X55: linked to either Profile, Prices, Option pages
A56: 2 | B56: KD/DK: Paraquat | C56: =IF(C8<>"",1-(HLOOKUP(C8,$N$54:$T$97,$A56+1)),1) -> 1 | D56: 1 | E56: 1 | F56: 1 | G56: 0.05 | H56: 1 | I56: 1 | J56: 1 | K56: 1 | L56: 1 | N56: ='1.Profile'!H17 -> 0.95 | O56: ='1.Profile'!H17 -> 0.95 | P56: ='1.Profile'!I17 -> 0.95 | Q56: ='1.Profile'!I17 -> 0.95 | R56: ='1.Profile'!J17 -> 0.95 | S56: ='1.Profile'!J17 -> 0.95 | T56: ='1.Profile'!J17 -> 0.95 | X56: (interface or background calculations)
A57: 3 | B57: KD/DK: Glyphosate/Paraquat | C57: =IF(C9<>"",1-(HLOOKUP(C9,$N$54:$T$97,$A57+1)),1) -> 1 | D57: 1 | E57: 1 | F57: 0 | G57: 1 | H57: 0 | I57: 0 | J57: 1 | K57: 1 | L57: 1 | N57: ='1.Profile'!H18 -> 1 | O57: ='1.Profile'!H18 -> 1 | P57: ='1.Profile'!I18 -> 1 | Q57: ='1.Profile'!I18 -> 1 | R57: ='1.Profile'!J18 -> 1 | S57: ='1.Profile'!J18 -> 1 | T57: ='1.Profile'!J18 -> 1
A58: 4 | B58: Pre-E: Triflur+Triallate | C58: =IF(C10<>"",1-(HLOOKUP(C10,$N$54:$T$97,$A58+1)),1) -> 0.2 | D58: 1 | E58: 1 | F58: 1 | G58: 1 | H58: 1 | I58: 1 | J58: 1 | K58: 1 | L58: 1 | N58: ='1.Profile'!H20 -> 0.8 | O58: ='1.Profile'!H20 -> 0.8 | P58: ='1.Profile'!I20 -> 0.85 | Q58: ='1.Profile'!I20 -> 0.85 | R58: ='1.Profile'!J20 -> 0 | S58: ='1.Profile'!J20 -> 0 | T58: ='1.Profile'!J20 -> 0 | U58: Profile
A59: 5 | B59: Pre-E: Propyzamide | C59: =IF(C11<>"",1-(HLOOKUP(C11,$N$54:$T$97,$A59+1)),1) -> 1 | D59: 1 | E59: 0.15 | F59: 1 | G59: 1 | H59: 1 | I59: 1 | J59: 1 | K59: 1 | L59: 0.15 | N59: ='1.Profile'!H21 -> 0 | O59: ='1.Profile'!H21 -> 0 | P59: ='1.Profile'!I21 -> 0.85 | Q59: ='1.Profile'!I21 -> 0.85 | R59: ='1.Profile'!J21 -> 0 | S59: ='1.Profile'!J21 -> 0 | T59: ='1.Profile'!J21 -> 0
A60: 6 | B60: Pre-E: Sakura | C60: =IF(C12<>"",1-(HLOOKUP(C12,$N$54:$T$97,$A60+1)),1) -> 1 | D60: 0.1 | E60: 1 | F60: 1 | G60: 1 | H60: 1 | I60: 1 | J60: 1 | K60: 0.1 | L60: 1 | N60: ='1.Profile'!H22 -> 0.9 | O60: ='1.Profile'!H22 -> 0.9 | P60: ='1.Profile'!I22 -> 0.9 | Q60: ='1.Profile'!I22 -> 0.9 | R60: ='1.Profile'!J22 -> 0 | S60: ='1.Profile'!J22 -> 0 | T60: ='1.Profile'!J22 -> 0 | W60: References for ryegrass control values
A61: 7 | B61: Pre-E: Boxer Gold | C61: =IF(C13<>"",1-(HLOOKUP(C13,$N$54:$T$97,$A61+1)),1) -> 1 | D61: 1 | E61: 1 | F61: 1 | G61: 1 | H61: 1 | I61: 1 | J61: 0.15 | K61: 1 | L61: 1 | N61: ='1.Profile'!H23 -> 0.85 | O61: ='1.Profile'!H23 -> 0.85 | P61: ='1.Profile'!I23 -> 0.85 | Q61: ='1.Profile'!I23 -> 0.85 | R61: ='1.Profile'!J23 -> 0 | S61: ='1.Profile'!J23 -> 0 | T61: ='1.Profile'!J23 -> 0 | W61: Many people have had input to these control percentages. In reality they vary widely from year to year and from farm to farm and are hence left to the user to define.
A62: 8 | B62: Pre-E: Triazine | C62: =IF(C14<>"",1-(HLOOKUP(C14,$N$54:$T$97,$A62+1)),1) -> 1 | D62: 1 | E62: 1 | F62: 1 | G62: 1 | H62: 1 | I62: 1 | J62: 1 | K62: 1 | L62: 1 | N62: ='1.Profile'!H24 -> 0 | O62: ='1.Profile'!H24 -> 0 | P62: ='1.Profile'!I24 -> 0.7 | Q62: ='1.Profile'!I24 -> 0.7 | R62: ='1.Profile'!J24 -> 0.5 | S62: ='1.Profile'!J24 -> 0.5 | T62: ='1.Profile'!J24 -> 0.5 | W62: A number of those weed control options and their parameters are reviewed in:
A63: 9 | B63: High crop seeding rate selected | D63: Dealt with in Bio results.
A64: 10 | B64: Tickle selected | D64: Changes the RG emergence patterns, but does not control. | W64: Walsh, M. and Powles, S. (2007) Management Strategies for Herbicide-Resistant Weed Populations in Australian Dryland Crop Production Systems. Weed Technology 21:332–338
A65: 11 | B65: Mouldboard plough selected | C65: =IF(C17<>"",1-HLOOKUP(C17,$N$54:$T$98,$A65+1),1) -> 1 | D65: =IF(D17<>"",1-HLOOKUP(D17,$N$54:$T$98,$A65+1),1) -> 1 | E65: 1 | F65: 1 | G65: 1 | H65: 1 | I65: 1 | J65: 1 | K65: 1 | L65: 1 | N65: ='+Options'!$AG$125 -> 1 | O65: ='+Options'!$AG$125 -> 1 | P65: ='+Options'!$AG$125 -> 1 | Q65: ='+Options'!$AG$125 -> 1 | R65: ='+Options'!$AG$125 -> 1 | S65: ='+Options'!$AG$125 -> 1 | T65: ='+Options'!$AG$125 -> 1 | W65: Goggin, D.E., Powles, S.B. and Steadman, K,J. (2012) Understanding Lolium rigidum Seeds: The Key to Managing a Problem Weed? Agronomy 2:222-239
A66: 12 | B66: Full-cut selected | D66: The control % is applied to the 'time of seeding' options, below. | P66: 0.4 | Q66: 0.8 | W66: Walsh, M. and P. Newman (2007) Burning narrow windrows for weed seed destruction. Field Crops Research 104:24–30.
A67: 13 | B67: Seed dry | D67: No weed control | O67: Seeding timing & type | P67: No-till | Q67: Full cut | W67: Walsh, M., Harrington, R. and Powles, S (2012) Harrington Seed Destructor: a new non-chemical weed control tool for global grain crops. Crop Science (2012) 52:1343-1347
A68: 14 | B68: Seed wet (0+) | C68: =IF(AND(OR(C19<>"",C20<>""),OR(C19<>"",C20<>4)),1-IF(C$18<>"",Calcs!$Q68,Calcs!$P68),1) -> 0.6 | D68: =IF(AND(OR(D19<>"",D20<>""),OR(D19<>"",D20<>4)),1-IF(D$18<>"",Calcs!$Q68,Calcs!$P68),1) -> 0.6 | E68: =IF(AND(OR(E19<>"",E20<>""),OR(E19<>"",E20<>4)),1-IF(E$18<>"",Calcs!$Q68,Calcs!$P68),1) -> 0.6 | F68: =IF(AND(OR(F19<>"",F20<>""),OR(F19<>"",F20<>4)),1-IF(F$18<>"",Calcs!$Q68,Calcs!$P68),1) -> 1 | G68: =IF(AND(OR(G19<>"",G20<>""),OR(G19<>"",G20<>4)),1-IF(G$18<>"",Calcs!$Q68,Calcs!$P68),1) -> 1 | H68: =IF(AND(OR(H19<>"",H20<>""),OR(H19<>"",H20<>4)),1-IF(H$18<>"",Calcs!$Q68,Calcs!$P68),1) -> 1 | I68: =IF(AND(OR(I19<>"",I20<>""),OR(I19<>"",I20<>4)),1-IF(I$18<>"",Calcs!$Q68,Calcs!$P68),1) -> 1 | J68: =IF(AND(OR(J19<>"",J20<>""),OR(J19<>"",J20<>4)),1-IF(J$18<>"",Calcs!$Q68,Calcs!$P68),1) -> 0.6 | K68: =IF(AND(OR(K19<>"",K20<>""),OR(K19<>"",K20<>4)),1-IF(K$18<>"",Calcs!$Q68,Calcs!$P68),1) -> 0.6 | L68: =IF(AND(OR(L19<>"",L20<>""),OR(L19<>"",L20<>4)),1-IF(L$18<>"",Calcs!$Q68,Calcs!$P68),1) -> 0.6 | O68: =B68 -> Seed wet (0+) | P68: ='+Options'!Q22 -> 0.4 | Q68: ='+Options'!Q23 -> 0.8 | R68: Same control for | U68: Options | W68: ='1.Profile'!E49 -> Additional references for the default Profile, Options and Prices (2012): Stephen Powles (AHRI, UWA), Vanessa Stewart (DAFWA), Abul Ashem (DAFWA), David Pfeiffer (Synergy Consulting), Alistair Drapper, Bevan Addison.
A69: 15 | B69: =B21 -> Seed delayed 1-2 weeks (10) | C69: =IF(AND(C21<>"",C21<>4),1-IF(C$18<>"",Calcs!$Q69,Calcs!$P69),1) -> 1 | D69: =IF(AND(D21<>"",D21<>4),1-IF(D$18<>"",Calcs!$Q69,Calcs!$P69),1) -> 1 | E69: =IF(AND(E21<>"",E21<>4),1-IF(E$18<>"",Calcs!$Q69,Calcs!$P69),1) -> 1 | F69: =IF(AND(F21<>"",F21<>4),1-IF(F$18<>"",Calcs!$Q69,Calcs!$P69),1) -> 0.2 | G69: =IF(AND(G21<>"",G21<>4),1-IF(G$18<>"",Calcs!$Q69,Calcs!$P69),1) -> 1 | H69: =IF(AND(H21<>"",H21<>4),1-IF(H$18<>"",Calcs!$Q69,Calcs!$P69),1) -> 1 | I69: =IF(AND(I21<>"",I21<>4),1-IF(I$18<>"",Calcs!$Q69,Calcs!$P69),1) -> 1 | J69: =IF(AND(J21<>"",J21<>4),1-IF(J$18<>"",Calcs!$Q69,Calcs!$P69),1) -> 1 | K69: =IF(AND(K21<>"",K21<>4),1-IF(K$18<>"",Calcs!$Q69,Calcs!$P69),1) -> 1 | L69: =IF(AND(L21<>"",L21<>4),1-IF(L$18<>"",Calcs!$Q69,Calcs!$P69),1) -> 1 | O69: =B69 -> Seed delayed 1-2 weeks (10) | P69: =P68 -> 0.4 | Q69: =Q68 -> 0.8 | R69: all crops and pastures
A70: 16 | B70: Seed +delayed 2-3 weeks (20) | C70: =IF(AND(C22<>"",C22<>4),1-IF(C$18<>"",Calcs!$Q70,Calcs!$P70),1) -> 1 | D70: =IF(AND(D22<>"",D22<>4),1-IF(D$18<>"",Calcs!$Q70,Calcs!$P70),1) -> 1 | E70: =IF(AND(E22<>"",E22<>4),1-IF(E$18<>"",Calcs!$Q70,Calcs!$P70),1) -> 1 | F70: =IF(AND(F22<>"",F22<>4),1-IF(F$18<>"",Calcs!$Q70,Calcs!$P70),1) -> 1 | G70: =IF(AND(G22<>"",G22<>4),1-IF(G$18<>"",Calcs!$Q70,Calcs!$P70),1) -> 1 | H70: =IF(AND(H22<>"",H22<>4),1-IF(H$18<>"",Calcs!$Q70,Calcs!$P70),1) -> 1 | I70: =IF(AND(I22<>"",I22<>4),1-IF(I$18<>"",Calcs!$Q70,Calcs!$P70),1) -> 1 | J70: =IF(AND(J22<>"",J22<>4),1-IF(J$18<>"",Calcs!$Q70,Calcs!$P70),1) -> 1 | K70: =IF(AND(K22<>"",K22<>4),1-IF(K$18<>"",Calcs!$Q70,Calcs!$P70),1) -> 1 | L70: =IF(AND(L22<>"",L22<>4),1-IF(L$18<>"",Calcs!$Q70,Calcs!$P70),1) -> 1 | O70: =B70 -> Seed +delayed 2-3 weeks (20) | P70: =P69 -> 0.4 | Q70: =Q69 -> 0.8 | W70: Knock-down: | Y70: 0.95
A71: 17 | B71: Post-E: Topik | C71: =IF(C23<>"",1-(HLOOKUP(C23,$N$54:$T$97,$A71+1)),1) -> 0.1 | D71: 1 | E71: 1 | F71: 1 | G71: 1 | H71: 1 | I71: 1 | J71: 1 | K71: 1 | L71: 1 | N71: ='1.Profile'!H26 -> 0.9 | O71: ='1.Profile'!H26 -> 0.9 | P71: ='1.Profile'!I26 -> 0 | Q71: ='1.Profile'!I26 -> 0 | R71: ='1.Profile'!J26 -> 0 | S71: ='1.Profile'!J26 -> 0 | T71: ='1.Profile'!J26 -> 0 | U71: Profile | W71: Double-knock: | Y71: 1
A72: 18 | B72: Post-E: Hussar | C72: =IF(C24<>"",1-(HLOOKUP(C24,$N$54:$T$97,$A72+1)),1) -> 1 | D72: 0.05 | E72: 1 | F72: 1 | G72: 1 | H72: 1 | I72: 1 | J72: 1 | K72: 1 | L72: 1 | N72: ='1.Profile'!H27 -> 0.95 | O72: ='1.Profile'!H27 -> 0.95 | P72: ='1.Profile'!I27 -> 0 | Q72: ='1.Profile'!I27 -> 0 | R72: ='1.Profile'!J27 -> 0 | S72: ='1.Profile'!J27 -> 0 | T72: ='1.Profile'!J27 -> 0
A73: 19 | B73: Post-E: Clethodim | C73: =IF(C25<>"",1-(HLOOKUP(C25,$N$54:$T$97,$A73+1)),1) -> 1 | D73: 1 | E73: 1 | F73: 1 | G73: 1 | H73: 1 | I73: 1 | J73: 1 | K73: 1 | L73: 1 | N73: ='1.Profile'!H28 -> 0 | O73: ='1.Profile'!H28 -> 0 | P73: ='1.Profile'!I28 -> 0.9 | Q73: ='1.Profile'!I28 -> 0.9 | R73: ='1.Profile'!J28 -> 0 | S73: ='1.Profile'!J28 -> 0 | T73: ='1.Profile'!J28 -> 0 | W73: Tickle: | Y73: 0
A74: 20 | B74: Post-E: Glyphosate | C74: =IF(C26<>"",1-(HLOOKUP(C26,$N$54:$T$97,$A74+1)),1) -> 1 | D74: 1 | E74: 1 | F74: 1 | G74: 1 | H74: 1 | I74: 1 | J74: 1 | K74: 1 | L74: 1 | N74: ='1.Profile'!H29 -> 0 | O74: ='1.Profile'!H29 -> 0 | P74: ='1.Profile'!I29 -> 0.9 | Q74: ='1.Profile'!I29 -> 0.9 | R74: ='1.Profile'!J29 -> 0 | S74: ='1.Profile'!J29 -> 0 | T74: ='1.Profile'!J29 -> 0 | W74: Mouldboard plough | Y74: 1
A75: 21 | B75: Post-E: Paraquat | C75: =IF(C27<>"",1-(HLOOKUP(C27,$N$54:$T$97,$A75+1)),1) -> 1 | D75: 1 | E75: 1 | F75: 1 | G75: 1 | H75: 1 | I75: 1 | J75: 1 | K75: 1 | L75: 1 | N75: ='1.Profile'!H30 -> 0 | O75: ='1.Profile'!H30 -> 0 | P75: ='1.Profile'!I30 -> 0 | Q75: ='1.Profile'!I30 -> 0 | R75: ='1.Profile'!J30 -> 0.65 | S75: ='1.Profile'!J30 -> 0.65 | T75: ='1.Profile'!J30 -> 0.65 | W75: No-till: | Y75: 0.05 | Z75: same if delayed
A76: 22 | B76: Grazing intensity, standard | D76: Dealt with in the rotation table, from values in the Options page. | W76: Full-cut: | Y76: 0.8 | Z76: same if delayed
A77: 23 | B77: Grazing intensity, high
A78: 24 | B78: =B31 -> Spring: Brown M | C78: =IF(C31<>"",1-HLOOKUP(C31,$N$54:$T$98,$A78+1),1) -> 1 | D78: 1 | E78: 1 | F78: 1 | G78: 1 | H78: 1 | I78: 1 | J78: 1 | K78: 1 | L78: 1 | N78: =IF(SUM('1.Profile'!H16:H17)<>0,'+Options'!$Q$30,0) -> 1 | O78: =IF(SUM('1.Profile'!H16:H17)<>0,'+Options'!$Q$30,0) -> 1 | P78: =IF(SUM('1.Profile'!I16:I17)<>0,'+Options'!$Q$30,0) -> 1 | Q78: =IF(SUM('1.Profile'!I16:I17)<>0,'+Options'!$Q$30,0) -> 1 | R78: =IF(SUM('1.Profile'!J16:J17)<>0,'+Options'!$Q$30,0) -> 1 | S78: =IF(SUM('1.Profile'!J16:J17)<>0,'+Options'!$Q$30,0) -> 1 | T78: =IF(SUM('1.Profile'!J16:J17)<>0,'+Options'!$Q$30,0) -> 1 | W78: Sacrifice + spray: | Y78: 1 | AA78: 0% if no no-selectives
A79: 25 | B79: =B30 -> Spring: Topping | C79: =IF(C30<>"",1-HLOOKUP(C30,$N$54:$T$98,$A79+1),1) -> 1 | D79: 1 | E79: 1 | F79: 1 | G79: 1 | H79: 1 | I79: 0.1 | J79: 1 | K79: 1 | L79: 1 | N79: ='+Options'!$Q$24 -> 0.75 | O79: ='+Options'!$Q$24 -> 0.75 | P79: ='+Options'!$Q$25 -> 0.75 | Q79: ='+Options'!$Q$25 -> 0.75 | R79: ='+Options'!$Q$26 -> 0.9 | S79: ='+Options'!$Q$26 -> 0.9 | T79: ='+Options'!$Q$26 -> 0.9 | U79: Options | W79: Topping: crops: 75% pastures: 90%
A80: 26 | B80: =B32 -> empty slot for adding a spring option | C80: =IF(C32<>"",1-HLOOKUP(C32,$N$54:$T$98,$A80+1),1) -> 1 | D80: 1 | E80: 1 | F80: 1 | G80: 1 | H80: 1 | I80: 1 | J80: 1 | K80: 1 | L80: 1 | W80: n.a.
A81: 27 | B81: Spring: Mow+Spray | C81: =IF(C33<>"",1-HLOOKUP(C33,$N$54:$T$98,$A81+1),1) -> 1 | D81: 1 | E81: 1 | F81: 1 | G81: 1 | H81: 1 | I81: 1 | J81: 1 | K81: 1 | L81: 1 | N81: ='+Options'!$Q$30 -> 1 | O81: ='+Options'!$Q$30 -> 1 | P81: ='+Options'!$Q$30 -> 1 | Q81: ='+Options'!$Q$30 -> 1 | R81: ='+Options'!$Q$30 -> 1 | S81: ='+Options'!$Q$30 -> 1 | T81: ='+Options'!$Q$30 -> 1 | W81: Sacrifice + spray: | Y81: 1
A82: 28 | B82: Spring: Green M. | C82: =IF(C34<>"",1-HLOOKUP(C34,$N$54:$T$98,$A82+1),1) -> 1 | D82: =IF(D34<>"",1-HLOOKUP(D34,$N$54:$S$98,$A82+1),1) -> 1 | E82: 1 | F82: 1 | G82: 1 | H82: 1 | I82: 1 | J82: 1 | K82: 1 | L82: 1 | N82: ='+Options'!$Q$30 -> 1 | O82: ='+Options'!$Q$30 -> 1 | P82: ='+Options'!$Q$30 -> 1 | Q82: ='+Options'!$Q$30 -> 1 | R82: ='+Options'!$Q$30 -> 1 | S82: ='+Options'!$Q$30 -> 1 | T82: ='+Options'!$Q$30 -> 1 | W82: Sacrifice + spray: | Y82: 1 | AA82: 60% if no no-selectives
A83: 29 | B83: Spring: Hay+Spray | C83: 1 | D83: =IF(D35<>"",1-HLOOKUP(D35,$N$54:$S$98,$A83+1),1) -> 1 | E83: 1 | F83: 1 | G83: 1 | H83: 1 | I83: 1 | J83: 1 | K83: 1 | L83: 1 | N83: ='+Options'!$P$16 -> 1 | O83: ='+Options'!$P$16 -> 1 | P83: ='+Options'!$P$16 -> 1 | Q83: ='+Options'!$P$16 -> 1 | R83: ='+Options'!$P$16 -> 1 | S83: ='+Options'!$P$16 -> 1 | T83: ='+Options'!$P$16 -> 1 | U83: Options | W83: Hay + spray | Y83: 1
A84: 30 | B84: Spring: Sil.+Spray | C84: 1 | D84: =IF(D36<>"",1-HLOOKUP(D36,$N$54:$S$98,$A84+1),1) -> 1 | E84: 1 | F84: 1 | G84: 1 | H84: 1 | I84: 1 | J84: 1 | K84: 1 | L84: 1 | N84: =AVERAGE(N83,1) -> 1 | O84: =AVERAGE(O83,1) -> 1 | P84: 1 | Q84: 1 | R84: 1 | S84: 1 | T84: 1 | W84: Silage: higher than hay
A85: 31 | B85: Spring A1: Define 1st | C85: 1 | D85: =IF(D37<>"",1-HLOOKUP(D37,$N$54:$T$98,$A85+1),1) -> 1 | E85: 1 | F85: 1 | G85: 1 | H85: 1 | I85: 1 | J85: 1 | K85: 1 | L85: 1 | N85: ='1.Profile'!H32 -> 0.7 | O85: ='1.Profile'!H32 -> 0.7 | P85: ='1.Profile'!I32 -> 0.7 | Q85: ='1.Profile'!I32 -> 0.7 | R85: ='1.Profile'!J32 -> 0.7 | S85: ='1.Profile'!J32 -> 0.7 | T85: ='1.Profile'!J32 -> 0.7 | U85: Profile
A86: 32 | B86: Spring A2: Define 2nd | C86: 1 | D86: =IF(D38<>"",1-HLOOKUP(D38,$N$54:$T$98,$A86+1),1) -> 1 | E86: 1 | F86: 1 | G86: 1 | H86: 1 | I86: 1 | J86: 1 | K86: 1 | L86: 1 | N86: ='1.Profile'!H33 -> 0.7 | O86: ='1.Profile'!H33 -> 0.7 | P86: ='1.Profile'!I33 -> 0.7 | Q86: ='1.Profile'!I33 -> 0.7 | R86: ='1.Profile'!J33 -> 0.7 | S86: ='1.Profile'!J33 -> 0.7 | T86: ='1.Profile'!J33 -> 0.7
A87: 33 | B87: Spring - swathe: W/o Spray | C87: 1 | D87: =IF(D39<>"",1-HLOOKUP(D39,$N$54:$T$98,$A87+1),1) -> 1 | E87: 1 | F87: 1 | G87: 1 | H87: 1 | I87: 1 | J87: 1 | K87: 1 | L87: 1 | N87: ='+Options'!$Q$27*1.1 -> 0.44 | O87: ='+Options'!$Q$27*1.1 -> 0.44 | P87: ='+Options'!$Q$27*0.9 -> 0.36 | Q87: ='+Options'!$Q$27*0.9 -> 0.36 | U87: Options | W87: Swathe: legumes & canola: 35% cereals: 45%
A88: 34 | B88: Spring - swathe: With Spray | C88: 1 | D88: =IF(D40<>"",1-HLOOKUP(D40,$N$54:$T$98,$A88+1),1) -> 1 | E88: 0.1 | F88: 1 | G88: 1 | H88: 1 | I88: 1 | J88: 1 | K88: 1 | L88: 0.1 | N88: ='+Options'!$Q$28 -> 0.9 | O88: ='+Options'!$Q$28 -> 0.9 | P88: ='+Options'!$Q$28 -> 0.9 | Q88: ='+Options'!$Q$28 -> 0.9 | W88: Swathe + spray: | Y88: 0.9
A89: 35 | B89: Harvest: Cart+B. | C89: 1 | D89: =IF(D41<>"",1-HLOOKUP(D41,$N$54:$T$98,$A89+1),1) -> 1 | E89: 1 | F89: 1 | G89: 1 | H89: 1 | I89: 1 | J89: 1 | K89: 1 | L89: 1 | N89: ='+Options'!Q34 -> 0.85 | O89: =N89 -> 0.85 | P89: =N89 -> 0.85 | Q89: =N89 -> 0.85 | U89: Options | W89: 0.85 | X89: --> RG controlled ~ 85% (+/- 20%), from:
A90: 36 | B90: Harvest: Narr+B. | C90: 0.15 | D90: =IF(D42<>"",1-HLOOKUP(D42,$N$54:$T$98,$A90+1),1) -> 0.15 | E90: 1 | F90: 1 | G90: 1 | H90: 1 | I90: 1 | J90: 0.15 | K90: 1 | L90: 0.15 | N90: ='+Options'!Q35 -> 0.85 | O90: 0.85 | P90: 0.85 | Q90: 0.85 | W90: 0.85 | X90: Ryegrass captured at harvest 88% (75-100%).
A91: 37 | B91: Harvest: HSD | C91: 1 | D91: =IF(D43<>"",1-HLOOKUP(D43,$N$54:$T$98,$A91+1),1) -> 1 | E91: 1 | F91: 1 | G91: 1 | H91: 1 | I91: 1 | J91: 1 | K91: 1 | L91: 1 | N91: ='+Options'!Q33 -> 0.85 | O91: 0.85 | P91: 0.85 | Q91: 0.85 | W91: 0.85 | X91: (combination of ryegrass seeds retention and header height)
A92: 38 | B92: Harvest: Tram. | C92: 1 | D92: =IF(D44<>"",1-HLOOKUP(D44,$N$54:$T$98,$A92+1),1) -> 1 | E92: 1 | F92: 1 | G92: 1 | H92: 1 | I92: 1 | J92: 1 | K92: 1 | L92: 1 | N92: ='+Options'!Q32 -> 0.85 | O92: 0.85 | P92: 0.85 | Q92: 0.85 | W92: 0.85 | X92: Proportion of seeds in chaff: 95%, closer to 100% if straw as well (narrow windrows and BDS)
A93: 39 | B93: empty slot for adding a harvest option, configured for bales | C93: 1 | D93: =IF(D45<>"",1-HLOOKUP(D45,$N$54:$T$98,$A93+1),1) -> 1 | E93: 1 | F93: 1 | G93: 1 | H93: 1 | I93: 1 | J93: 1 | K93: 1 | L93: 1 | X93: Kill by high burn, export, crush, stumped+herbicide: 98% (95-100%)
A94: 40 | B94: Harvest: BDS+E. | C94: 1 | D94: =IF(D46<>"",1-HLOOKUP(D46,$N$54:$T$98,$A94+1),1) -> 1 | E94: 1 | F94: 1 | G94: 1 | H94: 1 | I94: 1 | J94: 1 | K94: 1 | L94: 1 | N94: ='+Options'!Q33 -> 0.85 | O94: 0.85 | P94: 0.85 | Q94: 0.85 | W94: 0.85
A95: 41 | B95: Harvest: B.all | C95: 1 | D95: =IF(D47<>"",1-HLOOKUP(D47,$N$54:$T$98,$A95+1),1) -> 1 | E95: 1 | F95: 1 | G95: 1 | H95: 1 | I95: 1 | J95: 1 | K95: 1 | L95: 1 | N95: ='+Options'!Q36 -> 0.6 | O95: 0.6 | P95: =$N$95*0.75 -> 0.45 | Q95: =$N$95*0.75 -> 0.45 | R95: 0.45 | S95: 0.45 | T95: 0.45 | U95: Options | W95: 0.6 | X95: Highly variable. Much lower for canola and legumes than cereals
A96: 42 | B96: Harvest B1: Define 1st | C96: 1 | D96: =IF(D48<>"",1-HLOOKUP(D48,$N$54:$T$98,$A96+1),1) -> 1 | E96: 1 | F96: 1 | G96: 1 | H96: 1 | I96: 1 | J96: 1 | K96: 1 | L96: 1 | N96: ='1.Profile'!H35 -> 0.7 | O96: ='1.Profile'!H35 -> 0.7 | P96: ='1.Profile'!I35 -> 0.7 | Q96: ='1.Profile'!I35 -> 0.7 | R96: ='1.Profile'!J35 -> 0.7 | S96: ='1.Profile'!J35 -> 0.7 | T96: ='1.Profile'!J35 -> 0.7 | U96: Profile
A97: 43 | B97: Harvest B2: Define 2nd | C97: 1 | D97: =IF(D49<>"",1-HLOOKUP(D49,$N$54:$T$98,$A97+1),1) -> 1 | E97: 1 | F97: 1 | G97: 1 | H97: 1 | I97: 1 | J97: 1 | K97: 1 | L97: 1 | N97: ='1.Profile'!H36 -> 0.7 | O97: ='1.Profile'!H36 -> 0.7 | P97: ='1.Profile'!I36 -> 0.7 | Q97: ='1.Profile'!I36 -> 0.7 | R97: ='1.Profile'!J36 -> 0.7 | S97: ='1.Profile'!J36 -> 0.7 | T97: ='1.Profile'!J36 -> 0.7
B99: Removal of seed in normal harvest | C99: =IF(AND(E184<4,AND(COUNTIF(C31:C38,">=0")=0,COUNTIF(C41:C49,">=0")=0)),1-'+Options'!$AG$134,1) -> 1 | D99: =IF(AND(F184<4,AND(COUNTIF(D31:D38,">=0")=0,COUNTIF(D41:D49,">=0")=0)),1-'+Options'!$AG$134,1) -> 1 | E99: =IF(AND(G184<4,AND(COUNTIF(E31:E38,">=0")=0,COUNTIF(E41:E49,">=0")=0)),1-'+Options'!$AG$134,1) -> 0.95 | F99: =IF(AND(H184<4,AND(COUNTIF(F31:F38,">=0")=0,COUNTIF(F41:F49,">=0")=0)),1-'+Options'!$AG$134,1) -> 1 | G99: =IF(AND(I184<4,AND(COUNTIF(G31:G38,">=0")=0,COUNTIF(G41:G49,">=0")=0)),1-'+Options'!$AG$134,1) -> 1 | H99: =IF(AND(J184<4,AND(COUNTIF(H31:H38,">=0")=0,COUNTIF(H41:H49,">=0")=0)),1-'+Options'!$AG$134,1) -> 1 | I99: =IF(AND(K184<4,AND(COUNTIF(I31:I38,">=0")=0,COUNTIF(I41:I49,">=0")=0)),1-'+Options'!$AG$134,1) -> 1 | J99: =IF(AND(L184<4,AND(COUNTIF(J31:J38,">=0")=0,COUNTIF(J41:J49,">=0")=0)),1-'+Options'!$AG$134,1) -> 1 | K99: =IF(AND(M184<4,AND(COUNTIF(K31:K38,">=0")=0,COUNTIF(K41:K49,">=0")=0)),1-'+Options'!$AG$134,1) -> 0.95 | L99: =IF(AND(N184<4,AND(COUNTIF(L31:L38,">=0")=0,COUNTIF(L41:L49,">=0")=0)),1-'+Options'!$AG$134,1) -> 1
B103: Table 3. Selected costs ($/ha) | C103: Cost of each selected option. | O103: Table 3a Options costs ($/ha) | Y103: Table 3b. Generic costs ($/ha)
N104: Wheat | O104: Barley | P104: Canola | Q104: Legume | R104: Volunt. | S104: Legume past. | T104: Cadiz | U104: from | V104: added | AB104: Wheat | AC104: Barley | AD104: Canola | AE104: Legume | AF104: Volunt. | AG104: Legume past. | AH104: Cadiz
A105: 1 | B105: =B7 -> KD/DK: Glyphosate | C105: =IF(C7=1,Calcs!$O105,IF(C7=2,Calcs!$P105,IF(C7=3,Calcs!$Q105,IF(C7=0,Calcs!$N105,IF(C7=5,Calcs!$S105,IF(C7=4,Calcs!$R105,IF(C7=6,Calcs!$T105,0))))))) -> 0 | D105: =IF(D7=1,Calcs!$O105,IF(D7=2,Calcs!$P105,IF(D7=3,Calcs!$Q105,IF(D7=0,Calcs!$N105,IF(D7=5,Calcs!$S105,IF(D7=4,Calcs!$R105,IF(D7=6,Calcs!$T105,0))))))) -> 0 | E105: =IF(E7=1,Calcs!$O105,IF(E7=2,Calcs!$P105,IF(E7=3,Calcs!$Q105,IF(E7=0,Calcs!$N105,IF(E7=5,Calcs!$S105,IF(E7=4,Calcs!$R105,IF(E7=6,Calcs!$T105,0))))))) -> 0 | F105: =IF(F7=1,Calcs!$O105,IF(F7=2,Calcs!$P105,IF(F7=3,Calcs!$Q105,IF(F7=0,Calcs!$N105,IF(F7=5,Calcs!$S105,IF(F7=4,Calcs!$R105,IF(F7=6,Calcs!$T105,0))))))) -> 0 | G105: =IF(G7=1,Calcs!$O105,IF(G7=2,Calcs!$P105,IF(G7=3,Calcs!$Q105,IF(G7=0,Calcs!$N105,IF(G7=5,Calcs!$S105,IF(G7=4,Calcs!$R105,IF(G7=6,Calcs!$T105,0))))))) -> 0 | H105: =IF(H7=1,Calcs!$O105,IF(H7=2,Calcs!$P105,IF(H7=3,Calcs!$Q105,IF(H7=0,Calcs!$N105,IF(H7=5,Calcs!$S105,IF(H7=4,Calcs!$R105,IF(H7=6,Calcs!$T105,0))))))) -> 0 | I105: =IF(I7=1,Calcs!$O105,IF(I7=2,Calcs!$P105,IF(I7=3,Calcs!$Q105,IF(I7=0,Calcs!$N105,IF(I7=5,Calcs!$S105,IF(I7=4,Calcs!$R105,IF(I7=6,Calcs!$T105,0))))))) -> 0 | J105: =IF(J7=1,Calcs!$O105,IF(J7=2,Calcs!$P105,IF(J7=3,Calcs!$Q105,IF(J7=0,Calcs!$N105,IF(J7=5,Calcs!$S105,IF(J7=4,Calcs!$R105,IF(J7=6,Calcs!$T105,0))))))) -> 0 | K105: =IF(K7=1,Calcs!$O105,IF(K7=2,Calcs!$P105,IF(K7=3,Calcs!$Q105,IF(K7=0,Calcs!$N105,IF(K7=5,Calcs!$S105,IF(K7=4,Calcs!$R105,IF(K7=6,Calcs!$T105,0))))))) -> 0 | L105: =IF(L7=1,Calcs!$O105,IF(L7=2,Calcs!$P105,IF(L7=3,Calcs!$Q105,IF(L7=0,Calcs!$N105,IF(L7=5,Calcs!$S105,IF(L7=4,Calcs!$R105,IF(L7=6,Calcs!$T105,0))))))) -> 0 | N105: ='1.Profile'!E16+Calcs!$AB$105 -> 26 | O105: ='1.Profile'!E16+Calcs!$AC$105 -> 26 | P105: ='1.Profile'!F16+Calcs!$AD$105 -> 26 | Q105: ='1.Profile'!F16+Calcs!$AE$105 -> 26 | R105: ='1.Profile'!G16+Calcs!$AF$105 -> 22 | S105: ='1.Profile'!G16+Calcs!$AG$105 -> 22 | T105: ='1.Profile'!G16+Calcs!$AH$105 -> 22 | U105: Profile | V105: +boom | X105: +boom | Y105: Cost by boom of herbicide/pesticide application ($/ha) | AB105: ='1.Profile'!$M$10 -> 8 | AC105: ='1.Profile'!$M$10 -> 8 | AD105: ='1.Profile'!$M$10 -> 8 | AE105: ='1.Profile'!$M$10 -> 8 | AF105: ='1.Profile'!$M$10 -> 8 | AG105: ='1.Profile'!$M$10 -> 8 | AH105: ='1.Profile'!$M$10 -> 8 | AI105: from Profile
A106: 2 | B106: KD/DK: Paraquat | C106: =IF(C8=1,Calcs!$O106,IF(C8=2,Calcs!$P106,IF(C8=3,Calcs!$Q106,IF(C8=0,Calcs!$N106,IF(C8=5,Calcs!$S106,IF(C8=4,Calcs!$R106,IF(C8=6,Calcs!$T106,0))))))) -> 0 | D106: =IF(D8=1,Calcs!$O106,IF(D8=2,Calcs!$P106,IF(D8=3,Calcs!$Q106,IF(D8=0,Calcs!$N106,IF(D8=5,Calcs!$S106,IF(D8=4,Calcs!$R106,IF(D8=6,Calcs!$T106,0))))))) -> 0 | E106: =IF(E8=1,Calcs!$O106,IF(E8=2,Calcs!$P106,IF(E8=3,Calcs!$Q106,IF(E8=0,Calcs!$N106,IF(E8=5,Calcs!$S106,IF(E8=4,Calcs!$R106,IF(E8=6,Calcs!$T106,0))))))) -> 0 | F106: =IF(F8=1,Calcs!$O106,IF(F8=2,Calcs!$P106,IF(F8=3,Calcs!$Q106,IF(F8=0,Calcs!$N106,IF(F8=5,Calcs!$S106,IF(F8=4,Calcs!$R106,IF(F8=6,Calcs!$T106,0))))))) -> 0 | G106: =IF(G8=1,Calcs!$O106,IF(G8=2,Calcs!$P106,IF(G8=3,Calcs!$Q106,IF(G8=0,Calcs!$N106,IF(G8=5,Calcs!$S106,IF(G8=4,Calcs!$R106,IF(G8=6,Calcs!$T106,0))))))) -> 16 | H106: =IF(H8=1,Calcs!$O106,IF(H8=2,Calcs!$P106,IF(H8=3,Calcs!$Q106,IF(H8=0,Calcs!$N106,IF(H8=5,Calcs!$S106,IF(H8=4,Calcs!$R106,IF(H8=6,Calcs!$T106,0))))))) -> 0 | I106: =IF(I8=1,Calcs!$O106,IF(I8=2,Calcs!$P106,IF(I8=3,Calcs!$Q106,IF(I8=0,Calcs!$N106,IF(I8=5,Calcs!$S106,IF(I8=4,Calcs!$R106,IF(I8=6,Calcs!$T106,0))))))) -> 0 | J106: =IF(J8=1,Calcs!$O106,IF(J8=2,Calcs!$P106,IF(J8=3,Calcs!$Q106,IF(J8=0,Calcs!$N106,IF(J8=5,Calcs!$S106,IF(J8=4,Calcs!$R106,IF(J8=6,Calcs!$T106,0))))))) -> 0 | K106: =IF(K8=1,Calcs!$O106,IF(K8=2,Calcs!$P106,IF(K8=3,Calcs!$Q106,IF(K8=0,Calcs!$N106,IF(K8=5,Calcs!$S106,IF(K8=4,Calcs!$R106,IF(K8=6,Calcs!$T106,0))))))) -> 0 | L106: =IF(L8=1,Calcs!$O106,IF(L8=2,Calcs!$P106,IF(L8=3,Calcs!$Q106,IF(L8=0,Calcs!$N106,IF(L8=5,Calcs!$S106,IF(L8=4,Calcs!$R106,IF(L8=6,Calcs!$T106,0))))))) -> 0 | N106: ='1.Profile'!E17+Calcs!$AB$105 -> 16 | O106: ='1.Profile'!E17+Calcs!$AC$105 -> 16 | P106: ='1.Profile'!F17+Calcs!$AD$105 -> 16 | Q106: ='1.Profile'!F17+Calcs!$AE$105 -> 16 | R106: ='1.Profile'!G17+Calcs!$AF$105 -> 16 | S106: ='1.Profile'!G17+Calcs!$AG$105 -> 16 | T106: ='1.Profile'!G17+Calcs!$AH$105 -> 16 | V106: +boom | AI106: Rate | AJ106: Leg.
A107: 3 | B107: KD/DK: Glyphosate/Paraquat | C107: =IF(C9=1,Calcs!$O107,IF(C9=2,Calcs!$P107,IF(C9=3,Calcs!$Q107,IF(C9=0,Calcs!$N107,IF(C9=5,Calcs!$S107,IF(C9=4,Calcs!$R107,IF(C9=6,Calcs!$T107,0))))))) -> 0 | D107: =IF(D9=1,Calcs!$O107,IF(D9=2,Calcs!$P107,IF(D9=3,Calcs!$Q107,IF(D9=0,Calcs!$N107,IF(D9=5,Calcs!$S107,IF(D9=4,Calcs!$R107,IF(D9=6,Calcs!$T107,0))))))) -> 0 | E107: =IF(E9=1,Calcs!$O107,IF(E9=2,Calcs!$P107,IF(E9=3,Calcs!$Q107,IF(E9=0,Calcs!$N107,IF(E9=5,Calcs!$S107,IF(E9=4,Calcs!$R107,IF(E9=6,Calcs!$T107,0))))))) -> 0 | F107: =IF(F9=1,Calcs!$O107,IF(F9=2,Calcs!$P107,IF(F9=3,Calcs!$Q107,IF(F9=0,Calcs!$N107,IF(F9=5,Calcs!$S107,IF(F9=4,Calcs!$R107,IF(F9=6,Calcs!$T107,0))))))) -> 38 | G107: =IF(G9=1,Calcs!$O107,IF(G9=2,Calcs!$P107,IF(G9=3,Calcs!$Q107,IF(G9=0,Calcs!$N107,IF(G9=5,Calcs!$S107,IF(G9=4,Calcs!$R107,IF(G9=6,Calcs!$T107,0))))))) -> 0 | H107: =IF(H9=1,Calcs!$O107,IF(H9=2,Calcs!$P107,IF(H9=3,Calcs!$Q107,IF(H9=0,Calcs!$N107,IF(H9=5,Calcs!$S107,IF(H9=4,Calcs!$R107,IF(H9=6,Calcs!$T107,0))))))) -> 38 | I107: =IF(I9=1,Calcs!$O107,IF(I9=2,Calcs!$P107,IF(I9=3,Calcs!$Q107,IF(I9=0,Calcs!$N107,IF(I9=5,Calcs!$S107,IF(I9=4,Calcs!$R107,IF(I9=6,Calcs!$T107,0))))))) -> 38 | J107: =IF(J9=1,Calcs!$O107,IF(J9=2,Calcs!$P107,IF(J9=3,Calcs!$Q107,IF(J9=0,Calcs!$N107,IF(J9=5,Calcs!$S107,IF(J9=4,Calcs!$R107,IF(J9=6,Calcs!$T107,0))))))) -> 0 | K107: =IF(K9=1,Calcs!$O107,IF(K9=2,Calcs!$P107,IF(K9=3,Calcs!$Q107,IF(K9=0,Calcs!$N107,IF(K9=5,Calcs!$S107,IF(K9=4,Calcs!$R107,IF(K9=6,Calcs!$T107,0))))))) -> 0 | L107: =IF(L9=1,Calcs!$O107,IF(L9=2,Calcs!$P107,IF(L9=3,Calcs!$Q107,IF(L9=0,Calcs!$N107,IF(L9=5,Calcs!$S107,IF(L9=4,Calcs!$R107,IF(L9=6,Calcs!$T107,0))))))) -> 0 | N107: ='1.Profile'!E18+2*Calcs!$AB$105 -> 42 | O107: ='1.Profile'!E18+2*Calcs!$AC$105 -> 42 | P107: ='1.Profile'!F18+2*Calcs!$AD$105 -> 42 | Q107: ='1.Profile'!F18+2*Calcs!$AE$105 -> 42 | R107: ='1.Profile'!G18+2*Calcs!$AF$105 -> 38 | S107: ='1.Profile'!G18+2*Calcs!$AG$105 -> 38 | T107: ='1.Profile'!G18+2*Calcs!$AH$105 -> 38 | V107: +2xboom | X107: +SP | Y107: Spring spray, high, chemical only | AB107: =IF(SUM('1.Profile'!E16:E17)<>0,AVERAGE('1.Profile'!E16:E17)*AI107,0) -> 15.6 | AC107: =IF(SUM('1.Profile'!E16:E17)<>0,AVERAGE('1.Profile'!E16:E17)*AI107,0) -> 15.6 | AD107: =IF(SUM('1.Profile'!F16:F17)<>0,AVERAGE('1.Profile'!F16:F17)*AI107,0) -> 15.6 | AE107: =IF(SUM('1.Profile'!F16:F17)<>0,AVERAGE('1.Profile'!F16:F17)*AI107,0) -> 15.6 | AF107: =IF(SUM('1.Profile'!G16:G17)<>0,AVERAGE('1.Profile'!G16:G17)*AI107,0) -> 13.2 | AG107: =IF(SUM('1.Profile'!G16:G17)<>0,AVERAGE('1.Profile'!G16:G17)*AI107,0) -> 13.2 | AH107: =IF(SUM('1.Profile'!G16:G17)<>0,AVERAGE('1.Profile'!G16:G17)*AI107,0) -> 13.2 | AI107: 1.2
A108: 4 | B108: Pre-E: Triflur+Triallate | C108: =IF(C10=1,Calcs!$O108,IF(C10=2,Calcs!$P108,IF(C10=3,Calcs!$Q108,IF(C10=0,Calcs!$N108,IF(C10=5,Calcs!$S108,IF(C10=4,Calcs!$R108,IF(C10=6,Calcs!$T108,0))))))) -> 30 | D108: =IF(D10=1,Calcs!$O108,IF(D10=2,Calcs!$P108,IF(D10=3,Calcs!$Q108,IF(D10=0,Calcs!$N108,IF(D10=5,Calcs!$S108,IF(D10=4,Calcs!$R108,IF(D10=6,Calcs!$T108,0))))))) -> 0 | E108: =IF(E10=1,Calcs!$O108,IF(E10=2,Calcs!$P108,IF(E10=3,Calcs!$Q108,IF(E10=0,Calcs!$N108,IF(E10=5,Calcs!$S108,IF(E10=4,Calcs!$R108,IF(E10=6,Calcs!$T108,0))))))) -> 0 | F108: =IF(F10=1,Calcs!$O108,IF(F10=2,Calcs!$P108,IF(F10=3,Calcs!$Q108,IF(F10=0,Calcs!$N108,IF(F10=5,Calcs!$S108,IF(F10=4,Calcs!$R108,IF(F10=6,Calcs!$T108,0))))))) -> 0 | G108: =IF(G10=1,Calcs!$O108,IF(G10=2,Calcs!$P108,IF(G10=3,Calcs!$Q108,IF(G10=0,Calcs!$N108,IF(G10=5,Calcs!$S108,IF(G10=4,Calcs!$R108,IF(G10=6,Calcs!$T108,0))))))) -> 0 | H108: =IF(H10=1,Calcs!$O108,IF(H10=2,Calcs!$P108,IF(H10=3,Calcs!$Q108,IF(H10=0,Calcs!$N108,IF(H10=5,Calcs!$S108,IF(H10=4,Calcs!$R108,IF(H10=6,Calcs!$T108,0))))))) -> 0 | I108: =IF(I10=1,Calcs!$O108,IF(I10=2,Calcs!$P108,IF(I10=3,Calcs!$Q108,IF(I10=0,Calcs!$N108,IF(I10=5,Calcs!$S108,IF(I10=4,Calcs!$R108,IF(I10=6,Calcs!$T108,0))))))) -> 0 | J108: =IF(J10=1,Calcs!$O108,IF(J10=2,Calcs!$P108,IF(J10=3,Calcs!$Q108,IF(J10=0,Calcs!$N108,IF(J10=5,Calcs!$S108,IF(J10=4,Calcs!$R108,IF(J10=6,Calcs!$T108,0))))))) -> 0 | K108: =IF(K10=1,Calcs!$O108,IF(K10=2,Calcs!$P108,IF(K10=3,Calcs!$Q108,IF(K10=0,Calcs!$N108,IF(K10=5,Calcs!$S108,IF(K10=4,Calcs!$R108,IF(K10=6,Calcs!$T108,0))))))) -> 0 | L108: =IF(L10=1,Calcs!$O108,IF(L10=2,Calcs!$P108,IF(L10=3,Calcs!$Q108,IF(L10=0,Calcs!$N108,IF(L10=5,Calcs!$S108,IF(L10=4,Calcs!$R108,IF(L10=6,Calcs!$T108,0))))))) -> 0 | N108: ='1.Profile'!E20+Calcs!$AB$105 -> 30 | O108: ='1.Profile'!E20+Calcs!$AC$105 -> 30 | P108: ='1.Profile'!F20+Calcs!$AD$105 -> 30 | Q108: ='1.Profile'!F20+Calcs!$AE$105 -> 30 | R108: ='1.Profile'!G20+Calcs!$AF$105 -> 8 | S108: ='1.Profile'!G20+Calcs!$AG$105 -> 8 | T108: ='1.Profile'!G20+Calcs!$AH$105 -> 8 | U108: Profile | V108: +boom | X108: +sp | Y108: Spring spray, low, chemical only | AB108: =IF(SUM('1.Profile'!E16:E17)<>0,AVERAGE('1.Profile'!E16:E17)*AI108,0) -> 6.5 | AC108: =IF(SUM('1.Profile'!E16:E17)<>0,AVERAGE('1.Profile'!E16:E17)*AI108,0) -> 6.5 | AD108: =IF(SUM('1.Profile'!F16:F17)<>0,AVERAGE('1.Profile'!F16:F17)*AI108,0) -> 6.5 | AE108: =IF(SUM('1.Profile'!F16:F17)<>0,AVERAGE('1.Profile'!F16:F17)*AJ108,0) -> 3.25 | AF108: =IF(SUM('1.Profile'!G16:G17)<>0,AVERAGE('1.Profile'!G16:G17)*AJ108,0) -> 2.75 | AG108: =IF(SUM('1.Profile'!G16:G17)<>0,AVERAGE('1.Profile'!G16:G17)*AJ108,0) -> 2.75 | AH108: =IF(SUM('1.Profile'!G16:G17)<>0,AVERAGE('1.Profile'!G16:G17)*AJ108,0) -> 2.75 | AI108: 0.5 | AJ108: 0.25
A109: 5 | B109: Pre-E: Propyzamide | C109: =IF(C11=1,Calcs!$O109,IF(C11=2,Calcs!$P109,IF(C11=3,Calcs!$Q109,IF(C11=0,Calcs!$N109,IF(C11=5,Calcs!$S109,IF(C11=4,Calcs!$R109,IF(C11=6,Calcs!$T109,0))))))) -> 0 | D109: =IF(D11=1,Calcs!$O109,IF(D11=2,Calcs!$P109,IF(D11=3,Calcs!$Q109,IF(D11=0,Calcs!$N109,IF(D11=5,Calcs!$S109,IF(D11=4,Calcs!$R109,IF(D11=6,Calcs!$T109,0))))))) -> 0 | E109: =IF(E11=1,Calcs!$O109,IF(E11=2,Calcs!$P109,IF(E11=3,Calcs!$Q109,IF(E11=0,Calcs!$N109,IF(E11=5,Calcs!$S109,IF(E11=4,Calcs!$R109,IF(E11=6,Calcs!$T109,0))))))) -> 34 | F109: =IF(F11=1,Calcs!$O109,IF(F11=2,Calcs!$P109,IF(F11=3,Calcs!$Q109,IF(F11=0,Calcs!$N109,IF(F11=5,Calcs!$S109,IF(F11=4,Calcs!$R109,IF(F11=6,Calcs!$T109,0))))))) -> 0 | G109: =IF(G11=1,Calcs!$O109,IF(G11=2,Calcs!$P109,IF(G11=3,Calcs!$Q109,IF(G11=0,Calcs!$N109,IF(G11=5,Calcs!$S109,IF(G11=4,Calcs!$R109,IF(G11=6,Calcs!$T109,0))))))) -> 0 | H109: =IF(H11=1,Calcs!$O109,IF(H11=2,Calcs!$P109,IF(H11=3,Calcs!$Q109,IF(H11=0,Calcs!$N109,IF(H11=5,Calcs!$S109,IF(H11=4,Calcs!$R109,IF(H11=6,Calcs!$T109,0))))))) -> 0 | I109: =IF(I11=1,Calcs!$O109,IF(I11=2,Calcs!$P109,IF(I11=3,Calcs!$Q109,IF(I11=0,Calcs!$N109,IF(I11=5,Calcs!$S109,IF(I11=4,Calcs!$R109,IF(I11=6,Calcs!$T109,0))))))) -> 0 | J109: =IF(J11=1,Calcs!$O109,IF(J11=2,Calcs!$P109,IF(J11=3,Calcs!$Q109,IF(J11=0,Calcs!$N109,IF(J11=5,Calcs!$S109,IF(J11=4,Calcs!$R109,IF(J11=6,Calcs!$T109,0))))))) -> 0 | K109: =IF(K11=1,Calcs!$O109,IF(K11=2,Calcs!$P109,IF(K11=3,Calcs!$Q109,IF(K11=0,Calcs!$N109,IF(K11=5,Calcs!$S109,IF(K11=4,Calcs!$R109,IF(K11=6,Calcs!$T109,0))))))) -> 0 | L109: =IF(L11=1,Calcs!$O109,IF(L11=2,Calcs!$P109,IF(L11=3,Calcs!$Q109,IF(L11=0,Calcs!$N109,IF(L11=5,Calcs!$S109,IF(L11=4,Calcs!$R109,IF(L11=6,Calcs!$T109,0))))))) -> 34 | N109: ='1.Profile'!E21+Calcs!$AB$105 -> 8 | O109: ='1.Profile'!E21+Calcs!$AC$105 -> 8 | P109: ='1.Profile'!F21+Calcs!$AD$105 -> 34 | Q109: ='1.Profile'!F21+Calcs!$AE$105 -> 34 | R109: ='1.Profile'!G21+Calcs!$AF$105 -> 8 | S109: ='1.Profile'!G21+Calcs!$AG$105 -> 8 | T109: ='1.Profile'!G21+Calcs!$AH$105 -> 8 | V109: +boom | AC109: from Prices
A110: 6 | B110: Pre-E: Sakura | C110: =IF(C12=1,Calcs!$O110,IF(C12=2,Calcs!$P110,IF(C12=3,Calcs!$Q110,IF(C12=0,Calcs!$N110,IF(C12=5,Calcs!$S110,IF(C12=4,Calcs!$R110,IF(C12=6,Calcs!$T110,0))))))) -> 0 | D110: =IF(D12=1,Calcs!$O110,IF(D12=2,Calcs!$P110,IF(D12=3,Calcs!$Q110,IF(D12=0,Calcs!$N110,IF(D12=5,Calcs!$S110,IF(D12=4,Calcs!$R110,IF(D12=6,Calcs!$T110,0))))))) -> 48 | E110: =IF(E12=1,Calcs!$O110,IF(E12=2,Calcs!$P110,IF(E12=3,Calcs!$Q110,IF(E12=0,Calcs!$N110,IF(E12=5,Calcs!$S110,IF(E12=4,Calcs!$R110,IF(E12=6,Calcs!$T110,0))))))) -> 0 | F110: =IF(F12=1,Calcs!$O110,IF(F12=2,Calcs!$P110,IF(F12=3,Calcs!$Q110,IF(F12=0,Calcs!$N110,IF(F12=5,Calcs!$S110,IF(F12=4,Calcs!$R110,IF(F12=6,Calcs!$T110,0))))))) -> 0 | G110: =IF(G12=1,Calcs!$O110,IF(G12=2,Calcs!$P110,IF(G12=3,Calcs!$Q110,IF(G12=0,Calcs!$N110,IF(G12=5,Calcs!$S110,IF(G12=4,Calcs!$R110,IF(G12=6,Calcs!$T110,0))))))) -> 0 | H110: =IF(H12=1,Calcs!$O110,IF(H12=2,Calcs!$P110,IF(H12=3,Calcs!$Q110,IF(H12=0,Calcs!$N110,IF(H12=5,Calcs!$S110,IF(H12=4,Calcs!$R110,IF(H12=6,Calcs!$T110,0))))))) -> 0 | I110: =IF(I12=1,Calcs!$O110,IF(I12=2,Calcs!$P110,IF(I12=3,Calcs!$Q110,IF(I12=0,Calcs!$N110,IF(I12=5,Calcs!$S110,IF(I12=4,Calcs!$R110,IF(I12=6,Calcs!$T110,0))))))) -> 0 | J110: =IF(J12=1,Calcs!$O110,IF(J12=2,Calcs!$P110,IF(J12=3,Calcs!$Q110,IF(J12=0,Calcs!$N110,IF(J12=5,Calcs!$S110,IF(J12=4,Calcs!$R110,IF(J12=6,Calcs!$T110,0))))))) -> 0 | K110: =IF(K12=1,Calcs!$O110,IF(K12=2,Calcs!$P110,IF(K12=3,Calcs!$Q110,IF(K12=0,Calcs!$N110,IF(K12=5,Calcs!$S110,IF(K12=4,Calcs!$R110,IF(K12=6,Calcs!$T110,0))))))) -> 48 | L110: =IF(L12=1,Calcs!$O110,IF(L12=2,Calcs!$P110,IF(L12=3,Calcs!$Q110,IF(L12=0,Calcs!$N110,IF(L12=5,Calcs!$S110,IF(L12=4,Calcs!$R110,IF(L12=6,Calcs!$T110,0))))))) -> 0 | N110: ='1.Profile'!E22+Calcs!$AB$105 -> 48 | O110: ='1.Profile'!E22+Calcs!$AC$105 -> 48 | P110: ='1.Profile'!F22+Calcs!$AD$105 -> 48 | Q110: ='1.Profile'!F22+Calcs!$AE$105 -> 48 | R110: ='1.Profile'!G22+Calcs!$AF$105 -> 8 | S110: ='1.Profile'!G22+Calcs!$AG$105 -> 8 | T110: ='1.Profile'!G22+Calcs!$AH$105 -> 8 | V110: +boom | X110: +Inc | Y110: Cost of incorporation (=full-cut) | AC110: ='+Prices'!AN70 -> 15.408 | AE110: For green manuring
A111: 7 | B111: Pre-E: Boxer Gold | C111: =IF(C13=1,Calcs!$O111,IF(C13=2,Calcs!$P111,IF(C13=3,Calcs!$Q111,IF(C13=0,Calcs!$N111,IF(C13=5,Calcs!$S111,IF(C13=4,Calcs!$R111,IF(C13=6,Calcs!$T111,0))))))) -> 0 | D111: =IF(D13=1,Calcs!$O111,IF(D13=2,Calcs!$P111,IF(D13=3,Calcs!$Q111,IF(D13=0,Calcs!$N111,IF(D13=5,Calcs!$S111,IF(D13=4,Calcs!$R111,IF(D13=6,Calcs!$T111,0))))))) -> 0 | E111: =IF(E13=1,Calcs!$O111,IF(E13=2,Calcs!$P111,IF(E13=3,Calcs!$Q111,IF(E13=0,Calcs!$N111,IF(E13=5,Calcs!$S111,IF(E13=4,Calcs!$R111,IF(E13=6,Calcs!$T111,0))))))) -> 0 | F111: =IF(F13=1,Calcs!$O111,IF(F13=2,Calcs!$P111,IF(F13=3,Calcs!$Q111,IF(F13=0,Calcs!$N111,IF(F13=5,Calcs!$S111,IF(F13=4,Calcs!$R111,IF(F13=6,Calcs!$T111,0))))))) -> 0 | G111: =IF(G13=1,Calcs!$O111,IF(G13=2,Calcs!$P111,IF(G13=3,Calcs!$Q111,IF(G13=0,Calcs!$N111,IF(G13=5,Calcs!$S111,IF(G13=4,Calcs!$R111,IF(G13=6,Calcs!$T111,0))))))) -> 0 | H111: =IF(H13=1,Calcs!$O111,IF(H13=2,Calcs!$P111,IF(H13=3,Calcs!$Q111,IF(H13=0,Calcs!$N111,IF(H13=5,Calcs!$S111,IF(H13=4,Calcs!$R111,IF(H13=6,Calcs!$T111,0))))))) -> 0 | I111: =IF(I13=1,Calcs!$O111,IF(I13=2,Calcs!$P111,IF(I13=3,Calcs!$Q111,IF(I13=0,Calcs!$N111,IF(I13=5,Calcs!$S111,IF(I13=4,Calcs!$R111,IF(I13=6,Calcs!$T111,0))))))) -> 0 | J111: =IF(J13=1,Calcs!$O111,IF(J13=2,Calcs!$P111,IF(J13=3,Calcs!$Q111,IF(J13=0,Calcs!$N111,IF(J13=5,Calcs!$S111,IF(J13=4,Calcs!$R111,IF(J13=6,Calcs!$T111,0))))))) -> 35 | K111: =IF(K13=1,Calcs!$O111,IF(K13=2,Calcs!$P111,IF(K13=3,Calcs!$Q111,IF(K13=0,Calcs!$N111,IF(K13=5,Calcs!$S111,IF(K13=4,Calcs!$R111,IF(K13=6,Calcs!$T111,0))))))) -> 0 | L111: =IF(L13=1,Calcs!$O111,IF(L13=2,Calcs!$P111,IF(L13=3,Calcs!$Q111,IF(L13=0,Calcs!$N111,IF(L13=5,Calcs!$S111,IF(L13=4,Calcs!$R111,IF(L13=6,Calcs!$T111,0))))))) -> 0 | N111: ='1.Profile'!E23+Calcs!$AB$105 -> 35 | O111: ='1.Profile'!E23+Calcs!$AC$105 -> 35 | P111: ='1.Profile'!F23+Calcs!$AD$105 -> 35 | Q111: ='1.Profile'!F23+Calcs!$AE$105 -> 35 | R111: ='1.Profile'!G23+Calcs!$AF$105 -> 8 | S111: ='1.Profile'!G23+Calcs!$AG$105 -> 8 | T111: ='1.Profile'!G23+Calcs!$AH$105 -> 8 | V111: +boom | X111: +N/n | Y111: Cost of extra nutrient removal, hay&sil | AC111: ='+Prices'!F21 -> 5 | AD111: 0.75 | AE111: Less for silage | AG111: 1/2 for canola and legumes, none for pastures
A112: 8 | B112: Pre-E: Triazine | C112: =IF(C14=1,Calcs!$O112,IF(C14=2,Calcs!$P112,IF(C14=3,Calcs!$Q112,IF(C14=0,Calcs!$N112,IF(C14=5,Calcs!$S112,IF(C14=4,Calcs!$R112,IF(C14=6,Calcs!$T112,0))))))) -> 0 | D112: =IF(D14=1,Calcs!$O112,IF(D14=2,Calcs!$P112,IF(D14=3,Calcs!$Q112,IF(D14=0,Calcs!$N112,IF(D14=5,Calcs!$S112,IF(D14=4,Calcs!$R112,IF(D14=6,Calcs!$T112,0))))))) -> 0 | E112: =IF(E14=1,Calcs!$O112,IF(E14=2,Calcs!$P112,IF(E14=3,Calcs!$Q112,IF(E14=0,Calcs!$N112,IF(E14=5,Calcs!$S112,IF(E14=4,Calcs!$R112,IF(E14=6,Calcs!$T112,0))))))) -> 0 | F112: =IF(F14=1,Calcs!$O112,IF(F14=2,Calcs!$P112,IF(F14=3,Calcs!$Q112,IF(F14=0,Calcs!$N112,IF(F14=5,Calcs!$S112,IF(F14=4,Calcs!$R112,IF(F14=6,Calcs!$T112,0))))))) -> 0 | G112: =IF(G14=1,Calcs!$O112,IF(G14=2,Calcs!$P112,IF(G14=3,Calcs!$Q112,IF(G14=0,Calcs!$N112,IF(G14=5,Calcs!$S112,IF(G14=4,Calcs!$R112,IF(G14=6,Calcs!$T112,0))))))) -> 0 | H112: =IF(H14=1,Calcs!$O112,IF(H14=2,Calcs!$P112,IF(H14=3,Calcs!$Q112,IF(H14=0,Calcs!$N112,IF(H14=5,Calcs!$S112,IF(H14=4,Calcs!$R112,IF(H14=6,Calcs!$T112,0))))))) -> 0 | I112: =IF(I14=1,Calcs!$O112,IF(I14=2,Calcs!$P112,IF(I14=3,Calcs!$Q112,IF(I14=0,Calcs!$N112,IF(I14=5,Calcs!$S112,IF(I14=4,Calcs!$R112,IF(I14=6,Calcs!$T112,0))))))) -> 0 | J112: =IF(J14=1,Calcs!$O112,IF(J14=2,Calcs!$P112,IF(J14=3,Calcs!$Q112,IF(J14=0,Calcs!$N112,IF(J14=5,Calcs!$S112,IF(J14=4,Calcs!$R112,IF(J14=6,Calcs!$T112,0))))))) -> 0 | K112: =IF(K14=1,Calcs!$O112,IF(K14=2,Calcs!$P112,IF(K14=3,Calcs!$Q112,IF(K14=0,Calcs!$N112,IF(K14=5,Calcs!$S112,IF(K14=4,Calcs!$R112,IF(K14=6,Calcs!$T112,0))))))) -> 0 | L112: =IF(L14=1,Calcs!$O112,IF(L14=2,Calcs!$P112,IF(L14=3,Calcs!$Q112,IF(L14=0,Calcs!$N112,IF(L14=5,Calcs!$S112,IF(L14=4,Calcs!$R112,IF(L14=6,Calcs!$T112,0))))))) -> 0 | N112: ='1.Profile'!E24+Calcs!$AB$105 -> 8 | O112: ='1.Profile'!E24+Calcs!$AC$105 -> 8 | P112: ='1.Profile'!F24+Calcs!$AD$105 -> 18 | Q112: ='1.Profile'!F24+Calcs!$AE$105 -> 18 | R112: ='1.Profile'!G24+Calcs!$AF$105 -> 13 | S112: ='1.Profile'!G24+Calcs!$AG$105 -> 13 | T112: ='1.Profile'!G24+Calcs!$AH$105 -> 13 | V112: +boom | X112: -harvest | Y112: Cost of harvesting | AC112: ='+Prices'!AN71 -> 21.808 | AE112: Subtracted when crops are sacrificed
A113: 9 | B113: =B15&" :extra cost" -> High crop seeding rate selected :extra cost | C113: =IF(C15=1,Calcs!$O113,IF(C15=2,Calcs!$P113,IF(C15=3,Calcs!$Q113,IF(C15=0,Calcs!$N113,IF(C15=5,Calcs!$T113,IF(C15=4,Calcs!$R113,IF(C15=6,Calcs!$S113,0))))))) -> 0 | D113: =IF(D15=1,Calcs!$O113,IF(D15=2,Calcs!$P113,IF(D15=3,Calcs!$Q113,IF(D15=0,Calcs!$N113,IF(D15=5,Calcs!$T113,IF(D15=4,Calcs!$R113,IF(D15=6,Calcs!$S113,0))))))) -> 0 | E113: =IF(E15=1,Calcs!$O113,IF(E15=2,Calcs!$P113,IF(E15=3,Calcs!$Q113,IF(E15=0,Calcs!$N113,IF(E15=5,Calcs!$T113,IF(E15=4,Calcs!$R113,IF(E15=6,Calcs!$S113,0))))))) -> 0 | F113: =IF(F15=1,Calcs!$O113,IF(F15=2,Calcs!$P113,IF(F15=3,Calcs!$Q113,IF(F15=0,Calcs!$N113,IF(F15=5,Calcs!$T113,IF(F15=4,Calcs!$R113,IF(F15=6,Calcs!$S113,0))))))) -> 0 | G113: =IF(G15=1,Calcs!$O113,IF(G15=2,Calcs!$P113,IF(G15=3,Calcs!$Q113,IF(G15=0,Calcs!$N113,IF(G15=5,Calcs!$T113,IF(G15=4,Calcs!$R113,IF(G15=6,Calcs!$S113,0))))))) -> 0 | H113: =IF(H15=1,Calcs!$O113,IF(H15=2,Calcs!$P113,IF(H15=3,Calcs!$Q113,IF(H15=0,Calcs!$N113,IF(H15=5,Calcs!$T113,IF(H15=4,Calcs!$R113,IF(H15=6,Calcs!$S113,0))))))) -> 0 | I113: =IF(I15=1,Calcs!$O113,IF(I15=2,Calcs!$P113,IF(I15=3,Calcs!$Q113,IF(I15=0,Calcs!$N113,IF(I15=5,Calcs!$T113,IF(I15=4,Calcs!$R113,IF(I15=6,Calcs!$S113,0))))))) -> 0 | J113: =IF(J15=1,Calcs!$O113,IF(J15=2,Calcs!$P113,IF(J15=3,Calcs!$Q113,IF(J15=0,Calcs!$N113,IF(J15=5,Calcs!$T113,IF(J15=4,Calcs!$R113,IF(J15=6,Calcs!$S113,0))))))) -> 0 | K113: =IF(K15=1,Calcs!$O113,IF(K15=2,Calcs!$P113,IF(K15=3,Calcs!$Q113,IF(K15=0,Calcs!$N113,IF(K15=5,Calcs!$T113,IF(K15=4,Calcs!$R113,IF(K15=6,Calcs!$S113,0))))))) -> 0 | L113: =IF(L15=1,Calcs!$O113,IF(L15=2,Calcs!$P113,IF(L15=3,Calcs!$Q113,IF(L15=0,Calcs!$N113,IF(L15=5,Calcs!$T113,IF(L15=4,Calcs!$R113,IF(L15=6,Calcs!$S113,0))))))) -> 0 | N113: ='+Prices'!$AJ$100 -> 28.5 | O113: ='+Prices'!AK100 -> 24.42857143 | P113: ='+Prices'!AL100 -> 26.66666667 | Q113: ='+Prices'!$AM$100 -> 12 | U113: Prices | Y113: Environmental cost of cultivating | AC113: ='+Prices'!F32 -> 5 | AD113: Ratios
A114: 10 | B114: =B16&" :extra cost" -> Tickle selected :extra cost | C114: =IF(C16=1,Calcs!$O114,IF(C16=2,Calcs!$P114,IF(C16=3,Calcs!$Q114,IF(C16=0,Calcs!$N114,IF(C16=5,Calcs!$T114,IF(C16=4,Calcs!$R114,IF(C16=6,Calcs!$S114,0))))))) -> 0 | D114: =IF(D16=1,Calcs!$O114,IF(D16=2,Calcs!$P114,IF(D16=3,Calcs!$Q114,IF(D16=0,Calcs!$N114,IF(D16=5,Calcs!$T114,IF(D16=4,Calcs!$R114,IF(D16=6,Calcs!$S114,0))))))) -> 0 | E114: =IF(E16=1,Calcs!$O114,IF(E16=2,Calcs!$P114,IF(E16=3,Calcs!$Q114,IF(E16=0,Calcs!$N114,IF(E16=5,Calcs!$T114,IF(E16=4,Calcs!$R114,IF(E16=6,Calcs!$S114,0))))))) -> 0 | F114: =IF(F16=1,Calcs!$O114,IF(F16=2,Calcs!$P114,IF(F16=3,Calcs!$Q114,IF(F16=0,Calcs!$N114,IF(F16=5,Calcs!$T114,IF(F16=4,Calcs!$R114,IF(F16=6,Calcs!$S114,0))))))) -> 0 | G114: =IF(G16=1,Calcs!$O114,IF(G16=2,Calcs!$P114,IF(G16=3,Calcs!$Q114,IF(G16=0,Calcs!$N114,IF(G16=5,Calcs!$T114,IF(G16=4,Calcs!$R114,IF(G16=6,Calcs!$S114,0))))))) -> 0 | H114: =IF(H16=1,Calcs!$O114,IF(H16=2,Calcs!$P114,IF(H16=3,Calcs!$Q114,IF(H16=0,Calcs!$N114,IF(H16=5,Calcs!$T114,IF(H16=4,Calcs!$R114,IF(H16=6,Calcs!$S114,0))))))) -> 0 | I114: =IF(I16=1,Calcs!$O114,IF(I16=2,Calcs!$P114,IF(I16=3,Calcs!$Q114,IF(I16=0,Calcs!$N114,IF(I16=5,Calcs!$T114,IF(I16=4,Calcs!$R114,IF(I16=6,Calcs!$S114,0))))))) -> 0 | J114: =IF(J16=1,Calcs!$O114,IF(J16=2,Calcs!$P114,IF(J16=3,Calcs!$Q114,IF(J16=0,Calcs!$N114,IF(J16=5,Calcs!$T114,IF(J16=4,Calcs!$R114,IF(J16=6,Calcs!$S114,0))))))) -> 0 | K114: =IF(K16=1,Calcs!$O114,IF(K16=2,Calcs!$P114,IF(K16=3,Calcs!$Q114,IF(K16=0,Calcs!$N114,IF(K16=5,Calcs!$T114,IF(K16=4,Calcs!$R114,IF(K16=6,Calcs!$S114,0))))))) -> 0 | L114: =IF(L16=1,Calcs!$O114,IF(L16=2,Calcs!$P114,IF(L16=3,Calcs!$Q114,IF(L16=0,Calcs!$N114,IF(L16=5,Calcs!$T114,IF(L16=4,Calcs!$R114,IF(L16=6,Calcs!$S114,0))))))) -> 0 | N114: ='+Prices'!AJ97 -> 7.704 | O114: ='+Prices'!AK97 -> 7.704 | P114: ='+Prices'!AL97 -> 7.704 | Q114: ='+Prices'!AM97 -> 7.704 | R114: ='+Prices'!AJ112 -> 7.704 | S114: ='+Prices'!AJ120 -> 7.704 | T114: ='+Prices'!AJ130 -> 7.704 | U114: Prices | X114: +F | Y114: Envir. cost of whole paddock burning | AC114: =AC113*AD114 -> 3.5 | AD114: 0.7
A115: 11 | B115: =B17&" :extra cost" -> Mouldboard plough selected :extra cost | C115: =IF(C17=1,Calcs!$O115,IF(C17=2,Calcs!$P115,IF(C17=3,Calcs!$Q115,IF(C17=0,Calcs!$N115,IF(C17=5,Calcs!$T115,IF(C17=4,Calcs!$R115,IF(C17=6,Calcs!$S115,0))))))) -> 0 | D115: =IF(D17=1,Calcs!$O115,IF(D17=2,Calcs!$P115,IF(D17=3,Calcs!$Q115,IF(D17=0,Calcs!$N115,IF(D17=5,Calcs!$T115,IF(D17=4,Calcs!$R115,IF(D17=6,Calcs!$S115,0))))))) -> 0 | E115: =IF(E17=1,Calcs!$O115,IF(E17=2,Calcs!$P115,IF(E17=3,Calcs!$Q115,IF(E17=0,Calcs!$N115,IF(E17=5,Calcs!$T115,IF(E17=4,Calcs!$R115,IF(E17=6,Calcs!$S115,0))))))) -> 0 | F115: =IF(F17=1,Calcs!$O115,IF(F17=2,Calcs!$P115,IF(F17=3,Calcs!$Q115,IF(F17=0,Calcs!$N115,IF(F17=5,Calcs!$T115,IF(F17=4,Calcs!$R115,IF(F17=6,Calcs!$S115,0))))))) -> 0 | G115: =IF(G17=1,Calcs!$O115,IF(G17=2,Calcs!$P115,IF(G17=3,Calcs!$Q115,IF(G17=0,Calcs!$N115,IF(G17=5,Calcs!$T115,IF(G17=4,Calcs!$R115,IF(G17=6,Calcs!$S115,0))))))) -> 0 | H115: =IF(H17=1,Calcs!$O115,IF(H17=2,Calcs!$P115,IF(H17=3,Calcs!$Q115,IF(H17=0,Calcs!$N115,IF(H17=5,Calcs!$T115,IF(H17=4,Calcs!$R115,IF(H17=6,Calcs!$S115,0))))))) -> 0 | I115: =IF(I17=1,Calcs!$O115,IF(I17=2,Calcs!$P115,IF(I17=3,Calcs!$Q115,IF(I17=0,Calcs!$N115,IF(I17=5,Calcs!$T115,IF(I17=4,Calcs!$R115,IF(I17=6,Calcs!$S115,0))))))) -> 0 | J115: =IF(J17=1,Calcs!$O115,IF(J17=2,Calcs!$P115,IF(J17=3,Calcs!$Q115,IF(J17=0,Calcs!$N115,IF(J17=5,Calcs!$T115,IF(J17=4,Calcs!$R115,IF(J17=6,Calcs!$S115,0))))))) -> 0 | K115: =IF(K17=1,Calcs!$O115,IF(K17=2,Calcs!$P115,IF(K17=3,Calcs!$Q115,IF(K17=0,Calcs!$N115,IF(K17=5,Calcs!$T115,IF(K17=4,Calcs!$R115,IF(K17=6,Calcs!$S115,0))))))) -> 0 | L115: =IF(L17=1,Calcs!$O115,IF(L17=2,Calcs!$P115,IF(L17=3,Calcs!$Q115,IF(L17=0,Calcs!$N115,IF(L17=5,Calcs!$T115,IF(L17=4,Calcs!$R115,IF(L17=6,Calcs!$S115,0))))))) -> 0 | N115: ='+Prices'!AJ98 -> 150 | O115: ='+Prices'!AK98 -> 150 | P115: ='+Prices'!AL98 -> 150 | Q115: ='+Prices'!AM98 -> 150 | R115: ='+Prices'!AJ113 -> 150 | S115: ='+Prices'!AJ121 -> 150 | T115: ='+Prices'!AJ131 -> 150 | U115: Prices | X115: +f | Y115: Envir. cost of limited burning (fire risk) | AC115: =AC113*AD115 -> 1.5 | AD115: 0.3
A116: 12 | B116: =B18&" :extra cost" -> Full-cut selected :extra cost | C116: =IF(C18=1,Calcs!$O116,IF(C18=2,Calcs!$P116,IF(C18=3,Calcs!$Q116,IF(C18=0,Calcs!$N116,IF(C18=5,Calcs!$T116,IF(C18=4,Calcs!$R116,IF(C18=6,Calcs!$S116,0))))))) -> 0 | D116: =IF(D18=1,Calcs!$O116,IF(D18=2,Calcs!$P116,IF(D18=3,Calcs!$Q116,IF(D18=0,Calcs!$N116,IF(D18=5,Calcs!$T116,IF(D18=4,Calcs!$R116,IF(D18=6,Calcs!$S116,0))))))) -> 0 | E116: =IF(E18=1,Calcs!$O116,IF(E18=2,Calcs!$P116,IF(E18=3,Calcs!$Q116,IF(E18=0,Calcs!$N116,IF(E18=5,Calcs!$T116,IF(E18=4,Calcs!$R116,IF(E18=6,Calcs!$S116,0))))))) -> 0 | F116: =IF(F18=1,Calcs!$O116,IF(F18=2,Calcs!$P116,IF(F18=3,Calcs!$Q116,IF(F18=0,Calcs!$N116,IF(F18=5,Calcs!$T116,IF(F18=4,Calcs!$R116,IF(F18=6,Calcs!$S116,0))))))) -> 2.084 | G116: =IF(G18=1,Calcs!$O116,IF(G18=2,Calcs!$P116,IF(G18=3,Calcs!$Q116,IF(G18=0,Calcs!$N116,IF(G18=5,Calcs!$T116,IF(G18=4,Calcs!$R116,IF(G18=6,Calcs!$S116,0))))))) -> 0 | H116: =IF(H18=1,Calcs!$O116,IF(H18=2,Calcs!$P116,IF(H18=3,Calcs!$Q116,IF(H18=0,Calcs!$N116,IF(H18=5,Calcs!$T116,IF(H18=4,Calcs!$R116,IF(H18=6,Calcs!$S116,0))))))) -> 0 | I116: =IF(I18=1,Calcs!$O116,IF(I18=2,Calcs!$P116,IF(I18=3,Calcs!$Q116,IF(I18=0,Calcs!$N116,IF(I18=5,Calcs!$T116,IF(I18=4,Calcs!$R116,IF(I18=6,Calcs!$S116,0))))))) -> 0 | J116: =IF(J18=1,Calcs!$O116,IF(J18=2,Calcs!$P116,IF(J18=3,Calcs!$Q116,IF(J18=0,Calcs!$N116,IF(J18=5,Calcs!$T116,IF(J18=4,Calcs!$R116,IF(J18=6,Calcs!$S116,0))))))) -> 0 | K116: =IF(K18=1,Calcs!$O116,IF(K18=2,Calcs!$P116,IF(K18=3,Calcs!$Q116,IF(K18=0,Calcs!$N116,IF(K18=5,Calcs!$T116,IF(K18=4,Calcs!$R116,IF(K18=6,Calcs!$S116,0))))))) -> 0 | L116: =IF(L18=1,Calcs!$O116,IF(L18=2,Calcs!$P116,IF(L18=3,Calcs!$Q116,IF(L18=0,Calcs!$N116,IF(L18=5,Calcs!$T116,IF(L18=4,Calcs!$R116,IF(L18=6,Calcs!$S116,0))))))) -> 0 | N116: ='+Prices'!$AJ$99 -> 2.084 | O116: ='+Prices'!$AK$99 -> 2.084 | P116: ='+Prices'!$AL$99 -> 2.084 | Q116: ='+Prices'!$AM$99 -> 2.084 | S116: ='+Prices'!$AJ$122 -> 2.084 | T116: ='+Prices'!$AJ$132 -> 2.084 | U116: Prices
A117: 13 | B117: =B67 -> Seed dry | D117: Since sowing must occur anyway, the cost attributable to weed control is zero and
A118: 14 | B118: Seed dry or wet (0-10) | D118: included instead in the non-weed control costs, from the Prices page to the
A119: 15 | B119: =B21 -> Seed delayed 1-2 weeks (10) | D119: Production cost table below, to the Eco results.
A120: 16 | B120: Seed +delayed 2-3 weeks (20) | D120: Yield penalty accounted for in 'Bio results'.
A121: 17 | B121: Post-E: Topik | C121: =(IF(C23=1,Calcs!$O121,IF(C23=2,Calcs!$P121,IF(C23=3,Calcs!$Q121,IF(C23=0,Calcs!$N121,IF(C23=5,Calcs!$S121,IF(C23=4,Calcs!$R121,IF(C23=6,Calcs!$T121,0))))))))*P35 -> 13 | D121: =(IF(D23=1,Calcs!$O121,IF(D23=2,Calcs!$P121,IF(D23=3,Calcs!$Q121,IF(D23=0,Calcs!$N121,IF(D23=5,Calcs!$S121,IF(D23=4,Calcs!$R121,IF(D23=6,Calcs!$T121,0))))))))*Q35 -> 0 | E121: =(IF(E23=1,Calcs!$O121,IF(E23=2,Calcs!$P121,IF(E23=3,Calcs!$Q121,IF(E23=0,Calcs!$N121,IF(E23=5,Calcs!$S121,IF(E23=4,Calcs!$R121,IF(E23=6,Calcs!$T121,0))))))))*R35 -> 0 | F121: =(IF(F23=1,Calcs!$O121,IF(F23=2,Calcs!$P121,IF(F23=3,Calcs!$Q121,IF(F23=0,Calcs!$N121,IF(F23=5,Calcs!$S121,IF(F23=4,Calcs!$R121,IF(F23=6,Calcs!$T121,0))))))))*S35 -> 0 | G121: =(IF(G23=1,Calcs!$O121,IF(G23=2,Calcs!$P121,IF(G23=3,Calcs!$Q121,IF(G23=0,Calcs!$N121,IF(G23=5,Calcs!$S121,IF(G23=4,Calcs!$R121,IF(G23=6,Calcs!$T121,0))))))))*T35 -> 0 | H121: =(IF(H23=1,Calcs!$O121,IF(H23=2,Calcs!$P121,IF(H23=3,Calcs!$Q121,IF(H23=0,Calcs!$N121,IF(H23=5,Calcs!$S121,IF(H23=4,Calcs!$R121,IF(H23=6,Calcs!$T121,0))))))))*U35 -> 0 | I121: =(IF(I23=1,Calcs!$O121,IF(I23=2,Calcs!$P121,IF(I23=3,Calcs!$Q121,IF(I23=0,Calcs!$N121,IF(I23=5,Calcs!$S121,IF(I23=4,Calcs!$R121,IF(I23=6,Calcs!$T121,0))))))))*V35 -> 0 | J121: =(IF(J23=1,Calcs!$O121,IF(J23=2,Calcs!$P121,IF(J23=3,Calcs!$Q121,IF(J23=0,Calcs!$N121,IF(J23=5,Calcs!$S121,IF(J23=4,Calcs!$R121,IF(J23=6,Calcs!$T121,0))))))))*W35 -> 0 | K121: =(IF(K23=1,Calcs!$O121,IF(K23=2,Calcs!$P121,IF(K23=3,Calcs!$Q121,IF(K23=0,Calcs!$N121,IF(K23=5,Calcs!$S121,IF(K23=4,Calcs!$R121,IF(K23=6,Calcs!$T121,0))))))))*X35 -> 0 | L121: =(IF(L23=1,Calcs!$O121,IF(L23=2,Calcs!$P121,IF(L23=3,Calcs!$Q121,IF(L23=0,Calcs!$N121,IF(L23=5,Calcs!$S121,IF(L23=4,Calcs!$R121,IF(L23=6,Calcs!$T121,0))))))))*Y35 -> 0 | N121: ='1.Profile'!E26+Calcs!$AB$105 -> 13 | O121: ='1.Profile'!E26+Calcs!$AC$105 -> 13 | P121: ='1.Profile'!F26+Calcs!$AD$105 -> 8 | Q121: ='1.Profile'!F26+Calcs!$AE$105 -> 8 | R121: ='1.Profile'!G26+Calcs!$AF$105 -> 8 | S121: ='1.Profile'!G26+Calcs!$AG$105 -> 8 | T121: ='1.Profile'!G26+Calcs!$AH$105 -> 8 | U121: Profile | V121: +boom
A122: 18 | B122: Post-E: Hussar | C122: =(IF(C24=1,Calcs!$O122,IF(C24=2,Calcs!$P122,IF(C24=3,Calcs!$Q122,IF(C24=0,Calcs!$N122,IF(C24=5,Calcs!$S122,IF(C24=4,Calcs!$R122,IF(C24=6,Calcs!$T122,0))))))))*P36 -> 0 | D122: =(IF(D24=1,Calcs!$O122,IF(D24=2,Calcs!$P122,IF(D24=3,Calcs!$Q122,IF(D24=0,Calcs!$N122,IF(D24=5,Calcs!$S122,IF(D24=4,Calcs!$R122,IF(D24=6,Calcs!$T122,0))))))))*Q36 -> 38 | E122: =(IF(E24=1,Calcs!$O122,IF(E24=2,Calcs!$P122,IF(E24=3,Calcs!$Q122,IF(E24=0,Calcs!$N122,IF(E24=5,Calcs!$S122,IF(E24=4,Calcs!$R122,IF(E24=6,Calcs!$T122,0))))))))*R36 -> 0 | F122: =(IF(F24=1,Calcs!$O122,IF(F24=2,Calcs!$P122,IF(F24=3,Calcs!$Q122,IF(F24=0,Calcs!$N122,IF(F24=5,Calcs!$S122,IF(F24=4,Calcs!$R122,IF(F24=6,Calcs!$T122,0))))))))*S36 -> 0 | G122: =(IF(G24=1,Calcs!$O122,IF(G24=2,Calcs!$P122,IF(G24=3,Calcs!$Q122,IF(G24=0,Calcs!$N122,IF(G24=5,Calcs!$S122,IF(G24=4,Calcs!$R122,IF(G24=6,Calcs!$T122,0))))))))*T36 -> 0 | H122: =(IF(H24=1,Calcs!$O122,IF(H24=2,Calcs!$P122,IF(H24=3,Calcs!$Q122,IF(H24=0,Calcs!$N122,IF(H24=5,Calcs!$S122,IF(H24=4,Calcs!$R122,IF(H24=6,Calcs!$T122,0))))))))*U36 -> 0 | I122: =(IF(I24=1,Calcs!$O122,IF(I24=2,Calcs!$P122,IF(I24=3,Calcs!$Q122,IF(I24=0,Calcs!$N122,IF(I24=5,Calcs!$S122,IF(I24=4,Calcs!$R122,IF(I24=6,Calcs!$T122,0))))))))*V36 -> 0 | J122: =(IF(J24=1,Calcs!$O122,IF(J24=2,Calcs!$P122,IF(J24=3,Calcs!$Q122,IF(J24=0,Calcs!$N122,IF(J24=5,Calcs!$S122,IF(J24=4,Calcs!$R122,IF(J24=6,Calcs!$T122,0))))))))*W36 -> 0 | K122: =(IF(K24=1,Calcs!$O122,IF(K24=2,Calcs!$P122,IF(K24=3,Calcs!$Q122,IF(K24=0,Calcs!$N122,IF(K24=5,Calcs!$S122,IF(K24=4,Calcs!$R122,IF(K24=6,Calcs!$T122,0))))))))*X36 -> 0 | L122: =(IF(L24=1,Calcs!$O122,IF(L24=2,Calcs!$P122,IF(L24=3,Calcs!$Q122,IF(L24=0,Calcs!$N122,IF(L24=5,Calcs!$S122,IF(L24=4,Calcs!$R122,IF(L24=6,Calcs!$T122,0))))))))*Y36 -> 0 | N122: ='1.Profile'!E27+Calcs!$AB$105 -> 38 | O122: ='1.Profile'!E27+Calcs!$AC$105 -> 38 | P122: ='1.Profile'!F27+Calcs!$AD$105 -> 8 | Q122: ='1.Profile'!F27+Calcs!$AE$105 -> 8 | R122: ='1.Profile'!G27+Calcs!$AF$105 -> 8 | S122: ='1.Profile'!G27+Calcs!$AG$105 -> 8 | T122: ='1.Profile'!G27+Calcs!$AH$105 -> 8 | V122: +boom
A123: 19 | B123: Post-E: Clethodim | C123: =(IF(C25=1,Calcs!$O123,IF(C25=2,Calcs!$P123,IF(C25=3,Calcs!$Q123,IF(C25=0,Calcs!$N123,IF(C25=5,Calcs!$S123,IF(C25=4,Calcs!$R123,IF(C25=6,Calcs!$T123,0))))))))*P37 -> 0 | D123: =(IF(D25=1,Calcs!$O123,IF(D25=2,Calcs!$P123,IF(D25=3,Calcs!$Q123,IF(D25=0,Calcs!$N123,IF(D25=5,Calcs!$S123,IF(D25=4,Calcs!$R123,IF(D25=6,Calcs!$T123,0))))))))*Q37 -> 0 | E123: =(IF(E25=1,Calcs!$O123,IF(E25=2,Calcs!$P123,IF(E25=3,Calcs!$Q123,IF(E25=0,Calcs!$N123,IF(E25=5,Calcs!$S123,IF(E25=4,Calcs!$R123,IF(E25=6,Calcs!$T123,0))))))))*R37 -> 0 | F123: =(IF(F25=1,Calcs!$O123,IF(F25=2,Calcs!$P123,IF(F25=3,Calcs!$Q123,IF(F25=0,Calcs!$N123,IF(F25=5,Calcs!$S123,IF(F25=4,Calcs!$R123,IF(F25=6,Calcs!$T123,0))))))))*S37 -> 0 | G123: =(IF(G25=1,Calcs!$O123,IF(G25=2,Calcs!$P123,IF(G25=3,Calcs!$Q123,IF(G25=0,Calcs!$N123,IF(G25=5,Calcs!$S123,IF(G25=4,Calcs!$R123,IF(G25=6,Calcs!$T123,0))))))))*T37 -> 0 | H123: =(IF(H25=1,Calcs!$O123,IF(H25=2,Calcs!$P123,IF(H25=3,Calcs!$Q123,IF(H25=0,Calcs!$N123,IF(H25=5,Calcs!$S123,IF(H25=4,Calcs!$R123,IF(H25=6,Calcs!$T123,0))))))))*U37 -> 0 | I123: =(IF(I25=1,Calcs!$O123,IF(I25=2,Calcs!$P123,IF(I25=3,Calcs!$Q123,IF(I25=0,Calcs!$N123,IF(I25=5,Calcs!$S123,IF(I25=4,Calcs!$R123,IF(I25=6,Calcs!$T123,0))))))))*V37 -> 0 | J123: =(IF(J25=1,Calcs!$O123,IF(J25=2,Calcs!$P123,IF(J25=3,Calcs!$Q123,IF(J25=0,Calcs!$N123,IF(J25=5,Calcs!$S123,IF(J25=4,Calcs!$R123,IF(J25=6,Calcs!$T123,0))))))))*W37 -> 0 | K123: =(IF(K25=1,Calcs!$O123,IF(K25=2,Calcs!$P123,IF(K25=3,Calcs!$Q123,IF(K25=0,Calcs!$N123,IF(K25=5,Calcs!$S123,IF(K25=4,Calcs!$R123,IF(K25=6,Calcs!$T123,0))))))))*X37 -> 0 | L123: =(IF(L25=1,Calcs!$O123,IF(L25=2,Calcs!$P123,IF(L25=3,Calcs!$Q123,IF(L25=0,Calcs!$N123,IF(L25=5,Calcs!$S123,IF(L25=4,Calcs!$R123,IF(L25=6,Calcs!$T123,0))))))))*Y37 -> 0 | N123: ='1.Profile'!E28+Calcs!$AB$105 -> 8 | O123: ='1.Profile'!E28+Calcs!$AC$105 -> 8 | P123: ='1.Profile'!F28+Calcs!$AD$105 -> 48 | Q123: ='1.Profile'!F28+Calcs!$AE$105 -> 48 | R123: ='1.Profile'!G28+Calcs!$AF$105 -> 8 | S123: ='1.Profile'!G28+Calcs!$AG$105 -> 8 | T123: ='1.Profile'!G28+Calcs!$AH$105 -> 8 | V123: +boom
A124: 20 | B124: Post-E: Glyphosate | C124: =(IF(C26=1,Calcs!$O124,IF(C26=2,Calcs!$P124,IF(C26=3,Calcs!$Q124,IF(C26=0,Calcs!$N124,IF(C26=5,Calcs!$S124,IF(C26=4,Calcs!$R124,IF(C26=6,Calcs!$T124,0))))))))*P38 -> 0 | D124: =(IF(D26=1,Calcs!$O124,IF(D26=2,Calcs!$P124,IF(D26=3,Calcs!$Q124,IF(D26=0,Calcs!$N124,IF(D26=5,Calcs!$S124,IF(D26=4,Calcs!$R124,IF(D26=6,Calcs!$T124,0))))))))*Q38 -> 0 | E124: =(IF(E26=1,Calcs!$O124,IF(E26=2,Calcs!$P124,IF(E26=3,Calcs!$Q124,IF(E26=0,Calcs!$N124,IF(E26=5,Calcs!$S124,IF(E26=4,Calcs!$R124,IF(E26=6,Calcs!$T124,0))))))))*R38 -> 0 | F124: =(IF(F26=1,Calcs!$O124,IF(F26=2,Calcs!$P124,IF(F26=3,Calcs!$Q124,IF(F26=0,Calcs!$N124,IF(F26=5,Calcs!$S124,IF(F26=4,Calcs!$R124,IF(F26=6,Calcs!$T124,0))))))))*S38 -> 0 | G124: =(IF(G26=1,Calcs!$O124,IF(G26=2,Calcs!$P124,IF(G26=3,Calcs!$Q124,IF(G26=0,Calcs!$N124,IF(G26=5,Calcs!$S124,IF(G26=4,Calcs!$R124,IF(G26=6,Calcs!$T124,0))))))))*T38 -> 0 | H124: =(IF(H26=1,Calcs!$O124,IF(H26=2,Calcs!$P124,IF(H26=3,Calcs!$Q124,IF(H26=0,Calcs!$N124,IF(H26=5,Calcs!$S124,IF(H26=4,Calcs!$R124,IF(H26=6,Calcs!$T124,0))))))))*U38 -> 0 | I124: =(IF(I26=1,Calcs!$O124,IF(I26=2,Calcs!$P124,IF(I26=3,Calcs!$Q124,IF(I26=0,Calcs!$N124,IF(I26=5,Calcs!$S124,IF(I26=4,Calcs!$R124,IF(I26=6,Calcs!$T124,0))))))))*V38 -> 0 | J124: =(IF(J26=1,Calcs!$O124,IF(J26=2,Calcs!$P124,IF(J26=3,Calcs!$Q124,IF(J26=0,Calcs!$N124,IF(J26=5,Calcs!$S124,IF(J26=4,Calcs!$R124,IF(J26=6,Calcs!$T124,0))))))))*W38 -> 0 | K124: =(IF(K26=1,Calcs!$O124,IF(K26=2,Calcs!$P124,IF(K26=3,Calcs!$Q124,IF(K26=0,Calcs!$N124,IF(K26=5,Calcs!$S124,IF(K26=4,Calcs!$R124,IF(K26=6,Calcs!$T124,0))))))))*X38 -> 0 | L124: =(IF(L26=1,Calcs!$O124,IF(L26=2,Calcs!$P124,IF(L26=3,Calcs!$Q124,IF(L26=0,Calcs!$N124,IF(L26=5,Calcs!$S124,IF(L26=4,Calcs!$R124,IF(L26=6,Calcs!$T124,0))))))))*Y38 -> 0 | N124: ='1.Profile'!E29+Calcs!$AB$105 -> 8 | O124: ='1.Profile'!E29+Calcs!$AC$105 -> 8 | P124: ='1.Profile'!F29+Calcs!$AD$105 -> 26 | Q124: ='1.Profile'!F29+Calcs!$AE$105 -> 26 | R124: ='1.Profile'!G29+Calcs!$AF$105 -> 8 | S124: ='1.Profile'!G29+Calcs!$AG$105 -> 8 | T124: ='1.Profile'!G29+Calcs!$AH$105 -> 8 | V124: +boom
A125: 21 | B125: Post-E: Paraquat | C125: =(IF(C27=1,Calcs!$O125,IF(C27=2,Calcs!$P125,IF(C27=3,Calcs!$Q125,IF(C27=0,Calcs!$N125,IF(C27=5,Calcs!$S125,IF(C27=4,Calcs!$R125,IF(C27=6,Calcs!$T125,0))))))))*P39 -> 0 | D125: =(IF(D27=1,Calcs!$O125,IF(D27=2,Calcs!$P125,IF(D27=3,Calcs!$Q125,IF(D27=0,Calcs!$N125,IF(D27=5,Calcs!$S125,IF(D27=4,Calcs!$R125,IF(D27=6,Calcs!$T125,0))))))))*Q39 -> 0 | E125: =(IF(E27=1,Calcs!$O125,IF(E27=2,Calcs!$P125,IF(E27=3,Calcs!$Q125,IF(E27=0,Calcs!$N125,IF(E27=5,Calcs!$S125,IF(E27=4,Calcs!$R125,IF(E27=6,Calcs!$T125,0))))))))*R39 -> 0 | F125: =(IF(F27=1,Calcs!$O125,IF(F27=2,Calcs!$P125,IF(F27=3,Calcs!$Q125,IF(F27=0,Calcs!$N125,IF(F27=5,Calcs!$S125,IF(F27=4,Calcs!$R125,IF(F27=6,Calcs!$T125,0))))))))*S39 -> 0 | G125: =(IF(G27=1,Calcs!$O125,IF(G27=2,Calcs!$P125,IF(G27=3,Calcs!$Q125,IF(G27=0,Calcs!$N125,IF(G27=5,Calcs!$S125,IF(G27=4,Calcs!$R125,IF(G27=6,Calcs!$T125,0))))))))*T39 -> 0 | H125: =(IF(H27=1,Calcs!$O125,IF(H27=2,Calcs!$P125,IF(H27=3,Calcs!$Q125,IF(H27=0,Calcs!$N125,IF(H27=5,Calcs!$S125,IF(H27=4,Calcs!$R125,IF(H27=6,Calcs!$T125,0))))))))*U39 -> 0 | I125: =(IF(I27=1,Calcs!$O125,IF(I27=2,Calcs!$P125,IF(I27=3,Calcs!$Q125,IF(I27=0,Calcs!$N125,IF(I27=5,Calcs!$S125,IF(I27=4,Calcs!$R125,IF(I27=6,Calcs!$T125,0))))))))*V39 -> 0 | J125: =(IF(J27=1,Calcs!$O125,IF(J27=2,Calcs!$P125,IF(J27=3,Calcs!$Q125,IF(J27=0,Calcs!$N125,IF(J27=5,Calcs!$S125,IF(J27=4,Calcs!$R125,IF(J27=6,Calcs!$T125,0))))))))*W39 -> 0 | K125: =(IF(K27=1,Calcs!$O125,IF(K27=2,Calcs!$P125,IF(K27=3,Calcs!$Q125,IF(K27=0,Calcs!$N125,IF(K27=5,Calcs!$S125,IF(K27=4,Calcs!$R125,IF(K27=6,Calcs!$T125,0))))))))*X39 -> 0 | L125: =(IF(L27=1,Calcs!$O125,IF(L27=2,Calcs!$P125,IF(L27=3,Calcs!$Q125,IF(L27=0,Calcs!$N125,IF(L27=5,Calcs!$S125,IF(L27=4,Calcs!$R125,IF(L27=6,Calcs!$T125,0))))))))*Y39 -> 0 | N125: ='1.Profile'!E30+Calcs!$AB$105 -> 8 | O125: ='1.Profile'!E30+Calcs!$AC$105 -> 8 | P125: ='1.Profile'!F30+Calcs!$AD$105 -> 8 | Q125: ='1.Profile'!F30+Calcs!$AE$105 -> 8 | R125: ='1.Profile'!G30+Calcs!$AF$105 -> 16 | S125: ='1.Profile'!G30+Calcs!$AG$105 -> 16 | T125: ='1.Profile'!G30+Calcs!$AH$105 -> 16 | V125: +boom
A126: 22 | B126: Grazing intensity, standard | D126: Dealt with in the rotation and production tables below.
A127: 23 | B127: Grazing intensity, high
A128: 24 | B128: =B31 -> Spring: Brown M | C128: =IF(C31=1,Calcs!$O128,IF(C31=2,Calcs!$P128,IF(C31=3,Calcs!$Q128,IF(C31=0,Calcs!$N128,IF(C31=5,Calcs!$T128,IF(C31=4,Calcs!$R128,IF(C31=6,Calcs!$S128,0))))))) -> 0 | D128: =IF(D31=1,Calcs!$O128,IF(D31=2,Calcs!$P128,IF(D31=3,Calcs!$Q128,IF(D31=0,Calcs!$N128,IF(D31=5,Calcs!$T128,IF(D31=4,Calcs!$R128,IF(D31=6,Calcs!$S128,0))))))) -> 0 | E128: =IF(E31=1,Calcs!$O128,IF(E31=2,Calcs!$P128,IF(E31=3,Calcs!$Q128,IF(E31=0,Calcs!$N128,IF(E31=5,Calcs!$T128,IF(E31=4,Calcs!$R128,IF(E31=6,Calcs!$S128,0))))))) -> 0 | F128: =IF(F31=1,Calcs!$O128,IF(F31=2,Calcs!$P128,IF(F31=3,Calcs!$Q128,IF(F31=0,Calcs!$N128,IF(F31=5,Calcs!$T128,IF(F31=4,Calcs!$R128,IF(F31=6,Calcs!$S128,0))))))) -> 0 | G128: =IF(G31=1,Calcs!$O128,IF(G31=2,Calcs!$P128,IF(G31=3,Calcs!$Q128,IF(G31=0,Calcs!$N128,IF(G31=5,Calcs!$T128,IF(G31=4,Calcs!$R128,IF(G31=6,Calcs!$S128,0))))))) -> 0 | H128: =IF(H31=1,Calcs!$O128,IF(H31=2,Calcs!$P128,IF(H31=3,Calcs!$Q128,IF(H31=0,Calcs!$N128,IF(H31=5,Calcs!$T128,IF(H31=4,Calcs!$R128,IF(H31=6,Calcs!$S128,0))))))) -> 0 | I128: =IF(I31=1,Calcs!$O128,IF(I31=2,Calcs!$P128,IF(I31=3,Calcs!$Q128,IF(I31=0,Calcs!$N128,IF(I31=5,Calcs!$T128,IF(I31=4,Calcs!$R128,IF(I31=6,Calcs!$S128,0))))))) -> 0 | J128: =IF(J31=1,Calcs!$O128,IF(J31=2,Calcs!$P128,IF(J31=3,Calcs!$Q128,IF(J31=0,Calcs!$N128,IF(J31=5,Calcs!$T128,IF(J31=4,Calcs!$R128,IF(J31=6,Calcs!$S128,0))))))) -> 0 | K128: =IF(K31=1,Calcs!$O128,IF(K31=2,Calcs!$P128,IF(K31=3,Calcs!$Q128,IF(K31=0,Calcs!$N128,IF(K31=5,Calcs!$T128,IF(K31=4,Calcs!$R128,IF(K31=6,Calcs!$S128,0))))))) -> 0 | L128: =IF(L31=1,Calcs!$O128,IF(L31=2,Calcs!$P128,IF(L31=3,Calcs!$Q128,IF(L31=0,Calcs!$N128,IF(L31=5,Calcs!$T128,IF(L31=4,Calcs!$R128,IF(L31=6,Calcs!$S128,0))))))) -> 0 | N128: =AB105+AB107-$AC$112 -> 1.792 | O128: =AC105+AC107-$AC$112 -> 1.792 | P128: =AD105+AD107-$AC$112 -> 1.792 | Q128: =AE105+AE107-$AC$112 -> 1.792 | R128: =AF107+AF105 -> 21.2 | S128: =AG107+AG105 -> 21.2 | T128: =AH107+AH105 -> 21.2 | V128: +boom+SP-harvest
A129: 25 | B129: =B30 -> Spring: Topping | C129: =IF(C30=1,Calcs!$O129,IF(C30=2,Calcs!$P129,IF(C30=3,Calcs!$Q129,IF(C30=0,Calcs!$N129,IF(C30=5,Calcs!$T129,IF(C30=4,Calcs!$R129,IF(C30=6,Calcs!$S129,0))))))) -> 0 | D129: =IF(D30=1,Calcs!$O129,IF(D30=2,Calcs!$P129,IF(D30=3,Calcs!$Q129,IF(D30=0,Calcs!$N129,IF(D30=5,Calcs!$T129,IF(D30=4,Calcs!$R129,IF(D30=6,Calcs!$S129,0))))))) -> 0 | E129: =IF(E30=1,Calcs!$O129,IF(E30=2,Calcs!$P129,IF(E30=3,Calcs!$Q129,IF(E30=0,Calcs!$N129,IF(E30=5,Calcs!$T129,IF(E30=4,Calcs!$R129,IF(E30=6,Calcs!$S129,0))))))) -> 0 | F129: =IF(F30=1,Calcs!$O129,IF(F30=2,Calcs!$P129,IF(F30=3,Calcs!$Q129,IF(F30=0,Calcs!$N129,IF(F30=5,Calcs!$T129,IF(F30=4,Calcs!$R129,IF(F30=6,Calcs!$S129,0))))))) -> 0 | G129: =IF(G30=1,Calcs!$O129,IF(G30=2,Calcs!$P129,IF(G30=3,Calcs!$Q129,IF(G30=0,Calcs!$N129,IF(G30=5,Calcs!$T129,IF(G30=4,Calcs!$R129,IF(G30=6,Calcs!$S129,0))))))) -> 0 | H129: =IF(H30=1,Calcs!$O129,IF(H30=2,Calcs!$P129,IF(H30=3,Calcs!$Q129,IF(H30=0,Calcs!$N129,IF(H30=5,Calcs!$T129,IF(H30=4,Calcs!$R129,IF(H30=6,Calcs!$S129,0))))))) -> 0 | I129: =IF(I30=1,Calcs!$O129,IF(I30=2,Calcs!$P129,IF(I30=3,Calcs!$Q129,IF(I30=0,Calcs!$N129,IF(I30=5,Calcs!$T129,IF(I30=4,Calcs!$R129,IF(I30=6,Calcs!$S129,0))))))) -> 10.75 | J129: =IF(J30=1,Calcs!$O129,IF(J30=2,Calcs!$P129,IF(J30=3,Calcs!$Q129,IF(J30=0,Calcs!$N129,IF(J30=5,Calcs!$T129,IF(J30=4,Calcs!$R129,IF(J30=6,Calcs!$S129,0))))))) -> 0 | K129: =IF(K30=1,Calcs!$O129,IF(K30=2,Calcs!$P129,IF(K30=3,Calcs!$Q129,IF(K30=0,Calcs!$N129,IF(K30=5,Calcs!$T129,IF(K30=4,Calcs!$R129,IF(K30=6,Calcs!$S129,0))))))) -> 0 | L129: =IF(L30=1,Calcs!$O129,IF(L30=2,Calcs!$P129,IF(L30=3,Calcs!$Q129,IF(L30=0,Calcs!$N129,IF(L30=5,Calcs!$T129,IF(L30=4,Calcs!$R129,IF(L30=6,Calcs!$S129,0))))))) -> 0 | N129: =AB108+AB105 -> 14.5 | O129: =AC108+AC105 -> 14.5 | P129: 14.5 | Q129: 11.25 | R129: =AF108+AF105 -> 10.75 | S129: =AG108+AG105 -> 10.75 | T129: =AH108+AH105 -> 10.75 | V129: +boom+sp
A130: 26 | B130: =B32 -> empty slot for adding a spring option | C130: =IF(C32=1,Calcs!$O130,IF(C32=2,Calcs!$P130,IF(C32=3,Calcs!$Q130,IF(C32=0,Calcs!$N130,IF(C32=5,Calcs!$T130,IF(C32=4,Calcs!$R130,IF(C32=6,Calcs!$S130,0))))))) -> 0 | D130: =IF(D32=1,Calcs!$O130,IF(D32=2,Calcs!$P130,IF(D32=3,Calcs!$Q130,IF(D32=0,Calcs!$N130,IF(D32=5,Calcs!$T130,IF(D32=4,Calcs!$R130,IF(D32=6,Calcs!$S130,0))))))) -> 0 | E130: =IF(E32=1,Calcs!$O130,IF(E32=2,Calcs!$P130,IF(E32=3,Calcs!$Q130,IF(E32=0,Calcs!$N130,IF(E32=5,Calcs!$T130,IF(E32=4,Calcs!$R130,IF(E32=6,Calcs!$S130,0))))))) -> 0 | F130: =IF(F32=1,Calcs!$O130,IF(F32=2,Calcs!$P130,IF(F32=3,Calcs!$Q130,IF(F32=0,Calcs!$N130,IF(F32=5,Calcs!$T130,IF(F32=4,Calcs!$R130,IF(F32=6,Calcs!$S130,0))))))) -> 0 | G130: =IF(G32=1,Calcs!$O130,IF(G32=2,Calcs!$P130,IF(G32=3,Calcs!$Q130,IF(G32=0,Calcs!$N130,IF(G32=5,Calcs!$T130,IF(G32=4,Calcs!$R130,IF(G32=6,Calcs!$S130,0))))))) -> 0 | H130: =IF(H32=1,Calcs!$O130,IF(H32=2,Calcs!$P130,IF(H32=3,Calcs!$Q130,IF(H32=0,Calcs!$N130,IF(H32=5,Calcs!$T130,IF(H32=4,Calcs!$R130,IF(H32=6,Calcs!$S130,0))))))) -> 0 | I130: =IF(I32=1,Calcs!$O130,IF(I32=2,Calcs!$P130,IF(I32=3,Calcs!$Q130,IF(I32=0,Calcs!$N130,IF(I32=5,Calcs!$T130,IF(I32=4,Calcs!$R130,IF(I32=6,Calcs!$S130,0))))))) -> 0 | J130: =IF(J32=1,Calcs!$O130,IF(J32=2,Calcs!$P130,IF(J32=3,Calcs!$Q130,IF(J32=0,Calcs!$N130,IF(J32=5,Calcs!$T130,IF(J32=4,Calcs!$R130,IF(J32=6,Calcs!$S130,0))))))) -> 0 | K130: =IF(K32=1,Calcs!$O130,IF(K32=2,Calcs!$P130,IF(K32=3,Calcs!$Q130,IF(K32=0,Calcs!$N130,IF(K32=5,Calcs!$T130,IF(K32=4,Calcs!$R130,IF(K32=6,Calcs!$S130,0))))))) -> 0 | L130: =IF(L32=1,Calcs!$O130,IF(L32=2,Calcs!$P130,IF(L32=3,Calcs!$Q130,IF(L32=0,Calcs!$N130,IF(L32=5,Calcs!$T130,IF(L32=4,Calcs!$R130,IF(L32=6,Calcs!$S130,0))))))) -> 0
A131: 27 | B131: Spring: Mow+Spray | C131: =IF(C33=1,Calcs!$O131,IF(C33=2,Calcs!$P131,IF(C33=3,Calcs!$Q131,IF(C33=0,Calcs!$N131,IF(C33=5,Calcs!$T131,IF(C33=4,Calcs!$R131,IF(C33=6,Calcs!$S131,0))))))) -> 0 | D131: =IF(D33=1,Calcs!$O131,IF(D33=2,Calcs!$P131,IF(D33=3,Calcs!$Q131,IF(D33=0,Calcs!$N131,IF(D33=5,Calcs!$T131,IF(D33=4,Calcs!$R131,IF(D33=6,Calcs!$S131,0))))))) -> 0 | E131: =IF(E33=1,Calcs!$O131,IF(E33=2,Calcs!$P131,IF(E33=3,Calcs!$Q131,IF(E33=0,Calcs!$N131,IF(E33=5,Calcs!$T131,IF(E33=4,Calcs!$R131,IF(E33=6,Calcs!$S131,0))))))) -> 0 | F131: =IF(F33=1,Calcs!$O131,IF(F33=2,Calcs!$P131,IF(F33=3,Calcs!$Q131,IF(F33=0,Calcs!$N131,IF(F33=5,Calcs!$T131,IF(F33=4,Calcs!$R131,IF(F33=6,Calcs!$S131,0))))))) -> 0 | G131: =IF(G33=1,Calcs!$O131,IF(G33=2,Calcs!$P131,IF(G33=3,Calcs!$Q131,IF(G33=0,Calcs!$N131,IF(G33=5,Calcs!$T131,IF(G33=4,Calcs!$R131,IF(G33=6,Calcs!$S131,0))))))) -> 0 | H131: =IF(H33=1,Calcs!$O131,IF(H33=2,Calcs!$P131,IF(H33=3,Calcs!$Q131,IF(H33=0,Calcs!$N131,IF(H33=5,Calcs!$T131,IF(H33=4,Calcs!$R131,IF(H33=6,Calcs!$S131,0))))))) -> 0 | I131: =IF(I33=1,Calcs!$O131,IF(I33=2,Calcs!$P131,IF(I33=3,Calcs!$Q131,IF(I33=0,Calcs!$N131,IF(I33=5,Calcs!$T131,IF(I33=4,Calcs!$R131,IF(I33=6,Calcs!$S131,0))))))) -> 0 | J131: =IF(J33=1,Calcs!$O131,IF(J33=2,Calcs!$P131,IF(J33=3,Calcs!$Q131,IF(J33=0,Calcs!$N131,IF(J33=5,Calcs!$T131,IF(J33=4,Calcs!$R131,IF(J33=6,Calcs!$S131,0))))))) -> 0 | K131: =IF(K33=1,Calcs!$O131,IF(K33=2,Calcs!$P131,IF(K33=3,Calcs!$Q131,IF(K33=0,Calcs!$N131,IF(K33=5,Calcs!$T131,IF(K33=4,Calcs!$R131,IF(K33=6,Calcs!$S131,0))))))) -> 0 | L131: =IF(L33=1,Calcs!$O131,IF(L33=2,Calcs!$P131,IF(L33=3,Calcs!$Q131,IF(L33=0,Calcs!$N131,IF(L33=5,Calcs!$T131,IF(L33=4,Calcs!$R131,IF(L33=6,Calcs!$S131,0))))))) -> 0 | N131: ='+Prices'!$F$28+AB105+AB107-$AC$112 -> 101.792 | O131: ='+Prices'!$F$28+AC105+AC107-$AC$112 -> 101.792 | P131: ='+Prices'!$F$28+AD105+AD107-$AC$112 -> 101.792 | Q131: ='+Prices'!$F$28+AE105+AE107-$AC$112 -> 101.792 | R131: ='+Prices'!$F$28+AF105+AF107-$AC$112 -> 99.392 | S131: ='+Prices'!$F$28+AG105+AG107-$AC$112 -> 99.392 | T131: ='+Prices'!$F$28+AH105+AH107-$AC$112 -> 99.392 | U131: Prices | V131: +boom+SP-harvest
A132: 28 | B132: Spring: Green M. | C132: =IF(C34=1,Calcs!$O132,IF(C34=2,Calcs!$P132,IF(C34=3,Calcs!$Q132,IF(C34=0,Calcs!$N132,IF(C34=5,Calcs!$T132,IF(C34=4,Calcs!$R132,IF(C34=6,Calcs!$S132,0))))))) -> 0 | D132: =IF(D34=1,Calcs!$O132,IF(D34=2,Calcs!$P132,IF(D34=3,Calcs!$Q132,IF(D34=0,Calcs!$N132,IF(D34=5,Calcs!$T132,IF(D34=4,Calcs!$R132,IF(D34=6,Calcs!$S132,0))))))) -> 0 | E132: =IF(E34=1,Calcs!$O132,IF(E34=2,Calcs!$P132,IF(E34=3,Calcs!$Q132,IF(E34=0,Calcs!$N132,IF(E34=5,Calcs!$T132,IF(E34=4,Calcs!$R132,IF(E34=6,Calcs!$S132,0))))))) -> 0 | F132: =IF(F34=1,Calcs!$O132,IF(F34=2,Calcs!$P132,IF(F34=3,Calcs!$Q132,IF(F34=0,Calcs!$N132,IF(F34=5,Calcs!$T132,IF(F34=4,Calcs!$R132,IF(F34=6,Calcs!$S132,0))))))) -> 0 | G132: =IF(G34=1,Calcs!$O132,IF(G34=2,Calcs!$P132,IF(G34=3,Calcs!$Q132,IF(G34=0,Calcs!$N132,IF(G34=5,Calcs!$T132,IF(G34=4,Calcs!$R132,IF(G34=6,Calcs!$S132,0))))))) -> 0 | H132: =IF(H34=1,Calcs!$O132,IF(H34=2,Calcs!$P132,IF(H34=3,Calcs!$Q132,IF(H34=0,Calcs!$N132,IF(H34=5,Calcs!$T132,IF(H34=4,Calcs!$R132,IF(H34=6,Calcs!$S132,0))))))) -> 0 | I132: =IF(I34=1,Calcs!$O132,IF(I34=2,Calcs!$P132,IF(I34=3,Calcs!$Q132,IF(I34=0,Calcs!$N132,IF(I34=5,Calcs!$T132,IF(I34=4,Calcs!$R132,IF(I34=6,Calcs!$S132,0))))))) -> 0 | J132: =IF(J34=1,Calcs!$O132,IF(J34=2,Calcs!$P132,IF(J34=3,Calcs!$Q132,IF(J34=0,Calcs!$N132,IF(J34=5,Calcs!$T132,IF(J34=4,Calcs!$R132,IF(J34=6,Calcs!$S132,0))))))) -> 0 | K132: =IF(K34=1,Calcs!$O132,IF(K34=2,Calcs!$P132,IF(K34=3,Calcs!$Q132,IF(K34=0,Calcs!$N132,IF(K34=5,Calcs!$T132,IF(K34=4,Calcs!$R132,IF(K34=6,Calcs!$S132,0))))))) -> 0 | L132: =IF(L34=1,Calcs!$O132,IF(L34=2,Calcs!$P132,IF(L34=3,Calcs!$Q132,IF(L34=0,Calcs!$N132,IF(L34=5,Calcs!$T132,IF(L34=4,Calcs!$R132,IF(L34=6,Calcs!$S132,0))))))) -> 0 | N132: =Calcs!$AC$110-$AC$112 -> -6.4 | O132: =Calcs!$AC$110-$AC$112 -> -6.4 | P132: =Calcs!$AC$110-$AC$112 -> -6.4 | Q132: =Calcs!$AC$110-$AC$112 -> -6.4 | R132: =Calcs!$AC$110 -> 15.408 | S132: =Calcs!$AC$110 -> 15.408 | T132: =Calcs!$AC$110 -> 15.408 | V132: +Inc-harvest
A133: 29 | B133: Spring: Hay+Spray | C133: =IF(C35=1,Calcs!$O133,IF(C35=2,Calcs!$P133,IF(C35=3,Calcs!$Q133,IF(C35=0,Calcs!$N133,IF(C35=5,Calcs!$T133,IF(C35=4,Calcs!$R133,IF(C35=6,Calcs!$S133,0))))))) -> 0 | D133: =IF(D35=1,Calcs!$O133,IF(D35=2,Calcs!$P133,IF(D35=3,Calcs!$Q133,IF(D35=0,Calcs!$N133,IF(D35=5,Calcs!$T133,IF(D35=4,Calcs!$R133,IF(D35=6,Calcs!$S133,0))))))) -> 0 | E133: =IF(E35=1,Calcs!$O133,IF(E35=2,Calcs!$P133,IF(E35=3,Calcs!$Q133,IF(E35=0,Calcs!$N133,IF(E35=5,Calcs!$T133,IF(E35=4,Calcs!$R133,IF(E35=6,Calcs!$S133,0))))))) -> 0 | F133: =IF(F35=1,Calcs!$O133,IF(F35=2,Calcs!$P133,IF(F35=3,Calcs!$Q133,IF(F35=0,Calcs!$N133,IF(F35=5,Calcs!$T133,IF(F35=4,Calcs!$R133,IF(F35=6,Calcs!$S133,0))))))) -> 0 | G133: =IF(G35=1,Calcs!$O133,IF(G35=2,Calcs!$P133,IF(G35=3,Calcs!$Q133,IF(G35=0,Calcs!$N133,IF(G35=5,Calcs!$T133,IF(G35=4,Calcs!$R133,IF(G35=6,Calcs!$S133,0))))))) -> 0 | H133: =IF(H35=1,Calcs!$O133,IF(H35=2,Calcs!$P133,IF(H35=3,Calcs!$Q133,IF(H35=0,Calcs!$N133,IF(H35=5,Calcs!$T133,IF(H35=4,Calcs!$R133,IF(H35=6,Calcs!$S133,0))))))) -> 0 | I133: =IF(I35=1,Calcs!$O133,IF(I35=2,Calcs!$P133,IF(I35=3,Calcs!$Q133,IF(I35=0,Calcs!$N133,IF(I35=5,Calcs!$T133,IF(I35=4,Calcs!$R133,IF(I35=6,Calcs!$S133,0))))))) -> 0 | J133: =IF(J35=1,Calcs!$O133,IF(J35=2,Calcs!$P133,IF(J35=3,Calcs!$Q133,IF(J35=0,Calcs!$N133,IF(J35=5,Calcs!$T133,IF(J35=4,Calcs!$R133,IF(J35=6,Calcs!$S133,0))))))) -> 0 | K133: =IF(K35=1,Calcs!$O133,IF(K35=2,Calcs!$P133,IF(K35=3,Calcs!$Q133,IF(K35=0,Calcs!$N133,IF(K35=5,Calcs!$T133,IF(K35=4,Calcs!$R133,IF(K35=6,Calcs!$S133,0))))))) -> 0 | L133: =IF(L35=1,Calcs!$O133,IF(L35=2,Calcs!$P133,IF(L35=3,Calcs!$Q133,IF(L35=0,Calcs!$N133,IF(L35=5,Calcs!$T133,IF(L35=4,Calcs!$R133,IF(L35=6,Calcs!$S133,0))))))) -> 0 | N133: ='1.Profile'!$K$7+AB105+AB107-$AC$112+$AC$111 -> 256.792 | O133: ='1.Profile'!$K$7+AC105+AC107-$AC$112+$AC$111 -> 256.792 | P133: ='1.Profile'!$K$7+AD105+AD107-$AC$112+$AC$111/2 -> 254.292 | Q133: ='1.Profile'!$K$7+AE105+AE107-$AC$112+$AC$111/2 -> 254.292 | R133: ='1.Profile'!$K$7+AF105+AF107-$AC$112 -> 249.392 | S133: ='1.Profile'!$K$7+AG105+AG107-$AC$112 -> 249.392 | T133: ='1.Profile'!$K$7+AH105+AH107-$AC$112 -> 249.392 | U133: Profile | V133: +boom+SP-harvest+N
A134: 30 | B134: Spring: Sil.+Spray | C134: =IF(C36=1,Calcs!$O134,IF(C36=2,Calcs!$P134,IF(C36=3,Calcs!$Q134,IF(C36=0,Calcs!$N134,IF(C36=5,Calcs!$T134,IF(C36=4,Calcs!$R134,IF(C36=6,Calcs!$S134,0))))))) -> 0 | D134: =IF(D36=1,Calcs!$O134,IF(D36=2,Calcs!$P134,IF(D36=3,Calcs!$Q134,IF(D36=0,Calcs!$N134,IF(D36=5,Calcs!$T134,IF(D36=4,Calcs!$R134,IF(D36=6,Calcs!$S134,0))))))) -> 0 | E134: =IF(E36=1,Calcs!$O134,IF(E36=2,Calcs!$P134,IF(E36=3,Calcs!$Q134,IF(E36=0,Calcs!$N134,IF(E36=5,Calcs!$T134,IF(E36=4,Calcs!$R134,IF(E36=6,Calcs!$S134,0))))))) -> 0 | F134: =IF(F36=1,Calcs!$O134,IF(F36=2,Calcs!$P134,IF(F36=3,Calcs!$Q134,IF(F36=0,Calcs!$N134,IF(F36=5,Calcs!$T134,IF(F36=4,Calcs!$R134,IF(F36=6,Calcs!$S134,0))))))) -> 0 | G134: =IF(G36=1,Calcs!$O134,IF(G36=2,Calcs!$P134,IF(G36=3,Calcs!$Q134,IF(G36=0,Calcs!$N134,IF(G36=5,Calcs!$T134,IF(G36=4,Calcs!$R134,IF(G36=6,Calcs!$S134,0))))))) -> 0 | H134: =IF(H36=1,Calcs!$O134,IF(H36=2,Calcs!$P134,IF(H36=3,Calcs!$Q134,IF(H36=0,Calcs!$N134,IF(H36=5,Calcs!$T134,IF(H36=4,Calcs!$R134,IF(H36=6,Calcs!$S134,0))))))) -> 0 | I134: =IF(I36=1,Calcs!$O134,IF(I36=2,Calcs!$P134,IF(I36=3,Calcs!$Q134,IF(I36=0,Calcs!$N134,IF(I36=5,Calcs!$T134,IF(I36=4,Calcs!$R134,IF(I36=6,Calcs!$S134,0))))))) -> 0 | J134: =IF(J36=1,Calcs!$O134,IF(J36=2,Calcs!$P134,IF(J36=3,Calcs!$Q134,IF(J36=0,Calcs!$N134,IF(J36=5,Calcs!$T134,IF(J36=4,Calcs!$R134,IF(J36=6,Calcs!$S134,0))))))) -> 0 | K134: =IF(K36=1,Calcs!$O134,IF(K36=2,Calcs!$P134,IF(K36=3,Calcs!$Q134,IF(K36=0,Calcs!$N134,IF(K36=5,Calcs!$T134,IF(K36=4,Calcs!$R134,IF(K36=6,Calcs!$S134,0))))))) -> 0 | L134: =IF(L36=1,Calcs!$O134,IF(L36=2,Calcs!$P134,IF(L36=3,Calcs!$Q134,IF(L36=0,Calcs!$N134,IF(L36=5,Calcs!$T134,IF(L36=4,Calcs!$R134,IF(L36=6,Calcs!$S134,0))))))) -> 0 | N134: ='1.Profile'!$L$7+AB105+AB107-$AC$112+$AC$111*$AD$111 -> 255.542 | O134: ='1.Profile'!$L$7+AC105+AC107-$AC$112+$AC$111*$AD$111 -> 255.542 | P134: ='1.Profile'!$L$7+AD105+AD107-$AC$112+($AC$111*$AD$111)/2 -> 253.667 | Q134: ='1.Profile'!$L$7+AE105+AE107-$AC$112+($AC$111*$AD$111)/2 -> 253.667 | R134: ='1.Profile'!$L$7+AF105+AF107-$AC$112 -> 249.392 | S134: ='1.Profile'!$L$7+AG105+AG107-$AC$112 -> 249.392 | T134: ='1.Profile'!$L$7+AH105+AH107-$AC$112 -> 249.392 | U134: Profile | V134: +boom+SP-harvest+n
A135: 31 | B135: Spring A1: Define 1st | C135: =IF(C37=1,Calcs!$O135,IF(C37=2,Calcs!$P135,IF(C37=3,Calcs!$Q135,IF(C37=0,Calcs!$N135,IF(C37=5,Calcs!$T135,IF(C37=4,Calcs!$R135,IF(C37=6,Calcs!$S135,0))))))) -> 0 | D135: =IF(D37=1,Calcs!$O135,IF(D37=2,Calcs!$P135,IF(D37=3,Calcs!$Q135,IF(D37=0,Calcs!$N135,IF(D37=5,Calcs!$T135,IF(D37=4,Calcs!$R135,IF(D37=6,Calcs!$S135,0))))))) -> 0 | E135: =IF(E37=1,Calcs!$O135,IF(E37=2,Calcs!$P135,IF(E37=3,Calcs!$Q135,IF(E37=0,Calcs!$N135,IF(E37=5,Calcs!$T135,IF(E37=4,Calcs!$R135,IF(E37=6,Calcs!$S135,0))))))) -> 0 | F135: =IF(F37=1,Calcs!$O135,IF(F37=2,Calcs!$P135,IF(F37=3,Calcs!$Q135,IF(F37=0,Calcs!$N135,IF(F37=5,Calcs!$T135,IF(F37=4,Calcs!$R135,IF(F37=6,Calcs!$S135,0))))))) -> 0 | G135: =IF(G37=1,Calcs!$O135,IF(G37=2,Calcs!$P135,IF(G37=3,Calcs!$Q135,IF(G37=0,Calcs!$N135,IF(G37=5,Calcs!$T135,IF(G37=4,Calcs!$R135,IF(G37=6,Calcs!$S135,0))))))) -> 0 | H135: =IF(H37=1,Calcs!$O135,IF(H37=2,Calcs!$P135,IF(H37=3,Calcs!$Q135,IF(H37=0,Calcs!$N135,IF(H37=5,Calcs!$T135,IF(H37=4,Calcs!$R135,IF(H37=6,Calcs!$S135,0))))))) -> 0 | I135: =IF(I37=1,Calcs!$O135,IF(I37=2,Calcs!$P135,IF(I37=3,Calcs!$Q135,IF(I37=0,Calcs!$N135,IF(I37=5,Calcs!$T135,IF(I37=4,Calcs!$R135,IF(I37=6,Calcs!$S135,0))))))) -> 0 | J135: =IF(J37=1,Calcs!$O135,IF(J37=2,Calcs!$P135,IF(J37=3,Calcs!$Q135,IF(J37=0,Calcs!$N135,IF(J37=5,Calcs!$T135,IF(J37=4,Calcs!$R135,IF(J37=6,Calcs!$S135,0))))))) -> 0 | K135: =IF(K37=1,Calcs!$O135,IF(K37=2,Calcs!$P135,IF(K37=3,Calcs!$Q135,IF(K37=0,Calcs!$N135,IF(K37=5,Calcs!$T135,IF(K37=4,Calcs!$R135,IF(K37=6,Calcs!$S135,0))))))) -> 0 | L135: =IF(L37=1,Calcs!$O135,IF(L37=2,Calcs!$P135,IF(L37=3,Calcs!$Q135,IF(L37=0,Calcs!$N135,IF(L37=5,Calcs!$T135,IF(L37=4,Calcs!$R135,IF(L37=6,Calcs!$S135,0))))))) -> 0 | N135: ='1.Profile'!E32 -> 10 | O135: ='1.Profile'!E32 -> 10 | P135: ='1.Profile'!F32 -> 10 | Q135: ='1.Profile'!F32 -> 10 | R135: ='1.Profile'!G32 -> 10 | S135: ='1.Profile'!G32 -> 10 | T135: ='1.Profile'!G32 -> 10 | U135: Profile
A136: 32 | B136: Spring A2: Define 2nd | C136: =IF(C38=1,Calcs!$O136,IF(C38=2,Calcs!$P136,IF(C38=3,Calcs!$Q136,IF(C38=0,Calcs!$N136,IF(C38=5,Calcs!$T136,IF(C38=4,Calcs!$R136,IF(C38=6,Calcs!$S136,0))))))) -> 0 | D136: =IF(D38=1,Calcs!$O136,IF(D38=2,Calcs!$P136,IF(D38=3,Calcs!$Q136,IF(D38=0,Calcs!$N136,IF(D38=5,Calcs!$T136,IF(D38=4,Calcs!$R136,IF(D38=6,Calcs!$S136,0))))))) -> 0 | E136: =IF(E38=1,Calcs!$O136,IF(E38=2,Calcs!$P136,IF(E38=3,Calcs!$Q136,IF(E38=0,Calcs!$N136,IF(E38=5,Calcs!$T136,IF(E38=4,Calcs!$R136,IF(E38=6,Calcs!$S136,0))))))) -> 0 | F136: =IF(F38=1,Calcs!$O136,IF(F38=2,Calcs!$P136,IF(F38=3,Calcs!$Q136,IF(F38=0,Calcs!$N136,IF(F38=5,Calcs!$T136,IF(F38=4,Calcs!$R136,IF(F38=6,Calcs!$S136,0))))))) -> 0 | G136: =IF(G38=1,Calcs!$O136,IF(G38=2,Calcs!$P136,IF(G38=3,Calcs!$Q136,IF(G38=0,Calcs!$N136,IF(G38=5,Calcs!$T136,IF(G38=4,Calcs!$R136,IF(G38=6,Calcs!$S136,0))))))) -> 0 | H136: =IF(H38=1,Calcs!$O136,IF(H38=2,Calcs!$P136,IF(H38=3,Calcs!$Q136,IF(H38=0,Calcs!$N136,IF(H38=5,Calcs!$T136,IF(H38=4,Calcs!$R136,IF(H38=6,Calcs!$S136,0))))))) -> 0 | I136: =IF(I38=1,Calcs!$O136,IF(I38=2,Calcs!$P136,IF(I38=3,Calcs!$Q136,IF(I38=0,Calcs!$N136,IF(I38=5,Calcs!$T136,IF(I38=4,Calcs!$R136,IF(I38=6,Calcs!$S136,0))))))) -> 0 | J136: =IF(J38=1,Calcs!$O136,IF(J38=2,Calcs!$P136,IF(J38=3,Calcs!$Q136,IF(J38=0,Calcs!$N136,IF(J38=5,Calcs!$T136,IF(J38=4,Calcs!$R136,IF(J38=6,Calcs!$S136,0))))))) -> 0 | K136: =IF(K38=1,Calcs!$O136,IF(K38=2,Calcs!$P136,IF(K38=3,Calcs!$Q136,IF(K38=0,Calcs!$N136,IF(K38=5,Calcs!$T136,IF(K38=4,Calcs!$R136,IF(K38=6,Calcs!$S136,0))))))) -> 0 | L136: =IF(L38=1,Calcs!$O136,IF(L38=2,Calcs!$P136,IF(L38=3,Calcs!$Q136,IF(L38=0,Calcs!$N136,IF(L38=5,Calcs!$T136,IF(L38=4,Calcs!$R136,IF(L38=6,Calcs!$S136,0))))))) -> 0 | N136: ='1.Profile'!E33 -> 10 | O136: ='1.Profile'!E33 -> 10 | P136: ='1.Profile'!F33 -> 10 | Q136: ='1.Profile'!F33 -> 10 | R136: ='1.Profile'!G33 -> 10 | S136: ='1.Profile'!G33 -> 10 | T136: ='1.Profile'!G33 -> 10 | U136: Profile
A137: 33 | B137: Spring - swathe: W/o Spray | C137: =IF(C39=1,Calcs!$O137,IF(C39=2,Calcs!$P137,IF(C39=3,Calcs!$Q137,IF(C39=0,Calcs!$N137,IF(C39=5,Calcs!$T137,IF(C39=4,Calcs!$R137,IF(C39=6,Calcs!$S137,0))))))) -> 0 | D137: =IF(D39=1,Calcs!$O137,IF(D39=2,Calcs!$P137,IF(D39=3,Calcs!$Q137,IF(D39=0,Calcs!$N137,IF(D39=5,Calcs!$T137,IF(D39=4,Calcs!$R137,IF(D39=6,Calcs!$S137,0))))))) -> 0 | E137: =IF(E39=1,Calcs!$O137,IF(E39=2,Calcs!$P137,IF(E39=3,Calcs!$Q137,IF(E39=0,Calcs!$N137,IF(E39=5,Calcs!$T137,IF(E39=4,Calcs!$R137,IF(E39=6,Calcs!$S137,0))))))) -> 0 | F137: =IF(F39=1,Calcs!$O137,IF(F39=2,Calcs!$P137,IF(F39=3,Calcs!$Q137,IF(F39=0,Calcs!$N137,IF(F39=5,Calcs!$T137,IF(F39=4,Calcs!$R137,IF(F39=6,Calcs!$S137,0))))))) -> 0 | G137: =IF(G39=1,Calcs!$O137,IF(G39=2,Calcs!$P137,IF(G39=3,Calcs!$Q137,IF(G39=0,Calcs!$N137,IF(G39=5,Calcs!$T137,IF(G39=4,Calcs!$R137,IF(G39=6,Calcs!$S137,0))))))) -> 0 | H137: =IF(H39=1,Calcs!$O137,IF(H39=2,Calcs!$P137,IF(H39=3,Calcs!$Q137,IF(H39=0,Calcs!$N137,IF(H39=5,Calcs!$T137,IF(H39=4,Calcs!$R137,IF(H39=6,Calcs!$S137,0))))))) -> 0 | I137: =IF(I39=1,Calcs!$O137,IF(I39=2,Calcs!$P137,IF(I39=3,Calcs!$Q137,IF(I39=0,Calcs!$N137,IF(I39=5,Calcs!$T137,IF(I39=4,Calcs!$R137,IF(I39=6,Calcs!$S137,0))))))) -> 0 | J137: =IF(J39=1,Calcs!$O137,IF(J39=2,Calcs!$P137,IF(J39=3,Calcs!$Q137,IF(J39=0,Calcs!$N137,IF(J39=5,Calcs!$T137,IF(J39=4,Calcs!$R137,IF(J39=6,Calcs!$S137,0))))))) -> 0 | K137: =IF(K39=1,Calcs!$O137,IF(K39=2,Calcs!$P137,IF(K39=3,Calcs!$Q137,IF(K39=0,Calcs!$N137,IF(K39=5,Calcs!$T137,IF(K39=4,Calcs!$R137,IF(K39=6,Calcs!$S137,0))))))) -> 0 | L137: =IF(L39=1,Calcs!$O137,IF(L39=2,Calcs!$P137,IF(L39=3,Calcs!$Q137,IF(L39=0,Calcs!$N137,IF(L39=5,Calcs!$T137,IF(L39=4,Calcs!$R137,IF(L39=6,Calcs!$S137,0))))))) -> 0 | N137: ='+Prices'!$F$29 -> 35 | O137: ='+Prices'!$F$29 -> 35 | P137: ='+Prices'!$F$29 -> 35 | Q137: ='+Prices'!$F$29 -> 35 | U137: Prices
A138: 34 | B138: Spring - swathe: With Spray | C138: =IF(C40=1,Calcs!$O138,IF(C40=2,Calcs!$P138,IF(C40=3,Calcs!$Q138,IF(C40=0,Calcs!$N138,IF(C40=5,Calcs!$T138,IF(C40=4,Calcs!$R138,IF(C40=6,Calcs!$S138,0))))))) -> 0 | D138: =IF(D40=1,Calcs!$O138,IF(D40=2,Calcs!$P138,IF(D40=3,Calcs!$Q138,IF(D40=0,Calcs!$N138,IF(D40=5,Calcs!$T138,IF(D40=4,Calcs!$R138,IF(D40=6,Calcs!$S138,0))))))) -> 0 | E138: =IF(E40=1,Calcs!$O138,IF(E40=2,Calcs!$P138,IF(E40=3,Calcs!$Q138,IF(E40=0,Calcs!$N138,IF(E40=5,Calcs!$T138,IF(E40=4,Calcs!$R138,IF(E40=6,Calcs!$S138,0))))))) -> 49.5 | F138: =IF(F40=1,Calcs!$O138,IF(F40=2,Calcs!$P138,IF(F40=3,Calcs!$Q138,IF(F40=0,Calcs!$N138,IF(F40=5,Calcs!$T138,IF(F40=4,Calcs!$R138,IF(F40=6,Calcs!$S138,0))))))) -> 0 | G138: =IF(G40=1,Calcs!$O138,IF(G40=2,Calcs!$P138,IF(G40=3,Calcs!$Q138,IF(G40=0,Calcs!$N138,IF(G40=5,Calcs!$T138,IF(G40=4,Calcs!$R138,IF(G40=6,Calcs!$S138,0))))))) -> 0 | H138: =IF(H40=1,Calcs!$O138,IF(H40=2,Calcs!$P138,IF(H40=3,Calcs!$Q138,IF(H40=0,Calcs!$N138,IF(H40=5,Calcs!$T138,IF(H40=4,Calcs!$R138,IF(H40=6,Calcs!$S138,0))))))) -> 0 | I138: =IF(I40=1,Calcs!$O138,IF(I40=2,Calcs!$P138,IF(I40=3,Calcs!$Q138,IF(I40=0,Calcs!$N138,IF(I40=5,Calcs!$T138,IF(I40=4,Calcs!$R138,IF(I40=6,Calcs!$S138,0))))))) -> 0 | J138: =IF(J40=1,Calcs!$O138,IF(J40=2,Calcs!$P138,IF(J40=3,Calcs!$Q138,IF(J40=0,Calcs!$N138,IF(J40=5,Calcs!$T138,IF(J40=4,Calcs!$R138,IF(J40=6,Calcs!$S138,0))))))) -> 0 | K138: =IF(K40=1,Calcs!$O138,IF(K40=2,Calcs!$P138,IF(K40=3,Calcs!$Q138,IF(K40=0,Calcs!$N138,IF(K40=5,Calcs!$T138,IF(K40=4,Calcs!$R138,IF(K40=6,Calcs!$S138,0))))))) -> 0 | L138: =IF(L40=1,Calcs!$O138,IF(L40=2,Calcs!$P138,IF(L40=3,Calcs!$Q138,IF(L40=0,Calcs!$N138,IF(L40=5,Calcs!$T138,IF(L40=4,Calcs!$R138,IF(L40=6,Calcs!$S138,0))))))) -> 49.5 | N138: =N137+AB105+AB108 -> 49.5 | O138: =O137+AC105+AC108 -> 49.5 | P138: =P137+AD105+AD108 -> 49.5 | Q138: =Q137+AE105+AE108 -> 46.25 | V138: +boom+sp
A139: 35 | B139: Harvest: Cart+B. | C139: =IF(C41=1,Calcs!$O139,IF(C41=2,Calcs!$P139,IF(C41=3,Calcs!$Q139,IF(C41=0,Calcs!$N139,IF(C41=5,Calcs!$T139,IF(C41=4,Calcs!$R139,IF(C41=6,Calcs!$S139,0))))))) -> 0 | D139: =IF(D41=1,Calcs!$O139,IF(D41=2,Calcs!$P139,IF(D41=3,Calcs!$Q139,IF(D41=0,Calcs!$N139,IF(D41=5,Calcs!$T139,IF(D41=4,Calcs!$R139,IF(D41=6,Calcs!$S139,0))))))) -> 0 | E139: =IF(E41=1,Calcs!$O139,IF(E41=2,Calcs!$P139,IF(E41=3,Calcs!$Q139,IF(E41=0,Calcs!$N139,IF(E41=5,Calcs!$T139,IF(E41=4,Calcs!$R139,IF(E41=6,Calcs!$S139,0))))))) -> 0 | F139: =IF(F41=1,Calcs!$O139,IF(F41=2,Calcs!$P139,IF(F41=3,Calcs!$Q139,IF(F41=0,Calcs!$N139,IF(F41=5,Calcs!$T139,IF(F41=4,Calcs!$R139,IF(F41=6,Calcs!$S139,0))))))) -> 0 | G139: =IF(G41=1,Calcs!$O139,IF(G41=2,Calcs!$P139,IF(G41=3,Calcs!$Q139,IF(G41=0,Calcs!$N139,IF(G41=5,Calcs!$T139,IF(G41=4,Calcs!$R139,IF(G41=6,Calcs!$S139,0))))))) -> 0 | H139: =IF(H41=1,Calcs!$O139,IF(H41=2,Calcs!$P139,IF(H41=3,Calcs!$Q139,IF(H41=0,Calcs!$N139,IF(H41=5,Calcs!$T139,IF(H41=4,Calcs!$R139,IF(H41=6,Calcs!$S139,0))))))) -> 0 | I139: =IF(I41=1,Calcs!$O139,IF(I41=2,Calcs!$P139,IF(I41=3,Calcs!$Q139,IF(I41=0,Calcs!$N139,IF(I41=5,Calcs!$T139,IF(I41=4,Calcs!$R139,IF(I41=6,Calcs!$S139,0))))))) -> 0 | J139: =IF(J41=1,Calcs!$O139,IF(J41=2,Calcs!$P139,IF(J41=3,Calcs!$Q139,IF(J41=0,Calcs!$N139,IF(J41=5,Calcs!$T139,IF(J41=4,Calcs!$R139,IF(J41=6,Calcs!$S139,0))))))) -> 0 | K139: =IF(K41=1,Calcs!$O139,IF(K41=2,Calcs!$P139,IF(K41=3,Calcs!$Q139,IF(K41=0,Calcs!$N139,IF(K41=5,Calcs!$T139,IF(K41=4,Calcs!$R139,IF(K41=6,Calcs!$S139,0))))))) -> 0 | L139: =IF(L41=1,Calcs!$O139,IF(L41=2,Calcs!$P139,IF(L41=3,Calcs!$Q139,IF(L41=0,Calcs!$N139,IF(L41=5,Calcs!$T139,IF(L41=4,Calcs!$R139,IF(L41=6,Calcs!$S139,0))))))) -> 0 | N139: ='+Prices'!AN72+AC115 -> 14.884 | O139: =N139 -> 14.884 | P139: =N139 -> 14.884 | Q139: =N139 -> 14.884 | U139: Prices | V139: +f
A140: 36 | B140: Harvest: Narr+B. | C140: =IF(C42=1,Calcs!$O140,IF(C42=2,Calcs!$P140,IF(C42=3,Calcs!$Q140,IF(C42=0,Calcs!$N140,IF(C42=5,Calcs!$T140,IF(C42=4,Calcs!$R140,IF(C42=6,Calcs!$S140,0))))))) -> 15.25 | D140: =IF(D42=1,Calcs!$O140,IF(D42=2,Calcs!$P140,IF(D42=3,Calcs!$Q140,IF(D42=0,Calcs!$N140,IF(D42=5,Calcs!$T140,IF(D42=4,Calcs!$R140,IF(D42=6,Calcs!$S140,0))))))) -> 15.25 | E140: =IF(E42=1,Calcs!$O140,IF(E42=2,Calcs!$P140,IF(E42=3,Calcs!$Q140,IF(E42=0,Calcs!$N140,IF(E42=5,Calcs!$T140,IF(E42=4,Calcs!$R140,IF(E42=6,Calcs!$S140,0))))))) -> 0 | F140: =IF(F42=1,Calcs!$O140,IF(F42=2,Calcs!$P140,IF(F42=3,Calcs!$Q140,IF(F42=0,Calcs!$N140,IF(F42=5,Calcs!$T140,IF(F42=4,Calcs!$R140,IF(F42=6,Calcs!$S140,0))))))) -> 0 | G140: =IF(G42=1,Calcs!$O140,IF(G42=2,Calcs!$P140,IF(G42=3,Calcs!$Q140,IF(G42=0,Calcs!$N140,IF(G42=5,Calcs!$T140,IF(G42=4,Calcs!$R140,IF(G42=6,Calcs!$S140,0))))))) -> 0 | H140: =IF(H42=1,Calcs!$O140,IF(H42=2,Calcs!$P140,IF(H42=3,Calcs!$Q140,IF(H42=0,Calcs!$N140,IF(H42=5,Calcs!$T140,IF(H42=4,Calcs!$R140,IF(H42=6,Calcs!$S140,0))))))) -> 0 | I140: =IF(I42=1,Calcs!$O140,IF(I42=2,Calcs!$P140,IF(I42=3,Calcs!$Q140,IF(I42=0,Calcs!$N140,IF(I42=5,Calcs!$T140,IF(I42=4,Calcs!$R140,IF(I42=6,Calcs!$S140,0))))))) -> 0 | J140: =IF(J42=1,Calcs!$O140,IF(J42=2,Calcs!$P140,IF(J42=3,Calcs!$Q140,IF(J42=0,Calcs!$N140,IF(J42=5,Calcs!$T140,IF(J42=4,Calcs!$R140,IF(J42=6,Calcs!$S140,0))))))) -> 15.25 | K140: =IF(K42=1,Calcs!$O140,IF(K42=2,Calcs!$P140,IF(K42=3,Calcs!$Q140,IF(K42=0,Calcs!$N140,IF(K42=5,Calcs!$T140,IF(K42=4,Calcs!$R140,IF(K42=6,Calcs!$S140,0))))))) -> 0 | L140: =IF(L42=1,Calcs!$O140,IF(L42=2,Calcs!$P140,IF(L42=3,Calcs!$Q140,IF(L42=0,Calcs!$N140,IF(L42=5,Calcs!$T140,IF(L42=4,Calcs!$R140,IF(L42=6,Calcs!$S140,0))))))) -> 15.25 | N140: ='+Prices'!AN73+AC115 -> 15.25 | O140: =N140 -> 15.25 | P140: =N140 -> 15.25 | Q140: =N140 -> 15.25 | V140: +f | Y140: Residue removal accounted for in Prices, Machinary
A141: 37 | B141: Harvest: HSD | C141: =IF(C43=1,Calcs!$O141,IF(C43=2,Calcs!$P141,IF(C43=3,Calcs!$Q141,IF(C43=0,Calcs!$N141,IF(C43=5,Calcs!$T141,IF(C43=4,Calcs!$R141,IF(C43=6,Calcs!$S141,0))))))) -> 0 | D141: =IF(D43=1,Calcs!$O141,IF(D43=2,Calcs!$P141,IF(D43=3,Calcs!$Q141,IF(D43=0,Calcs!$N141,IF(D43=5,Calcs!$T141,IF(D43=4,Calcs!$R141,IF(D43=6,Calcs!$S141,0))))))) -> 0 | E141: =IF(E43=1,Calcs!$O141,IF(E43=2,Calcs!$P141,IF(E43=3,Calcs!$Q141,IF(E43=0,Calcs!$N141,IF(E43=5,Calcs!$T141,IF(E43=4,Calcs!$R141,IF(E43=6,Calcs!$S141,0))))))) -> 0 | F141: =IF(F43=1,Calcs!$O141,IF(F43=2,Calcs!$P141,IF(F43=3,Calcs!$Q141,IF(F43=0,Calcs!$N141,IF(F43=5,Calcs!$T141,IF(F43=4,Calcs!$R141,IF(F43=6,Calcs!$S141,0))))))) -> 0 | G141: =IF(G43=1,Calcs!$O141,IF(G43=2,Calcs!$P141,IF(G43=3,Calcs!$Q141,IF(G43=0,Calcs!$N141,IF(G43=5,Calcs!$T141,IF(G43=4,Calcs!$R141,IF(G43=6,Calcs!$S141,0))))))) -> 0 | H141: =IF(H43=1,Calcs!$O141,IF(H43=2,Calcs!$P141,IF(H43=3,Calcs!$Q141,IF(H43=0,Calcs!$N141,IF(H43=5,Calcs!$T141,IF(H43=4,Calcs!$R141,IF(H43=6,Calcs!$S141,0))))))) -> 0 | I141: =IF(I43=1,Calcs!$O141,IF(I43=2,Calcs!$P141,IF(I43=3,Calcs!$Q141,IF(I43=0,Calcs!$N141,IF(I43=5,Calcs!$T141,IF(I43=4,Calcs!$R141,IF(I43=6,Calcs!$S141,0))))))) -> 0 | J141: =IF(J43=1,Calcs!$O141,IF(J43=2,Calcs!$P141,IF(J43=3,Calcs!$Q141,IF(J43=0,Calcs!$N141,IF(J43=5,Calcs!$T141,IF(J43=4,Calcs!$R141,IF(J43=6,Calcs!$S141,0))))))) -> 0 | K141: =IF(K43=1,Calcs!$O141,IF(K43=2,Calcs!$P141,IF(K43=3,Calcs!$Q141,IF(K43=0,Calcs!$N141,IF(K43=5,Calcs!$T141,IF(K43=4,Calcs!$R141,IF(K43=6,Calcs!$S141,0))))))) -> 0 | L141: =IF(L43=1,Calcs!$O141,IF(L43=2,Calcs!$P141,IF(L43=3,Calcs!$Q141,IF(L43=0,Calcs!$N141,IF(L43=5,Calcs!$T141,IF(L43=4,Calcs!$R141,IF(L43=6,Calcs!$S141,0))))))) -> 0 | N141: ='+Prices'!AN74 -> 6.588 | O141: 6.588 | P141: 6.588 | Q141: 6.588
A142: 38 | B142: Harvest: Tram. | C142: =IF(C44=1,Calcs!$O142,IF(C44=2,Calcs!$P142,IF(C44=3,Calcs!$Q142,IF(C44=0,Calcs!$N142,IF(C44=5,Calcs!$T142,IF(C44=4,Calcs!$R142,IF(C44=6,Calcs!$S142,0))))))) -> 0 | D142: =IF(D44=1,Calcs!$O142,IF(D44=2,Calcs!$P142,IF(D44=3,Calcs!$Q142,IF(D44=0,Calcs!$N142,IF(D44=5,Calcs!$T142,IF(D44=4,Calcs!$R142,IF(D44=6,Calcs!$S142,0))))))) -> 0 | E142: =IF(E44=1,Calcs!$O142,IF(E44=2,Calcs!$P142,IF(E44=3,Calcs!$Q142,IF(E44=0,Calcs!$N142,IF(E44=5,Calcs!$T142,IF(E44=4,Calcs!$R142,IF(E44=6,Calcs!$S142,0))))))) -> 0 | F142: =IF(F44=1,Calcs!$O142,IF(F44=2,Calcs!$P142,IF(F44=3,Calcs!$Q142,IF(F44=0,Calcs!$N142,IF(F44=5,Calcs!$T142,IF(F44=4,Calcs!$R142,IF(F44=6,Calcs!$S142,0))))))) -> 0 | G142: =IF(G44=1,Calcs!$O142,IF(G44=2,Calcs!$P142,IF(G44=3,Calcs!$Q142,IF(G44=0,Calcs!$N142,IF(G44=5,Calcs!$T142,IF(G44=4,Calcs!$R142,IF(G44=6,Calcs!$S142,0))))))) -> 0 | H142: =IF(H44=1,Calcs!$O142,IF(H44=2,Calcs!$P142,IF(H44=3,Calcs!$Q142,IF(H44=0,Calcs!$N142,IF(H44=5,Calcs!$T142,IF(H44=4,Calcs!$R142,IF(H44=6,Calcs!$S142,0))))))) -> 0 | I142: =IF(I44=1,Calcs!$O142,IF(I44=2,Calcs!$P142,IF(I44=3,Calcs!$Q142,IF(I44=0,Calcs!$N142,IF(I44=5,Calcs!$T142,IF(I44=4,Calcs!$R142,IF(I44=6,Calcs!$S142,0))))))) -> 0 | J142: =IF(J44=1,Calcs!$O142,IF(J44=2,Calcs!$P142,IF(J44=3,Calcs!$Q142,IF(J44=0,Calcs!$N142,IF(J44=5,Calcs!$T142,IF(J44=4,Calcs!$R142,IF(J44=6,Calcs!$S142,0))))))) -> 0 | K142: =IF(K44=1,Calcs!$O142,IF(K44=2,Calcs!$P142,IF(K44=3,Calcs!$Q142,IF(K44=0,Calcs!$N142,IF(K44=5,Calcs!$T142,IF(K44=4,Calcs!$R142,IF(K44=6,Calcs!$S142,0))))))) -> 0 | L142: =IF(L44=1,Calcs!$O142,IF(L44=2,Calcs!$P142,IF(L44=3,Calcs!$Q142,IF(L44=0,Calcs!$N142,IF(L44=5,Calcs!$T142,IF(L44=4,Calcs!$R142,IF(L44=6,Calcs!$S142,0))))))) -> 0 | N142: ='+Prices'!$AN$75+(AB105+AB108)*0.3 -> 6.85 | O142: ='+Prices'!$AN$75+(AC105+AC108)*0.3 -> 6.85 | P142: ='+Prices'!$AN$75+(AD105+AD108)*0.3 -> 6.85 | Q142: ='+Prices'!$AN$75+(AE105+AE108)*0.3 -> 5.875 | V142: +(boom+sp)x30%
A143: 39 | B143: empty slot for adding a harvest option, configured for bales | C143: =IF(C45=1,Calcs!$O143,IF(C45=2,Calcs!$P143,IF(C45=3,Calcs!$Q143,IF(C45=0,Calcs!$N143,IF(C45=5,Calcs!$T143,IF(C45=4,Calcs!$R143,IF(C45=6,Calcs!$S143,0))))))) -> 0 | D143: =IF(D45=1,Calcs!$O143,IF(D45=2,Calcs!$P143,IF(D45=3,Calcs!$Q143,IF(D45=0,Calcs!$N143,IF(D45=5,Calcs!$T143,IF(D45=4,Calcs!$R143,IF(D45=6,Calcs!$S143,0))))))) -> 0 | E143: =IF(E45=1,Calcs!$O143,IF(E45=2,Calcs!$P143,IF(E45=3,Calcs!$Q143,IF(E45=0,Calcs!$N143,IF(E45=5,Calcs!$T143,IF(E45=4,Calcs!$R143,IF(E45=6,Calcs!$S143,0))))))) -> 0 | F143: =IF(F45=1,Calcs!$O143,IF(F45=2,Calcs!$P143,IF(F45=3,Calcs!$Q143,IF(F45=0,Calcs!$N143,IF(F45=5,Calcs!$T143,IF(F45=4,Calcs!$R143,IF(F45=6,Calcs!$S143,0))))))) -> 0 | G143: =IF(G45=1,Calcs!$O143,IF(G45=2,Calcs!$P143,IF(G45=3,Calcs!$Q143,IF(G45=0,Calcs!$N143,IF(G45=5,Calcs!$T143,IF(G45=4,Calcs!$R143,IF(G45=6,Calcs!$S143,0))))))) -> 0 | H143: =IF(H45=1,Calcs!$O143,IF(H45=2,Calcs!$P143,IF(H45=3,Calcs!$Q143,IF(H45=0,Calcs!$N143,IF(H45=5,Calcs!$T143,IF(H45=4,Calcs!$R143,IF(H45=6,Calcs!$S143,0))))))) -> 0 | I143: =IF(I45=1,Calcs!$O143,IF(I45=2,Calcs!$P143,IF(I45=3,Calcs!$Q143,IF(I45=0,Calcs!$N143,IF(I45=5,Calcs!$T143,IF(I45=4,Calcs!$R143,IF(I45=6,Calcs!$S143,0))))))) -> 0 | J143: =IF(J45=1,Calcs!$O143,IF(J45=2,Calcs!$P143,IF(J45=3,Calcs!$Q143,IF(J45=0,Calcs!$N143,IF(J45=5,Calcs!$T143,IF(J45=4,Calcs!$R143,IF(J45=6,Calcs!$S143,0))))))) -> 0 | K143: =IF(K45=1,Calcs!$O143,IF(K45=2,Calcs!$P143,IF(K45=3,Calcs!$Q143,IF(K45=0,Calcs!$N143,IF(K45=5,Calcs!$T143,IF(K45=4,Calcs!$R143,IF(K45=6,Calcs!$S143,0))))))) -> 0 | L143: =IF(L45=1,Calcs!$O143,IF(L45=2,Calcs!$P143,IF(L45=3,Calcs!$Q143,IF(L45=0,Calcs!$N143,IF(L45=5,Calcs!$T143,IF(L45=4,Calcs!$R143,IF(L45=6,Calcs!$S143,0))))))) -> 0 | N143: ='+Prices'!AN76 -> 0 | O143: 0 | P143: 0 | Q143: 0
A144: 40 | B144: Harvest: BDS+E. | C144: =IF(C46=1,Calcs!$O144,IF(C46=2,Calcs!$P144,IF(C46=3,Calcs!$Q144,IF(C46=0,Calcs!$N144,IF(C46=5,Calcs!$T144,IF(C46=4,Calcs!$R144,IF(C46=6,Calcs!$S144,0))))))) -> 0 | D144: =IF(D46=1,Calcs!$O144,IF(D46=2,Calcs!$P144,IF(D46=3,Calcs!$Q144,IF(D46=0,Calcs!$N144,IF(D46=5,Calcs!$T144,IF(D46=4,Calcs!$R144,IF(D46=6,Calcs!$S144,0))))))) -> 0 | E144: =IF(E46=1,Calcs!$O144,IF(E46=2,Calcs!$P144,IF(E46=3,Calcs!$Q144,IF(E46=0,Calcs!$N144,IF(E46=5,Calcs!$T144,IF(E46=4,Calcs!$R144,IF(E46=6,Calcs!$S144,0))))))) -> 0 | F144: =IF(F46=1,Calcs!$O144,IF(F46=2,Calcs!$P144,IF(F46=3,Calcs!$Q144,IF(F46=0,Calcs!$N144,IF(F46=5,Calcs!$T144,IF(F46=4,Calcs!$R144,IF(F46=6,Calcs!$S144,0))))))) -> 0 | G144: =IF(G46=1,Calcs!$O144,IF(G46=2,Calcs!$P144,IF(G46=3,Calcs!$Q144,IF(G46=0,Calcs!$N144,IF(G46=5,Calcs!$T144,IF(G46=4,Calcs!$R144,IF(G46=6,Calcs!$S144,0))))))) -> 0 | H144: =IF(H46=1,Calcs!$O144,IF(H46=2,Calcs!$P144,IF(H46=3,Calcs!$Q144,IF(H46=0,Calcs!$N144,IF(H46=5,Calcs!$T144,IF(H46=4,Calcs!$R144,IF(H46=6,Calcs!$S144,0))))))) -> 0 | I144: =IF(I46=1,Calcs!$O144,IF(I46=2,Calcs!$P144,IF(I46=3,Calcs!$Q144,IF(I46=0,Calcs!$N144,IF(I46=5,Calcs!$T144,IF(I46=4,Calcs!$R144,IF(I46=6,Calcs!$S144,0))))))) -> 0 | J144: =IF(J46=1,Calcs!$O144,IF(J46=2,Calcs!$P144,IF(J46=3,Calcs!$Q144,IF(J46=0,Calcs!$N144,IF(J46=5,Calcs!$T144,IF(J46=4,Calcs!$R144,IF(J46=6,Calcs!$S144,0))))))) -> 0 | K144: =IF(K46=1,Calcs!$O144,IF(K46=2,Calcs!$P144,IF(K46=3,Calcs!$Q144,IF(K46=0,Calcs!$N144,IF(K46=5,Calcs!$T144,IF(K46=4,Calcs!$R144,IF(K46=6,Calcs!$S144,0))))))) -> 0 | L144: =IF(L46=1,Calcs!$O144,IF(L46=2,Calcs!$P144,IF(L46=3,Calcs!$Q144,IF(L46=0,Calcs!$N144,IF(L46=5,Calcs!$T144,IF(L46=4,Calcs!$R144,IF(L46=6,Calcs!$S144,0))))))) -> 0 | N144: ='+Prices'!AN77 -> 37.872 | O144: 37.872 | P144: 37.872 | Q144: 37.872
A145: 41 | B145: Harvest: B.all | C145: =IF(C47=1,Calcs!$O145,IF(C47=2,Calcs!$P145,IF(C47=3,Calcs!$Q145,IF(C47=0,Calcs!$N145,IF(C47=5,Calcs!$T145,IF(C47=4,Calcs!$R145,IF(C47=6,Calcs!$S145,0))))))) -> 0 | D145: =IF(D47=1,Calcs!$O145,IF(D47=2,Calcs!$P145,IF(D47=3,Calcs!$Q145,IF(D47=0,Calcs!$N145,IF(D47=5,Calcs!$T145,IF(D47=4,Calcs!$R145,IF(D47=6,Calcs!$S145,0))))))) -> 0 | E145: =IF(E47=1,Calcs!$O145,IF(E47=2,Calcs!$P145,IF(E47=3,Calcs!$Q145,IF(E47=0,Calcs!$N145,IF(E47=5,Calcs!$T145,IF(E47=4,Calcs!$R145,IF(E47=6,Calcs!$S145,0))))))) -> 0 | F145: =IF(F47=1,Calcs!$O145,IF(F47=2,Calcs!$P145,IF(F47=3,Calcs!$Q145,IF(F47=0,Calcs!$N145,IF(F47=5,Calcs!$T145,IF(F47=4,Calcs!$R145,IF(F47=6,Calcs!$S145,0))))))) -> 0 | G145: =IF(G47=1,Calcs!$O145,IF(G47=2,Calcs!$P145,IF(G47=3,Calcs!$Q145,IF(G47=0,Calcs!$N145,IF(G47=5,Calcs!$T145,IF(G47=4,Calcs!$R145,IF(G47=6,Calcs!$S145,0))))))) -> 0 | H145: =IF(H47=1,Calcs!$O145,IF(H47=2,Calcs!$P145,IF(H47=3,Calcs!$Q145,IF(H47=0,Calcs!$N145,IF(H47=5,Calcs!$T145,IF(H47=4,Calcs!$R145,IF(H47=6,Calcs!$S145,0))))))) -> 0 | I145: =IF(I47=1,Calcs!$O145,IF(I47=2,Calcs!$P145,IF(I47=3,Calcs!$Q145,IF(I47=0,Calcs!$N145,IF(I47=5,Calcs!$T145,IF(I47=4,Calcs!$R145,IF(I47=6,Calcs!$S145,0))))))) -> 0 | J145: =IF(J47=1,Calcs!$O145,IF(J47=2,Calcs!$P145,IF(J47=3,Calcs!$Q145,IF(J47=0,Calcs!$N145,IF(J47=5,Calcs!$T145,IF(J47=4,Calcs!$R145,IF(J47=6,Calcs!$S145,0))))))) -> 0 | K145: =IF(K47=1,Calcs!$O145,IF(K47=2,Calcs!$P145,IF(K47=3,Calcs!$Q145,IF(K47=0,Calcs!$N145,IF(K47=5,Calcs!$T145,IF(K47=4,Calcs!$R145,IF(K47=6,Calcs!$S145,0))))))) -> 0 | L145: =IF(L47=1,Calcs!$O145,IF(L47=2,Calcs!$P145,IF(L47=3,Calcs!$Q145,IF(L47=0,Calcs!$N145,IF(L47=5,Calcs!$T145,IF(L47=4,Calcs!$R145,IF(L47=6,Calcs!$S145,0))))))) -> 0 | N145: ='+Prices'!AN78+AC114 -> 21 | O145: 21 | P145: =N145 -> 21 | Q145: =N145 -> 21 | R145: =N145 -> 21 | S145: =N145 -> 21 | T145: =N145 -> 21 | U145: Prices | V145: +F
A146: 42 | B146: Harvest B1: Define 1st | C146: =IF(C48=1,Calcs!$O146,IF(C48=2,Calcs!$P146,IF(C48=3,Calcs!$Q146,IF(C48=0,Calcs!$N146,IF(C48=5,Calcs!$T146,IF(C48=4,Calcs!$R146,IF(C48=6,Calcs!$S146,0))))))) -> 0 | D146: =IF(D48=1,Calcs!$O146,IF(D48=2,Calcs!$P146,IF(D48=3,Calcs!$Q146,IF(D48=0,Calcs!$N146,IF(D48=5,Calcs!$T146,IF(D48=4,Calcs!$R146,IF(D48=6,Calcs!$S146,0))))))) -> 0 | E146: =IF(E48=1,Calcs!$O146,IF(E48=2,Calcs!$P146,IF(E48=3,Calcs!$Q146,IF(E48=0,Calcs!$N146,IF(E48=5,Calcs!$T146,IF(E48=4,Calcs!$R146,IF(E48=6,Calcs!$S146,0))))))) -> 0 | F146: =IF(F48=1,Calcs!$O146,IF(F48=2,Calcs!$P146,IF(F48=3,Calcs!$Q146,IF(F48=0,Calcs!$N146,IF(F48=5,Calcs!$T146,IF(F48=4,Calcs!$R146,IF(F48=6,Calcs!$S146,0))))))) -> 0 | G146: =IF(G48=1,Calcs!$O146,IF(G48=2,Calcs!$P146,IF(G48=3,Calcs!$Q146,IF(G48=0,Calcs!$N146,IF(G48=5,Calcs!$T146,IF(G48=4,Calcs!$R146,IF(G48=6,Calcs!$S146,0))))))) -> 0 | H146: =IF(H48=1,Calcs!$O146,IF(H48=2,Calcs!$P146,IF(H48=3,Calcs!$Q146,IF(H48=0,Calcs!$N146,IF(H48=5,Calcs!$T146,IF(H48=4,Calcs!$R146,IF(H48=6,Calcs!$S146,0))))))) -> 0 | I146: =IF(I48=1,Calcs!$O146,IF(I48=2,Calcs!$P146,IF(I48=3,Calcs!$Q146,IF(I48=0,Calcs!$N146,IF(I48=5,Calcs!$T146,IF(I48=4,Calcs!$R146,IF(I48=6,Calcs!$S146,0))))))) -> 0 | J146: =IF(J48=1,Calcs!$O146,IF(J48=2,Calcs!$P146,IF(J48=3,Calcs!$Q146,IF(J48=0,Calcs!$N146,IF(J48=5,Calcs!$T146,IF(J48=4,Calcs!$R146,IF(J48=6,Calcs!$S146,0))))))) -> 0 | K146: =IF(K48=1,Calcs!$O146,IF(K48=2,Calcs!$P146,IF(K48=3,Calcs!$Q146,IF(K48=0,Calcs!$N146,IF(K48=5,Calcs!$T146,IF(K48=4,Calcs!$R146,IF(K48=6,Calcs!$S146,0))))))) -> 0 | L146: =IF(L48=1,Calcs!$O146,IF(L48=2,Calcs!$P146,IF(L48=3,Calcs!$Q146,IF(L48=0,Calcs!$N146,IF(L48=5,Calcs!$T146,IF(L48=4,Calcs!$R146,IF(L48=6,Calcs!$S146,0))))))) -> 0 | N146: ='1.Profile'!E35 -> 10 | O146: ='1.Profile'!E35 -> 10 | P146: ='1.Profile'!F35 -> 10 | Q146: ='1.Profile'!F35 -> 10 | R146: ='1.Profile'!G35 -> 10 | S146: ='1.Profile'!G35 -> 10 | T146: ='1.Profile'!G35 -> 10 | U146: Profile
A147: 43 | B147: Harvest B2: Define 2nd | C147: =IF(C49=1,Calcs!$O147,IF(C49=2,Calcs!$P147,IF(C49=3,Calcs!$Q147,IF(C49=0,Calcs!$N147,IF(C49=5,Calcs!$T147,IF(C49=4,Calcs!$R147,IF(C49=6,Calcs!$S147,0))))))) -> 0 | D147: =IF(D49=1,Calcs!$O147,IF(D49=2,Calcs!$P147,IF(D49=3,Calcs!$Q147,IF(D49=0,Calcs!$N147,IF(D49=5,Calcs!$T147,IF(D49=4,Calcs!$R147,IF(D49=6,Calcs!$S147,0))))))) -> 0 | E147: =IF(E49=1,Calcs!$O147,IF(E49=2,Calcs!$P147,IF(E49=3,Calcs!$Q147,IF(E49=0,Calcs!$N147,IF(E49=5,Calcs!$T147,IF(E49=4,Calcs!$R147,IF(E49=6,Calcs!$S147,0))))))) -> 0 | F147: =IF(F49=1,Calcs!$O147,IF(F49=2,Calcs!$P147,IF(F49=3,Calcs!$Q147,IF(F49=0,Calcs!$N147,IF(F49=5,Calcs!$T147,IF(F49=4,Calcs!$R147,IF(F49=6,Calcs!$S147,0))))))) -> 0 | G147: =IF(G49=1,Calcs!$O147,IF(G49=2,Calcs!$P147,IF(G49=3,Calcs!$Q147,IF(G49=0,Calcs!$N147,IF(G49=5,Calcs!$T147,IF(G49=4,Calcs!$R147,IF(G49=6,Calcs!$S147,0))))))) -> 0 | H147: =IF(H49=1,Calcs!$O147,IF(H49=2,Calcs!$P147,IF(H49=3,Calcs!$Q147,IF(H49=0,Calcs!$N147,IF(H49=5,Calcs!$T147,IF(H49=4,Calcs!$R147,IF(H49=6,Calcs!$S147,0))))))) -> 0 | I147: =IF(I49=1,Calcs!$O147,IF(I49=2,Calcs!$P147,IF(I49=3,Calcs!$Q147,IF(I49=0,Calcs!$N147,IF(I49=5,Calcs!$T147,IF(I49=4,Calcs!$R147,IF(I49=6,Calcs!$S147,0))))))) -> 0 | J147: =IF(J49=1,Calcs!$O147,IF(J49=2,Calcs!$P147,IF(J49=3,Calcs!$Q147,IF(J49=0,Calcs!$N147,IF(J49=5,Calcs!$T147,IF(J49=4,Calcs!$R147,IF(J49=6,Calcs!$S147,0))))))) -> 0 | K147: =IF(K49=1,Calcs!$O147,IF(K49=2,Calcs!$P147,IF(K49=3,Calcs!$Q147,IF(K49=0,Calcs!$N147,IF(K49=5,Calcs!$T147,IF(K49=4,Calcs!$R147,IF(K49=6,Calcs!$S147,0))))))) -> 0 | L147: =IF(L49=1,Calcs!$O147,IF(L49=2,Calcs!$P147,IF(L49=3,Calcs!$Q147,IF(L49=0,Calcs!$N147,IF(L49=5,Calcs!$T147,IF(L49=4,Calcs!$R147,IF(L49=6,Calcs!$S147,0))))))) -> 0 | N147: ='1.Profile'!E36 -> 10 | O147: ='1.Profile'!E36 -> 10 | P147: ='1.Profile'!F36 -> 10 | Q147: ='1.Profile'!F36 -> 10 | R147: ='1.Profile'!G36 -> 10 | S147: ='1.Profile'!G36 -> 10 | T147: ='1.Profile'!G36 -> 10 | U147: Profile
B150: Table 4. RG germination | C150: Proportion of seeds germinating depending if 'Need to sow' (Strategy page), 'Tickle/Plough', 'Full-cut' (this page). Results from the Options page.
B151: Prior to break | C151: =IF('2.Strategy'!D$66="no",IF(OR(Calcs!C$16<>"",Calcs!C$17<>""),'+Options'!$AI105,'+Options'!$AG105),IF(OR(Calcs!C$16<>"",Calcs!C$17<>""),IF(Calcs!C$18<>"",'+Options'!$AJ115,'+Options'!$AI115),IF(Calcs!C$18<>"",'+Options'!$AH115,'+Options'!$AG115))) -> 0.05 | D151: =IF('2.Strategy'!E$66="no",IF(OR(Calcs!D$16<>"",Calcs!D$17<>""),'+Options'!$AI105,'+Options'!$AG105),IF(OR(Calcs!D$16<>"",Calcs!D$17<>""),IF(Calcs!D$18<>"",'+Options'!$AJ115,'+Options'!$AI115),IF(Calcs!D$18<>"",'+Options'!$AH115,'+Options'!$AG115))) -> 0.05 | E151: =IF('2.Strategy'!F$66="no",IF(OR(Calcs!E$16<>"",Calcs!E$17<>""),'+Options'!$AI105,'+Options'!$AG105),IF(OR(Calcs!E$16<>"",Calcs!E$17<>""),IF(Calcs!E$18<>"",'+Options'!$AJ115,'+Options'!$AI115),IF(Calcs!E$18<>"",'+Options'!$AH115,'+Options'!$AG115))) -> 0.05 | F151: =IF('2.Strategy'!G$66="no",IF(OR(Calcs!F$16<>"",Calcs!F$17<>""),'+Options'!$AI105,'+Options'!$AG105),IF(OR(Calcs!F$16<>"",Calcs!F$17<>""),IF(Calcs!F$18<>"",'+Options'!$AJ115,'+Options'!$AI115),IF(Calcs!F$18<>"",'+Options'!$AH115,'+Options'!$AG115))) -> 0.07 | G151: =IF('2.Strategy'!H$66="no",IF(OR(Calcs!G$16<>"",Calcs!G$17<>""),'+Options'!$AI105,'+Options'!$AG105),IF(OR(Calcs!G$16<>"",Calcs!G$17<>""),IF(Calcs!G$18<>"",'+Options'!$AJ115,'+Options'!$AI115),IF(Calcs!G$18<>"",'+Options'!$AH115,'+Options'!$AG115))) -> 0.05 | H151: =IF('2.Strategy'!I$66="no",IF(OR(Calcs!H$16<>"",Calcs!H$17<>""),'+Options'!$AI105,'+Options'!$AG105),IF(OR(Calcs!H$16<>"",Calcs!H$17<>""),IF(Calcs!H$18<>"",'+Options'!$AJ115,'+Options'!$AI115),IF(Calcs!H$18<>"",'+Options'!$AH115,'+Options'!$AG115))) -> 0.05 | I151: =IF('2.Strategy'!J$66="no",IF(OR(Calcs!I$16<>"",Calcs!I$17<>""),'+Options'!$AI105,'+Options'!$AG105),IF(OR(Calcs!I$16<>"",Calcs!I$17<>""),IF(Calcs!I$18<>"",'+Options'!$AJ115,'+Options'!$AI115),IF(Calcs!I$18<>"",'+Options'!$AH115,'+Options'!$AG115))) -> 0.05 | J151: =IF('2.Strategy'!K$66="no",IF(OR(Calcs!J$16<>"",Calcs!J$17<>""),'+Options'!$AI105,'+Options'!$AG105),IF(OR(Calcs!J$16<>"",Calcs!J$17<>""),IF(Calcs!J$18<>"",'+Options'!$AJ115,'+Options'!$AI115),IF(Calcs!J$18<>"",'+Options'!$AH115,'+Options'!$AG115))) -> 0.05 | K151: =IF('2.Strategy'!L$66="no",IF(OR(Calcs!K$16<>"",Calcs!K$17<>""),'+Options'!$AI105,'+Options'!$AG105),IF(OR(Calcs!K$16<>"",Calcs!K$17<>""),IF(Calcs!K$18<>"",'+Options'!$AJ115,'+Options'!$AI115),IF(Calcs!K$18<>"",'+Options'!$AH115,'+Options'!$AG115))) -> 0.05 | L151: =IF('2.Strategy'!M$66="no",IF(OR(Calcs!L$16<>"",Calcs!L$17<>""),'+Options'!$AI105,'+Options'!$AG105),IF(OR(Calcs!L$16<>"",Calcs!L$17<>""),IF(Calcs!L$18<>"",'+Options'!$AJ115,'+Options'!$AI115),IF(Calcs!L$18<>"",'+Options'!$AH115,'+Options'!$AG115))) -> 0.05 | T151: =IF('2.Strategy'!U$66="no",IF(Calcs!T$16<>"",'+Options'!$AI105,'+Options'!$AG105),IF(Calcs!T$16<>"",IF(Calcs!T$18<>"",'+Options'!$AJ115,'+Options'!$AI115),IF(Calcs!T$18<>"",'+Options'!$AH115,'+Options'!$AG115))) -> 0.05
B152: 10 days after break | C152: =IF('2.Strategy'!D$66="no",IF(OR(Calcs!C$16<>"",Calcs!C$17<>""),'+Options'!$AI106,'+Options'!$AG106),IF(OR(Calcs!C$16<>"",Calcs!C$17<>""),IF(Calcs!C$18<>"",'+Options'!$AJ116,'+Options'!$AI116),IF(Calcs!C$18<>"",'+Options'!$AH116,'+Options'!$AG116))) -> 0.35 | D152: =IF('2.Strategy'!E$66="no",IF(OR(Calcs!D$16<>"",Calcs!D$17<>""),'+Options'!$AI106,'+Options'!$AG106),IF(OR(Calcs!D$16<>"",Calcs!D$17<>""),IF(Calcs!D$18<>"",'+Options'!$AJ116,'+Options'!$AI116),IF(Calcs!D$18<>"",'+Options'!$AH116,'+Options'!$AG116))) -> 0.35 | E152: =IF('2.Strategy'!F$66="no",IF(OR(Calcs!E$16<>"",Calcs!E$17<>""),'+Options'!$AI106,'+Options'!$AG106),IF(OR(Calcs!E$16<>"",Calcs!E$17<>""),IF(Calcs!E$18<>"",'+Options'!$AJ116,'+Options'!$AI116),IF(Calcs!E$18<>"",'+Options'!$AH116,'+Options'!$AG116))) -> 0.35 | F152: =IF('2.Strategy'!G$66="no",IF(OR(Calcs!F$16<>"",Calcs!F$17<>""),'+Options'!$AI106,'+Options'!$AG106),IF(OR(Calcs!F$16<>"",Calcs!F$17<>""),IF(Calcs!F$18<>"",'+Options'!$AJ116,'+Options'!$AI116),IF(Calcs!F$18<>"",'+Options'!$AH116,'+Options'!$AG116))) -> 0.4 | G152: =IF('2.Strategy'!H$66="no",IF(OR(Calcs!G$16<>"",Calcs!G$17<>""),'+Options'!$AI106,'+Options'!$AG106),IF(OR(Calcs!G$16<>"",Calcs!G$17<>""),IF(Calcs!G$18<>"",'+Options'!$AJ116,'+Options'!$AI116),IF(Calcs!G$18<>"",'+Options'!$AH116,'+Options'!$AG116))) -> 0.3 | H152: =IF('2.Strategy'!I$66="no",IF(OR(Calcs!H$16<>"",Calcs!H$17<>""),'+Options'!$AI106,'+Options'!$AG106),IF(OR(Calcs!H$16<>"",Calcs!H$17<>""),IF(Calcs!H$18<>"",'+Options'!$AJ116,'+Options'!$AI116),IF(Calcs!H$18<>"",'+Options'!$AH116,'+Options'!$AG116))) -> 0.3 | I152: =IF('2.Strategy'!J$66="no",IF(OR(Calcs!I$16<>"",Calcs!I$17<>""),'+Options'!$AI106,'+Options'!$AG106),IF(OR(Calcs!I$16<>"",Calcs!I$17<>""),IF(Calcs!I$18<>"",'+Options'!$AJ116,'+Options'!$AI116),IF(Calcs!I$18<>"",'+Options'!$AH116,'+Options'!$AG116))) -> 0.3 | J152: =IF('2.Strategy'!K$66="no",IF(OR(Calcs!J$16<>"",Calcs!J$17<>""),'+Options'!$AI106,'+Options'!$AG106),IF(OR(Calcs!J$16<>"",Calcs!J$17<>""),IF(Calcs!J$18<>"",'+Options'!$AJ116,'+Options'!$AI116),IF(Calcs!J$18<>"",'+Options'!$AH116,'+Options'!$AG116))) -> 0.35 | K152: =IF('2.Strategy'!L$66="no",IF(OR(Calcs!K$16<>"",Calcs!K$17<>""),'+Options'!$AI106,'+Options'!$AG106),IF(OR(Calcs!K$16<>"",Calcs!K$17<>""),IF(Calcs!K$18<>"",'+Options'!$AJ116,'+Options'!$AI116),IF(Calcs!K$18<>"",'+Options'!$AH116,'+Options'!$AG116))) -> 0.35 | L152: =IF('2.Strategy'!M$66="no",IF(OR(Calcs!L$16<>"",Calcs!L$17<>""),'+Options'!$AI106,'+Options'!$AG106),IF(OR(Calcs!L$16<>"",Calcs!L$17<>""),IF(Calcs!L$18<>"",'+Options'!$AJ116,'+Options'!$AI116),IF(Calcs!L$18<>"",'+Options'!$AH116,'+Options'!$AG116))) -> 0.35 | T152: =IF('2.Strategy'!U$66="no",IF(Calcs!T$16<>"",'+Options'!$AI106,'+Options'!$AG106),IF(Calcs!T$16<>"",IF(Calcs!T$18<>"",'+Options'!$AJ116,'+Options'!$AI116),IF(Calcs!T$18<>"",'+Options'!$AH116,'+Options'!$AG116))) -> 0.35
B153: 20 days after break | C153: =IF('2.Strategy'!D$66="no",IF(OR(Calcs!C$16<>"",Calcs!C$17<>""),'+Options'!$AI107,'+Options'!$AG107),IF(OR(Calcs!C$16<>"",Calcs!C$17<>""),IF(Calcs!C$18<>"",'+Options'!$AJ117,'+Options'!$AI117),IF(Calcs!C$18<>"",'+Options'!$AH117,'+Options'!$AG117))) -> 0.4 | D153: =IF('2.Strategy'!E$66="no",IF(OR(Calcs!D$16<>"",Calcs!D$17<>""),'+Options'!$AI107,'+Options'!$AG107),IF(OR(Calcs!D$16<>"",Calcs!D$17<>""),IF(Calcs!D$18<>"",'+Options'!$AJ117,'+Options'!$AI117),IF(Calcs!D$18<>"",'+Options'!$AH117,'+Options'!$AG117))) -> 0.4 | E153: =IF('2.Strategy'!F$66="no",IF(OR(Calcs!E$16<>"",Calcs!E$17<>""),'+Options'!$AI107,'+Options'!$AG107),IF(OR(Calcs!E$16<>"",Calcs!E$17<>""),IF(Calcs!E$18<>"",'+Options'!$AJ117,'+Options'!$AI117),IF(Calcs!E$18<>"",'+Options'!$AH117,'+Options'!$AG117))) -> 0.4 | F153: =IF('2.Strategy'!G$66="no",IF(OR(Calcs!F$16<>"",Calcs!F$17<>""),'+Options'!$AI107,'+Options'!$AG107),IF(OR(Calcs!F$16<>"",Calcs!F$17<>""),IF(Calcs!F$18<>"",'+Options'!$AJ117,'+Options'!$AI117),IF(Calcs!F$18<>"",'+Options'!$AH117,'+Options'!$AG117))) -> 0.45 | G153: =IF('2.Strategy'!H$66="no",IF(OR(Calcs!G$16<>"",Calcs!G$17<>""),'+Options'!$AI107,'+Options'!$AG107),IF(OR(Calcs!G$16<>"",Calcs!G$17<>""),IF(Calcs!G$18<>"",'+Options'!$AJ117,'+Options'!$AI117),IF(Calcs!G$18<>"",'+Options'!$AH117,'+Options'!$AG117))) -> 0.35 | H153: =IF('2.Strategy'!I$66="no",IF(OR(Calcs!H$16<>"",Calcs!H$17<>""),'+Options'!$AI107,'+Options'!$AG107),IF(OR(Calcs!H$16<>"",Calcs!H$17<>""),IF(Calcs!H$18<>"",'+Options'!$AJ117,'+Options'!$AI117),IF(Calcs!H$18<>"",'+Options'!$AH117,'+Options'!$AG117))) -> 0.35 | I153: =IF('2.Strategy'!J$66="no",IF(OR(Calcs!I$16<>"",Calcs!I$17<>""),'+Options'!$AI107,'+Options'!$AG107),IF(OR(Calcs!I$16<>"",Calcs!I$17<>""),IF(Calcs!I$18<>"",'+Options'!$AJ117,'+Options'!$AI117),IF(Calcs!I$18<>"",'+Options'!$AH117,'+Options'!$AG117))) -> 0.35 | J153: =IF('2.Strategy'!K$66="no",IF(OR(Calcs!J$16<>"",Calcs!J$17<>""),'+Options'!$AI107,'+Options'!$AG107),IF(OR(Calcs!J$16<>"",Calcs!J$17<>""),IF(Calcs!J$18<>"",'+Options'!$AJ117,'+Options'!$AI117),IF(Calcs!J$18<>"",'+Options'!$AH117,'+Options'!$AG117))) -> 0.4 | K153: =IF('2.Strategy'!L$66="no",IF(OR(Calcs!K$16<>"",Calcs!K$17<>""),'+Options'!$AI107,'+Options'!$AG107),IF(OR(Calcs!K$16<>"",Calcs!K$17<>""),IF(Calcs!K$18<>"",'+Options'!$AJ117,'+Options'!$AI117),IF(Calcs!K$18<>"",'+Options'!$AH117,'+Options'!$AG117))) -> 0.4 | L153: =IF('2.Strategy'!M$66="no",IF(OR(Calcs!L$16<>"",Calcs!L$17<>""),'+Options'!$AI107,'+Options'!$AG107),IF(OR(Calcs!L$16<>"",Calcs!L$17<>""),IF(Calcs!L$18<>"",'+Options'!$AJ117,'+Options'!$AI117),IF(Calcs!L$18<>"",'+Options'!$AH117,'+Options'!$AG117))) -> 0.4 | T153: =IF('2.Strategy'!U$66="no",IF(Calcs!T$16<>"",'+Options'!$AI107,'+Options'!$AG107),IF(Calcs!T$16<>"",IF(Calcs!T$18<>"",'+Options'!$AJ117,'+Options'!$AI117),IF(Calcs!T$18<>"",'+Options'!$AH117,'+Options'!$AG117))) -> 0.4
B154: Time for post-emergence spraying | C154: =IF('2.Strategy'!D$66="no",IF(OR(Calcs!C$16<>"",Calcs!C$17<>""),'+Options'!$AI108,'+Options'!$AG108),IF(OR(Calcs!C$16<>"",Calcs!C$17<>""),IF(Calcs!C$18<>"",'+Options'!$AJ118,'+Options'!$AI118),IF(Calcs!C$18<>"",'+Options'!$AH118,'+Options'!$AG118))) -> 0.35 | D154: =IF('2.Strategy'!E$66="no",IF(OR(Calcs!D$16<>"",Calcs!D$17<>""),'+Options'!$AI108,'+Options'!$AG108),IF(OR(Calcs!D$16<>"",Calcs!D$17<>""),IF(Calcs!D$18<>"",'+Options'!$AJ118,'+Options'!$AI118),IF(Calcs!D$18<>"",'+Options'!$AH118,'+Options'!$AG118))) -> 0.35 | E154: =IF('2.Strategy'!F$66="no",IF(OR(Calcs!E$16<>"",Calcs!E$17<>""),'+Options'!$AI108,'+Options'!$AG108),IF(OR(Calcs!E$16<>"",Calcs!E$17<>""),IF(Calcs!E$18<>"",'+Options'!$AJ118,'+Options'!$AI118),IF(Calcs!E$18<>"",'+Options'!$AH118,'+Options'!$AG118))) -> 0.35 | F154: =IF('2.Strategy'!G$66="no",IF(OR(Calcs!F$16<>"",Calcs!F$17<>""),'+Options'!$AI108,'+Options'!$AG108),IF(OR(Calcs!F$16<>"",Calcs!F$17<>""),IF(Calcs!F$18<>"",'+Options'!$AJ118,'+Options'!$AI118),IF(Calcs!F$18<>"",'+Options'!$AH118,'+Options'!$AG118))) -> 0.4 | G154: =IF('2.Strategy'!H$66="no",IF(OR(Calcs!G$16<>"",Calcs!G$17<>""),'+Options'!$AI108,'+Options'!$AG108),IF(OR(Calcs!G$16<>"",Calcs!G$17<>""),IF(Calcs!G$18<>"",'+Options'!$AJ118,'+Options'!$AI118),IF(Calcs!G$18<>"",'+Options'!$AH118,'+Options'!$AG118))) -> 0.25 | H154: =IF('2.Strategy'!I$66="no",IF(OR(Calcs!H$16<>"",Calcs!H$17<>""),'+Options'!$AI108,'+Options'!$AG108),IF(OR(Calcs!H$16<>"",Calcs!H$17<>""),IF(Calcs!H$18<>"",'+Options'!$AJ118,'+Options'!$AI118),IF(Calcs!H$18<>"",'+Options'!$AH118,'+Options'!$AG118))) -> 0.25 | I154: =IF('2.Strategy'!J$66="no",IF(OR(Calcs!I$16<>"",Calcs!I$17<>""),'+Options'!$AI108,'+Options'!$AG108),IF(OR(Calcs!I$16<>"",Calcs!I$17<>""),IF(Calcs!I$18<>"",'+Options'!$AJ118,'+Options'!$AI118),IF(Calcs!I$18<>"",'+Options'!$AH118,'+Options'!$AG118))) -> 0.25 | J154: =IF('2.Strategy'!K$66="no",IF(OR(Calcs!J$16<>"",Calcs!J$17<>""),'+Options'!$AI108,'+Options'!$AG108),IF(OR(Calcs!J$16<>"",Calcs!J$17<>""),IF(Calcs!J$18<>"",'+Options'!$AJ118,'+Options'!$AI118),IF(Calcs!J$18<>"",'+Options'!$AH118,'+Options'!$AG118))) -> 0.35 | K154: =IF('2.Strategy'!L$66="no",IF(OR(Calcs!K$16<>"",Calcs!K$17<>""),'+Options'!$AI108,'+Options'!$AG108),IF(OR(Calcs!K$16<>"",Calcs!K$17<>""),IF(Calcs!K$18<>"",'+Options'!$AJ118,'+Options'!$AI118),IF(Calcs!K$18<>"",'+Options'!$AH118,'+Options'!$AG118))) -> 0.35 | L154: =IF('2.Strategy'!M$66="no",IF(OR(Calcs!L$16<>"",Calcs!L$17<>""),'+Options'!$AI108,'+Options'!$AG108),IF(OR(Calcs!L$16<>"",Calcs!L$17<>""),IF(Calcs!L$18<>"",'+Options'!$AJ118,'+Options'!$AI118),IF(Calcs!L$18<>"",'+Options'!$AH118,'+Options'!$AG118))) -> 0.35 | T154: =IF('2.Strategy'!U$66="no",IF(Calcs!T$16<>"",'+Options'!$AI108,'+Options'!$AG108),IF(Calcs!T$16<>"",IF(Calcs!T$18<>"",'+Options'!$AJ118,'+Options'!$AI118),IF(Calcs!T$18<>"",'+Options'!$AH118,'+Options'!$AG118))) -> 0.35
B155: Early spring | C155: =IF('2.Strategy'!D$66="no",IF(OR(Calcs!C$16<>"",Calcs!C$17<>""),'+Options'!$AI109,'+Options'!$AG109),IF(OR(Calcs!C$16<>"",Calcs!C$17<>""),IF(Calcs!C$18<>"",'+Options'!$AJ119,'+Options'!$AI119),IF(Calcs!C$18<>"",'+Options'!$AH119,'+Options'!$AG119))) -> 0.15 | D155: =IF('2.Strategy'!E$66="no",IF(OR(Calcs!D$16<>"",Calcs!D$17<>""),'+Options'!$AI109,'+Options'!$AG109),IF(OR(Calcs!D$16<>"",Calcs!D$17<>""),IF(Calcs!D$18<>"",'+Options'!$AJ119,'+Options'!$AI119),IF(Calcs!D$18<>"",'+Options'!$AH119,'+Options'!$AG119))) -> 0.15 | E155: =IF('2.Strategy'!F$66="no",IF(OR(Calcs!E$16<>"",Calcs!E$17<>""),'+Options'!$AI109,'+Options'!$AG109),IF(OR(Calcs!E$16<>"",Calcs!E$17<>""),IF(Calcs!E$18<>"",'+Options'!$AJ119,'+Options'!$AI119),IF(Calcs!E$18<>"",'+Options'!$AH119,'+Options'!$AG119))) -> 0.15 | F155: =IF('2.Strategy'!G$66="no",IF(OR(Calcs!F$16<>"",Calcs!F$17<>""),'+Options'!$AI109,'+Options'!$AG109),IF(OR(Calcs!F$16<>"",Calcs!F$17<>""),IF(Calcs!F$18<>"",'+Options'!$AJ119,'+Options'!$AI119),IF(Calcs!F$18<>"",'+Options'!$AH119,'+Options'!$AG119))) -> 0.17 | G155: =IF('2.Strategy'!H$66="no",IF(OR(Calcs!G$16<>"",Calcs!G$17<>""),'+Options'!$AI109,'+Options'!$AG109),IF(OR(Calcs!G$16<>"",Calcs!G$17<>""),IF(Calcs!G$18<>"",'+Options'!$AJ119,'+Options'!$AI119),IF(Calcs!G$18<>"",'+Options'!$AH119,'+Options'!$AG119))) -> 0.07 | H155: =IF('2.Strategy'!I$66="no",IF(OR(Calcs!H$16<>"",Calcs!H$17<>""),'+Options'!$AI109,'+Options'!$AG109),IF(OR(Calcs!H$16<>"",Calcs!H$17<>""),IF(Calcs!H$18<>"",'+Options'!$AJ119,'+Options'!$AI119),IF(Calcs!H$18<>"",'+Options'!$AH119,'+Options'!$AG119))) -> 0.07 | I155: =IF('2.Strategy'!J$66="no",IF(OR(Calcs!I$16<>"",Calcs!I$17<>""),'+Options'!$AI109,'+Options'!$AG109),IF(OR(Calcs!I$16<>"",Calcs!I$17<>""),IF(Calcs!I$18<>"",'+Options'!$AJ119,'+Options'!$AI119),IF(Calcs!I$18<>"",'+Options'!$AH119,'+Options'!$AG119))) -> 0.07 | J155: =IF('2.Strategy'!K$66="no",IF(OR(Calcs!J$16<>"",Calcs!J$17<>""),'+Options'!$AI109,'+Options'!$AG109),IF(OR(Calcs!J$16<>"",Calcs!J$17<>""),IF(Calcs!J$18<>"",'+Options'!$AJ119,'+Options'!$AI119),IF(Calcs!J$18<>"",'+Options'!$AH119,'+Options'!$AG119))) -> 0.15 | K155: =IF('2.Strategy'!L$66="no",IF(OR(Calcs!K$16<>"",Calcs!K$17<>""),'+Options'!$AI109,'+Options'!$AG109),IF(OR(Calcs!K$16<>"",Calcs!K$17<>""),IF(Calcs!K$18<>"",'+Options'!$AJ119,'+Options'!$AI119),IF(Calcs!K$18<>"",'+Options'!$AH119,'+Options'!$AG119))) -> 0.15 | L155: =IF('2.Strategy'!M$66="no",IF(OR(Calcs!L$16<>"",Calcs!L$17<>""),'+Options'!$AI109,'+Options'!$AG109),IF(OR(Calcs!L$16<>"",Calcs!L$17<>""),IF(Calcs!L$18<>"",'+Options'!$AJ119,'+Options'!$AI119),IF(Calcs!L$18<>"",'+Options'!$AH119,'+Options'!$AG119))) -> 0.15 | T155: =IF('2.Strategy'!U$66="no",IF(Calcs!T$16<>"",'+Options'!$AI109,'+Options'!$AG109),IF(Calcs!T$16<>"",IF(Calcs!T$18<>"",'+Options'!$AJ119,'+Options'!$AI119),IF(Calcs!T$18<>"",'+Options'!$AH119,'+Options'!$AG119))) -> 0.15
B158: Table 5a. RG seed control | C158: When mouldboarding. Feeds into the bio results page.
B159: Seeds surviving beyond day 10 | C159: =IF(AND(C17<>"",C22=""),1-'+Options'!$AG$126,1) -> 1 | D159: =IF(AND(D17<>"",D22=""),1-'+Options'!$AG$126,1) -> 1 | E159: =IF(AND(E17<>"",E22=""),1-'+Options'!$AG$126,1) -> 1 | F159: =IF(AND(F17<>"",F22=""),1-'+Options'!$AG$126,1) -> 1 | G159: =IF(AND(G17<>"",G22=""),1-'+Options'!$AG$126,1) -> 1 | H159: =IF(AND(H17<>"",H22=""),1-'+Options'!$AG$126,1) -> 1 | I159: =IF(AND(I17<>"",I22=""),1-'+Options'!$AG$126,1) -> 1 | J159: =IF(AND(J17<>"",J22=""),1-'+Options'!$AG$126,1) -> 1 | K159: =IF(AND(K17<>"",K22=""),1-'+Options'!$AG$126,1) -> 1 | L159: =IF(AND(L17<>"",L22=""),1-'+Options'!$AG$126,1) -> 1
B160: Seeds surviving beyond day 20 | C160: =IF(AND(C17<>"",C22<>""),1-'+Options'!$AG$126,1) -> 1 | D160: =IF(AND(D17<>"",D22<>""),1-'+Options'!$AG$126,1) -> 1 | E160: =IF(AND(E17<>"",E22<>""),1-'+Options'!$AG$126,1) -> 1 | F160: =IF(AND(F17<>"",F22<>""),1-'+Options'!$AG$126,1) -> 1 | G160: =IF(AND(G17<>"",G22<>""),1-'+Options'!$AG$126,1) -> 1 | H160: =IF(AND(H17<>"",H22<>""),1-'+Options'!$AG$126,1) -> 1 | I160: =IF(AND(I17<>"",I22<>""),1-'+Options'!$AG$126,1) -> 1 | J160: =IF(AND(J17<>"",J22<>""),1-'+Options'!$AG$126,1) -> 1 | K160: =IF(AND(K17<>"",K22<>""),1-'+Options'!$AG$126,1) -> 1 | L160: =IF(AND(L17<>"",L22<>""),1-'+Options'!$AG$126,1) -> 1
B163: Table 5b. RG control per period | C163: Summarises the control table, feeds into the bio results page. Grazing accounted in a separate table below.
B164: Weeds surviving beyond day 0 | C164: =IF(C19<>"",1,IF(C20<>"",C68,1)) -> 0.6 | D164: 0.6 | E164: 0.6 | F164: 1 | G164: 1 | H164: 1 | I164: =IF(I19<>"",1,IF(I20<>"",I68,1)) -> 1 | J164: 0.6 | K164: 0.6 | L164: 0.6
B165: Weeds surviving beyond day 10 | C165: =C69*IF(OR(SUM(C19:C22)=0,C21<>""),C$55*C$56*C$57*C65,1) -> 1 | D165: 1 | E165: 1 | F165: 0 | G165: 0.05 | H165: 0 | I165: 0 | J165: 1 | K165: =K69*IF(OR(SUM(K19:K22)=0,K21<>""),K$55*K$56*K$57*K65,1) -> 1 | L165: 1
B166: Weeds surviving beyond day 20 | C166: =C70*C65*IF(C22<>"",C$55*C$56*C$57,1) -> 1 | D166: 1 | E166: 1 | F166: 1 | G166: 1 | H166: 1 | I166: 1 | J166: 1 | K166: 1 | L166: 1
B167: Weeds surviving pre-em treatments | C167: =C58*C59*C60*C61*C62*(1-'+Options'!$AG$128)+IF(AND('2.Strategy'!D8<>"",C19<>""),$N$167,0) -> 0.19 | D167: =D58*D59*D60*D61*D62*(1-'+Options'!$AG$128)+IF(AND('2.Strategy'!E8<>"",D19<>""),$N$167,0) -> 0.095 | E167: =E58*E59*E60*E61*E62*(1-'+Options'!$AG$128)+IF(AND('2.Strategy'!F8<>"",E19<>""),$N$167,0) -> 0.1425 | F167: =F58*F59*F60*F61*F62*(1-'+Options'!$AG$128)+IF(AND('2.Strategy'!G8<>"",F19<>""),$N$167,0) -> 0.95 | G167: =G58*G59*G60*G61*G62*(1-'+Options'!$AG$128)+IF(AND('2.Strategy'!H8<>"",G19<>""),$N$167,0) -> 0.95 | H167: =H58*H59*H60*H61*H62*(1-'+Options'!$AG$128)+IF(AND('2.Strategy'!I8<>"",H19<>""),$N$167,0) -> 0.95 | I167: =I58*I59*I60*I61*I62*(1-'+Options'!$AG$128)+IF(AND('2.Strategy'!J8<>"",I19<>""),$N$167,0) -> 0.95 | J167: =J58*J59*J60*J61*J62*(1-'+Options'!$AG$128)+IF(AND('2.Strategy'!K8<>"",J19<>""),$N$167,0) -> 0.1425 | K167: =K58*K59*K60*K61*K62*(1-'+Options'!$AG$128)+IF(AND('2.Strategy'!L8<>"",K19<>""),$N$167,0) -> 0.095 | L167: =L58*L59*L60*L61*L62*(1-'+Options'!$AG$128)+IF(AND('2.Strategy'!M8<>"",L19<>""),$N$167,0) -> 0.1425 | N167: ='+Options'!H18 -> 0.1 | O167: Decrease in pre-em efficiency when dry seeding
B168: Weeds surviving post-em treatments | C168: =C71^P35*C72^P36*C73^P37*C74^P38*C75^P39 -> 0.1 | D168: 0.05 | E168: 1 | F168: 1 | G168: 1 | H168: 1 | I168: 1 | J168: 1 | K168: 1 | L168: 1 | O168: from Options
B169: Weeds surviving spring treatments | C169: =C78*C79*C80*C82*C83*C84*C87*C88*C81*C85*C86 -> 1 | D169: 1 | E169: 0.1 | F169: 1 | G169: 1 | H169: 1 | I169: 0.1 | J169: 1 | K169: 1 | L169: 0.1
B170: Seeds surviving harvest | C170: =C89*C92*C93*C94*C95*C97*C99*C96*C90*C91 -> 0.15 | D170: 0.15 | E170: 0.95 | F170: 1 | G170: 1 | H170: 1 | I170: 1 | J170: 0.15 | K170: 0.95 | L170: 0.15
B173: Table 6. Healthy equivalent weeds/m2 | C173: Feeds from the bio results and the RG parameters in the Option page. Feeds back into the bio results for the RG seed production in Spring.
B174: 10 days after break | C174: ='Bio results'!D3*C164+'Bio results'!D12*C152*C167*IF(OR(C19<>"",C20<>""),'+Options'!$AG142,IF(C21<>"",'+Options'!$AH142,'+Options'!$AI142)) -> 23.29375 | D174: ='Bio results'!E3*D164+'Bio results'!E12*D152*D167*IF(OR(D19<>"",D20<>""),'+Options'!$AG142,IF(D21<>"",'+Options'!$AH142,'+Options'!$AI142)) -> 2.871156198 | E174: ='Bio results'!F3*E164+'Bio results'!F12*E152*E167*IF(OR(E19<>"",E20<>""),'+Options'!$AG142,IF(E21<>"",'+Options'!$AH142,'+Options'!$AI142)) -> 0.5075953185 | F174: ='Bio results'!G3*F164+'Bio results'!G12*F152*F167*IF(OR(F19<>"",F20<>""),'+Options'!$AG142,IF(F21<>"",'+Options'!$AH142,'+Options'!$AI142)) -> 1.352194177 | G174: ='Bio results'!H3*G164+'Bio results'!H12*G152*G167*IF(OR(G19<>"",G20<>""),'+Options'!$AG142,IF(G21<>"",'+Options'!$AH142,'+Options'!$AI142)) -> 10.48556806 | H174: ='Bio results'!I3*H164+'Bio results'!I12*H152*H167*IF(OR(H19<>"",H20<>""),'+Options'!$AG142,IF(H21<>"",'+Options'!$AH142,'+Options'!$AI142)) -> 66.06991427 | I174: ='Bio results'!J3*I164+'Bio results'!J12*I152*I167*IF(OR(I19<>"",I20<>""),'+Options'!$AG142,IF(I21<>"",'+Options'!$AH142,'+Options'!$AI142)) -> 123.4683726 | J174: ='Bio results'!K3*J164+'Bio results'!K12*J152*J167*IF(OR(J19<>"",J20<>""),'+Options'!$AG142,IF(J21<>"",'+Options'!$AH142,'+Options'!$AI142)) -> 9.533373543 | K174: ='Bio results'!L3*K164+'Bio results'!L12*K152*K167*IF(OR(K19<>"",K20<>""),'+Options'!$AG142,IF(K21<>"",'+Options'!$AH142,'+Options'!$AI142)) -> 5.004029193 | L174: ='Bio results'!M3*L164+'Bio results'!M12*L152*L167*IF(OR(L19<>"",L20<>""),'+Options'!$AG142,IF(L21<>"",'+Options'!$AH142,'+Options'!$AI142)) -> 17.86688927
B175: 20 days after break | C175: =C174*C165+'Bio results'!D13*C153*C167*IF(OR(C19<>"",C20<>""),'+Options'!$AG143,IF(C21<>"",'+Options'!$AH143,'+Options'!$AI143)) -> 26.8135 | D175: =D174*D165+'Bio results'!E13*D153*D167*IF(OR(D19<>"",D20<>""),'+Options'!$AG143,IF(D21<>"",'+Options'!$AH143,'+Options'!$AI143)) -> 3.199331624 | E175: =E174*E165+'Bio results'!F13*E153*E167*IF(OR(E19<>"",E20<>""),'+Options'!$AG143,IF(E21<>"",'+Options'!$AH143,'+Options'!$AI143)) -> 0.576860494 | F175: =F174*F165+'Bio results'!G13*F153*F167*IF(OR(F19<>"",F20<>""),'+Options'!$AG143,IF(F21<>"",'+Options'!$AH143,'+Options'!$AI143)) -> 0.7618307982 | G175: =G174*G165+'Bio results'!H13*G153*G167*IF(OR(G19<>"",G20<>""),'+Options'!$AG143,IF(G21<>"",'+Options'!$AH143,'+Options'!$AI143)) -> 7.752618752 | H175: =H174*H165+'Bio results'!I13*H153*H167*IF(OR(H19<>"",H20<>""),'+Options'!$AG143,IF(H21<>"",'+Options'!$AH143,'+Options'!$AI143)) -> 45.54601377 | I175: =I174*I165+'Bio results'!J13*I153*I167*IF(OR(I19<>"",I20<>""),'+Options'!$AG143,IF(I21<>"",'+Options'!$AH143,'+Options'!$AI143)) -> 85.11426513 | J175: =J174*J165+'Bio results'!K13*J153*J167*IF(OR(J19<>"",J20<>""),'+Options'!$AG143,IF(J21<>"",'+Options'!$AH143,'+Options'!$AI143)) -> 10.83427363 | K175: =K174*K165+'Bio results'!L13*K153*K167*IF(OR(K19<>"",K20<>""),'+Options'!$AG143,IF(K21<>"",'+Options'!$AH143,'+Options'!$AI143)) -> 5.57599369 | L175: =L174*L165+'Bio results'!M13*L153*L167*IF(OR(L19<>"",L20<>""),'+Options'!$AG143,IF(L21<>"",'+Options'!$AH143,'+Options'!$AI143)) -> 20.30495987
B176: Time for post-emergence spraying | C176: =C175*C166+'Bio results'!D14*C154*C167*IF(OR(C19<>"",C20<>""),'+Options'!$AG144,IF(C21<>"",'+Options'!$AH144,'+Options'!$AI144)) -> 27.42945625 | D176: =D175*D166+'Bio results'!E14*D154*D167*IF(OR(D19<>"",D20<>""),'+Options'!$AG144,IF(D21<>"",'+Options'!$AH144,'+Options'!$AI144)) -> 3.256762323 | E176: =E175*E166+'Bio results'!F14*E154*E167*IF(OR(E19<>"",E20<>""),'+Options'!$AG144,IF(E21<>"",'+Options'!$AH144,'+Options'!$AI144)) -> 0.5889818998 | F176: =F175*F166+'Bio results'!G14*F154*F167*IF(OR(F19<>"",F20<>""),'+Options'!$AG144,IF(F21<>"",'+Options'!$AH144,'+Options'!$AI144)) -> 0.873565982 | G176: =G175*G166+'Bio results'!H14*G154*G167*IF(OR(G19<>"",G20<>""),'+Options'!$AG144,IF(G21<>"",'+Options'!$AH144,'+Options'!$AI144)) -> 9.262825575 | H176: =H175*H166+'Bio results'!I14*H154*H167*IF(OR(H19<>"",H20<>""),'+Options'!$AG144,IF(H21<>"",'+Options'!$AH144,'+Options'!$AI144)) -> 55.06187737 | I176: =I175*I166+'Bio results'!J14*I154*I167*IF(OR(I19<>"",I20<>""),'+Options'!$AG144,IF(I21<>"",'+Options'!$AH144,'+Options'!$AI144)) -> 102.897067 | J176: =J175*J166+'Bio results'!K14*J154*J167*IF(OR(J19<>"",J20<>""),'+Options'!$AG144,IF(J21<>"",'+Options'!$AH144,'+Options'!$AI144)) -> 11.06193114 | K176: =K175*K166+'Bio results'!L14*K154*K167*IF(OR(K19<>"",K20<>""),'+Options'!$AG144,IF(K21<>"",'+Options'!$AH144,'+Options'!$AI144)) -> 5.676087478 | L176: =L175*L166+'Bio results'!M14*L154*L167*IF(OR(L19<>"",L20<>""),'+Options'!$AG144,IF(L21<>"",'+Options'!$AH144,'+Options'!$AI144)) -> 20.73162223
B177: Spring | C177: =C176*C168+'Bio results'!D15*C155*IF(OR(C19<>"",C20<>""),'+Options'!$AG145,IF(C21<>"",'+Options'!$AH145,'+Options'!$AI145)) -> 2.923564375 | D177: =D176*D168+'Bio results'!E15*D155*IF(OR(D19<>"",D20<>""),'+Options'!$AG145,IF(D21<>"",'+Options'!$AH145,'+Options'!$AI145)) -> 0.1965192783 | E177: =E176*E168+'Bio results'!F15*E155*IF(OR(E19<>"",E20<>""),'+Options'!$AG145,IF(E21<>"",'+Options'!$AH145,'+Options'!$AI145)) -> 0.593721096 | F177: =F176*F168+'Bio results'!G15*F155*IF(OR(F19<>"",F20<>""),'+Options'!$AG145,IF(F21<>"",'+Options'!$AH145,'+Options'!$AI145)) -> 0.8835633405 | G177: =G176*G168+'Bio results'!H15*G155*IF(OR(G19<>"",G20<>""),'+Options'!$AG145,IF(G21<>"",'+Options'!$AH145,'+Options'!$AI145)) -> 9.337011173 | H177: =H176*H168+'Bio results'!I15*H155*IF(OR(H19<>"",H20<>""),'+Options'!$AG145,IF(H21<>"",'+Options'!$AH145,'+Options'!$AI145)) -> 55.5293233 | I177: =I176*I168+'Bio results'!J15*I155*IF(OR(I19<>"",I20<>""),'+Options'!$AG145,IF(I21<>"",'+Options'!$AH145,'+Options'!$AI145)) -> 103.7706081 | J177: =J176*J168+'Bio results'!K15*J155*IF(OR(J19<>"",J20<>""),'+Options'!$AG145,IF(J21<>"",'+Options'!$AH145,'+Options'!$AI145)) -> 11.15094009 | K177: =K176*K168+'Bio results'!L15*K155*IF(OR(K19<>"",K20<>""),'+Options'!$AG145,IF(K21<>"",'+Options'!$AH145,'+Options'!$AI145)) -> 5.734789097 | L177: =L176*L168+'Bio results'!M15*L155*IF(OR(L19<>"",L20<>""),'+Options'!$AG145,IF(L21<>"",'+Options'!$AH145,'+Options'!$AI145)) -> 20.89843759
L180: Enterprise grown:
B181: Table 7. Rotation codes | C181: Codes are used for rotation identification in a number of calculations. | L181: 1 year ago | N181: W
C182: Codes #1: 0=wheat, 1=barley, 2=canola, 3=legumes, 4=volunteer past, 5=clover, 6=cadiz | L182: 2 years ago | N182: W
B183: Year | C183: =L182 -> 2 years ago | D183: =L181 -> 1 year ago | E183: =C1 -> Wheat 1 | F183: Wheat 2 | G183: Canola 3 | H183: Clover 4 | I183: Clover 5 | J183: Clover 6 | K183: Clover 7 | L183: Wheat 8 | M183: Wheat 9 | N183: Canola 10
B184: Enterprise code #1: enterprise selected | C184: =IF(N182="w",0,IF(N182="b",1,IF(N182="c",2,IF(N182="l",3,IF(N182="v",4,IF(N182="s",5,IF(N182="z",6,0))))))) -> 0 | D184: =IF(N181="w",0,IF(N181="b",1,IF(N181="c",2,IF(N181="l",3,IF(N181<>"v",4,IF(N181="s",5,IF(N181="z",6,0))))))) -> 0 | E184: =IF('2.Strategy'!D4="Wheat",0,IF('2.Strategy'!D4="Barley",1,IF('2.Strategy'!D4="Canola",2,IF('2.Strategy'!D4="Legume",3,IF('2.Strategy'!D4="Volunt.",4,IF('2.Strategy'!D4="Clover",5,IF('2.Strategy'!D4="Cadiz",6,0))))))) -> 0 | F184: =IF('2.Strategy'!E4="Wheat",0,IF('2.Strategy'!E4="Barley",1,IF('2.Strategy'!E4="Canola",2,IF('2.Strategy'!E4="Legume",3,IF('2.Strategy'!E4="Volunt.",4,IF('2.Strategy'!E4="Clover",5,IF('2.Strategy'!E4="Cadiz",6,0))))))) -> 0 | G184: =IF('2.Strategy'!F4="Wheat",0,IF('2.Strategy'!F4="Barley",1,IF('2.Strategy'!F4="Canola",2,IF('2.Strategy'!F4="Legume",3,IF('2.Strategy'!F4="Volunt.",4,IF('2.Strategy'!F4="Clover",5,IF('2.Strategy'!F4="Cadiz",6,0))))))) -> 2 | H184: =IF('2.Strategy'!G4="Wheat",0,IF('2.Strategy'!G4="Barley",1,IF('2.Strategy'!G4="Canola",2,IF('2.Strategy'!G4="Legume",3,IF('2.Strategy'!G4="Volunt.",4,IF('2.Strategy'!G4="Clover",5,IF('2.Strategy'!G4="Cadiz",6,0))))))) -> 5 | I184: =IF('2.Strategy'!H4="Wheat",0,IF('2.Strategy'!H4="Barley",1,IF('2.Strategy'!H4="Canola",2,IF('2.Strategy'!H4="Legume",3,IF('2.Strategy'!H4="Volunt.",4,IF('2.Strategy'!H4="Clover",5,IF('2.Strategy'!H4="Cadiz",6,0))))))) -> 5 | J184: =IF('2.Strategy'!I4="Wheat",0,IF('2.Strategy'!I4="Barley",1,IF('2.Strategy'!I4="Canola",2,IF('2.Strategy'!I4="Legume",3,IF('2.Strategy'!I4="Volunt.",4,IF('2.Strategy'!I4="Clover",5,IF('2.Strategy'!I4="Cadiz",6,0))))))) -> 5 | K184: =IF('2.Strategy'!J4="Wheat",0,IF('2.Strategy'!J4="Barley",1,IF('2.Strategy'!J4="Canola",2,IF('2.Strategy'!J4="Legume",3,IF('2.Strategy'!J4="Volunt.",4,IF('2.Strategy'!J4="Clover",5,IF('2.Strategy'!J4="Cadiz",6,0))))))) -> 5 | L184: =IF('2.Strategy'!K4="Wheat",0,IF('2.Strategy'!K4="Barley",1,IF('2.Strategy'!K4="Canola",2,IF('2.Strategy'!K4="Legume",3,IF('2.Strategy'!K4="Volunt.",4,IF('2.Strategy'!K4="Clover",5,IF('2.Strategy'!K4="Cadiz",6,0))))))) -> 0 | M184: =IF('2.Strategy'!L4="Wheat",0,IF('2.Strategy'!L4="Barley",1,IF('2.Strategy'!L4="Canola",2,IF('2.Strategy'!L4="Legume",3,IF('2.Strategy'!L4="Volunt.",4,IF('2.Strategy'!L4="Clover",5,IF('2.Strategy'!L4="Cadiz",6,0))))))) -> 0 | N184: =IF('2.Strategy'!M4="Wheat",0,IF('2.Strategy'!M4="Barley",1,IF('2.Strategy'!M4="Canola",2,IF('2.Strategy'!M4="Legume",3,IF('2.Strategy'!M4="Volunt.",4,IF('2.Strategy'!M4="Clover",5,IF('2.Strategy'!M4="Cadiz",6,0))))))) -> 2
B185: Enterprise code #2: pasture types | C185: =IF(C184<4,C184,IF(C184=4,IF(B184<>4,4,IF(B185=4,5,6)),IF(C184=5,IF(B184<>5,7,IF(B185=7,8,9)),IF(B184<>6,10,IF(B185=10,11,12))))) -> 0 | D185: 0 | E185: 0 | F185: 0 | G185: 2 | H185: 7 | I185: 8 | J185: 9 | K185: 9 | L185: 0 | M185: =IF(M184<4,M184,IF(M184=4,IF(L184<>4,4,IF(L185=4,5,6)),IF(M184=5,IF(L184<>5,7,IF(L185=7,8,9)),IF(L184<>6,10,IF(L185=10,11,12))))) -> 0 | N185: =IF(N184<4,N184,IF(N184=4,IF(M184<>4,4,IF(M185=4,5,6)),IF(N184=5,IF(M184<>5,7,IF(M185=7,8,9)),IF(M184<>6,10,IF(M185=10,11,12))))) -> 2
B186: Enterprise code #3: differentiates cereals | C186: =IF(C185>1,C185,IF(AND(B186>1,B186<24),B186+11,0)) -> 0 | D186: 0 | E186: 0 | F186: 0 | G186: 2 | H186: 7 | I186: 8 | J186: 9 | K186: 9 | L186: 20 | M186: =IF(M185>1,M185,IF(AND(L186>1,L186<24),L186+11,0)) -> 31 | N186: =IF(N185>1,N185,IF(AND(M186>1,M186<24),M186+11,0)) -> 2
B187: Enterprise code #4: differentiates wheat & barley | C187: =IF(C184<>1,C186,IF(C186=0,1,C186+22)) -> 0 | D187: 0 | E187: 0 | F187: 0 | G187: 2 | H187: 7 | I187: 8 | J187: 9 | K187: 9 | L187: 20 | M187: 31 | N187: 2
B188: Break since canola | C188: 3 | D188: =IF(C187=2,0,IF(C188<3,C188+1,C188)) -> 3 | E188: 3 | F188: 3 | G188: 3 | H188: 0 | I188: 1 | J188: 2 | K188: 3 | L188: 3 | M188: =IF(L187=2,0,IF(L188<3,L188+1,L188)) -> 3 | N188: =IF(M187=2,0,IF(M188<3,M188+1,M188)) -> 3
B189: Enterprise code #5: differentiates canolas | C189: =IF(C187<>2,C187,IF(B186=14,IF(C188=2,96,97),44+13*C188+B185)) -> 0 | D189: 0 | E189: =IF('2.Strategy'!D4<>"",IF(E187<>2,E187,IF(D186=14,IF(E188=2,96,97),44+13*E188+D185)),-1) -> 0 | F189: =IF('2.Strategy'!E4<>"",IF(F187<>2,F187,IF(E186=14,IF(F188=2,96,97),44+13*F188+E185)),-1) -> 0 | G189: =IF('2.Strategy'!F4<>"",IF(G187<>2,G187,IF(F186=14,IF(G188=2,96,97),44+13*G188+F185)),-1) -> 83 | H189: =IF('2.Strategy'!G4<>"",IF(H187<>2,H187,IF(G186=14,IF(H188=2,96,97),44+13*H188+G185)),-1) -> 7 | I189: =IF('2.Strategy'!H4<>"",IF(I187<>2,I187,IF(H186=14,IF(I188=2,96,97),44+13*I188+H185)),-1) -> 8 | J189: =IF('2.Strategy'!I4<>"",IF(J187<>2,J187,IF(I186=14,IF(J188=2,96,97),44+13*J188+I185)),-1) -> 9 | K189: =IF('2.Strategy'!J4<>"",IF(K187<>2,K187,IF(J186=14,IF(K188=2,96,97),44+13*K188+J185)),-1) -> 9 | L189: =IF('2.Strategy'!K4<>"",IF(L187<>2,L187,IF(K186=14,IF(L188=2,96,97),44+13*L188+K185)),-1) -> 20 | M189: =IF('2.Strategy'!L4<>"",IF(M187<>2,M187,IF(L186=14,IF(M188=2,96,97),44+13*M188+L185)),-1) -> 31 | N189: =IF('2.Strategy'!M4<>"",IF(N187<>2,N187,IF(M186=14,IF(N188=2,96,97),44+13*N188+M185)),-1) -> 83
B192: Table 8. Rotation values | C192: Associates each enterprise code with the corresponding yields, pastures values, prices, N savings etc. Values in green from Prices or Options.
B193: Enterprise | C193: Enter-prise no. | D193: Label for enter-prise | E193: Weed- free crop yield | F193: empty slot | G193: Ryegrass control, standard grazing | H193: Ryegrass control, high grazing | I193: Standard | J193: High | K193: Standard if hay | L193: High stocking rate if hay | M193: N saving from legumes ($/ha)
B194: If no selection | C194: -1 | D194: ? | J194: Stocking rates
B195: Wheat (3rd or more cereal in a row) | C195: 0 | D195: Wheat | E195: ='+Options'!AG56 -> 1.8 | M195: 0
B196: Barley (3rd or more cereal in a row) | C196: 1 | D196: Barley | E196: ='+Options'!AH56 -> 1.6 | M196: 0
B197: Canola | C197: 2 | D197: Canola | E197: Depends on previous crops/pastures. See below | M197: 0
B198: Legume | C198: 3 | D198: Legum. | E198: ='+Options'!AJ56 -> 1 | M198: 0
B199: Vol. past. yr 1 | C199: 4 | D199: Volunt. | E199: 0 | G199: ='+Options'!AI169 -> 0.4 | H199: ='+Options'!AI173 -> 0.85 | I199: ='+Options'!AI159 -> 1.5 | J199: ='+Options'!AI163 -> 2.5 | K199: ='+Options'!AI179 -> 0.5 | L199: ='+Options'!AI187 -> 0.6666666667 | M199: 0
B200: Vol. past. yr 2 | C200: 5 | D200: Volunt. | E200: 0 | G200: ='+Options'!AI170 -> 0.6 | H200: ='+Options'!AI174 -> 0.9 | I200: ='+Options'!AI160 -> 2 | J200: ='+Options'!AI164 -> 3 | K200: ='+Options'!AI180 -> 1 | L200: ='+Options'!AI188 -> 1.25 | M200: 0
B201: Vol. past. yr 3 | C201: 6 | D201: Volunt. | E201: 0 | G201: ='+Options'!AI171 -> 0.75 | H201: ='+Options'!AI175 -> 0.95 | I201: ='+Options'!AI161 -> 2 | J201: ='+Options'!AI165 -> 3 | K201: ='+Options'!AI181 -> 1 | L201: ='+Options'!AI189 -> 1.25 | M201: 0
B202: Clover yr 1 | C202: 7 | D202: Clover | E202: 0 | G202: ='+Options'!AG169 -> 0.5 | H202: ='+Options'!AG173 -> 0.85 | I202: ='+Options'!AG159 -> 2 | J202: ='+Options'!AG163 -> 3 | K202: ='+Options'!AG179 -> 1.5 | L202: ='+Options'!AG187 -> 1.875 | M202: 0
B203: Clover yr 2 | C203: 8 | D203: Clover | E203: 0 | G203: ='+Options'!AG170 -> 0.7 | H203: ='+Options'!AG174 -> 0.9 | I203: ='+Options'!AG160 -> 3.5 | J203: ='+Options'!AG164 -> 5 | K203: ='+Options'!AG180 -> 3 | L203: ='+Options'!AG188 -> 3.642857143 | M203: 0
B204: Clover yr 3 | C204: 9 | D204: Clover | E204: 0 | G204: ='+Options'!AG171 -> 0.8 | H204: ='+Options'!AG175 -> 0.95 | I204: ='+Options'!AG161 -> 4.5 | J204: ='+Options'!AG165 -> 6.5 | K204: ='+Options'!AG181 -> 4 | L204: ='+Options'!AG189 -> 4.888888889 | M204: 0
B205: Cadiz yr 1 | C205: 10 | D205: Cadiz | E205: 0 | G205: ='+Options'!AH169 -> 0.3 | H205: ='+Options'!AH173 -> 0.7 | I205: ='+Options'!AH159 -> 2.5 | J205: ='+Options'!AH163 -> 3 | K205: ='+Options'!AH179 -> 1.5 | L205: ='+Options'!AH187 -> 1.65 | M205: 0
B206: Cadiz yr 2 | C206: 11 | D206: Cadiz | E206: 0 | G206: ='+Options'!AH170 -> 0.5 | H206: ='+Options'!AH174 -> 0.8 | I206: ='+Options'!AH160 -> 4 | J206: ='+Options'!AH164 -> 5.5 | K206: ='+Options'!AH180 -> 2 | L206: ='+Options'!AH188 -> 2.375 | M206: 0
B207: Cadiz yr 3 | C207: 12 | D207: Cadiz | E207: 0 | G207: ='+Options'!AH171 -> 0.7 | H207: ='+Options'!AH175 -> 0.9 | I207: ='+Options'!AH161 -> 4.5 | J207: ='+Options'!AH165 -> 6.5 | K207: ='+Options'!AH181 -> 2 | L207: ='+Options'!AH189 -> 2.444444444 | M207: 0
B208: Wheat 1st crop after canola | C208: 13 | D208: Wheat | E208: =E195*(1+'+Options'!AG66) -> 1.89 | M208: 0
B209: Wheat 1st crop after Legume crop | C209: 14 | D209: Wheat | E209: =(1+'+Options'!AG$64)*E$195 -> 2.16 | M209: ='+Prices'!AJ87 -> 150
B210: Wheat 1st crop after Vol. past. x 1 | C210: 15 | D210: Wheat | E210: =(1+'+Options'!AS168)*E$195 -> 1.944 | M210: ='+Options'!AS158 -> 25
B211: Wheat 1st crop after Vol. past. x 2 | C211: 16 | D211: Wheat | E211: =(1+'+Options'!AS169)*E$195 -> 1.98 | M211: ='+Options'!AS159 -> 50
B212: Wheat 1st crop after Vol. past. x 3 | C212: 17 | D212: Wheat | E212: =(1+'+Options'!AS170)*E$195 -> 1.98 | M212: ='+Options'!AS160 -> 60
B213: Wheat 1st crop after Clover x 1 | C213: 18 | D213: Wheat | E213: =(1+'+Options'!AS171)*E$195 -> 2.106 | M213: ='+Options'!$AS$161 -> 75
B214: Wheat 1st crop after Clover x 2 | C214: 19 | D214: Wheat | E214: =(1+'+Options'!AS172)*E$195 -> 2.16 | M214: ='+Options'!$AS$162 -> 125
B215: Wheat 1st crop after Clover x 3 | C215: 20 | D215: Wheat | E215: =(1+'+Options'!AS173)*E$195 -> 2.16 | M215: ='+Options'!$AS$163 -> 150
B216: Wheat 1st crop after Cadiz x 1 | C216: 21 | D216: Wheat | E216: =(1+'+Options'!AS174)*E$195 -> 2.106 | M216: ='+Options'!$AS$164 -> 80
B217: Wheat 1st crop after Cadiz x 2 | C217: 22 | D217: Wheat | E217: =(1+'+Options'!AS175)*E$195 -> 2.16 | M217: ='+Options'!$AS$165 -> 135
B218: Wheat 1st crop after Cadiz x 3 | C218: 23 | D218: Wheat | E218: =(1+'+Options'!AS176)*E$195 -> 2.16 | M218: ='+Options'!$AS$166 -> 160
B219: Wheat 2nd cereal after Canola | C219: 24 | D219: Wheat | E219: ='+Options'!AG56 -> 1.8 | M219: 0
... 152 more rows

Sheet Bio results
D1: ='2.Strategy'!D64 -> Wheat 1 | E1: ='2.Strategy'!E64 -> Wheat 2 | F1: ='2.Strategy'!F64 -> Canola 3 | G1: ='2.Strategy'!G64 -> Clover 4 | H1: ='2.Strategy'!H64 -> Clover 5 | I1: ='2.Strategy'!I64 -> Clover 6 | J1: ='2.Strategy'!J64 -> Clover 7 | K1: ='2.Strategy'!K64 -> Wheat 8 | L1: ='2.Strategy'!L64 -> Wheat 9 | M1: ='2.Strategy'!M64 -> Canola 10 | N1: "Dates" | O1: Active | P1: Plants/m2 | Q1: Weeds/m2 | S1: Strategy A | T1: Plants/m2 | U1: Seeds | W1: Strategy B | X1: Plants/m2 | Y1: Seeds
C2: Table 1. Ryegrass plants per m2 | O2: 2001-04-01 | P2: 0 | Q2: ='Bio results'!D11 -> 250
C3: First chance to seed | D3: =D11*Calcs!C151 -> 12.5 | E3: =E11*Calcs!D151 -> 2.330956929 | F3: =F11*Calcs!E151 -> 0.3279834059 | G3: =G11*Calcs!F151 -> 0.2235559575 | H3: =H11*Calcs!G151 -> 1.634539058 | I3: =I11*Calcs!H151 -> 10.29928515 | J3: =J11*Calcs!I151 -> 19.24682348 | K3: =K11*Calcs!J151 -> 6.160002289 | L3: =L11*Calcs!K151 -> 4.062536385 | M3: =M11*Calcs!L151 -> 11.54471482 | N3: 2000-05-01 | O3: 2001-05-01 | P3: ='Bio results'!D3 -> 12.5 | Q3: ='Bio results'!D12 -> 237.5
C4: 10 days after break | D4: =D3*Calcs!C164+D12*Calcs!C152*Calcs!C167 -> 23.29375 | E4: =E3*Calcs!D164+E12*Calcs!D152*Calcs!D167 -> 2.871156198 | F4: =F3*Calcs!E164+F12*Calcs!E152*Calcs!E167 -> 0.5075953185 | G4: =G3*Calcs!F164+G12*Calcs!F152*Calcs!F167 -> 1.352194177 | H4: =H3*Calcs!G164+H12*Calcs!G152*Calcs!G167 -> 10.48556806 | I4: =I3*Calcs!H164+I12*Calcs!H152*Calcs!H167 -> 66.06991427 | J4: =J3*Calcs!I164+J12*Calcs!I152*Calcs!I167 -> 123.4683726 | K4: =K3*Calcs!J164+K12*Calcs!J152*Calcs!J167 -> 9.533373543 | L4: =L3*Calcs!K164+L12*Calcs!K152*Calcs!K167 -> 5.004029193 | M4: =M3*Calcs!L164+M12*Calcs!L152*Calcs!L167 -> 17.86688927 | N4: 2000-05-10 | O4: 2001-05-10 | P4: ='Bio results'!D4 -> 23.29375 | Q4: ='Bio results'!D13 -> 154.375
C5: 20 days after break | D5: =D4*Calcs!C165+D13*Calcs!C153*Calcs!C167 -> 35.02625 | E5: =E4*Calcs!D165+E13*Calcs!D153*Calcs!D167 -> 3.965074284 | F5: =F4*Calcs!E165+F13*Calcs!E153*Calcs!E167 -> 0.738479237 | G5: =G4*Calcs!F165+G13*Calcs!F153*Calcs!F167 -> 0.7618307982 | H5: =H4*Calcs!G165+H13*Calcs!G153*Calcs!G167 -> 7.752618752 | I5: =I4*Calcs!H165+I13*Calcs!H153*Calcs!H167 -> 45.54601377 | J5: =J4*Calcs!I165+J13*Calcs!I153*Calcs!I167 -> 85.11426513 | K5: =K4*Calcs!J165+K13*Calcs!J153*Calcs!J167 -> 13.86970715 | L5: =L4*Calcs!K165+L13*Calcs!K153*Calcs!K167 -> 6.910577518 | M5: =M4*Calcs!L165+M13*Calcs!L153*Calcs!L167 -> 25.99379127 | N5: 2000-05-20 | O5: 2001-05-20 | P5: ='Bio results'!D5 -> 35.02625 | Q5: ='Bio results'!D14 -> 92.625
